Workbook

Sheet Pristine forest
A1: SPECIES | B1: Species (bonito) | C1: Species code | D1: Genus code | E1: Family code | F1: Species code 2 | G1: Genus code 2 | H1: GENUS | I1: TRIBE | J1: SUBFAMILY | K1: FAMILY | L1: FAMILY (old) | M1: ORDER | N1: plot 1 (individuals in 1 ha) | O1: plot 3 (individuals in 1 ha) | P1: plot 7 (individuals in 1 ha) | Q1: plot 9 (individuals in 1 ha) | R1: ABUNDANCE (mean individuals per hectare) | S1: plot 1 (basal area in cm2) | T1: plot 3 (basal area in cm2) | U1: plot 7 (basal area in cm2) | V1: plot 9 (basal area in cm2) | W1: BIOMASS (%) (basal area) | X1: N (individuals colected) | Y1: Specific leaf area (mm2/g) | Z1: n | AA1: Leaf size (mm2) | AB1: n | AC1: Leaf dry matter content (mg/g) | AD1: n | AE1: Leaf tensile strenght (N.mm-1) | AF1: n | AG1: Leaf thickness (mm) | AH1: n | AI1: N leaf content (g/kg) | AJ1: n | AK1: C leaf content (g/kg) | AL1: n | AM1: P leaf content (g/kg) | AN1: n | AO1: Maximum height (m) | AP1: Wood density (g/mL) | AQ1: Reference | AR1: Seed shape (mm3) | AS1: Reference | AT1: Seed size (g) | AU1: Reference | AV1: Dispersal mode (categorical) | AW1: Reference | AX1: Leaf blade type | AY1: Leaf blade (coded) | AZ1: OBS | BA1: Legenda
A2: Abarema_cochleata_(Willd.)_Barneby_&_J._W._Grimes | B2: Abarema cochleata | C2: ABACOC | D2: ABA | E2: FABA | F2: Abac | G2: Aba | H2: Abarema | I2: Ingeae | J2: Mimosoideae | K2: Fabaceae – Mimosoideae | L2: Leguminosae | M2: Fabales | N2: 2 | O2: 1 | P2: 0 | Q2: 0 | R2: 0.75 | S2: 1831.60125 | T2: 939.7706 | U2: 0 | V2: 0 | W2: 0.2354827857 | X2: 1 | Y2: 15.62188624 | Z2: 1 | AA2: 2350.1 | AB2: 1 | AC2: 43.94941748 | AD2: 1 | AE2: 0.3045412444 | AF2: 1 | AG2: 0.194 | AH2: 1 | AI2: 29.21583414 | AK2: 471.5003967 | AM2: 0.5498241609 | AO2: 27.5 | AP2: 0.5899572869 | AQ2: gen-Chave | AT2: =80/1000 -> 0.08 | AU2: gen-Kew | AV2: D_En | AW2: gen-Kew | AX2: compound | AY2: 2 | BA2: AB - Árvores Brasileiras - Lorenzi, H. 1992. Arboles brasileiras: Manual de identificação e cultivo de plantas arbóreas nativas do Brasil. Nova Odessa, SP, Brazil, Instituto Plantarum de Estudos da Flora Ltda. ISBN 85-86714-11-9 www.plantarum.com.br"
A3: Aniba_burchellii/panurensis_s.l. | B3: Aniba burchellii/panurensis | C3: ANIBUR | D3: ANI | E3: LAUR | F3: Anib | G3: Ani | H3: Aniba | K3: Lauraceae | L3: Lauraceae | M3: Laurales | N3: 0 | O3: 0 | P3: 1 | Q3: 2 | R3: 0.75 | S3: 0 | T3: 0 | U3: 1181.7704 | V3: 731.18825 | W3: 0.1625436269 | X3: 5 | Y3: 15.74300993 | Z3: 4 | AA3: 3032.16 | AB3: 5 | AC3: 48.68812469 | AD3: 3 | AE3: 0.6464295423 | AF3: 5 | AG3: 0.221 | AH3: 4 | AI3: 18.56219053 | AK3: 488.2473755 | AM3: 0.5498241609 | AO3: 37.5 | AP3: =(0.52+0.61)/2 -> 0.565 | AQ3: Chave | AR3: yes | AT3: =400/1000 -> 0.4 | AU3: gen-Kew | AV3: D_En | AW3: gen-Kew | AX3: simple | AY3: 1 | BA3: GP - Guia de Propágulos
A4: Aniba_canelilla_(Kunth)_Mez | B4: Aniba canelilla | C4: ANICAN | D4: ANI | E4: LAUR | F4: Anic | G4: Ani | H4: Aniba | K4: Lauraceae | L4: Lauraceae | M4: Laurales | N4: 3 | O4: 0 | P4: 0 | Q4: 1 | R4: 1 | S4: 1840.20485 | T4: 0 | U4: 0 | V4: 1206.2624 | W4: 0.2588575743 | X4: 3 | Y4: 13.41600532 | Z4: 3 | AA4: 6984.066667 | AB4: 3 | AC4: 54.88169994 | AD4: 2 | AE4: 0.8534307962 | AF4: 3 | AG4: 0.249 | AH4: 2 | AI4: 21.40315056 | AK4: 493.2355881 | AM4: 0.5379171633 | AO4: 27.5 | AP4: 0.96 | AQ4: Chave | AR4: 1300 | AS4: KF | AT4: =400/1000 -> 0.4 | AU4: gen-Kew | AV4: D_En | AW4: KF | AX4: simple | AY4: 1 | BA4: Chave - Chave, J.C., Muller Landau, H.C., Baker, T.R., Easdale, T.A., ter Steege, H., Webb, C.O. (2006) Regional and phylogenetic variation of wood density across 2,456 neotropical tree species. Ecological Applications, 16: 2356-2367
A5: Anisophyllea_manausensis_Pires_&_W._A._Rodrigues | B5: Anisophyllea manausensis | C5: ANSMAN | D5: ANS | E5: ANIS | F5: Ansm | G5: Ans | H5: Anisophyllea | K5: Anisophylleaceae | L5: Anisophylleaceae | M5: Cucurbitales | N5: 0 | O5: 3 | P5: 0 | Q5: 1 | R5: 1 | S5: 0 | T5: 1271.11125 | U5: 0 | V5: 1281.2456 | W5: 0.216873135 | X5: 6 | Y5: 11.42767892 | Z5: 6 | AA5: 6436 | AB5: 6 | AC5: 43.50321616 | AD5: 6 | AE5: 0.6703458531 | AF5: 6 | AG5: 0.2253333333 | AH5: 6 | AI5: 14.4581306 | AK5: 465.0102997 | AM5: 0.3414517031 | AO5: 27.5 | AP5: 0.86 | AQ5: Chave | AT5: =330/1000 -> 0.33 | AU5: gen-Kew | AX5: simple | AY5: 1 | BA5: KF - Kossmann-Ferraz, I.D. et al. 2004. Acta Amazonica, 34, 621-633.
A6: Aspidosperma_carapanauba_Pichon | B6: Aspidosperma carapanauba | C6: ASPCAR | D6: ASP | E6: APOC | F6: Aspc | G6: Asp | H6: Aspidosperma | K6: Apocynaceae | L6: Apocynaceae | M6: Gentianales | N6: 1 | O6: 0 | P6: 1 | Q6: 0 | R6: 0.5 | S6: 2230.09865 | T6: 0 | U6: 778.91625 | V6: 0 | W6: 0.2556752574 | X6: 1 | Y6: 8.930565722 | Z6: 1 | AA6: 17016.4 | AB6: 1 | AC6: 40.17223272 | AD6: 1 | AE6: 0.8726017243 | AF6: 1 | AG6: 0.308 | AH6: 1 | AI6: 14.75211501 | AK6: 499.0306091 | AM6: 0.3890796935 | AO6: 32.5 | AP6: 0.7545225784 | AQ6: gen-Chave | AT6: =(350+656+565)/3000 -> 0.5236666667 | AU6: gen-Kew | AV6: D_W | AW6: KEW | AX6: simple | AY6: 1 | BA6: Fearn - Fearnside, P.M. 1997. Forest Ecology and Management, 90, 59-87.
A7: Aspidosperma_marcgravianum_Woodson | B7: Aspidosperma marcgravianum | C7: ASPMAR | D7: ASP | E7: APOC | F7: Aspm | G7: Asp | H7: Aspidosperma | K7: Apocynaceae | L7: Apocynaceae | M7: Gentianales | N7: 0 | O7: 0 | P7: 1 | Q7: 1 | R7: 0.5 | S7: 0 | T7: 0 | U7: 490.625 | V7: 4229.2346 | W7: 0.4010453115 | X7: 1 | Z7: 0 | AB7: 0 | AC7: 43.03111185 | AD7: 1 | AE7: 0.9998774596 | AF7: 1 | AG7: 0.504 | AH7: 1 | AI7: 17.00516939 | AK7: 503.5370255 | AM7: 0.4843356742 | AO7: 27.5 | AP7: 0.72 | AQ7: Chave | AT7: =(350+656+565)/3000 -> 0.5236666667 | AU7: gen-Kew | AV7: D_W | AW7: KEW | AX7: simple | AY7: 1 | BA7: FN - Flora Neotropica. The New York Botanical Garden, New York.
A8: Aspidosperma_oblongum_A._DC. | B8: Aspidosperma oblongum | C8: ASPOBL | D8: ASP | E8: APOC | F8: Aspo | G8: Asp | H8: Aspidosperma | K8: Apocynaceae | L8: Apocynaceae | M8: Gentianales | N8: 2 | O8: 1 | P8: 1 | Q8: 1 | R8: 1.25 | S8: 3077.9065 | T8: 162.7776 | U8: 113.04 | V8: 4194.73385 | W8: 0.6413906189 | X8: 3 | Y8: 10.40985234 | Z8: 2 | AA8: 1867.9 | AB8: 2 | AC8: 39.87349571 | AD8: 3 | AE8: 0.5708988765 | AF8: 3 | AG8: 0.186 | AH8: 3 | AI8: 24.72438812 | AK8: 510.7868576 | AM8: 0.5319636645 | AO8: 27.5 | AP8: 0.87 | AQ8: Chave | AT8: =(350+656+565)/3000 -> 0.5236666667 | AU8: gen-Kew | AV8: D_W | AW8: gen-Kew | AX8: simple | AY8: 1 | BA8: FN92 - S. Madriñán. 2004. Rhodostemonodaphne (Lauraceae). v.92
A9: Bocageopsis_multiflora_(Mart.)_R._E._Fries | B9: Bocageopsis multiflora | C9: BOCMUL | D9: BOC | E9: ANNO | F9: Bocm | G9: Boc | H9: Bocageopsis | K9: Annonaceae | L9: Annonaceae | M9: Magnoliales | N9: 6 | O9: 4 | P9: 0 | Q9: 3 | R9: 3.25 | S9: 1358.84285 | T9: 993.2134 | U9: 0 | V9: 1769.2173 | W9: 0.3501836018 | X9: 9 | Y9: 13.23289233 | Z9: 8 | AA9: 2062.6 | AB9: 9 | AC9: 54.11986915 | AD9: 4 | AE9: 0.3459367017 | AF9: 9 | AG9: 0.1308 | AH9: 5 | AI9: 21.85081959 | AK9: 493.9262009 | AM9: 0.6391266428 | AO9: 27.5 | AP9: 0.65 | AQ9: Chave | AR9: =6*6*4 -> 144 | AS9: GP | AT9: 0.09 | AU9: GP | AV9: D_En | AW9: GP/kew | AX9: simple | AY9: 1 | BA9: FN88 - P.J.M.Maas, L.Y.T. Westra & L.W. Chatrou. 2003. Duguetia (Annonaceae). v. 88
A10: Bocoa_viridiflora_(Ducke)_Cowan | B10: Bocoa viridiflora | C10: BOOVIR | D10: BOO | E10: FABA | F10: Bcov | G10: Bco | H10: Bocoa | J10: Faboideae | K10: Fabaceae – Faboideae | L10: Leguminosae | M10: Fabales | N10: 2 | O10: 2 | P10: 3 | Q10: 0 | R10: 1.75 | S10: 524.537 | T10: 249.5044 | U10: 1633.27885 | V10: 0 | W10: 0.2045494107 | X10: 11 | Y10: 10.84275282 | Z10: 10 | AA10: 3887.687273 | AB10: 10 | AC10: 49.50611323 | AD10: 4 | AE10: 1.054169382 | AF10: 11 | AG10: 0.1883333333 | AH10: 6 | AI10: 24.28169727 | AK10: 491.6383743 | AM10: 0.5676846573 | AO10: 27.5 | AP10: 0.84 | AQ10: Chave | AT10: =129.23/1000 -> 0.12923 | AU10: gen-Kew | AV10: D_En | AW10: gen-Kew | AX10: compound | AY10: 2 | BA10: KEW - Royal Botanic Gardens Kew Seed Information Database (SID), 2008
A11: Brosimum_acutifolium_Huber | B11: Brosimum acutifolium | C11: BROACU | D11: BRO | E11: MORA | F11: Broa | G11: Bro | H11: Brosimum | I11: Dorstenieae | K11: Moraceae | L11: Moraceae | M11: Rosales | N11: 3 | O11: 0 | P11: 0 | Q11: 0 | R11: 0.75 | S11: 2270.22 | T11: 0 | U11: 0 | V11: 0 | W11: 0.1929000361 | X11: 0 | Z11: 0 | AB11: 0 | AD11: 0 | AF11: 0 | AH11: 0 | AO11: 27.5 | AP11: 0.59 | AQ11: Chave | AT11: =(360.5+712)/2000 -> 0.53625 | AU11: gen-Kew | AV11: D_En | AW11: KEW | AX11: simple | AY11: 1 | BA11: Zanne - Zanne, A.E., Lopez-Gonzalez, G.*, Coomes, D.A., Ilic, J., Jansen, S., Lewis, S.L., Miller, R.B., Swenson, N.G., Wiemann, M.C., and Chave, J. 2009. Global wood density database. Dryad. Identifier: http://hdl.handle.net/10255/dryad.235.
A12: Brosimum_guianense_(Aubl.)_Huber | B12: Brosimum guianense | C12: BROGUI | D12: BRO | E12: MORA | F12: Brog | G12: Bro | H12: Brosimum | I12: Dorstenieae | K12: Moraceae | L12: Moraceae | M12: Rosales | N12: 0 | O12: 0 | P12: 1 | Q12: 3 | R12: 1 | S12: 0 | T12: 0 | U12: 176.625 | V12: 1848.7221 | W12: 0.1720932459 | X12: 6 | Y12: 16.78130195 | Z12: 5 | AA12: 3148.066667 | AB12: 6 | AC12: 46.684397 | AD12: 4 | AE12: 0.411555854 | AF12: 6 | AG12: 0.2116 | AH12: 5 | AI12: 17.51728773 | AK12: 467.2307205 | AM12: 0.490289173 | AO12: 27.5 | AP12: 0.91 | AQ12: Chave | AR12: yes | AT12: =(360.5+712)/2000 -> 0.53625 | AU12: gen-Kew | AV12: D_En | AW12: KEW | AX12: simple | AY12: 1
A13: Brosimum_parinarioides_Ducke | B13: Brosimum parinarioides | C13: BROPAR | D13: BRO | E13: MORA | F13: Brop | G13: Bro | H13: Brosimum | I13: Dorstenieae | K13: Moraceae | L13: Moraceae | M13: Rosales | N13: 0 | O13: 0 | P13: 3 | Q13: 0 | R13: 0.75 | S13: 0 | T13: 0 | U13: 3072.6156 | V13: 0 | W13: 0.2610793932 | X13: 3 | Y13: 10.32650491 | Z13: 3 | AA13: 40861 | AB13: 3 | AC13: 46.81131722 | AD13: 3 | AE13: 1.260128709 | AF13: 3 | AG13: 0.4793333333 | AH13: 3 | AI13: 16.91589355 | AK13: 469.8038101 | AM13: 0.5736381561 | AO13: 27.5 | AP13: 0.62 | AQ13: Chave | AT13: =(360.5+712)/2000 -> 0.53625 | AU13: gen-Kew | AV13: D_En | AW13: gen-Kew | AX13: simple | AY13: 1
A14: Brosimum_rubescens_Taub. | B14: Brosimum rubescens | C14: BRORUB | D14: BRO | E14: MORA | F14: Bror | G14: Bro | H14: Brosimum | I14: Dorstenieae | K14: Moraceae | L14: Moraceae | M14: Rosales | N14: 3 | O14: 0 | P14: 1 | Q14: 1 | R14: 1.25 | S14: 635.16705 | T14: 0 | U14: 1133.54 | V14: 1478.5946 | W14: 0.275922424 | X14: 12 | Y14: 25.05042545 | Z14: 10 | AA14: 3872.74 | AB14: 10 | AC14: 45.1557363 | AD14: 7 | AE14: 0.8110593303 | AF14: 12 | AG14: 0.1917142857 | AH14: 7 | AI14: 15.66812992 | AK14: 457.408638 | AM14: 0.5617311585 | AO14: 32.5 | AP14: 0.84 | AQ14: Chave | AR14: 700 | AS14: KF | AT14: =(360.5+712)/2000 -> 0.53625 | AU14: gen-Kew | AV14: D_En | AW14: KF/kew | AX14: simple | AY14: 1 | AZ14: AB3-218
A15: Buchenavia_grandis_Ducke | B15: Buchenavia grandis | C15: BUCGRA | D15: BUC | E15: COMB | F15: Bucg | G15: Buc | H15: Buchenavia | K15: Combretaceae | L15: Combretaceae | M15: Myrtales | N15: 0 | O15: 0 | P15: 0 | Q15: 1 | R15: 0.25 | S15: 0 | T15: 0 | U15: 0 | V15: 6358.5 | W15: 0.540280184 | X15: 3 | Y15: 13.42903403 | Z15: 3 | AA15: 5692.8 | AB15: 3 | AC15: 42.18311539 | AD15: 3 | AE15: 0.4075050699 | AF15: 3 | AG15: 0.2586666667 | AH15: 3 | AI15: 22.9671073 | AK15: 472.612648 | AM15: 0.7462896211 | AO15: 32.5 | AP15: 0.75 | AQ15: Chave | AR15: =23*12*11 -> 3036 | AS15: GP | AT15: 1.9 | AU15: GP | AV15: D_En | AW15: GP | AX15: simple | AY15: 1
A16: Cariniana_decandra_Ducke | B16: Cariniana decandra | C16: CANDEC | D16: CAN | E16: LECY | F16: Card | G16: Car | H16: Cariniana | K16: Lecythidaceae | L16: Lecythidaceae | M16: Ericales | N16: 1 | O16: 0 | P16: 0 | Q16: 1 | R16: 0.5 | S16: 1589.625 | T16: 0 | U16: 0 | V16: 1596.69785 | W16: 0.2707410703 | X16: 1 | Y16: 9.515957447 | Z16: 1 | AA16: 9230.8 | AB16: 1 | AC16: 52.88326301 | AD16: 1 | AE16: 0.469307251 | AF16: 1 | AG16: 0.166 | AH16: 1 | AI16: 15.34576774 | AK16: 483.5155869 | AM16: 0.6272196452 | AO16: 32.5 | AP16: 0.58 | AQ16: Chave | AT16: =128.21/1000 -> 0.12821 | AU16: gen-Kew | AV16: D_W | AX16: simple | AY16: 1
A17: Caryocar_pallidum_A._C._Smith | B17: Caryocar pallidum | C17: CARPAL | D17: CAR | E17: CARY | F17: Cryp | G17: Cry | H17: Caryocar | K17: Caryocaraceae | L17: Caryocaraceae | M17: Malpighiales | N17: 2 | O17: 0 | P17: 0 | Q17: 0 | R17: 0.5 | S17: 3382.94965 | T17: 0 | U17: 0 | V17: 0 | W17: 0.2874484013 | X17: 3 | Y17: 14.83986003 | Z17: 3 | AA17: 5138.688889 | AB17: 3 | AC17: 46.41592609 | AD17: 3 | AE17: 0.2790232439 | AF17: 3 | AG17: 0.168 | AH17: 3 | AI17: 17.46578693 | AK17: 474.1386795 | AM17: 0.6391266428 | AO17: 37.5 | AP17: 0.68 | AQ17: Chave | AR17: 4900 | AS17: KF | AT17: =(6900+50270)/2000 -> 28.585 | AU17: gen-Kew | AV17: D_En/D_N | AW17: KF | AX17: compound | AY17: 2
A18: Caryocar_villosum_(Aubl.)_Pers. | B18: Caryocar villosum | C18: CARVIL | D18: CAR | E18: CARY | F18: Cryv | G18: Cry | H18: Caryocar | K18: Caryocaraceae | L18: Caryocaraceae | M18: Malpighiales | N18: 0 | O18: 1 | P18: 0 | Q18: 1 | R18: 0.5 | S18: 0 | T18: 188.59625 | U18: 0 | V18: 8087.26625 | W18: 0.703198005 | X18: 4 | Y18: 10.60495446 | Z18: 3 | AA18: 5014.2 | AB18: 3 | AC18: 43.04612376 | AD18: 3 | AE18: 0.2732193238 | AF18: 4 | AG18: 0.2446666667 | AH18: 3 | AI18: 17.12945223 | AK18: 475.7179642 | AM18: 0.7760571151 | AO18: 32.5 | AP18: 0.77 | AQ18: Chave | AR18: =3.8*5.4*6.4 -> 131.328 | AS18: AB | AT18: 31.3 | AU18: AB | AV18: D_En | AW18: AB/kew | AX18: compound | AY18: 2
A19: Casearia_javitensis_Kunth | B19: Casearia javitensis | C19: CASJAV | D19: CAS | E19: SALI | F19: Casj | G19: Cas | H19: Casearia | K19: Salicaceae | L19: Flacourtiaceae | M19: Malpighiales | N19: 0 | O19: 10 | P19: 0 | Q19: 3 | R19: 3.25 | S19: 0 | T19: 1688.4094 | U19: 0 | V19: 365.0721 | W19: 0.1744838189 | X19: 11 | Y19: 13.585981 | Z19: 6 | AA19: 14859.25714 | AB19: 7 | AC19: 49.49597917 | AD19: 5 | AE19: 0.6459313393 | AF19: 11 | AG19: 0.209 | AH19: 6 | AI19: 15.30694246 | AK19: 484.9751663 | AM19: 0.3831261947 | AO19: 17.5 | AP19: 0.76 | AQ19: Chave | AT19: =30/1000 -> 0.03 | AU19: KEW | AV19: D_En | AW19: KEW | AX19: simple | AY19: 1
A20: Chaunochiton_kappleri_(Engl.)_Ducke | B20: Chaunochiton kappleri | C20: CHAKAP | D20: CHA | E20: OLAC | F20: Chak | G20: Cha | H20: Chaunochiton | K20: Olacaceae | L20: Olacaceae | M20: Santalales | N20: 0 | O20: 2 | P20: 1 | Q20: 1 | R20: 1 | S20: 0 | T20: 530.8641 | U20: 642.0986 | V20: 854.865 | W20: 0.1723040218 | X20: 1 | Y20: 12.28592483 | Z20: 1 | AA20: 3316.2 | AB20: 1 | AC20: 33.71428571 | AD20: 1 | AE20: 0.460698657 | AF20: 1 | AG20: 0.24 | AH20: 1 | AO20: 22.5 | AP20: 0.52 | AQ20: Chave | AV20: D_W | AW20: KEW | AX20: simple | AY20: 1
A21: Chrysophyllum_lucentifolium_Cronquist | B21: Chrysophyllum lucentifolium | C21: CHRLUC | D21: CHR | E21: SAPO | F21: Chrl | G21: Chr | H21: Chrysophyllum | J21: Chrysophylloideae | K21: Sapotaceae | L21: Sapotaceae | M21: Ericales | N21: 1 | O21: 0 | P21: 0 | Q21: 0 | R21: 0.25 | S21: 1763.7066 | T21: 0 | U21: 0 | V21: 0 | W21: 0.1498617168 | X21: 1 | Y21: 6.817740958 | Z21: 1 | AA21: 6684 | AB21: 1 | AC21: 51.19478639 | AD21: 1 | AE21: 1.244525863 | AF21: 1 | AG21: 0.322 | AH21: 1 | AI21: 12.43386865 | AK21: 484.1174316 | AM21: 0.60340565 | AO21: 32.5 | AP21: 0.79 | AQ21: Chave | AT21: =(990+236.5+210+2600)/4000 -> 1.009125 | AU21: gen-Kew | AV21: D_En | AW21: gen-Kew | AX21: simple | AY21: 1
A22: Chrysophyllum_pomiferum_(Eyma)_T._D._Penn. | B22: Chrysophyllum pomiferum | C22: CHRPOM | D22: CHR | E22: SAPO | F22: Chrp | G22: Chr | H22: Chrysophyllum | J22: Chrysophylloideae | K22: Sapotaceae | L22: Sapotaceae | M22: Ericales | N22: 0 | O22: 1 | P22: 1 | Q22: 0 | R22: 0.5 | S22: 0 | T22: 4368.6506 | U22: 167.3306 | V22: 0 | W22: 0.385421209 | X22: 3 | Y22: 9.819927774 | Z22: 3 | AA22: 9270.4 | AB22: 3 | AC22: 39.06411493 | AD22: 3 | AE22: 0.5820696971 | AF22: 3 | AG22: 0.2506666667 | AH22: 3 | AI22: 25.56381941 | AK22: 482.8323364 | AM22: 0.460521679 | AO22: 32.5 | AP22: 0.78 | AQ22: Chave | AR22: yes | AT22: =990/1000 -> 0.99 | AU22: KEW | AV22: D_En | AW22: KEW | AX22: simple | AY22: 1
A23: Chrysophyllum_wilsonii_Penn. | B23: Chrysophyllum wilsonii | C23: CHRWIL | D23: CHR | E23: SAPO | F23: Chrw | G23: Chr | H23: Chrysophyllum | J23: Chrysophylloideae | K23: Sapotaceae | L23: Sapotaceae | M23: Ericales | N23: 0 | O23: 0 | P23: 1 | Q23: 2 | R23: 0.75 | S23: 0 | T23: 0 | U23: 98.4704 | V23: 6049.21 | W23: 0.5223668944 | X23: 3 | Y23: 13.05484353 | Z23: 3 | AA23: 5841.2 | AB23: 3 | AC23: 38.48063768 | AD23: 3 | AE23: 0.51522632 | AF23: 3 | AG23: 0.234 | AH23: 3 | AI23: 29.56891537 | AK23: 484.7941208 | AM23: 0.4545681802 | AO23: 32.5 | AP23: 0.750353685 | AQ23: gen-Chave | AT23: =(990+236.5+210+2600)/4000 -> 1.009125 | AU23: gen-Kew | AV23: D_En | AW23: gen-Kew | AX23: simple | AY23: 1
A24: Clarisia_racemosa_Ruiz_&_Pav. | B24: Clarisia racemosa | C24: CLARAC | D24: CLA | E24: MORA | F24: Clar | G24: Cla | H24: Clarisia | K24: Moraceae | L24: Moraceae | M24: Rosales | N24: 0 | O24: 1 | P24: 0 | Q24: 1 | R24: 0.5 | S24: 0 | T24: 3769.95465 | U24: 0 | V24: 3597.88265 | W24: 0.6260433266 | X24: 1 | Y24: 16.01923077 | Z24: 1 | AA24: 3485 | AB24: 1 | AC24: 44.9382716 | AD24: 1 | AE24: 0.4085414777 | AF24: 1 | AG24: 0.176 | AH24: 1 | AO24: 27.5 | AP24: 0.56 | AQ24: Chave | AR24: =15*12*9 -> 1620 | AS24: GP | AT24: 1.1 | AU24: GP | AV24: D_En | AW24: KF | AX24: simple | AY24: 1 | AZ24: AB3-219; pode chegar a 40m de altura (FN)
A25: Conceveiba_hostmannii_Benth. | B25: Conceveiba hostmannii | C25: CONHOS | D25: CON | E25: EUPH | F25: Conh | G25: Con | H25: Conceveiba | I25: Alchorneae | J25: Acalyphoideae | K25: Euphorbiaceae | L25: Euphorbiaceae | M25: Malpighiales | N25: 2 | O25: 1 | P25: 1 | Q25: 3 | R25: 1.75 | S25: 863.7512 | T25: 669.3224 | U25: 478.92065 | V25: 2920.8123 | W25: 0.4191393616 | X25: 8 | Y25: 12.60913173 | Z25: 8 | AA25: 29187.35 | AB25: 8 | AC25: 46.21430833 | AD25: 6 | AE25: 0.6278609168 | AF25: 8 | AG25: 0.298 | AH25: 6 | AI25: 21.52402878 | AK25: 470.4331589 | AM25: 0.7284291247 | AO25: 22.5 | AP25: 0.5060472766 | AQ25: gen-Chave | AR25: =10*11*9 -> 990 | AS25: GP | AT25: 0.6 | AU25: GP | AV25: D_N | AW25: gen-Kew | AX25: simple | AY25: 1 | AZ25: dispersal may be complemented by ants as well (aril)
A26: Corythophora_alta_R._Knuth | B26: Corythophora alta | C26: CORALT | D26: COR | E26: LECY | F26: Cora | G26: Cor | H26: Corythophora | K26: Lecythidaceae | L26: Lecythidaceae | M26: Ericales | N26: 5 | O26: 3 | P26: 2 | Q26: 6 | R26: 4 | S26: 2031.10115 | T26: 4444.89765 | U26: 2928.4425 | V26: 4843.67765 | W26: 1.210659169 | X26: 15 | Y26: 14.68404281 | Z26: 15 | AA26: 7685.173333 | AB26: 15 | AC26: 49.63831499 | AD26: 8 | AE26: 0.5406121316 | AF26: 15 | AG26: 0.20025 | AH26: 8 | AI26: 24.65377569 | AK26: 484.827652 | AM26: 0.633173144 | AO26: 27.5 | AP26: 0.71 | AQ26: Chave | AR26: yes | AV26: D_En | AX26: simple | AY26: 1
A27: Corythophora_rimosa_W._A._Rodrigues | B27: Corythophora rimosa | C27: CORRIM | D27: COR | E27: LECY | F27: Corr | G27: Cor | H27: Corythophora | K27: Lecythidaceae | L27: Lecythidaceae | M27: Ericales | N27: 0 | O27: 5 | P27: 2 | Q27: 0 | R27: 1.75 | S27: 0 | T27: 4097.2604 | U27: 656.3385 | V27: 0 | W27: 0.4039121316 | X27: 4 | Y27: 10.46711662 | Z27: 4 | AA27: 7563.25 | AB27: 4 | AC27: 49.80738663 | AD27: 3 | AE27: 0.630274316 | AF27: 4 | AG27: 0.2093333333 | AH27: 3 | AI27: 18.34620476 | AK27: 484.0341949 | AM27: 0.4426611826 | AO27: 27.5 | AP27: 0.79 | AQ27: Chave | AR27: 39300 | AS27: KF | AV27: D_En | AW27: KF | AX27: simple | AY27: 1
A28: Couepia_excelsa_Ducke | B28: Couepia excelsa | C28: COUEXC | D28: COU | E28: CHRY | F28: Coue | G28: Cou | H28: Couepia | K28: Chrysobalanaceae | L28: Chrysobalanaceae | M28: Malpighiales | N28: 0 | O28: 1 | P28: 2 | Q28: 2 | R28: 1.25 | S28: 0 | T28: 158.2874 | U28: 676.08125 | V28: 1166.2274 | W28: 0.1699901552 | X28: 3 | Y28: 7.195955797 | Z28: 3 | AA28: 12439.06667 | AB28: 3 | AC28: 51.3156219 | AD28: 3 | AE28: 1.1046389 | AF28: 3 | AG28: 0.248 | AH28: 3 | AI28: 12.27193117 | AK28: 475.4299927 | AM28: 0.3652656983 | AO28: 27.5 | AP28: 0.7974873109 | AQ28: gen-Chave | AR28: yes | AT28: =4360/1000 -> 4.36 | AU28: gen-Kew | AV28: D_En | AW28: gen-Kew | AX28: simple | AY28: 1
A29: Couepia_longipendula_Pilger | B29: Couepia longipendula | C29: COULON | D29: COU | E29: CHRY | F29: Coul | G29: Cou | H29: Couepia | K29: Chrysobalanaceae | L29: Chrysobalanaceae | M29: Malpighiales | N29: 0 | O29: 0 | P29: 0 | Q29: 3 | R29: 0.75 | S29: 0 | T29: 0 | U29: 0 | V29: 2664.8395 | W29: 0.2264307581 | X29: 7 | Y29: 18.24954312 | Z29: 4 | AA29: 5220.88 | AB29: 5 | AC29: 50.79321567 | AD29: 4 | AE29: 0.8212325335 | AF29: 7 | AG29: 0.2704 | AH29: 5 | AI29: 10.83117008 | AK29: 421.3331223 | AM29: 0.3712191971 | AO29: 22.5 | AP29: 0.94 | AQ29: Chave | AR29: =59*42*39 -> 96642 | AS29: GP | AT29: 48 | AU29: GP | AV29: D_En | AW29: AB | AX29: simple | AY29: 1 | AZ29: Propagule = seed + fruit; AB3-78
A30: Couratari_stellata_A._C._Smith | B30: Couratari stellata | C30: CRTSTE | D30: CRT | E30: LECY | F30: Curs | G30: Cur | H30: Couratari | K30: Lecythidaceae | L30: Lecythidaceae | M30: Ericales | N30: 2 | O30: 1 | P30: 2 | Q30: 2 | R30: 1.75 | S30: 904.98725 | T30: 934.34625 | U30: 213.27665 | V30: 1124.81865 | W30: 0.2699853451 | X30: 3 | Y30: 13.77259959 | Z30: 3 | AA30: 4883.266667 | AB30: 3 | AC30: 34.90489454 | AD30: 3 | AE30: 0.694373296 | AF30: 3 | AG30: 0.2033333333 | AH30: 3 | AI30: 24.50314522 | AK30: 461.9179153 | AM30: 0.8236851054 | AO30: 22.5 | AP30: 0.63 | AQ30: Chave | AR30: yes | AT30: =110/1000 -> 0.11 | AU30: gen-Kew | AV30: D_W | AW30: KEW | AX30: simple | AY30: 1
A31: Cynometra_longicuspis_Ducke | B31: Cynometra longicuspis | C31: CYNLON | D31: CYN | E31: FABA | F31: Cynl | G31: Cyn | H31: Cynometra | I31: Detarieae | J31: Caesalpinoideae | K31: Fabaceae – Caesalpinoideae | L31: Leguminosae | M31: Fabales | N31: 4 | O31: 4 | P31: 5 | Q31: 5 | R31: 4.5 | S31: 1705.56165 | T31: 1053.627 | U31: 1457.8392 | V31: 1500.4019 | W31: 0.4858086023 | X31: 9 | Y31: 13.25563288 | Z31: 6 | AA31: 1183.266667 | AB31: 6 | AC31: 52.20262101 | AD31: 5 | AE31: 0.9538914146 | AF31: 9 | AG31: 0.142 | AH31: 5 | AI31: 16.36998415 | AK31: 452.5985336 | AM31: 0.5498241609 | AO31: 17.5 | AP31: 0.8856666667 | AQ31: gen-Chave | AV31: D_En/water | AW31: gen-Kew | AX31: compound | AY31: 2
A32: Dicorynia_guianensis_Amshoff | B32: Dicorynia guianensis | C32: DICGUI | D32: DIC | E32: FABA | F32: Dicg | G32: Dic | H32: Dicorynia | I32: Cassieae | J32: Caesalpinoideae | K32: Fabaceae – Caesalpinoideae | L32: Leguminosae | M32: Fabales | N32: 0 | O32: 1 | P32: 1 | Q32: 2 | R32: 1 | S32: 0 | T32: 153.86 | U32: 1808.64 | V32: 2456.2964 | W32: 0.3754640453 | X32: 3 | Y32: 22.84647592 | Z32: 3 | AA32: 5830.585635 | AB32: 3 | AC32: 99.11683117 | AD32: 3 | AE32: 0.4497512216 | AF32: 3 | AG32: 0.1553333333 | AH32: 3 | AI32: 24.15436029 | AK32: 468.4383392 | AM32: 0.9487085801 | AO32: 37.5 | AP32: 0.63 | AQ32: Chave | AV32: D_W | AW32: KEW | AX32: compound | AY32: 2
A33: Dinizia_excelsa_Ducke | B33: Dinizia excelsa | C33: DINEXC | D33: DIN | E33: FABA | F33: Dine | G33: Din | H33: Dinizia | I33: Mimoseae | J33: Mimosoideae | K33: Fabaceae – Mimosoideae | L33: Leguminosae | M33: Fabales | N33: 2 | O33: 0 | P33: 0 | Q33: 0 | R33: 0.5 | S33: 17232.01385 | T33: 0 | U33: 0 | V33: 0 | W33: 1.464199986 | X33: 3 | Y33: 10.77284508 | Z33: 3 | AA33: 69.93333333 | AB33: 3 | AC33: 51.64869639 | AD33: 3 | AE33: 0.4426868482 | AF33: 3 | AG33: 0.144 | AH33: 3 | AI33: 14.84669089 | AK33: 488.1468964 | AM33: 0.4664751778 | AO33: 42.5 | AP33: 0.85 | AQ33: Chave | AR33: =14*8*2 -> 224 | AS33: GP | AT33: 0.2 | AU33: GP | AV33: D_W | AX33: bipinate | AY33: 3
A34: Dipteryx_magnifica_(Ducke)_Ducke | B34: Dipteryx magnifica | C34: DIPMAG | D34: DIP | E34: FABA | F34: Dipm | G34: Dip | H34: Dipteryx | I34: Dipterygeae | J34: Faboideae | K34: Fabaceae – Faboideae | L34: Leguminosae | M34: Fabales | N34: 1 | O34: 0 | P34: 0 | Q34: 1 | R34: 0.5 | S34: 1103.90625 | T34: 0 | U34: 0 | V34: 5407.865 | W34: 0.5533036045 | X34: 3 | Y34: 15.32505471 | Z34: 3 | AA34: 3247.409867 | AB34: 3 | AC34: 49.98052931 | AD34: 3 | AE34: 0.7396634148 | AF34: 3 | AG34: 0.1793333333 | AH34: 3 | AI34: 21.88884974 | AK34: 486.0124588 | AM34: 0.60340565 | AO34: 32.5 | AP34: 0.9107088182 | AQ34: gen-Chave | AR34: 1600 | AS34: KF | AT34: =AVERAGE(AVERAGE(13770,6127),5160)/1000 -> 7.55425 | AU34: gen-Kew | AV34: D_En | AW34: KF | AX34: compound | AY34: 2
A35: Dipteryx_odorata_(Aubl.)_Willd. | B35: Dipteryx odorata | C35: DIPODO | D35: DIP | E35: FABA | F35: Dipo | G35: Dip | H35: Dipteryx | I35: Dipterygeae | J35: Faboideae | K35: Fabaceae – Faboideae | L35: Leguminosae | M35: Fabales | N35: 0 | O35: 0 | P35: 2 | Q35: 2 | R35: 1 | S35: 0 | T35: 0 | U35: 2948.68765 | V35: 637.30225 | W35: 0.3047006815 | X35: 4 | Y35: 13.96640899 | Z35: 4 | AA35: 11889.64583 | AB35: 4 | AC35: 40.66197548 | AD35: 4 | AE35: 0.7270564057 | AF35: 4 | AG35: 0.2175 | AH35: 4 | AI35: 21.89255238 | AK35: 484.315834 | AM35: 0.7581966187 | AO35: 32.5 | AP35: 0.92 | AQ35: Chave | AR35: 18600 | AS35: KF | AT35: =5160/1000 -> 5.16 | AU35: KEW | AV35: D_En | AW35: KF/kew | AX35: compound | AY35: 2
A36: Drypetes_variabilis_Uittien | B36: Drypetes variabilis | C36: DRYVAR | D36: DRY | E36: PUTR | F36: Dryv | G36: Dry | H36: Drypetes | K36: Putranjivaceae | L36: Euphorbiaceae | M36: Malpighiales | N36: 2 | O36: 2 | P36: 2 | Q36: 2 | R36: 2 | S36: 331.6625 | T36: 715.4333 | U36: 746.73125 | V36: 480.89885 | W36: 0.1932829013 | X36: 7 | Y36: 8.556294117 | Z36: 5 | AA36: 5677.04 | AB36: 5 | AC36: 41.48196124 | AD36: 5 | AE36: 0.5534904746 | AF36: 7 | AG36: 0.2546666667 | AH36: 6 | AI36: 16.29655123 | AK36: 428.1000137 | AM36: 0.5736381561 | AO36: 22.5 | AP36: 0.73 | AQ36: Chave | AT36: =AVERAGE(124.6,11.97,91.24)/1000 -> 0.07593666667 | AU36: gen-Kew | AV36: D_En | AW36: KEW | AX36: simple | AY36: 1
A37: Duckeodendron_cestroides_Kuhlm. | B37: Duckeodendron cestroides | C37: DUCCES | D37: DUC | E37: SOLA | F37: Ducc | G37: Duc | H37: Duckeodendron | K37: Solanaceae | L37: Duckeodendraceae | M37: Solanales | N37: 1 | O37: 1 | P37: 4 | Q37: 5 | R37: 2.75 | S37: 1384.74 | T37: 274.50665 | U37: 5508.41565 | V37: 5730.1075 | W37: 1.095920334 | X37: 5 | Y37: 14.54364021 | Z37: 5 | AA37: 5829.48 | AB37: 5 | AC37: 32.524745 | AD37: 4 | AE37: 0.4923390861 | AF37: 5 | AG37: 0.2405 | AH37: 4 | AI37: 44.21652794 | AK37: 461.4517593 | AM37: 0.6808011344 | AO37: 27.5 | AP37: 0.63 | AQ37: Chave | AR37: =58*30*28 -> 48720 | AS37: GP | AT37: 29 | AU37: GP | AV37: D_En | AW37: GP | AX37: simple | AY37: 1
A38: Duguetia_echinophora_R._E._Fries | B38: Duguetia echinophora | C38: DUGECH | D38: DUG | E38: ANNO | F38: Duge | G38: Dug | H38: Duguetia | K38: Annonaceae | L38: Annonaceae | M38: Magnoliales | N38: 2 | O38: 4 | P38: 2 | Q38: 0 | R38: 2 | S38: 277.36405 | T38: 904.3671 | U38: 698.65 | V38: 0 | W38: 0.1597755247 | X38: 6 | Y38: 13.07591088 | Z38: 6 | AA38: 4200.266667 | AB38: 6 | AC38: 52.01870065 | AD38: 6 | AE38: 0.5881816679 | AF38: 6 | AG38: 0.1486666667 | AH38: 6 | AI38: 41.32891178 | AK38: 464.2063904 | AM38: 0.5676846573 | AO38: 22.5 | AP38: 0.7754916667 | AQ38: gen-Chave | AR38: obovoid, 11-18x5-9mm | AS38: FN88 | AT38: =260/1000 -> 0.26 | AU38: gen-Kew | AV38: D_En | AW38: gen-Kew | AX38: simple | AY38: 1 | AZ38: segundo FN88 pode atingir 30m de H
A39: Duguetia_manausensis_Maas_&_Boon | B39: Duguetia manausensis | C39: DUGMAN | D39: DUG | E39: ANNO | F39: Dugm | G39: Dug | H39: Duguetia | K39: Annonaceae | L39: Annonaceae | M39: Magnoliales | N39: 5 | O39: 6 | P39: 3 | Q39: 4 | R39: 4.5 | S39: 834.90245 | T39: 1063.6279 | U39: 537.73285 | V39: 748.67805 | W39: 0.2706236761 | X39: 9 | Y39: 14.42908345 | Z39: 5 | AA39: 27356.4 | AB39: 5 | AC39: 45.75055488 | AD39: 3 | AE39: 0.7544836035 | AF39: 9 | AG39: 0.2406666667 | AH39: 3 | AI39: 26.34362459 | AK39: 467.1989441 | AM39: 0.5557776597 | AO39: 17.5 | AP39: 0.7754916667 | AQ39: gen-Chave | AR39: obovoid, 17-19x6-10mm | AT39: =260/1000 -> 0.26 | AU39: gen-Kew | AV39: D_En | AW39: gen-Kew | AX39: simple | AY39: 1
A40: Dussia_discolor_(Benth.)_Amshoff | B40: Dussia discolor | C40: DUSDIS | D40: DUS | E40: FABA | F40: Dusd | G40: Dus | H40: Dussia | J40: Faboideae | K40: Fabaceae – Faboideae | L40: Leguminosae | M40: Fabales | N40: 0 | O40: 0 | P40: 0 | Q40: 2 | R40: 0.5 | S40: 0 | T40: 0 | U40: 0 | V40: 3067.06565 | W40: 0.2606078153 | X40: 1 | Y40: 14.66370886 | Z40: 1 | AA40: 9940 | AB40: 1 | AC40: 38.01029775 | AD40: 1 | AE40: 0.3210304299 | AF40: 1 | AG40: 0.198 | AH40: 1 | AI40: 19.45121408 | AK40: 455.5147552 | AM40: 0.6510336404 | AO40: 32.5 | AP40: 0.55 | AQ40: Chave | AR40: 27-40mmx12-16mm | AS40: gen-Kew | AV40: D_En | AW40: KEW | AX40: compound | AY40: 2
A41: Ecclinusa_guianensis_Eyma | B41: Ecclinusa guianensis | C41: ECCGUI | D41: ECC | E41: SAPO | F41: Eccg | G41: Ecc | H41: Ecclinusa | K41: Sapotaceae | L41: Sapotaceae | M41: Ericales | N41: 5 | O41: 6 | P41: 3 | Q41: 2 | R41: 4 | S41: 3862.9379 | T41: 5930.72995 | U41: 894.73515 | V41: 452.85865 | W41: 0.9466702673 | X41: 11 | Y41: 9.155879886 | Z41: 10 | AA41: 6079.327273 | AB41: 11 | AC41: 51.95330725 | AD41: 4 | AE41: 0.7492741059 | AF41: 11 | AG41: 0.222 | AH41: 5 | AI41: 13.26282501 | AK41: 485.2630234 | AM41: 0.3354982043 | AO41: 32.5 | AP41: 0.63 | AQ41: Chave | AR41: yes | AT41: =310/1000 -> 0.31 | AU41: gen-Kew | AV41: D_En | AW41: KEW | AX41: simple | AY41: 1
A42: Elaeoluma_nuda_(Baehni)_Aubrev. | B42: Elaeoluma nuda | C42: ELANUD | D42: ELA | E42: SAPO | F42: Elan | G42: Ela | H42: Elaeoluma | K42: Sapotaceae | L42: Sapotaceae | M42: Ericales | N42: 0 | O42: 0 | P42: 1 | Q42: 0 | R42: 0.25 | S42: 0 | T42: 0 | U42: 1838.9096 | V42: 0 | W42: 0.1562516973 | X42: 0 | Z42: 0 | AB42: 0 | AD42: 0 | AF42: 0 | AH42: 0 | AO42: 32.5 | AV42: D_En | AX42: simple | AY42: 1
A43: Endopleura_uchi_(Huber)_Cuatrec | B43: Endopleura uchi | C43: ENDUCH | D43: END | E43: HUMI | F43: Endu | G43: End | H43: Endopleura | K43: Humiriaceae | L43: Humiriaceae | M43: Malpighiales | N43: 0 | O43: 1 | P43: 0 | Q43: 1 | R43: 0.5 | S43: 0 | T43: 2374.625 | U43: 0 | V43: 1139.51385 | W43: 0.2985955154 | X43: 4 | Y43: 11.93924632 | Z43: 4 | AA43: 13782.55 | AB43: 4 | AC43: 62.52248902 | AD43: 4 | AE43: 0.8024724498 | AF43: 3 | AG43: 0.2295 | AH43: 4 | AI43: 11.79319739 | AK43: 481.0667801 | AM43: 0.3771726959 | AO43: 27.5 | AP43: 0.79 | AQ43: Chave | AV43: D_En | AX43: simple | AY43: 1
A44: Eperua_glabriflora_(Ducke)_Cowan | B44: Eperua glabriflora | C44: EPEGLA | D44: EPE | E44: FABA | F44: Epeg | G44: Epe | H44: Eperua | I44: Detarieae | J44: Caesalpinoideae | K44: Fabaceae – Caesalpinoideae | L44: Leguminosae | M44: Fabales | N44: 2 | O44: 1 | P44: 3 | Q44: 3 | R44: 2.25 | S44: 1059.3889 | T44: 678.5226 | U44: 3658.2099 | V44: 3201.4341 | W44: 0.7305321802 | X44: 8 | Y44: 8.391613441 | Z44: 7 | AA44: 9367.069556 | AB44: 7 | AC44: 47.31858579 | AD44: 6 | AE44: 1.089010268 | AF44: 8 | AG44: 0.281 | AH44: 6 | AI44: 14.03779387 | AK44: 480.4828644 | AM44: 0.5676846573 | AO44: 27.5 | AP44: 0.76 | AQ44: Chave | AT44: =(18.62+3400+10580+5740)/4000 -> 4.934655 | AU44: gen-Kew | AV44: D_N | AW44: gen-Kew | AX44: compound | AY44: 2
A45: Erisma_bicolor_Ducke | B45: Erisma bicolor | C45: ERIBIC | D45: ERI | E45: VOCH | F45: Erib | G45: Eri | H45: Erisma | K45: Vochysiaceae | L45: Vochysiaceae | M45: Myrtales | N45: 1 | O45: 0 | P45: 3 | Q45: 3 | R45: 1.75 | S45: 128.6144 | T45: 0 | U45: 2869.81085 | V45: 734.83065 | W45: 0.3172138373 | X45: 4 | Y45: 6.998473398 | Z45: 4 | AA45: 21552.6 | AB45: 4 | AC45: 48.61099477 | AD45: 4 | AE45: 0.8555435658 | AF45: 4 | AG45: 0.2455 | AH45: 4 | AI45: 13.63241792 | AK45: 449.0854263 | AM45: 0.3950331922 | AO45: 37.5 | AP45: 0.522536746 | AQ45: gen-Chave | AV45: D_W | AW45: AB/gen-Kew | AX45: simple | AY45: 1
A46: Erisma_bracteosum_Ducke | B46: Erisma bracteosum | C46: ERIBRA | D46: ERI | E46: VOCH | F46: Erii | G46: Eri | H46: Erisma | K46: Vochysiaceae | L46: Vochysiaceae | M46: Myrtales | N46: 1 | O46: 0 | P46: 0 | Q46: 0 | R46: 0.25 | S46: 2595.40625 | T46: 0 | U46: 0 | V46: 0 | W46: 0.2205310319 | X46: 0 | Z46: 0 | AB46: 0 | AD46: 0 | AF46: 0 | AH46: 0 | AO46: 32.5 | AP46: 0.522536746 | AQ46: gen-Chave | AT46: =1000/2100 -> 0.4761904762 | AU46: AB | AV46: D_W | AW46: AB | AX46: simple | AY46: 1 | AZ46: AB3-365
A47: Eschweilera_amazoniciformis_S._A._Mori | B47: Eschweilera amazoniciformis | C47: ESCAMA | D47: ESC | E47: LECY | F47: Esca | G47: Esc | H47: Eschweilera | J47: Lecythidoideae | K47: Lecythidaceae | L47: Lecythidaceae | M47: Ericales | N47: 1 | O47: 2 | P47: 3 | Q47: 2 | R47: 2 | S47: 2622.5594 | T47: 185.29925 | U47: 2492.061 | V47: 931.01 | W47: 0.5294405627 | X47: 6 | Y47: 7.632059406 | Z47: 5 | AA47: 1686.966667 | AB47: 6 | AC47: 60.72426374 | AD47: 5 | AE47: 1.104431617 | AF47: 6 | AG47: 0.227 | AH47: 6 | AI47: 17.45035291 | AK47: 498.5919189 | AM47: 0.3771726959 | AO47: 32.5 | AP47: 0.82 | AQ47: Chave | AT47: =(3140+1110+2000+6663+530)/5000 -> 2.6886 | AU47: gen-Kew | AV47: D_En | AW47: gen-Kew | AX47: simple | AY47: 1
A48: Eschweilera_atropetiolata_S._A._Mori | B48: Eschweilera atropetiolata | C48: ESCATR | D48: ESC | E48: LECY | F48: Esco | G48: Esc | H48: Eschweilera | J48: Lecythidoideae | K48: Lecythidaceae | L48: Lecythidaceae | M48: Ericales | N48: 4 | O48: 5 | P48: 8 | Q48: 5 | R48: 5.5 | S48: 1446.3939 | T48: 2063.67865 | U48: 7857.4418 | V48: 1738.3511 | W48: 1.11360217 | X48: 14 | Y48: 7.480613132 | Z48: 12 | AA48: 12634.05714 | AB48: 14 | AC48: 49.99768 | AD48: 7 | AE48: 1.130586253 | AF48: 14 | AG48: 0.2715555556 | AH48: 9 | AI48: 21.64853811 | AK48: 499.5997238 | AM48: 0.4367076838 | AO48: 32.5 | AP48: 0.75 | AQ48: Chave | AT48: =(3140+1110+2000+6663+530)/5000 -> 2.6886 | AU48: gen-Kew | AV48: D_En | AW48: gen-Kew | AX48: simple | AY48: 1
A49: Eschweilera_collina_Eyma | B49: Eschweilera collina | C49: ESCCOL | D49: ESC | E49: LECY | F49: Escc | G49: Esc | H49: Eschweilera | J49: Lecythidoideae | K49: Lecythidaceae | L49: Lecythidaceae | M49: Ericales | N49: 1 | O49: 1 | P49: 6 | Q49: 2 | R49: 2.5 | S49: 81.6714 | T49: 140.9546 | U49: 2218.19805 | V49: 406.2218 | W49: 0.2419127869 | X49: 8 | Y49: 11.49551829 | Z49: 8 | AA49: 6473.7 | AB49: 8 | AC49: 49.36852053 | AD49: 6 | AE49: 0.8396042593 | AF49: 8 | AG49: 0.2796666667 | AH49: 6 | AI49: 27.2625351 | AK49: 485.5068588 | AM49: 0.5141031681 | AO49: 27.5 | AP49: 0.78 | AQ49: Chave | AR49: yes | AT49: =(3140+1110+2000+6663+530)/5000 -> 2.6886 | AU49: gen-Kew | AV49: D_En | AW49: gen-Kew | AX49: simple | AY49: 1
A50: Eschweilera_coriacea_(DC.)_S._A._Mori | B50: Eschweilera coriacea | C50: ESCCOR | D50: ESC | E50: LECY | F50: Esce | G50: Esc | H50: Eschweilera | J50: Lecythidoideae | K50: Lecythidaceae | L50: Lecythidaceae | M50: Ericales | N50: 1 | O50: 4 | P50: 2 | Q50: 5 | R50: 3 | S50: 151.66985 | T50: 4123.5579 | U50: 473.512 | V50: 1724.48015 | W50: 0.5500279058 | X50: 13 | Y50: 9.645511221 | Z50: 12 | AA50: 10372.07692 | AB50: 13 | AC50: 48.35157128 | AD50: 6 | AE50: 0.8439989415 | AF50: 13 | AG50: 0.2954285714 | AH50: 7 | AI50: 17.50974894 | AK50: 480.8745956 | AM50: 0.5200566669 | AO50: 27.5 | AP50: 0.84 | AQ50: Chave | AR50: =30*24*18 -> 12960 | AS50: GP | AT50: 7.8 | AU50: GP | AV50: D_En | AW50: GP | AX50: simple | AY50: 1
A51: Eschweilera_cyathiformis_S._A._Mori | B51: Eschweilera cyathiformis | C51: ESCCYA | D51: ESC | E51: LECY | F51: Escy | G51: Esc | H51: Eschweilera | J51: Lecythidoideae | K51: Lecythidaceae | L51: Lecythidaceae | M51: Ericales | N51: 2 | O51: 9 | P51: 3 | Q51: 2 | R51: 4 | S51: 1270.5696 | T51: 5087.27885 | U51: 5865.0804 | V51: 1555.81505 | W51: 1.170776487 | X51: 12 | Y51: 8.78448638 | Z51: 10 | AA51: 4665.56 | AB51: 10 | AC51: 48.73861869 | AD51: 6 | AE51: 1.189563469 | AF51: 12 | AG51: 0.2596666667 | AH51: 6 | AI51: 18.43860388 | AK51: 498.0350494 | AM51: 0.4128936886 | AO51: 32.5 | AP51: 0.8485179374 | AQ51: gen-Chave | AR51: =22*16*11 -> 3872 | AS51: GP | AT51: 2 | AU51: GP | AV51: D_En | AW51: GP | AX51: simple | AY51: 1
A52: Eschweilera_grandiflora_(Aubl.)_Sandw. | B52: Eschweilera grandiflora | C52: ESCGRA | D52: ESC | E52: LECY | F52: Escg | G52: Esc | H52: Eschweilera | J52: Lecythidoideae | K52: Lecythidaceae | L52: Lecythidaceae | M52: Ericales | N52: 4 | O52: 3 | P52: 7 | Q52: 9 | R52: 5.75 | S52: 817.6246 | T52: 434.77225 | U52: 1011.38615 | V52: 2457.9449 | W52: 0.4012040605 | X52: 12 | Y52: 11.42138339 | Z52: 12 | AA52: 14673.48333 | AB52: 12 | AC52: 50.28859108 | AD52: 5 | AE52: 0.8619836146 | AF52: 12 | AG52: 0.2232 | AH52: 5 | AI52: 21.21899605 | AK52: 492.0616531 | AM52: 0.5260101657 | AO52: 27.5 | AP52: 0.88 | AQ52: Chave | AR52: yes | AT52: =(3140+1110+2000+6663+530)/5000 -> 2.6886 | AU52: gen-Kew | AV52: D_En | AW52: gen-Kew | AX52: simple | AY52: 1
A53: Eschweilera_micrantha_(O._Berg)_Miers | B53: Eschweilera micrantha | C53: ESCMIC | D53: ESC | E53: LECY | F53: Escm | G53: Esc | H53: Eschweilera | J53: Lecythidoideae | K53: Lecythidaceae | L53: Lecythidaceae | M53: Ericales | N53: 5 | O53: 3 | P53: 7 | Q53: 5 | R53: 5 | S53: 3219.4106 | T53: 1491.60205 | U53: 2567.35035 | V53: 4262.1261 | W53: 0.9805925257 | X53: 9 | Y53: 12.00685633 | Z53: 8 | AA53: 4702.075 | AB53: 8 | AC53: 49.95561248 | AD53: 5 | AE53: 0.924850553 | AF53: 9 | AG53: 0.1968 | AH53: 5 | AI53: 22.91297913 | AK53: 500.6867599 | AM53: 0.5141031681 | AO53: 32.5 | AP53: 0.86 | AQ53: Chave | AT53: =(3140+1110+2000+6663+530)/5000 -> 2.6886 | AU53: gen-Kew | AV53: D_En | AW53: gen-Kew | AX53: simple | AY53: 1
A54: Eschweilera_pseudodecolorans_S._A._Mori | B54: Eschweilera pseudodecolorans | C54: ESCPSE | D54: ESC | E54: LECY | F54: Escp | G54: Esc | H54: Eschweilera | J54: Lecythidoideae | K54: Lecythidaceae | L54: Lecythidaceae | M54: Ericales | N54: 3 | O54: 1 | P54: 2 | Q54: 7 | R54: 3.25 | S54: 4391.07805 | T54: 191.0376 | U54: 253.3666 | V54: 7780.77085 | W54: 1.071999929 | X54: 11 | Y54: 12.96626815 | Z54: 10 | AA54: 5840.781818 | AB54: 11 | AC54: 50.10913625 | AD54: 5 | AE54: 0.8314051869 | AF54: 11 | AG54: 0.2653333333 | AH54: 6 | AI54: 25.85528374 | AK54: 502.1637726 | AM54: 0.4962426718 | AO54: 37.5 | AP54: 0.8485179374 | AQ54: gen-Chave | AT54: =(3140+1110+2000+6663+530)/5000 -> 2.6886 | AU54: gen-Kew | AV54: D_En | AW54: gen-Kew | AX54: simple | AY54: 1
A55: Eschweilera_rankiniae_S._A._Mori | B55: Eschweilera rankiniae | C55: ESCRAN | D55: ESC | E55: LECY | F55: Escr | G55: Esc | H55: Eschweilera | J55: Lecythidoideae | K55: Lecythidaceae | L55: Lecythidaceae | M55: Ericales | N55: 2 | O55: 1 | P55: 4 | Q55: 3 | R55: 2.5 | S55: 1154.2169 | T55: 298.49625 | U55: 1960.4747 | V55: 716.94835 | W55: 0.350936659 | X55: 6 | Y55: 9.790296785 | Z55: 6 | AA55: 2589.866667 | AB55: 6 | AC55: 45.98319966 | AD55: 6 | AE55: 0.8544339358 | AF55: 6 | AG55: 0.2316666667 | AH55: 6 | AI55: 22.34982729 | AK55: 496.2492371 | AM55: 0.4724286766 | AO55: 17.5 | AP55: 0.8485179374 | AQ55: gen-Chave | AT55: =(3140+1110+2000+6663+530)/5000 -> 2.6886 | AU55: gen-Kew | AV55: D_En | AW55: gen-Kew | AX55: simple | AY55: 1
A56: Eschweilera_romeu-cardosoi_S._A._Mori | B56: Eschweilera romeu-cardosoi | C56: ESCROM | D56: ESC | E56: LECY | F56: Escu | G56: Esc | H56: Eschweilera | J56: Lecythidoideae | K56: Lecythidaceae | L56: Lecythidaceae | M56: Ericales | N56: 10 | O56: 9 | P56: 6 | Q56: 8 | R56: 8.25 | S56: 3279.4788 | T56: 2240.20945 | U56: 1818.94705 | V56: 2253.9234 | W56: 0.8150773578 | X56: 17 | Y56: 9.292472464 | Z56: 16 | AA56: 5567.770833 | AB56: 16 | AC56: 50.76639087 | AD56: 8 | AE56: 0.9537211261 | AF56: 17 | AG56: 0.27675 | AH56: 8 | AI56: 20.72900534 | AK56: 487.4958038 | AM56: 0.5914986525 | AO56: 27.5 | AP56: 0.8485179374 | AQ56: gen-Chave | AR56: =21*19*17 -> 6783 | AS56: GP | AT56: 3.9 | AU56: GP | AV56: D_En | AW56: GP | AX56: simple | AY56: 1
A57: Eschweilera_truncata_A._C._Smith | B57: Eschweilera truncata | C57: ESCTRU | D57: ESC | E57: LECY | F57: Esct | G57: Esc | H57: Eschweilera | J57: Lecythidoideae | K57: Lecythidaceae | L57: Lecythidaceae | M57: Ericales | N57: 11 | O57: 12 | P57: 10 | Q57: 8 | R57: 10.25 | S57: 3659.22255 | T57: 2510.53205 | U57: 3345.17545 | V57: 3349.1554 | W57: 1.093058183 | X57: 15 | Y57: 9.212931087 | Z57: 11 | AA57: 7527.953846 | AB57: 13 | AC57: 52.54263531 | AD57: 8 | AE57: 1.0431173 | AF57: 14 | AG57: 0.2724444444 | AH57: 9 | AI57: 17.60551691 | AK57: 492.2140884 | AM57: 0.4664751778 | AO57: 32.5 | AP57: 0.8485179374 | AQ57: gen-Chave | AR57: =18*15*13 -> 3510 | AS57: GP | AT57: 2 | AU57: GP | AV57: D_En | AW57: GP | AX57: simple | AY57: 1
A58: Eschweilera_wachenheimii_(Benoist)_Sandw. | B58: Eschweilera wachenheimii | C58: ESCWAC | D58: ESC | E58: LECY | F58: Escw | G58: Esc | H58: Eschweilera | J58: Lecythidoideae | K58: Lecythidaceae | L58: Lecythidaceae | M58: Ericales | N58: 22 | O58: 20 | P58: 17 | Q58: 22 | R58: 20.25 | S58: 5337.94505 | T58: 7615.66965 | U58: 3648.5858 | V58: 6479.97875 | W58: 1.961287104 | X58: 26 | Y58: 11.84299004 | Z58: 15 | AA58: 4907.988235 | AB58: 17 | AC58: 51.0527999 | AD58: 15 | AE58: 0.7605898628 | AF58: 25 | AG58: 0.1878823529 | AH58: 17 | AI58: 19.39711332 | AK58: 484.5352173 | AM58: 0.5379171633 | AO58: 27.5 | AP58: 0.83 | AQ58: Chave | AR58: =18*14*11 -> 2772 | AS58: GP | AT58: 1.7 | AU58: GP | AV58: D_En | AW58: GP | AX58: simple | AY58: 1
A59: Ficus_guianensis_Desv. | B59: Ficus guianensis | C59: FICGUI | D59: FIC | E59: MORA | F59: Ficg | G59: Fic | H59: Ficus | I59: Ficeae | K59: Moraceae | L59: Moraceae | M59: Rosales | N59: 0 | O59: 0 | P59: 1 | Q59: 0 | R59: 0.25 | S59: 0 | T59: 0 | U59: 4415.625 | V59: 0 | W59: 0.3751945722 | X59: 0 | Z59: 0 | AB59: 0 | AD59: 0 | AF59: 0 | AH59: 0 | AO59: 27.5 | AP59: 0.4013212816 | AQ59: gen-Chave | AT59: =0.1/1000 -> 0.0001 | AU59: KEW | AV59: D_En | AW59: KEW | AX59: simple | AY59: 1
A60: Fusaea_longifolia_(Aubl.)_Saff. | B60: Fusaea longifolia | C60: FUSLON | D60: FUS | E60: ANNO | F60: Fusl | G60: Fus | H60: Fusaea | K60: Annonaceae | L60: Annonaceae | M60: Magnoliales | N60: 1 | O60: 4 | P60: 5 | Q60: 6 | R60: 4 | S60: 226.865 | T60: 624.66375 | U60: 491.4257 | V60: 809.7432 | W60: 0.1829141908 | X60: 11 | Y60: 11.14729449 | Z60: 6 | AA60: 9442.166667 | AB60: 6 | AC60: 56.11269349 | AD60: 6 | AE60: 0.5891871549 | AF60: 11 | AG60: 0.1913333333 | AH60: 6 | AI60: 19.6526432 | AK60: 476.6739655 | AM60: 0.4248006862 | AO60: 17.5 | AP60: 0.74 | AQ60: Chave | AV60: D_En | AX60: simple | AY60: 1
A61: Geissospermum_argenteum_Woodson | B61: Geissospermum argenteum | C61: GEIARG | D61: GEI | E61: APOC | F61: Geia | G61: Gei | H61: Geissospermum | K61: Apocynaceae | L61: Apocynaceae | M61: Gentianales | N61: 10 | O61: 4 | P61: 10 | Q61: 12 | R61: 9 | S61: 12788.66265 | T61: 5302.7535 | U61: 8729.85155 | V61: 23374.38765 | W61: 4.265112512 | X61: 11 | Y61: 13.00028375 | Z61: 9 | AA61: 4594.34 | AB61: 10 | AC61: 48.14897701 | AD61: 5 | AE61: 0.559001942 | AF61: 11 | AG61: 0.1963333333 | AH61: 6 | AI61: 32.08409548 | AK61: 504.3089294 | AM61: 0.7403361223 | AO61: 27.5 | AP61: 0.789916 | AQ61: gen-Chave | AT61: =370/1000 -> 0.37 | AU61: gen-Kew | AV61: D_En | AW61: gen-Kew | AX61: simple | AY61: 1
A62: Glycydendron_amazonicum_Ducke | B62: Glycydendron amazonicum | C62: GLYAMA | D62: GLY | E62: EUPH | F62: Glya | G62: Gly | H62: Glycydendron | I62: Adenoclineae | J62: Crotonoideae | K62: Euphorbiaceae | L62: Euphorbiaceae | M62: Malpighiales | N62: 0 | O62: 2 | P62: 1 | Q62: 2 | R62: 1.25 | S62: 0 | T62: 1626.1589 | U62: 803.84 | V62: 2037.30265 | W62: 0.379585516 | X62: 3 | Y62: 13.19200477 | Z62: 3 | AA62: 14427.2 | AB62: 3 | AC62: 41.43230208 | AD62: 3 | AE62: 0.6329750606 | AF62: 3 | AG62: 0.2226666667 | AH62: 3 | AI62: 23.18218946 | AK62: 473.4207153 | AM62: 0.7522431199 | AO62: 27.5 | AP62: 0.68 | AQ62: Chave | AV62: D_En | AW62: KEW | AX62: simple | AY62: 1
A63: Goupia_glabra_Aubl. | B63: Goupia glabra | C63: GOUGLA | D63: GOU | E63: GOUP | F63: Goug | G63: Gou | H63: Goupia | K63: Goupiaceae | L63: Celastraceae | M63: Malpighiales | N63: 2 | O63: 0 | P63: 1 | Q63: 2 | R63: 1.25 | S63: 3883.30865 | T63: 0 | U63: 1057.30865 | V63: 2209.1156 | W63: 0.6075110493 | X63: 4 | Y63: 19.30229378 | Z63: 3 | AA63: 6941 | AB63: 4 | AC63: 39.63335642 | AD63: 2 | AE63: 0.3526371686 | AF63: 4 | AG63: 0.1533333333 | AH63: 3 | AI63: 16.42727733 | AK63: 478.0839539 | AM63: 0.4783821754 | AO63: 22.5 | AP63: 0.72 | AQ63: Chave | AR63: 100 | AS63: KF | AV63: D_En | AW63: KF/Kew | AX63: simple | AY63: 1
A64: Guarea_convergens_Penn. | B64: Guarea convergens | C64: GUACON | D64: GUA | E64: MELI | F64: Guac | G64: Gua | H64: Guarea | K64: Meliaceae | L64: Meliaceae | M64: Sapindales | N64: 1 | O64: 0 | P64: 3 | Q64: 1 | R64: 1.25 | S64: 1051.5546 | T64: 0 | U64: 583.56115 | V64: 113.04 | W64: 0.1485403649 | X64: 4 | Y64: 10.3056835 | Z64: 4 | AA64: 3332.314209 | AB64: 4 | AC64: 38.15754877 | AD64: 4 | AE64: 0.6500451113 | AF64: 4 | AG64: 0.272 | AH64: 4 | AI64: 18.19613338 | AK64: 494.2407227 | AM64: 0.7701036163 | AO64: 22.5 | AP64: 0.6046977737 | AQ64: gen-Chave | AT64: =(500+1920+153+800+2270)/5000 -> 1.1286 | AU64: gen-Kew | AV64: D_En | AW64: gen-Kew | AX64: compound | AY64: 2
A65: Guarea_sp._3 | B65: Guarea sp. 3 | C65: GUASP3 | D65: GUA | E65: MELI | F65: Gua3 | G65: Gua | H65: Guarea | K65: Meliaceae | L65: Meliaceae | M65: Sapindales | N65: 5 | O65: 0 | P65: 3 | Q65: 1 | R65: 2.25 | S65: 836.56665 | T65: 0 | U65: 919.0466 | V65: 93.26585 | W65: 0.1570988032 | X65: 1 | Y65: 6.668912 | Z65: 1 | AA65: 7935.333333 | AB65: 1 | AC65: 37.74588122 | AD65: 1 | AE65: 0.7291147579 | AF65: 1 | AG65: 0.36 | AH65: 1 | AI65: 25.79665184 | AK65: 502.3847198 | AM65: 0.9427550813 | AO65: 22.5 | AP65: 0.6046977737 | AQ65: gen-Chave | AT65: =(500+1920+153+800+2270)/5000 -> 1.1286 | AU65: gen-Kew | AV65: D_En | AW65: gen-Kew | AX65: compound | AY65: 2
A66: Heisteria_laxiflora_Engl. | B66: Heisteria laxiflora | C66: HEILAX | D66: HEI | E66: OLAC | F66: Heil | G66: Hei | H66: Heisteria | K66: Olacaceae | L66: Olacaceae | M66: Santalales | N66: 1 | O66: 3 | P66: 0 | Q66: 1 | R66: 1.25 | S66: 248.7194 | T66: 929.9895 | U66: 0 | V66: 961.625 | W66: 0.181863646 | X66: 4 | Y66: 9.358857225 | Z66: 4 | AA66: 7271.55 | AB66: 4 | AC66: 50.75687522 | AD66: 4 | AE66: 1.423697576 | AF66: 4 | AG66: 0.2335 | AH66: 4 | AI66: 17.69922495 | AK66: 492.2687531 | AM66: 0.4486146814 | AO66: 22.5 | AP66: 0.7090285714 | AQ66: gen-Chave | AT66: =(250.2+80)/2000 -> 0.1651 | AU66: gen-Kew | AV66: D_En | AW66: gen-Kew | AX66: simple | AY66: 1
A67: Helicostylis_tomentosa_(Poepp._&_Endl.)_Rusby | B67: Helicostylis tomentosa | C67: HELTOM | D67: HEL | E67: MORA | F67: Helt | G67: Hel | H67: Helicostylis | I67: Castilleae | K67: Moraceae | L67: Moraceae | M67: Rosales | N67: 3 | O67: 1 | P67: 1 | Q67: 0 | R67: 1.25 | S67: 1676.28115 | T67: 379.94 | U67: 304.65065 | V67: 0 | W67: 0.2006026973 | X67: 6 | Y67: 14.42736145 | Z67: 6 | AA67: 14736.03333 | AB67: 6 | AC67: 42.80877351 | AD67: 3 | AE67: 0.4448455579 | AF67: 6 | AG67: 0.2833333333 | AH67: 3 | AI67: 22.63772249 | AK67: 442.7236938 | AM67: 0.8117781078 | AO67: 22.5 | AP67: 0.72 | AQ67: Fearn | AR67: =9*8*6 -> 432 | AS67: GP | AT67: 0.25 | AU67: GP | AV67: D_En | AW67: GP | AX67: simple | AY67: 1 | AZ67: AB3-231
A68: Hevea_guianensis_Aubl. | B68: Hevea guianensis | C68: HEVGUI | D68: HEV | E68: EUPH | F68: Hevg | G68: Hev | H68: Hevea | I68: Micrandreae | J68: Crotonoideae | K68: Euphorbiaceae | L68: Euphorbiaceae | M68: Malpighiales | N68: 3 | O68: 5 | P68: 4 | Q68: 5 | R68: 4.25 | S68: 1624.5261 | T68: 2213.3389 | U68: 1497.309 | V68: 2164.77095 | W68: 0.6372684812 | X68: 11 | Y68: 11.52566356 | Z68: 8 | AA68: 5728.583333 | AB68: 8 | AC68: 42.44548611 | AD68: 6 | AE68: 0.6038581828 | AF68: 11 | AG68: 0.2053333333 | AH68: 6 | AI68: 22.27012634 | AK68: 500.8394241 | AM68: 0.8117781078 | AO68: 27.5 | AP68: 0.56 | AQ68: Chave | AR68: =15*15*13 -> 2925 | AS68: GP | AT68: 1.5 | AU68: GP | AV68: D_N | AW68: GP | AX68: compound | AY68: 2
A69: Inga_alba_(Sw.)_Willd. | B69: Inga alba | C69: INGALB | D69: ING | E69: FABA | F69: Inga | G69: Ing | H69: Inga | I69: Ingeae | J69: Mimosoideae | K69: Fabaceae – Mimosoideae | L69: Leguminosae | M69: Fabales | N69: 1 | O69: 0 | P69: 0 | Q69: 0 | R69: 0.25 | S69: 3461.0336 | T69: 0 | U69: 0 | V69: 0 | W69: 0.2940831753 | X69: 1 | Y69: 6.32098943 | Z69: 1 | AA69: 4308.15 | AB69: 1 | AC69: 47.80351987 | AD69: 1 | AE69: 0.5933528367 | AF69: 1 | AG69: 0.154 | AH69: 1 | AI69: 28.22519302 | AK69: 478.6466217 | AM69: 0.895127091 | AO69: 32.5 | AP69: 0.59 | AQ69: Chave | AT69: =(230+830+380+330)/4000 -> 0.4425 | AU69: gen-Kew | AV69: D_En | AW69: KEW | AX69: compound | AY69: 2
A70: Inga_capitata_Desv. | B70: Inga capitata | C70: INGCAP | D70: ING | E70: FABA | F70: Ingc | G70: Ing | H70: Inga | I70: Ingeae | J70: Mimosoideae | K70: Fabaceae – Mimosoideae | L70: Leguminosae | M70: Fabales | N70: 4 | O70: 1 | P70: 2 | Q70: 2 | R70: 2.25 | S70: 1398.21845 | T70: 490.625 | U70: 457.06625 | V70: 619.522 | W70: 0.2519720036 | X70: 6 | Y70: 20.86340156 | Z70: 6 | AA70: 3261.588943 | AB70: 6 | AC70: 41.94355596 | AD70: 6 | AE70: 0.670519136 | AF70: 6 | AG70: 0.2303333333 | AH70: 6 | AI70: 35.11229038 | AK70: 467.3791504 | AM70: 0.8534525994 | AO70: 32.5 | AP70: 0.6 | AQ70: Chave | AT70: =1000/440 -> 2.272727273 | AU70: AB | AV70: D_En | AW70: AB | AX70: compound | AY70: 2 | AZ70: AB3-157
A71: Inga_paraensis_Ducke | B71: Inga paraensis | C71: INGPAR | D71: ING | E71: FABA | F71: Ingp | G71: Ing | H71: Inga | I71: Ingeae | J71: Mimosoideae | K71: Fabaceae – Mimosoideae | L71: Leguminosae | M71: Fabales | N71: 0 | O71: 5 | P71: 2 | Q71: 1 | R71: 2 | S71: 0 | T71: 1163.06385 | U71: 333.1697 | V71: 711.21785 | W71: 0.1875666035 | X71: 6 | Y71: 11.09369922 | Z71: 6 | AA71: 4119.963095 | AB71: 6 | AC71: 52.01757009 | AD71: 6 | AE71: 0.7581122689 | AF71: 6 | AG71: 0.2356666667 | AH71: 6 | AI71: 26.59582853 | AK71: 497.0158386 | AM71: 0.5795916549 | AO71: 22.5 | AP71: 0.82 | AQ71: Chave | AT71: =(230+830+380+330)/4000 -> 0.4425 | AU71: gen-Kew | AV71: D_En | AW71: gen-Kew | AX71: compound | AY71: 2
A72: Inga_rubiginosa_(L._C._Rich.)_DC. | B72: Inga rubiginosa | C72: INGRUB | D72: ING | E72: FABA | F72: Ingr | G72: Ing | H72: Inga | I72: Ingeae | J72: Mimosoideae | K72: Fabaceae – Mimosoideae | L72: Leguminosae | M72: Fabales | N72: 0 | O72: 0 | P72: 3 | Q72: 1 | R72: 1 | S72: 0 | T72: 0 | U72: 1462.77685 | V72: 397.40625 | W72: 0.1580593013 | X72: 3 | Y72: 12.24188639 | Z72: 3 | AA72: 11748.55098 | AB72: 3 | AC72: 39.63989027 | AD72: 2 | AE72: 0.66221961 | AF72: 3 | AG72: 0.3021666667 | AH72: 3 | AI72: 28.00866365 | AK72: 504.7795105 | AM72: 0.8117781078 | AO72: 27.5 | AP72: 0.66 | AQ72: Chave | AT72: =(230+830+380+330)/4000 -> 0.4425 | AU72: gen-Kew | AV72: D_En | AW72: KEW | AX72: compound | AY72: 2
A73: Inga_sp._7 | B73: Inga sp. 7 | C73: INGSP7 | D73: ING | E73: FABA | F73: Ing7 | G73: Ing | H73: Inga | I73: Ingeae | J73: Mimosoideae | K73: Fabaceae – Mimosoideae | L73: Leguminosae | M73: Fabales | N73: 1 | O73: 0 | P73: 2 | Q73: 2 | R73: 1.25 | S73: 292.40465 | T73: 0 | U73: 632.87485 | V73: 832.3669 | W73: 0.1493467831 | X73: 3 | Y73: 12.94566571 | Z73: 3 | AA73: 11569.98519 | AB73: 3 | AC73: 42.94003504 | AD73: 3 | AE73: 0.704756208 | AF73: 3 | AG73: 0.2006666667 | AH73: 3 | AI73: 25.54493666 | AK73: 447.4798965 | AM73: 0.6867546332 | AO73: 22.5 | AP73: 0.5873708663 | AQ73: gen-Chave | AT73: =(230+830+380+330)/4000 -> 0.4425 | AU73: gen-Kew | AV73: D_En | AW73: gen-Kew | AX73: compound | AY73: 2
A74: Lecythis_chartacea_Berg | B74: Lecythis chartacea | C74: LECCHA | D74: LEC | E74: LECY | F74: Lecc | G74: Lec | H74: Lecythis | K74: Lecythidaceae | L74: Lecythidaceae | M74: Ericales | N74: 0 | O74: 2 | P74: 1 | Q74: 0 | R74: 0.75 | S74: 0 | T74: 2816.7841 | U74: 2417.99625 | V74: 0 | W74: 0.4447980012 | X74: 1 | Y74: 5.852545455 | Z74: 1 | AA74: 6391.6 | AB74: 1 | AD74: 0 | AE74: 0.6533101045 | AF74: 1 | AH74: 0 | AO74: 27.5 | AP74: 0.82 | AQ74: Chave | AR74: yes | AT74: =(950+470)/2000 -> 0.71 | AU74: gen-Kew | AV74: D_En | AW74: KEW | AX74: simple | AY74: 1
A75: Lecythis_prancei_S._A._Mori | B75: Lecythis prancei | C75: LECPRA | D75: LEC | E75: LECY | F75: Lecp | G75: Lec | H75: Lecythis | K75: Lecythidaceae | L75: Lecythidaceae | M75: Ericales | N75: 10 | O75: 9 | P75: 6 | Q75: 5 | R75: 7.5 | S75: 8817.83435 | T75: 5331.1077 | U75: 5055.0075 | V75: 2705.424 | W75: 1.861634092 | X75: 14 | Y75: 11.42400405 | Z75: 13 | AA75: 17339.91429 | AB75: 14 | AC75: 45.55264729 | AD75: 8 | AE75: 0.6944445307 | AF75: 14 | AG75: 0.24475 | AH75: 8 | AI75: 28.83283615 | AK75: 582.3245239 | AM75: 0.4843356742 | AO75: 27.5 | AP75: 0.88 | AQ75: Chave | AR75: =51*49*45 -> 112455 | AS75: GP | AT75: 75 | AU75: GP | AV75: D_En | AW75: gen-Kew | AX75: simple | AY75: 1
A76: Licania_caudata_Prance | B76: Licania caudata | C76: LICCAU | D76: LIC | E76: CHRY | F76: Licc | G76: Lic | H76: Licania | K76: Chrysobalanaceae | L76: Chrysobalanaceae | M76: Malpighiales | N76: 0 | O76: 3 | P76: 2 | Q76: 1 | R76: 1.5 | S76: 0 | T76: 3728.9384 | U76: 2434.73245 | V76: 224.20385 | W76: 0.5427761451 | X76: 3 | Y76: 11.4156696 | Z76: 3 | AA76: 4688.4 | AB76: 3 | AC76: 41.93815413 | AD76: 3 | AE76: 0.4896602362 | AF76: 3 | AG76: 0.2326666667 | AH76: 3 | AI76: 13.27967882 | AK76: 347.6030731 | AM76: 0.3652656983 | AO76: 37.5 | AP76: 0.8248064043 | AQ76: gen-Chave | AT76: =AVERAGE(130,400,900,1400,3460,10240,12620,4700,1890,2410,6270)/1000 -> 4.038181818 | AU76: gen-Kew | AV76: D_En | AW76: gen-Kew | AX76: simple | AY76: 1
A77: Licania_heteromorpha_Benth. | B77: Licania heteromorpha | C77: LICHET | D77: LIC | E77: CHRY | F77: Lich | G77: Lic | H77: Licania | K77: Chrysobalanaceae | L77: Chrysobalanaceae | M77: Malpighiales | N77: 3 | O77: 4 | P77: 1 | Q77: 0 | R77: 2 | S77: 1867.7034 | T77: 4384.9786 | U77: 994.8776 | V77: 0 | W77: 0.61582336 | X77: 7 | Y77: 13.07970127 | Z77: 6 | AA77: 3503.485714 | AB77: 7 | AC77: 49.94633529 | AD77: 5 | AE77: 0.8510056215 | AF77: 7 | AG77: 0.2116666667 | AH77: 6 | AI77: 13.34123015 | AK77: 357.5374603 | AM77: 0.4128936886 | AO77: 37.5 | AP77: 0.82 | AQ77: Chave | AT77: =1890/1000 -> 1.89 | AU77: KEW | AV77: D_En | AW77: KEW | AX77: simple | AY77: 1
A78: Licania_impressa_Prance | B78: Licania impressa | C78: LICIMP | D78: LIC | E78: CHRY | F78: Lici | G78: Lic | H78: Licania | K78: Chrysobalanaceae | L78: Chrysobalanaceae | M78: Malpighiales | N78: 1 | O78: 1 | P78: 0 | Q78: 1 | R78: 0.75 | S78: 274.50665 | T78: 4275.4554 | U78: 0 | V78: 240.40625 | W78: 0.4070364184 | X78: 3 | Y78: 8.472317248 | Z78: 3 | AA78: 7773.066667 | AB78: 3 | AC78: 47.93877675 | AD78: 3 | AE78: 0.7737794151 | AF78: 3 | AG78: 0.294 | AH78: 3 | AI78: 14.47943091 | AK78: 342.2295761 | AM78: 0.3771726959 | AO78: 17.5 | AP78: 0.92 | AQ78: Chave | AT78: =AVERAGE(130,400,900,1400,3460,10240,12620,4700,1890,2410,6270)/1000 -> 4.038181818 | AU78: gen-Kew | AV78: D_En | AW78: gen-Kew | AX78: simple | AY78: 1
A79: Licania_sp._9 | B79: Licania sp. 9 | C79: LICSP9 | D79: LIC | E79: CHRY | F79: Lic9 | G79: Lic | H79: Licania | K79: Chrysobalanaceae | L79: Chrysobalanaceae | M79: Malpighiales | N79: 0 | O79: 1 | P79: 1 | Q79: 1 | R79: 0.75 | S79: 0 | T79: 86.54625 | U79: 109.3034 | V79: 2017.83465 | W79: 0.1880962115 | X79: 1 | Y79: 10.23920145 | Z79: 1 | AA79: 5631.6 | AB79: 1 | AC79: 48.91690341 | AD79: 1 | AE79: 0.6118179028 | AF79: 1 | AG79: 0.2 | AH79: 1 | AI79: 14.1327548 | AK79: 337.7353668 | AM79: 0.3414517031 | AO79: 32.5 | AP79: 0.8248064043 | AQ79: gen-Chave | AT79: =AVERAGE(130,400,900,1400,3460,10240,12620,4700,1890,2410,6270)/1000 -> 4.038181818 | AU79: gen-Kew | AV79: D_En | AW79: gen-Kew | AX79: simple | AY79: 1
A80: Licaria_cannella_(Meissn.)_Kosterm. | B80: Licaria cannella | C80: LRACAN | D80: LRA | E80: LAUR | F80: Lcac | G80: Lca | H80: Licaria | K80: Lauraceae | L80: Lauraceae | M80: Laurales | N80: 3 | O80: 2 | P80: 3 | Q80: 1 | R80: 2.25 | S80: 618.33665 | T80: 1187.21045 | U80: 1890.2329 | V80: 880.96625 | W80: 0.3888850053 | X80: 5 | Y80: 9.257047207 | Z80: 5 | AA80: 5679.72 | AB80: 5 | AC80: 49.51822293 | AD80: 4 | AE80: 1.014125267 | AF80: 5 | AG80: 0.3215 | AH80: 4 | AI80: 17.1026516 | AK80: 617.4977875 | AM80: 0.3771726959 | AP80: 0.97 | AQ80: Chave | AT80: =AVERAGE(210,1237)/1000 -> 0.7235 | AU80: gen-Kew | AV80: D_En | AW80: KEW | AX80: simple | AY80: 1
A81: Lueheopsis_rosea_(Ducke)_Burret | B81: Lueheopsis rosea | C81: LUEROS | D81: LUE | E81: MALV | F81: Luer | G81: Lue | H81: Lueheopsis | J81: Tilioideae | K81: Malvaceae | L81: Tiliaceae | M81: Malvales | N81: 2 | O81: 1 | P81: 1 | Q81: 0 | R81: 1 | S81: 1510.9209 | T81: 2826 | U81: 1589.625 | V81: 0 | W81: 0.5035771502 | X81: 4 | Y81: 13.1825122 | Z81: 3 | AA81: 9260 | AB81: 4 | AC81: 59.24485213 | AD81: 2 | AE81: 0.9744181779 | AF81: 4 | AG81: 0.2713333333 | AH81: 3 | AI81: 20.00696659 | AK81: 480.5033112 | AM81: 0.490289173 | AO81: 37.5 | AP81: 0.33 | AQ81: Zanne | AV81: D_W | AX81: simple | AY81: 1
A82: Macrolobium_angustifolium_(Benth.)_Cowan | B82: Macrolobium angustifolium | C82: MACANG | D82: MAC | E82: FABA | F82: Maca | G82: Mac | H82: Macrolobium | I82: Detarieae | J82: Caesalpinoideae | K82: Fabaceae – Caesalpinoideae | L82: Leguminosae | M82: Fabales | N82: 3 | O82: 2 | P82: 3 | Q82: 2 | R82: 2.5 | S82: 934.6524 | T82: 458.2045 | U82: 463.37765 | V82: 506.55265 | W82: 0.2007654483 | X82: 3 | Y82: 15.91221512 | Z82: 3 | AA82: 3389.733333 | AB82: 3 | AC82: 37.45958699 | AD82: 3 | AE82: 0.4920360922 | AF82: 3 | AG82: 0.176 | AH82: 3 | AI82: 15.06250858 | AK82: 471.9290924 | AM82: 0.633173144 | AO82: 27.5 | AP82: 0.68 | AQ82: Chave | AT82: =2200/1000 -> 2.2 | AU82: KEW | AV82: D_N | AW82: gen-Kew | AX82: compound | AY82: 2
A83: Manilkara_bidentata_(A._DC.)_A._Chev. | B83: Manilkara bidentata | C83: MANBID | D83: MAN | E83: SAPO | F83: Manb | G83: Man | H83: Manilkara | J83: Sapotoideae | K83: Sapotaceae | L83: Sapotaceae | M83: Ericales | N83: 2 | O83: 4 | P83: 4 | Q83: 4 | R83: 3.5 | S83: 756.74 | T83: 5959.75925 | U83: 1471.34905 | V83: 576.0644 | W83: 0.7446675106 | X83: 9 | Y83: 10.37979494 | Z83: 6 | AA83: 3410.8 | AB83: 6 | AC83: 52.46639685 | AD83: 5 | AE83: 0.8994567957 | AF83: 9 | AG83: 0.1656 | AH83: 5 | AI83: 16.05 | AK83: 477.2 | AM83: 0.4128936886 | AO83: 27.5 | AP83: 0.88 | AQ83: Chave | AR83: yes | AT83: =1000/2200 -> 0.4545454545 | AU83: AB | AV83: D_En | AW83: AB | AX83: simple | AY83: 1 | AZ83: AB3-334
A84: Manilkara_huberi_(Ducke)_A._Chev. | B84: Manilkara huberi | C84: MANHUB | D84: MAN | E84: SAPO | F84: Manh | G84: Man | H84: Manilkara | J84: Sapotoideae | K84: Sapotaceae | L84: Sapotaceae | M84: Ericales | N84: 1 | O84: 4 | P84: 2 | Q84: 4 | R84: 2.75 | S84: 1319.585 | T84: 2139.0779 | U84: 1594.53125 | V84: 6454.82735 | W84: 0.9778337617 | X84: 7 | Y84: 6.156033296 | Z84: 7 | AA84: 15177.48571 | AB84: 7 | AC84: 48.8943186 | AD84: 6 | AE84: 1.007727279 | AF84: 7 | AG84: 0.2736666667 | AH84: 6 | AI84: 12.97212005 | AK84: 502.4533081 | AM84: 0.3890796935 | AO84: 32.5 | AP84: 0.93 | AQ84: Chave | AR84: 300 | AS84: KF | AT84: =AVERAGE(126.74,286,125,113.77)/1000 -> 0.1628775 | AU84: gen-Kew | AV84: D_En | AW84: KF/Kew | AX84: simple | AY84: 1
A85: Maquira_sclerophylla_(Ducke)_C._C._Berg | B85: Maquira sclerophylla | C85: MAQSCL | D85: MAQ | E85: MORA | F85: Maqs | G85: Maq | H85: Maquira | K85: Moraceae | L85: Moraceae | M85: Rosales | N85: 1 | O85: 1 | P85: 2 | Q85: 3 | R85: 1.75 | S85: 2106.3434 | T85: 1444.72185 | U85: 895.84985 | V85: 1110.28045 | W85: 0.4721935416 | X85: 6 | Y85: 8.356463207 | Z85: 6 | AA85: 31784 | AB85: 6 | AC85: 42.65947843 | AD85: 5 | AE85: 0.6728862514 | AF85: 6 | AG85: 0.2236666667 | AH85: 6 | AI85: 21.79892778 | AK85: 427.8936005 | AM85: 0.6688941368 | AO85: 37.5 | AP85: 0.53 | AQ85: Chave | AV85: D_En | AX85: simple | AY85: 1
A86: Mezilaurus_duckei_van_der_Werff | B86: Mezilaurus duckei | C86: MEZDUC | D86: MEZ | E86: LAUR | F86: Mezd | G86: Mez | H86: Mezilaurus | K86: Lauraceae | L86: Lauraceae | M86: Laurales | N86: 1 | O86: 4 | P86: 1 | Q86: 2 | R86: 2 | S86: 730.24625 | T86: 1942.561 | U86: 286.37585 | V86: 1756.2962 | W86: 0.4006731185 | X86: 7 | Y86: 11.31444289 | Z86: 6 | AA86: 19583 | AB86: 6 | AC86: 55.21701061 | AD86: 6 | AE86: 0.9147136416 | AF86: 7 | AG86: 0.3166666667 | AH86: 6 | AI86: 17.39314914 | AK86: 488.3625412 | AM86: 0.4664751778 | AO86: 32.5 | AP86: 0.67 | AQ86: Chave | AV86: D_En | AX86: simple | AY86: 1
A87: Mezilaurus_sp._nov._1 | B87: Mezilaurus sp. 1 | C87: MEZSP1 | D87: MEZ | E87: LAUR | F87: Mez1 | G87: Mez | H87: Mezilaurus | K87: Lauraceae | L87: Lauraceae | M87: Laurales | N87: 2 | O87: 2 | P87: 1 | Q87: 2 | R87: 1.75 | S87: 525.0865 | T87: 470.529 | U87: 854.865 | V87: 305.27865 | W87: 0.1831743257 | X87: 6 | Y87: 11.43962407 | Z87: 6 | AA87: 7060.9 | AB87: 6 | AC87: 49.55810943 | AD87: 6 | AE87: 0.5845419182 | AF87: 6 | AG87: 0.19 | AH87: 6 | AI87: 17.44494796 | AK87: 481.169281 | AM87: 0.5914986525 | AO87: 22.5 | AP87: 0.7247040221 | AQ87: gen-Chave | AV87: D_En | AX87: simple | AY87: 1
A88: Miconia_burchellii_Triana | B88: Miconia burchellii | C88: MICBUR | D88: MIC | E88: MELA | F88: Micb | G88: Mic | H88: Miconia | K88: Melastomataceae | L88: Melastomataceae | M88: Myrtales | N88: 3 | O88: 9 | P88: 0 | Q88: 0 | R88: 3 | S88: 584.1656 | T88: 2171.467 | U88: 0 | V88: 0 | W88: 0.2341454255 | X88: 3 | Y88: 9.263473158 | Z88: 3 | AA88: 2724.333333 | AB88: 3 | AC88: 49.69594595 | AD88: 1 | AE88: 0.1852115962 | AF88: 3 | AG88: 0.282 | AH88: 1 | AO88: 22.5 | AP88: 0.6289542975 | AQ88: gen-Chave | AT88: =AVERAGE(0.07,2,0.54,0.07,0.08,0.2)/1000 -> 0.0004933333333 | AU88: gen-Kew | AV88: D_En | AW88: gen-Kew | AX88: simple | AY88: 1
A89: Miconia_pyrifolia_Naudin | B89: Miconia pyrifolia | C89: MICPYR | D89: MIC | E89: MELA | F89: Micp | G89: Mic | H89: Miconia | K89: Melastomataceae | L89: Melastomataceae | M89: Myrtales | N89: 0 | O89: 0 | P89: 0 | Q89: 3 | R89: 0.75 | S89: 0 | T89: 0 | U89: 0 | V89: 1979.4874 | W89: 0.1681965584 | X89: 0 | Z89: 0 | AB89: 0 | AD89: 0 | AF89: 0 | AH89: 0 | AO89: 32.5 | AP89: 0.6289542975 | AQ89: gen-Chave | AT89: =AVERAGE(0.07,2,0.54,0.07,0.08,0.2)/1000 -> 0.0004933333333 | AU89: gen-Kew | AV89: D_En | AW89: gen-Kew | AX89: simple | AY89: 1
A90: Micropholis_casiquiarensis/mensalis | B90: Micropholis casiquiarensis/mensalis | C90: MIHCAS | D90: MIH | E90: SAPO | F90: Mcrc | G90: Mcr | H90: Micropholis | J90: Chrysophylloideae | K90: Sapotaceae | L90: Sapotaceae | M90: Ericales | N90: 1 | O90: 1 | P90: 0 | Q90: 2 | R90: 1 | S90: 3316.625 | T90: 440.92665 | U90: 0 | V90: 338.34285 | W90: 0.3480271501 | X90: 4 | Y90: 10.80585507 | Z90: 3 | AA90: 5243.8 | AB90: 3 | AC90: 44.37760269 | AD90: 4 | AE90: 0.7755612389 | AF90: 4 | AG90: 0.2665 | AH90: 4 | AI90: 18.06583524 | AK90: 484.6045303 | AM90: 0.3831261947 | AO90: 32.5 | AP90: 0.72 | AQ90: Chave | AV90: D_En | AX90: simple | AY90: 1
A91: Micropholis_cylindrocarpa_(Poepp.)_Pierre | B91: Micropholis cylindrocarpa | C91: MIHCYL | D91: MIH | E91: SAPO | F91: Mcry | G91: Mcr | H91: Micropholis | J91: Chrysophylloideae | K91: Sapotaceae | L91: Sapotaceae | M91: Ericales | N91: 0 | O91: 2 | P91: 2 | Q91: 1 | R91: 1.25 | S91: 0 | T91: 711.72025 | U91: 402.548 | V91: 593.65625 | W91: 0.1451219255 | X91: 3 | Y91: 10.60319996 | Z91: 3 | AA91: 1214.933333 | AB91: 3 | AC91: 51.55107493 | AD91: 3 | AE91: 0.3261747839 | AF91: 3 | AG91: 0.1813333333 | AH91: 3 | AI91: 17.89048195 | AK91: 470.0321579 | AM91: 0.3593121995 | AO91: 17.5 | AP91: 0.6562739741 | AQ91: gen-Chave | AR91: yes | AV91: D_En | AX91: simple | AY91: 1
A92: Micropholis_guyanensis_(A._DC.)_Pierre | B92: Micropholis guyanensis | C92: MIHGUI | D92: MIH | E92: SAPO | F92: Mcrg | G92: Mcr | H92: Micropholis | J92: Chrysophylloideae | K92: Sapotaceae | L92: Sapotaceae | M92: Ericales | N92: 3 | O92: 0 | P92: 4 | Q92: 0 | R92: 1.75 | S92: 1246.6114 | T92: 0 | U92: 1840.5267 | V92: 0 | W92: 0.2623133665 | X92: 15 | Y92: 12.23720397 | Z92: 13 | AA92: 7192.042857 | AB92: 14 | AC92: 53.78460868 | AD92: 6 | AE92: 0.927873845 | AF92: 15 | AG92: 0.2834285714 | AH92: 7 | AI92: 23.17841053 | AK92: 492.9153442 | AM92: 0.3652656983 | AO92: 32.5 | AP92: 0.66 | AQ92: Chave | AR92: yes | AT92: =360/1000 -> 0.36 | AU92: gen-Kew | AV92: D_En | AW92: KEW | AX92: simple | AY92: 1
A93: Micropholis_venulosa_(Mart._&_Eichler)_Pierre | B93: Micropholis venulosa | C93: MIHVEN | D93: MIH | E93: SAPO | F93: Mcrv | G93: Mcr | H93: Micropholis | J93: Chrysophylloideae | K93: Sapotaceae | L93: Sapotaceae | M93: Ericales | N93: 3 | O93: 0 | P93: 1 | Q93: 1 | R93: 1.25 | S93: 2118.7621 | T93: 0 | U93: 2331.64625 | V93: 834.2666 | W93: 0.4490799437 | X93: 4 | Y93: 10.15317693 | Z93: 4 | AA93: 1083.35 | AB93: 4 | AC93: 54.21525934 | AD93: 3 | AE93: 0.4399330348 | AF93: 4 | AG93: 0.1493333333 | AH93: 3 | AO93: 32.5 | AP93: 0.69 | AQ93: Chave | AT93: =360/1000 -> 0.36 | AU93: KEW | AV93: D_En | AW93: KEW | AX93: simple | AY93: 1
A94: Minquartia_guianensis_Aubl. | B94: Minquartia guianensis | C94: MINGUI | D94: MIN | E94: OLAC | F94: Ming | G94: Min | H94: Minquartia | K94: Olacaceae | L94: Olacaceae | M94: Santalales | N94: 12 | O94: 13 | P94: 12 | Q94: 7 | R94: 11 | S94: 8805.6119 | T94: 4416.0018 | U94: 8459.8979 | V94: 2200.28435 | W94: 2.029230339 | X94: 17 | Y94: 13.43642796 | Z94: 9 | AA94: 12737.14545 | AB94: 11 | AC94: 53.48188871 | AD94: 6 | AE94: 0.8552055076 | AF94: 17 | AG94: 0.2541666667 | AH94: 8 | AI94: 25.45790911 | AK94: 450.4872131 | AM94: 0.3295447055 | AO94: 32.5 | AP94: 0.77 | AQ94: Chave | AR94: =22*11*11 -> 2662 | AS94: GP | AT94: 1.5 | AU94: GP | AV94: D_En | AW94: GP | AX94: simple | AY94: 1
A95: Moronobea_coccinea_Aubl. | B95: Moronobea coccinea | C95: MORCOC | D95: MOR | E95: CLUS | F95: Morc | G95: Mor | H95: Moronobea | I95: Moronobeeae | J95: Clusioideae | K95: Clusiaceae | L95: Clusiaceae | M95: Malpighiales | N95: 0 | O95: 1 | P95: 1 | Q95: 0 | R95: 0.5 | S95: 0 | T95: 91.5624 | U95: 4474.69625 | V95: 0 | W95: 0.3879938765 | X95: 0 | Z95: 0 | AB95: 0 | AD95: 0 | AF95: 0 | AH95: 0 | AO95: 32.5 | AP95: 0.82 | AQ95: Chave | AV95: D_En | AW95: KEW | AX95: simple | AY95: 1
A96: Mouriri_angulicosta/duckeana/duckeanoides | B96: Mouriri angulicosta/duckeana/duckeanoides | C96: MOUANG | D96: MOU | E96: MELA | F96: Moua | G96: Mou | H96: Mouriri | K96: Melastomataceae | L96: Memecylaceae | M96: Myrtales | N96: 3 | O96: 6 | P96: 4 | Q96: 2 | R96: 3.75 | S96: 1432.19325 | T96: 2726.70535 | U96: 990.23825 | V96: 580.3976 | W96: 0.4868371357 | X96: 9 | Y96: 25.14370652 | Z96: 7 | AA96: 1745.4 | AB96: 7 | AC96: 45.05178706 | AD96: 6 | AE96: 0.4049464143 | AF96: 9 | AG96: 0.2103333333 | AH96: 6 | AI96: 17.24213004 | AK96: 476.9910049 | AM96: 0.6093591488 | AO96: 27.5 | AP96: 0.9 | AQ96: Chave | AR96: 487.1090833 | AS96: FN15 | AT96: =AVERAGE(71.3,68)/1000 -> 0.06965 | AU96: gen-Kew | AV96: D_En | AW96: gen-Kew | AX96: simple | AY96: 1 | AZ96: seed size: Mouriri angulicosta - 6.9 x 8 x 5.45 mm; M. duckeana - 9.65 x 10.45 x 7.7 mm; M. duckeanoides - 8 x 8 x 6mm
A97: Mouriri_nigra_(DC.)_Morley | B97: Mouriri nigra | C97: MOUNIG | D97: MOU | E97: MELA | F97: Moun | G97: Mou | H97: Mouriri | K97: Melastomataceae | L97: Memecylaceae | M97: Myrtales | N97: 0 | O97: 2 | P97: 0 | Q97: 1 | R97: 0.75 | S97: 0 | T97: 1501.11625 | U97: 0 | V97: 956.13785 | W97: 0.2087922776 | X97: 0 | Z97: 0 | AB97: 0 | AD97: 0 | AF97: 0 | AH97: 0 | AO97: 27.5 | AP97: 0.9 | AQ97: Chave | AR97: 518.4 | AS97: FN15 | AT97: =AVERAGE(71.3,68)/1000 -> 0.06965 | AU97: gen-Kew | AV97: D_En | AW97: gen-Kew | AX97: simple | AY97: 1 | AZ97: seed size: kidney; 7.1-8.9 x 9.1-12.5 x 5.4-6.6mm
A98: Myrcia_grandis_McVaugh | B98: Myrcia grandis | C98: MYRGRA | D98: MYR | E98: MYRT | F98: Myrg | G98: Myr | H98: Myrcia | K98: Myrtaceae | L98: Myrtaceae | M98: Myrtales | N98: 1 | O98: 7 | P98: 4 | Q98: 0 | R98: 3 | S98: 165.04625 | T98: 3272.508 | U98: 1329.57805 | V98: 0 | W98: 0.4050620612 | X98: 12 | Y98: 9.849107676 | Z98: 8 | AA98: 1583.8 | AB98: 8 | AC98: 47.97535068 | AD98: 6 | AE98: 0.868982763 | AF98: 12 | AG98: 0.234 | AH98: 6 | AI98: 8.946789503 | AK98: 417.5936508 | AM98: 0.2223817272 | AO98: 37.5 | AP98: 0.8098833333 | AQ98: gen-Chave | AV98: D_En | AW98: gen-Kew | AX98: simple | AY98: 1
A99: Naucleopsis_caloneura_(Huber)_Ducke | B99: Naucleopsis caloneura | C99: NAUCAL | D99: NAU | E99: MORA | F99: Nauc | G99: Nau | H99: Naucleopsis | I99: Castilleae | K99: Moraceae | L99: Moraceae | M99: Rosales | N99: 8 | O99: 6 | P99: 4 | Q99: 3 | R99: 5.25 | S99: 1030.077 | T99: 931.75575 | U99: 521.64035 | V99: 322.9804 | W99: 0.2384636649 | X99: 10 | Y99: 14.40952895 | Z99: 9 | AA99: 28528.13333 | AB99: 9 | AC99: 49.41803545 | AD99: 4 | AE99: 0.9364627986 | AF99: 10 | AG99: 0.316 | AH99: 4 | AI99: 19.14746761 | AK99: 426.3806534 | AM99: 0.5438706621 | AO99: 22.5 | AP99: 0.6483333333 | AQ99: gen-Chave | AR99: =19*17*13 -> 4199 | AS99: GP | AT99: 3.3 | AU99: GP | AV99: D_En | AW99: KF | AX99: simple | AY99: 1
A100: Neea_aff._madeirana_Standl. | B100: Neea aff. madeirana | C100: NEEAFF | D100: NEE | E100: NYCT | F100: Neea | G100: Nee | H100: Neea | K100: Nyctaginaceae | L100: Nyctaginaceae | M100: Caryophyllales | N100: 1 | O100: 2 | P100: 2 | Q100: 3 | R100: 2 | S100: 211.1336 | T100: 1326.72065 | U100: 1727.19625 | V100: 421.17605 | W100: 0.313217765 | X100: 3 | Y100: 11.32072798 | Z100: 3 | AA100: 4899.8 | AB100: 3 | AC100: 32.30098938 | AD100: 3 | AE100: 0.6543614782 | AF100: 3 | AG100: 0.286 | AH100: 3 | AI100: 50.39331913 | AK100: 453.8978195 | AM100: 0.7343826235 | AO100: 27.5 | AP100: 0.679156727 | AQ100: gen-Chave | AV100: D_En | AW100: gen-Kew | AX100: simple | AY100: 1
A101: Neea_sp._2 | B101: Neea sp. 2 | C101: NEESP2 | D101: NEE | E101: NYCT | F101: Nee2 | G101: Nee | H101: Neea | K101: Nyctaginaceae | L101: Nyctaginaceae | M101: Caryophyllales | N101: 0 | O101: 2 | P101: 0 | Q101: 4 | R101: 1.5 | S101: 0 | T101: 1129.0969 | U101: 0 | V101: 1428.45665 | W101: 0.2173146973 | X101: 6 | Y101: 10.72669852 | Z101: 6 | AA101: 12215.86667 | AB101: 6 | AC101: 23.69978963 | AD101: 6 | AE101: 0.9613634375 | AF101: 6 | AG101: 0.413 | AH101: 6 | AI101: 39.93398428 | AK101: 464.2768097 | AM101: 0.4664751778 | AO101: 27.5 | AP101: 0.679156727 | AQ101: gen-Chave | AV101: D_En | AW101: gen-Kew | AX101: simple | AY101: 1
A102: Neea_sp._3 | B102: Neea sp. 3 | C102: NEESP3 | D102: NEE | E102: NYCT | F102: Nee3 | G102: Nee | H102: Neea | K102: Nyctaginaceae | L102: Nyctaginaceae | M102: Caryophyllales | N102: 3 | O102: 1 | P102: 2 | Q102: 1 | R102: 1.75 | S102: 827.8453 | T102: 651.1104 | U102: 907.15385 | V102: 176.625 | W102: 0.2177549256 | X102: 4 | Y102: 9.21530631 | Z102: 4 | AA102: 4986.95 | AB102: 4 | AC102: 39.05213296 | AD102: 4 | AE102: 0.7555476409 | AF102: 4 | AG102: 0.2925 | AH102: 4 | AI102: 37.76444912 | AK102: 464.8894119 | AM102: 0.4486146814 | AO102: 22.5 | AP102: 0.679156727 | AQ102: gen-Chave | AV102: D_En | AW102: gen-Kew | AX102: simple | AY102: 1
A103: Ocotea_cinerea_van_der_Werff | B103: Ocotea cinerea | C103: OCOCIN | D103: OCO | E103: LAUR | F103: Ococ | G103: Oco | H103: Ocotea | K103: Lauraceae | L103: Lauraceae | M103: Laurales | N103: 2 | O103: 2 | P103: 1 | Q103: 1 | R103: 1.5 | S103: 3711.3544 | T103: 983.51865 | U103: 711.21785 | V103: 2106.3434 | W103: 0.6383296982 | X103: 3 | Y103: 10.43009739 | Z103: 3 | AA103: 2508 | AB103: 3 | AC103: 53.15899026 | AD103: 3 | AE103: 0.7167519358 | AF103: 3 | AG103: 0.2826666667 | AH103: 3 | AI103: 20.94762802 | AK103: 497.3323822 | AM103: 0.5081496693 | AO103: 32.5 | AP103: 0.5151432367 | AQ103: gen-Chave | AT103: =AVERAGE(7300,50,125.7,100,16.43,750,173.5,581.5)/1000 -> 1.13714125 | AU103: gen-Kew | AV103: D_En | AW103: gen-Kew | AX103: simple | AY103: 1
A104: Ocotea_ligulata_van_der_Werff | B104: Ocotea ligulata | C104: OCOLIG | D104: OCO | E104: LAUR | F104: Ocol | G104: Oco | H104: Ocotea | K104: Lauraceae | L104: Lauraceae | M104: Laurales | N104: 1 | O104: 0 | P104: 0 | Q104: 0 | R104: 0.25 | S104: 1962.5 | T104: 0 | U104: 0 | V104: 0 | W104: 0.1667531432 | X104: 0 | Z104: 0 | AB104: 0 | AD104: 0 | AF104: 0 | AH104: 0 | AO104: 27.5 | AP104: 0.5151432367 | AQ104: gen-Chave | AT104: =AVERAGE(7300,50,125.7,100,16.43,750,173.5,581.5)/1000 -> 1.13714125 | AU104: gen-Kew | AV104: D_En | AW104: gen-Kew | AX104: simple | AY104: 1
A105: Ocotea_nigrescens_Vicentini | B105: Ocotea nigrescens | C105: OCONIG | D105: OCO | E105: LAUR | F105: Ocon | G105: Oco | H105: Ocotea | K105: Lauraceae | L105: Lauraceae | M105: Laurales | N105: 1 | O105: 0 | P105: 2 | Q105: 3 | R105: 1.5 | S105: 229.54185 | T105: 0 | U105: 600.525 | V105: 1337.8284 | W105: 0.1842055272 | X105: 3 | Y105: 9.77342736 | Z105: 3 | AA105: 3736.666667 | AB105: 3 | AC105: 51.09366631 | AD105: 3 | AE105: 0.565383074 | AF105: 3 | AG105: 0.2026666667 | AH105: 3 | AI105: 23.30596924 | AK105: 471.493187 | AM105: 0.4783821754 | AO105: 27.5 | AP105: 0.5151432367 | AQ105: gen-Chave | AT105: =AVERAGE(7300,50,125.7,100,16.43,750,173.5,581.5)/1000 -> 1.13714125 | AU105: gen-Kew | AV105: D_En | AW105: gen-Kew | AX105: simple | AY105: 1
A106: Ocotea_percurrens_Vicentini | B106: Ocotea percurrens | C106: OCOPER | D106: OCO | E106: LAUR | F106: Ocop | G106: Oco | H106: Ocotea | K106: Lauraceae | L106: Lauraceae | M106: Laurales | N106: 2 | O106: 0 | P106: 2 | Q106: 1 | R106: 1.25 | S106: 1401.9629 | T106: 0 | U106: 415.5633 | V106: 839.39265 | W106: 0.2257577424 | X106: 6 | Y106: 10.93970679 | Z106: 6 | AA106: 3921.466667 | AB106: 6 | AC106: 49.79066181 | AD106: 5 | AE106: 0.6616923386 | AF106: 6 | AG106: 0.3184 | AH106: 5 | AI106: 21.93080425 | AK106: 491.2047958 | AM106: 0.4783821754 | AO106: 27.5 | AP106: 0.52 | AQ106: Chave | AT106: =AVERAGE(7300,50,125.7,100,16.43,750,173.5,581.5)/1000 -> 1.13714125 | AU106: gen-Kew | AV106: D_En | AW106: gen-Kew | AX106: simple | AY106: 1
A107: Oenocarpus_bacaba_Mart. | B107: Oenocarpus bacaba | C107: OENBAC | D107: OEN | E107: AREC | F107: Oenb | G107: Oen | H107: Oenocarpus | I107: Areceae | J107: Arecoideae | K107: Arecaceae | L107: Arecaceae | M107: Arecales | N107: 8 | O107: 8 | P107: 1 | Q107: 2 | R107: 4.75 | S107: 1298.47635 | T107: 1648.7983 | U107: 221.5584 | V107: 318.90625 | W107: 0.2963523521 | X107: 4 | Z107: 3 | AA107: 31293.62127 | AB107: 3 | AC107: 51.09784308 | AD107: 3 | AE107: 5.439415013 | AF107: 4 | AG107: 0.1494333333 | AH107: 4 | AI107: 16.11517072 | AK107: 482.7578354 | AM107: 0.5557776597 | AO107: 22.5 | AP107: 0.65 | AQ107: Zanne | AV107: D_En | AW107: KEW | AX107: pinated | AY107: 4
A108: Onychopetalum_amazonicum_R._E._Fries | B108: Onychopetalum amazonicum | C108: ONYAMA | D108: ONY | E108: ANNO | F108: Onya | G108: Ony | H108: Onychopetalum | K108: Annonaceae | L108: Annonaceae | M108: Magnoliales | N108: 2 | O108: 0 | P108: 2 | Q108: 0 | R108: 1 | S108: 864.2693 | T108: 0 | U108: 948.69605 | V108: 0 | W108: 0.1540472207 | X108: 3 | Y108: 7.726994287 | Z108: 3 | AA108: 14730.06667 | AB108: 3 | AC108: 54.60696758 | AD108: 3 | AE108: 0.7157344048 | AF108: 3 | AG108: 0.2553333333 | AH108: 3 | AI108: 14.15023565 | AK108: 493.6236572 | AM108: 0.3831261947 | AO108: 22.5 | AP108: 0.61 | AQ108: Chave | AV108: D_En | AX108: simple | AY108: 1
A109: Ormosia_paraensis_Ducke | B109: Ormosia paraensis | C109: ORMPAR | D109: ORM | E109: FABA | F109: Ormp | G109: Orm | H109: Ormosia | I109: Sophoreae | J109: Faboideae | K109: Fabaceae – Faboideae | L109: Leguminosae | M109: Fabales | N109: 0 | O109: 1 | P109: 0 | Q109: 1 | R109: 0.5 | S109: 0 | T109: 1734.065 | U109: 0 | V109: 165.04625 | W109: 0.1613670167 | X109: 0 | Z109: 0 | AB109: 0 | AD109: 0 | AF109: 0 | AH109: 0 | AO109: 27.5 | AP109: 0.67 | AQ109: Chave | AT109: =AVERAGE(328.5,1754,401,15.38,734,9970,700)/1000 -> 1.986125714 | AU109: gen-Kew | AV109: D_En | AW109: KEW | AX109: compound | AY109: 2
A110: Osteophloeum_platyspermum_(A._DC.)_Warb. | B110: Osteophloeum platyspermum | C110: OSTPLA | D110: OST | E110: MYRI | F110: Ostp | G110: Ost | H110: Osteophloeum | K110: Myristicaceae | L110: Myristicaceae | M110: Magnoliales | N110: 0 | O110: 1 | P110: 0 | Q110: 1 | R110: 0.5 | S110: 0 | T110: 4415.625 | U110: 0 | V110: 188.59625 | W110: 0.3912195493 | X110: 5 | Y110: 12.51787424 | Z110: 5 | AA110: 5681.96 | AB110: 5 | AC110: 33.50655966 | AD110: 4 | AE110: 0.4951687519 | AF110: 5 | AG110: 0.2865 | AH110: 4 | AI110: 23.64995003 | AK110: 498.3703232 | AM110: 0.7939176115 | AO110: 22.5 | AP110: 0.44 | AQ110: Chave | AV110: D_En | AX110: simple | AY110: 1
A111: Paramachaerium_ormosioides_(Ducke)_Ducke | B111: Paramachaerium ormosioides | C111: PARORM | D111: PAR | E111: FABA | F111: Paro | G111: Par | H111: Paramachaerium | J111: Faboideae | K111: Fabaceae – Faboideae | L111: Leguminosae | M111: Fabales | N111: 7 | O111: 13 | P111: 7 | Q111: 7 | R111: 8.5 | S111: 2673.0192 | T111: 4938.5763 | U111: 2876.26355 | V111: 2167.97375 | W111: 1.075363006 | X111: 8 | Y111: 11.10151993 | Z111: 7 | AA111: 4047.295181 | AB111: 7 | AC111: 50.7436541 | AD111: 6 | AE111: 0.7430688817 | AF111: 8 | AG111: 0.1546666667 | AH111: 6 | AI111: 24.24443245 | AK111: 500.4225159 | AM111: 0.5617311585 | AO111: 32.5 | AP111: 0.7492835 | AQ111: gen-Chave | AX111: compound | AY111: 2
A112: Parkia_decussata_Ducke | B112: Parkia decussata | C112: PASDEC | D112: PAS | E112: FABA | F112: Prkd | G112: Prk | H112: Parkia | J112: Mimosoideae | K112: Fabaceae – Mimosoideae | L112: Leguminosae | M112: Fabales | N112: 2 | O112: 1 | P112: 3 | Q112: 0 | R112: 1.5 | S112: 1361.0644 | T112: 81.6714 | U112: 1562.2285 | V112: 0 | W112: 0.2553310789 | X112: 5 | Y112: 15.65579588 | Z112: 5 | AA112: 77.84545455 | AB112: 5 | AC112: 49.22145259 | AD112: 4 | AE112: 0.9978609187 | AF112: 5 | AG112: 0.152 | AH112: 4 | AI112: 30.42772293 | AK112: 477.1800232 | AM112: 0.7105686283 | AO112: 27.5 | AP112: 0.78 | AQ112: Chave | AT112: =AVERAGE(AVERAGE(543,884),540,916.25,284,200)/1000 -> 0.53075 | AU112: gen-Kew | AV112: D_En | AW112: gen-Kew | AX112: bipinate | AY112: 3
A113: Parkia_panurensis_H._C._Hopkins | B113: Parkia panurensis | C113: PASPAN | D113: PAS | E113: FABA | F113: Prkp | G113: Prk | H113: Parkia | J113: Mimosoideae | K113: Fabaceae – Mimosoideae | L113: Leguminosae | M113: Fabales | N113: 0 | O113: 1 | P113: 0 | Q113: 0 | R113: 0.25 | S113: 0 | T113: 3791.74625 | U113: 0 | V113: 0 | W113: 0.322183748 | X113: 0 | Z113: 0 | AB113: 0 | AD113: 0 | AF113: 0 | AH113: 0 | AO113: 32.5 | AP113: 0.453384697 | AQ113: gen-Chave | AT113: =AVERAGE(AVERAGE(543,884),540,916.25,284,200)/1000 -> 0.53075 | AU113: gen-Kew | AV113: D_En | AW113: gen-Kew | AX113: bipinate | AY113: 3
A114: Parkia_pendula_(Willd.)_Walp. | B114: Parkia pendula | C114: PASPEN | D114: PAS | E114: FABA | F114: Prke | G114: Prk | H114: Parkia | J114: Mimosoideae | K114: Fabaceae – Mimosoideae | L114: Leguminosae | M114: Fabales | N114: 0 | O114: 0 | P114: 1 | Q114: 1 | R114: 0.5 | S114: 0 | T114: 0 | U114: 94.985 | V114: 3846.5 | W114: 0.3349070128 | X114: 2 | Y114: 30.346027 | Z114: 2 | AA114: 2 | AB114: 2 | AC114: 43.46567411 | AD114: 1 | AE114: 0.6035145974 | AF114: 2 | AG114: 0.042 | AH114: 1 | AO114: 32.5 | AP114: 0.53 | AQ114: Chave | AR114: =10*6*3 -> 180 | AS114: GP | AT114: 0.1 | AU114: GP | AV114: D_En | AW114: KF | AX114: bipinate | AY114: 3
A115: Pausandra_macropetala_Ducke | B115: Pausandra macropetala | C115: PAUMAC | D115: PAU | E115: EUPH | F115: Paum | G115: Pau | H115: Pausandra | K115: Euphorbiaceae | L115: Euphorbiaceae | M115: Malpighiales | N115: 5 | O115: 9 | P115: 11 | Q115: 5 | R115: 7.5 | S115: 613.1164 | T115: 940.3672 | U115: 1358.98415 | V115: 646.31405 | W115: 0.3023888159 | X115: 11 | Y115: 12.96763211 | Z115: 7 | AA115: 45461.4 | AB115: 7 | AC115: 47.56070314 | AD115: 4 | AE115: 1.076751316 | AF115: 11 | AG115: 0.231 | AH115: 4 | AI115: 15.15801787 | AK115: 444.5193863 | AM115: 0.4783821754 | AO115: 17.5 | AP115: 0.59 | AQ115: gen-Chave | AV115: D_N | AX115: simple | AY115: 1
A116: Peltogyne_catingae_Ducke | B116: Peltogyne catingae | C116: PELCAT | D116: PEL | E116: FABA | F116: Pelc | G116: Pel | H116: Peltogyne | I116: Detarieae | J116: Caesalpinoideae | K116: Fabaceae – Caesalpinoideae | L116: Leguminosae | M116: Fabales | N116: 0 | O116: 2 | P116: 2 | Q116: 0 | R116: 1 | S116: 0 | T116: 3485.72185 | U116: 1040.0936 | V116: 0 | W116: 0.3845574277 | X116: 4 | Y116: 7.210071692 | Z116: 3 | AA116: 5448.725 | AB116: 4 | AC116: 56.8129055 | AD116: 2 | AE116: 0.7137421393 | AF116: 4 | AG116: 0.2353333333 | AH116: 3 | AI116: 20.33896923 | AK116: 490.2810287 | AM116: 0.490289173 | AO116: 32.5 | AP116: 0.69 | AQ116: Chave | AR116: 700 | AS116: KF | AT116: =AVERAGE(260,260)/1000 -> 0.26 | AU116: gen-Kew | AV116: D_W | AW116: KF | AX116: compound | AY116: 2
A117: Peltogyne_excelsa_Ducke | B117: Peltogyne excelsa | C117: PELEXC | D117: PEL | E117: FABA | F117: Pele | G117: Pel | H117: Peltogyne | I117: Detarieae | J117: Caesalpinoideae | K117: Fabaceae – Caesalpinoideae | L117: Leguminosae | M117: Fabales | N117: 3 | O117: 0 | P117: 3 | Q117: 0 | R117: 1.5 | S117: 5026.1666 | T117: 0 | U117: 1722.8866 | V117: 0 | W117: 0.5734653936 | X117: 3 | Y117: 11.05386219 | Z117: 3 | AA117: 1287.933333 | AB117: 3 | AC117: 46.5370567 | AD117: 3 | AE117: 0.6128968739 | AF117: 3 | AG117: 0.1666666667 | AH117: 3 | AI117: 14.86420035 | AK117: 440.2181625 | AM117: 0.6272196452 | AO117: 32.5 | AP117: 0.778501875 | AQ117: gen-Chave | AT117: =AVERAGE(260,260)/1000 -> 0.26 | AU117: gen-Kew | AV117: D_W | AW117: gen-Kew | AX117: compound | AY117: 2
A118: Pouteria_aff._engleri_Eyma | B118: Pouteria aff. engleri | C118: POUAFF | D118: POU | E118: SAPO | F118: Poua | G118: Pou | H118: Pouteria | J118: Chrysophylloideae | K118: Sapotaceae | L118: Sapotaceae | M118: Ericales | N118: 6 | O118: 2 | P118: 2 | Q118: 3 | R118: 3.25 | S118: 2937.14815 | T118: 839.98925 | U118: 339.63025 | V118: 473.66115 | W118: 0.3900476082 | X118: 6 | Y118: 9.792031342 | Z118: 6 | AA118: 4524.133333 | AB118: 6 | AC118: 46.46566244 | AD118: 6 | AE118: 0.712397761 | AF118: 6 | AG118: 0.1996666667 | AH118: 6 | AI118: 21.52957439 | AK118: 481.1637497 | AM118: 0.4664751778 | AO118: 27.5 | AP118: 0.8089991197 | AQ118: gen-Chave | AT118: =AVERAGE(81960,13040,420,420,2350,330,1995,1339,340,585,6000,5200)/1000 -> 9.49825 | AU118: gen-Kew | AV118: D_En | AW118: gen-Kew | AX118: simple | AY118: 1
A119: Pouteria_anomala_(Pires)_T._D._Penn. | B119: Pouteria anomala | C119: POUANO | D119: POU | E119: SAPO | F119: Poun | G119: Pou | H119: Pouteria | J119: Chrysophylloideae | K119: Sapotaceae | L119: Sapotaceae | M119: Ericales | N119: 1 | O119: 1 | P119: 0 | Q119: 0 | R119: 0.5 | S119: 1962.5 | T119: 262.88865 | U119: 0 | V119: 0 | W119: 0.1890907273 | X119: 9 | Y119: 9.842693823 | Z119: 7 | AA119: 3748.85 | AB119: 8 | AC119: 53.34732116 | AD119: 4 | AE119: 0.7083757068 | AF119: 9 | AG119: 0.132 | AH119: 5 | AI119: 23.13881874 | AK119: 489.1072845 | AM119: 0.3771726959 | AO119: 32.5 | AP119: 0.78 | AQ119: Chave | AT119: =AVERAGE(81960,13040,420,420,2350,330,1995,1339,340,585,6000,5200)/1000 -> 9.49825 | AU119: gen-Kew | AV119: D_En | AW119: gen-Kew | AX119: simple | AY119: 1
A120: Pouteria_cladantha_Sandw. | B120: Pouteria cladantha | C120: POUCLA | D120: POU | E120: SAPO | F120: Pouc | G120: Pou | H120: Pouteria | J120: Chrysophylloideae | K120: Sapotaceae | L120: Sapotaceae | M120: Ericales | N120: 2 | O120: 4 | P120: 3 | Q120: 2 | R120: 2.75 | S120: 1237.35625 | T120: 1488.58765 | U120: 1187.9405 | V120: 559.9876 | W120: 0.3801438055 | X120: 10 | Y120: 9.485139629 | Z120: 7 | AA120: 6025.2 | AB120: 8 | AC120: 54.35697284 | AD120: 5 | AE120: 0.6773371778 | AF120: 10 | AG120: 0.2663333333 | AH120: 6 | AI120: 12.45659113 | AK120: 486.4924622 | AM120: 0.3295447055 | AO120: 27.5 | AP120: 0.97 | AQ120: Chave | AT120: =587.5/1000 -> 0.5875 | AU120: KEW | AV120: D_En | AW120: KEW | AX120: simple | AY120: 1
A121: Pouteria_durlandii/peruviensis | B121: Pouteria durlandii/peruviensis | C121: POUDUR | D121: POU | E121: SAPO | F121: Poud | G121: Pou | H121: Pouteria | J121: Chrysophylloideae | K121: Sapotaceae | L121: Sapotaceae | M121: Ericales | N121: 0 | O121: 0 | P121: 1 | Q121: 2 | R121: 0.75 | S121: 0 | T121: 0 | U121: 1365.02865 | V121: 4973.95625 | W121: 0.5386219908 | X121: 8 | Y121: 9.720967644 | Z121: 7 | AA121: 7254.542857 | AB121: 7 | AC121: 40.37845206 | AD121: 4 | AE121: 0.6748910176 | AF121: 8 | AG121: 0.2985 | AH121: 4 | AI121: 25.84327936 | AK121: 481.2106323 | AM121: 0.4545681802 | AO121: 27.5 | AP121: 0.58 | AQ121: Chave | AT121: =1000/700 -> 1.428571429 | AU121: AB | AV121: D_En | AW121: AB | AX121: simple | AY121: 1 | AZ121: AB3-339
A122: Pouteria_engleri_Eyma | B122: Pouteria engleri | C122: POUENG | D122: POU | E122: SAPO | F122: Poue | G122: Pou | H122: Pouteria | J122: Chrysophylloideae | K122: Sapotaceae | L122: Sapotaceae | M122: Ericales | N122: 1 | O122: 8 | P122: 2 | Q122: 10 | R122: 5.25 | S122: 186.1706 | T122: 2712.0337 | U122: 699.592 | V122: 2852.1562 | W122: 0.5480508805 | X122: 9 | Y122: 11.91201217 | Z122: 9 | AA122: 6055.822222 | AB122: 9 | AC122: 55.64280588 | AD122: 6 | AE122: 0.8315408913 | AF122: 9 | AG122: 0.1716666667 | AH122: 6 | AI122: 22.14543343 | AK122: 489.3524933 | AM122: 0.4188471874 | AO122: 32.5 | AP122: 0.77 | AQ122: Chave | AT122: =AVERAGE(81960,13040,420,420,2350,330,1995,1339,340,585,6000,5200)/1000 -> 9.49825 | AU122: gen-Kew | AV122: D_En | AW122: gen-Kew | AX122: simple | AY122: 1
A123: Pouteria_filipes_Eyma | B123: Pouteria filipes | C123: POUFIL | D123: POU | E123: SAPO | F123: Pouf | G123: Pou | H123: Pouteria | J123: Chrysophylloideae | K123: Sapotaceae | L123: Sapotaceae | M123: Ericales | N123: 0 | O123: 1 | P123: 1 | Q123: 0 | R123: 0.5 | S123: 0 | T123: 369.64865 | U123: 2082.01625 | V123: 0 | W123: 0.2083173647 | X123: 6 | Y123: 7.584943924 | Z123: 5 | AA123: 5907.52 | AB123: 5 | AC123: 51.54038036 | AD123: 3 | AE123: 0.7460869718 | AF123: 6 | AG123: 0.2906666667 | AH123: 3 | AI123: 25.04864454 | AK123: 519.1744995 | AM123: 0.5914986525 | AO123: 32.5 | AP123: 0.97 | AQ123: Chave | AT123: =AVERAGE(81960,13040,420,420,2350,330,1995,1339,340,585,6000,5200)/1000 -> 9.49825 | AU123: gen-Kew | AV123: D_En | AW123: gen-Kew | AX123: simple | AY123: 1
A124: Pouteria_fimbriata_Baehni | B124: Pouteria fimbriata | C124: POUFIM | D124: POU | E124: SAPO | F124: Poui | G124: Pou | H124: Pouteria | J124: Chrysophylloideae | K124: Sapotaceae | L124: Sapotaceae | M124: Ericales | N124: 2 | O124: 2 | P124: 0 | Q124: 0 | R124: 1 | S124: 422.90305 | T124: 1290.1789 | U124: 0 | V124: 0 | W124: 0.1455601527 | X124: 4 | Y124: 14.41230044 | Z124: 4 | AA124: 15951.55 | AB124: 4 | AC124: 45.91397203 | AD124: 2 | AE124: 0.6082977383 | AF124: 4 | AG124: 0.142 | AH124: 2 | AI124: 29.77112293 | AK124: 484.3889999 | AM124: 0.7284291247 | AO124: 32.5 | AP124: 0.8089991197 | AQ124: gen-Chave | AT124: =AVERAGE(81960,13040,420,420,2350,330,1995,1339,340,585,6000,5200)/1000 -> 9.49825 | AU124: gen-Kew | AV124: D_En | AW124: gen-Kew | AX124: simple | AY124: 1
A125: Pouteria_flavilatex_Penn. | B125: Pouteria flavilatex | C125: POUFLA | D125: POU | E125: SAPO | F125: Poul | G125: Pou | H125: Pouteria | J125: Chrysophylloideae | K125: Sapotaceae | L125: Sapotaceae | M125: Ericales | N125: 0 | O125: 1 | P125: 0 | Q125: 0 | R125: 0.25 | S125: 0 | T125: 2155.4216 | U125: 0 | V125: 0 | W125: 0.1831456442 | X125: 1 | Y125: 6.865038115 | Z125: 1 | AA125: 7854.2 | AB125: 1 | AC125: 39.85637343 | AD125: 1 | AE125: 0.8061619464 | AF125: 1 | AG125: 0.286 | AH125: 1 | AI125: 14.51780081 | AK125: 470.0039673 | AM125: 0.7403361223 | AO125: 27.5 | AP125: 0.8089991197 | AQ125: gen-Chave | AT125: =AVERAGE(81960,13040,420,420,2350,330,1995,1339,340,585,6000,5200)/1000 -> 9.49825 | AU125: gen-Kew | AV125: D_En | AW125: gen-Kew | AX125: simple | AY125: 1
A126: Pouteria_guianensis_Aubl. | B126: Pouteria guianensis | C126: POUGUI | D126: POU | E126: SAPO | F126: Poug | G126: Pou | H126: Pouteria | J126: Chrysophylloideae | K126: Sapotaceae | L126: Sapotaceae | M126: Ericales | N126: 1 | O126: 1 | P126: 0 | Q126: 0 | R126: 0.5 | S126: 126.61265 | T126: 3255.6776 | U126: 0 | V126: 0 | W126: 0.2873923722 | X126: 10 | Y126: 10.25624103 | Z126: 10 | AA126: 9342.78 | AB126: 10 | AC126: 50.12724246 | AD126: 5 | AE126: 0.4945674157 | AF126: 10 | AG126: 0.3032 | AH126: 5 | AI126: 14.42544699 | AK126: 484.4395065 | AM126: 0.4188471874 | AO126: 32.5 | AP126: 0.94 | AQ126: Chave | AR126: =26*16*13 -> 5408 | AS126: GP | AT126: 3.3 | AU126: GP | AV126: D_En | AW126: GP | AX126: simple | AY126: 1
A127: Pouteria_hispida_Eyma | B127: Pouteria hispida | C127: POUHIS | D127: POU | E127: SAPO | F127: Pouh | G127: Pou | H127: Pouteria | J127: Chrysophylloideae | K127: Sapotaceae | L127: Sapotaceae | M127: Ericales | N127: 3 | O127: 0 | P127: 1 | Q127: 1 | R127: 1.25 | S127: 4777.2745 | T127: 0 | U127: 128.6144 | V127: 124.6266 | W127: 0.4274416671 | X127: 7 | Y127: 10.77503282 | Z127: 6 | AA127: 3360.633333 | AB127: 6 | AC127: 52.84860868 | AD127: 5 | AE127: 0.5394544852 | AF127: 7 | AG127: 0.178 | AH127: 6 | AI127: 16.46610975 | AK127: 490.6364822 | AM127: 0.4783821754 | AO127: 32.5 | AP127: 0.87 | AQ127: Chave | AT127: =AVERAGE(81960,13040,420,420,2350,330,1995,1339,340,585,6000,5200)/1000 -> 9.49825 | AU127: gen-Kew | AV127: D_En | AW127: gen-Kew | AX127: simple | AY127: 1
A128: Pouteria_macrophylla_(Lam.)_Eyma | B128: Pouteria macrophylla | C128: POUMAC | D128: POU | E128: SAPO | F128: Poum | G128: Pou | H128: Pouteria | J128: Chrysophylloideae | K128: Sapotaceae | L128: Sapotaceae | M128: Ericales | N128: 2 | O128: 6 | P128: 3 | Q128: 2 | R128: 3.25 | S128: 166.577 | T128: 3540.7111 | U128: 774.20625 | V128: 629.0048 | W128: 0.4342378582 | X128: 6 | Y128: 10.78551835 | Z128: 5 | AA128: 15099.68 | AB128: 5 | AC128: 47.53166946 | AD128: 5 | AE128: 0.9033427686 | AF128: 6 | AG128: 0.216 | AH128: 5 | AI128: 16.26222372 | AK128: 462.5577545 | AM128: 0.4843356742 | AO128: 17.5 | AP128: 0.86 | AQ128: Chave | AT128: 9.49825 | AU128: gen-Kew | AV128: D_En | AW128: gen-Kew | AX128: simple | AY128: 1
A129: Pouteria_manaosensis_(Aubrev._&_Pellegr.)_T._D._Penn. | B129: Pouteria manaosensis | C129: POUMAN | D129: POU | E129: SAPO | F129: Pouu | G129: Pou | H129: Pouteria | J129: Chrysophylloideae | K129: Sapotaceae | L129: Sapotaceae | M129: Ericales | N129: 1 | O129: 1 | P129: 2 | Q129: 1 | R129: 1.25 | S129: 1262.28785 | T129: 304.65065 | U129: 3649.53565 | V129: 646.59665 | W129: 0.4981836865 | X129: 4 | Y129: 8.999911078 | Z129: 3 | AA129: 14060.15 | AB129: 4 | AC129: 52.88275844 | AD129: 2 | AE129: 0.5827562361 | AF129: 4 | AG129: 0.3133333333 | AH129: 3 | AI129: 16.18567824 | AK129: 503.1932449 | AM129: 0.5498241609 | AO129: 32.5 | AP129: 0.64 | AQ129: Chave | AT129: 9.49825 | AU129: gen-Kew | AV129: D_En | AW129: gen-Kew | AX129: simple | AY129: 1
A130: Pouteria_pentamera_Penn. | B130: Pouteria pentamera | C130: POUPEN | D130: POU | E130: SAPO | F130: Poup | G130: Pou | H130: Pouteria | J130: Chrysophylloideae | K130: Sapotaceae | L130: Sapotaceae | M130: Ericales | N130: 0 | O130: 2 | P130: 1 | Q130: 0 | R130: 0.75 | S130: 0 | T130: 2515.52465 | U130: 1505.9754 | V130: 0 | W130: 0.341705872 | X130: 3 | Y130: 9.121773352 | Z130: 3 | AA130: 10099 | AB130: 3 | AC130: 46.04530433 | AD130: 3 | AE130: 0.7611945415 | AF130: 3 | AG130: 0.214 | AH130: 3 | AI130: 20.79858541 | AK130: 485.9330368 | AM130: 0.2759632164 | AO130: 32.5 | AP130: 0.8089991197 | AQ130: gen-Chave | AT130: 9.49825 | AU130: gen-Kew | AV130: D_En | AW130: gen-Kew | AX130: simple | AY130: 1
A131: Pouteria_reticulata_(Engl.)_Eyma | B131: Pouteria reticulata | C131: POURET | D131: POU | E131: SAPO | F131: Pour | G131: Pou | H131: Pouteria | J131: Chrysophylloideae | K131: Sapotaceae | L131: Sapotaceae | M131: Ericales | N131: 3 | O131: 7 | P131: 4 | Q131: 2 | R131: 4 | S131: 414.8254 | T131: 3292.65895 | U131: 606.05925 | V131: 316.61405 | W131: 0.3934233588 | X131: 18 | Y131: 11.83656235 | Z131: 14 | AA131: 3723.955556 | AB131: 18 | AC131: 49.12890765 | AD131: 8 | AE131: 0.6691729062 | AF131: 18 | AG131: 0.2146666667 | AH131: 12 | AI131: 16.98545814 | AK131: 500.0844574 | AM131: 0.430754185 | AO131: 22.5 | AP131: 0.79 | AQ131: Chave | AT131: 9.49825 | AU131: gen-Kew | AV131: D_En | AW131: gen-Kew | AX131: simple | AY131: 1
A132: Pouteria_retinervis_T._D._Penn. | B132: Pouteria retinervis | C132: POUREV | D132: POU | E132: SAPO | F132: Pout | G132: Pou | H132: Pouteria | J132: Chrysophylloideae | K132: Sapotaceae | L132: Sapotaceae | M132: Ericales | N132: 3 | O132: 2 | P132: 2 | Q132: 2 | R132: 2.25 | S132: 2025.4099 | T132: 548.18905 | U132: 2185.0946 | V132: 590.0845 | W132: 0.4544843578 | X132: 11 | Y132: 11.21455608 | Z132: 8 | AA132: 10915.025 | AB132: 8 | AC132: 46.13665391 | AD132: 6 | AE132: 0.7782931454 | AF132: 11 | AG132: 0.181 | AH132: 6 | AI132: 30.12528658 | AK132: 479.5162201 | AM132: 0.6986616308 | AO132: 32.5 | AP132: 0.8089991197 | AQ132: gen-Chave | AT132: 9.49825 | AU132: gen-Kew | AV132: D_En | AW132: gen-Kew | AX132: simple | AY132: 1
A133: Pouteria_rostrata_(Huber)_Baehni | B133: Pouteria rostrata | C133: POUROS | D133: POU | E133: SAPO | F133: Pouo | G133: Pou | H133: Pouteria | J133: Chrysophylloideae | K133: Sapotaceae | L133: Sapotaceae | M133: Ericales | N133: 0 | O133: 2 | P133: 1 | Q133: 0 | R133: 0.75 | S133: 0 | T133: 1482.865 | U133: 339.6224 | V133: 0 | W133: 0.154856307 | X133: 6 | Y133: 6.985652086 | Z133: 6 | AA133: 9523.766667 | AB133: 6 | AC133: 48.35027947 | AD133: 4 | AE133: 0.7943256012 | AF133: 6 | AG133: 0.2805 | AH133: 4 | AI133: 22.90566921 | AK133: 497.7302933 | AM133: 0.5379171633 | AO133: 17.5 | AP133: 0.8089991197 | AQ133: gen-Chave | AT133: 9.49825 | AU133: gen-Kew | AV133: D_En | AW133: gen-Kew | AX133: simple | AY133: 1
A134: Pouteria_sp._10 | B134: Pouteria sp. 10 | C134: POUS10 | D134: POU | E134: SAPO | F134: Pou1 | G134: Pou | H134: Pouteria | J134: Chrysophylloideae | K134: Sapotaceae | L134: Sapotaceae | M134: Ericales | N134: 1 | O134: 0 | P134: 1 | Q134: 0 | R134: 0.5 | S134: 854.865 | T134: 0 | U134: 2461.76 | V134: 0 | W134: 0.281812812 | X134: 0 | Z134: 0 | AB134: 0 | AD134: 0 | AF134: 0 | AH134: 0 | AO134: 42.5 | AP134: 0.8089991197 | AQ134: gen-Chave | AT134: 9.49825 | AU134: gen-Kew | AV134: D_En | AW134: gen-Kew | AX134: simple | AY134: 1
A135: Pouteria_sp._9 | B135: Pouteria sp. 9 | C135: POUSP9 | D135: POU | E135: SAPO | F135: Pou9 | G135: Pou | H135: Pouteria | J135: Chrysophylloideae | K135: Sapotaceae | L135: Sapotaceae | M135: Ericales | N135: 1 | O135: 0 | P135: 0 | Q135: 0 | R135: 0.25 | S135: 1786.10265 | T135: 0 | U135: 0 | V135: 0 | W135: 0.1517647037 | X135: 3 | Y135: 13.51262913 | Z135: 3 | AA135: 6067.6 | AB135: 3 | AC135: 46.02184087 | AD135: 1 | AE135: 0.5306995699 | AF135: 3 | AG135: 0.26 | AH135: 1 | AI135: 13.94147158 | AK135: 472.2608566 | AM135: 0.4783821754 | AO135: 27.5 | AP135: 0.8089991197 | AQ135: gen-Chave | AT135: 9.49825 | AU135: gen-Kew | AV135: D_En | AW135: gen-Kew | AX135: simple | AY135: 1
A136: Protium_altsonii_Sandwith | B136: Protium altsonii | C136: PROALT | D136: PRO | E136: BURS | F136: Proa | G136: Pro | H136: Protium | I136: Protieae | K136: Burseraceae | L136: Burseraceae | M136: Sapindales | N136: 2 | O136: 2 | P136: 1 | Q136: 2 | R136: 1.75 | S136: 1859.7749 | T136: 2856.52865 | U136: 271.5786 | V136: 335.7602 | W136: 0.4523485836 | X136: 7 | Y136: 9.755041262 | Z136: 6 | AA136: 2713.184927 | AB136: 6 | AC136: 49.73924518 | AD136: 6 | AE136: 0.8724836612 | AF136: 7 | AG136: 0.1556666667 | AH136: 6 | AI136: 14.17478204 | AK136: 454.7414017 | AM136: 0.5260101657 | AO136: 27.5 | AP136: 0.68 | AQ136: Chave | AT136: =AVERAGE(84,1300,100,312.5,4800,116.61,500,81)/1000 -> 0.91176375 | AU136: gen-Kew | AV136: D_En | AW136: gen-Kew | AX136: compound | AY136: 2
A137: Protium_apiculatum_Swart | B137: Protium apiculatum | C137: PROAPI | D137: PRO | E137: BURS | F137: Prop | G137: Pro | H137: Protium | I137: Protieae | K137: Burseraceae | L137: Burseraceae | M137: Sapindales | N137: 6 | O137: 4 | P137: 7 | Q137: 6 | R137: 5.75 | S137: 1323.7141 | T137: 1324.8916 | U137: 1453.07425 | V137: 1652.6919 | W137: 0.4889475634 | X137: 10 | Y137: 13.40862979 | Z137: 7 | AA137: 4648.525384 | AB137: 10 | AC137: 52.34094089 | AD137: 4 | AE137: 0.477724408 | AF137: 10 | AG137: 0.1696666667 | AH137: 6 | AI137: 19.59246039 | AK137: 473.4221649 | AM137: 0.6212661464 | AO137: 22.5 | AP137: 0.5671802291 | AQ137: gen-Chave | AR137: =15*9*7 -> 945 | AS137: GP | AT137: 0.4 | AU137: GP | AV137: D_En | AW137: GP | AX137: compound | AY137: 2
A138: Protium_decandrum_(Aubl.)_Marchand | B138: Protium decandrum | C138: PRODEC | D138: PRO | E138: BURS | F138: Prod | G138: Pro | H138: Protium | I138: Protieae | K138: Burseraceae | L138: Burseraceae | M138: Sapindales | N138: 1 | O138: 3 | P138: 3 | Q138: 0 | R138: 1.75 | S138: 100.23665 | T138: 1035.3993 | U138: 578.3409 | V138: 0 | W138: 0.1456361922 | X138: 12 | Y138: 11.28067474 | Z138: 10 | AA138: 4270.935502 | AB138: 11 | AC138: 51.14216583 | AD138: 5 | AE138: 0.8751675844 | AF138: 12 | AG138: 0.2236666667 | AH138: 6 | AI138: 14.57930923 | AK138: 461.949234 | AM138: 0.633173144 | AO138: 22.5 | AP138: 0.52 | AQ138: Chave | AR138: =12*12*10 -> 1440 | AS138: GP | AT138: 0.6 | AU138: GP | AV138: D_En | AW138: GP | AX138: compound | AY138: 2
A139: Protium_guianense_(Aubl.)_Marchand | B139: Protium guianense | C139: PROGUI | D139: PRO | E139: BURS | F139: Prog | G139: Pro | H139: Protium | I139: Protieae | K139: Burseraceae | L139: Burseraceae | M139: Sapindales | N139: 0 | O139: 8 | P139: 5 | Q139: 0 | R139: 3.25 | S139: 0 | T139: 1314.5296 | U139: 1358.48175 | V139: 0 | W139: 0.2271251182 | X139: 6 | Y139: 11.89580026 | Z139: 6 | AA139: 2101.982237 | AB139: 6 | AC139: 53.75460223 | AD139: 6 | AE139: 0.5393426664 | AF139: 6 | AG139: 0.1513333333 | AH139: 6 | AI139: 15.55751443 | AK139: 461.0277939 | AM139: 0.5200566669 | AP139: 0.71 | AQ139: Chave | AT139: =AVERAGE(84,1300,100,312.5,4800,116.61,500,81)/1000 -> 0.91176375 | AU139: gen-Kew | AV139: D_En | AW139: KEW | AX139: compound | AY139: 2
A140: Protium_hebetatum_Daly | B140: Protium hebetatum | C140: PROHEB | D140: PRO | E140: BURS | F140: Proh | G140: Pro | H140: Protium | I140: Protieae | K140: Burseraceae | L140: Burseraceae | M140: Sapindales | N140: 12 | O140: 7 | P140: 14 | Q140: 6 | R140: 9.75 | S140: 1983.51445 | T140: 1049.1211 | U140: 2102.4184 | V140: 1551.27775 | W140: 0.5681359631 | X140: 19 | Y140: 12.88323185 | Z140: 11 | AA140: 5475.232843 | AB140: 11 | AC140: 56.6714292 | AD140: 8 | AE140: 0.7683350913 | AF140: 19 | AG140: 0.21775 | AH140: 8 | AI140: 14.17419434 | AK140: 479.6507263 | AM140: 0.4783821754 | AO140: 22.5 | AP140: 0.5671802291 | AQ140: gen-Chave | AR140: =21*18*16 -> 6048 | AS140: GP | AT140: 3 | AU140: GP | AV140: D_En | AW140: GP | AX140: compound | AY140: 2
A141: Protium_sagotianum_Marchand | B141: Protium sagotianum | C141: PROSAG | D141: PRO | E141: BURS | F141: Pros | G141: Pro | H141: Protium | I141: Protieae | K141: Burseraceae | L141: Burseraceae | M141: Sapindales | N141: 1 | O141: 2 | P141: 2 | Q141: 1 | R141: 1.5 | S141: 107.45865 | T141: 849.7625 | U141: 1152.10525 | V141: 103.81625 | W141: 0.1880501877 | X141: 3 | Y141: 15.28421851 | Z141: 3 | AA141: 2873.859336 | AB141: 3 | AC141: 54.89323697 | AD141: 3 | AE141: 0.5298023985 | AF141: 3 | AG141: 0.1073333333 | AH141: 3 | AI141: 14.96370196 | AK141: 426.7091751 | AM141: 0.5021961705 | AO141: 27.5 | AP141: 0.56 | AQ141: Chave | AT141: =AVERAGE(84,1300,100,312.5,4800,116.61,500,81)/1000 -> 0.91176375 | AU141: gen-Kew | AV141: D_En | AW141: gen-Kew | AX141: compound | AY141: 2
A142: Protium_tenuifolium_(Engl.)_Engl. | B142: Protium tenuifolium | C142: PROTEN | D142: PRO | E142: BURS | F142: Prot | G142: Pro | H142: Protium | I142: Protieae | K142: Burseraceae | L142: Burseraceae | M142: Sapindales | N142: 0 | O142: 1 | P142: 1 | Q142: 2 | R142: 1 | S142: 0 | T142: 107.45865 | U142: 754.385 | V142: 1150.50385 | W142: 0.1709886731 | X142: 3 | Y142: 16.52856653 | Z142: 3 | AA142: 10239.82979 | AB142: 3 | AC142: 48.01423431 | AD142: 3 | AE142: 0.6283394679 | AF142: 3 | AG142: 0.1893333333 | AH142: 3 | AI142: 15.2048111 | AK142: 450.7896805 | AM142: 0.662940638 | AO142: 12.5 | AP142: 0.57 | AQ142: Chave | AT142: =84/1000 -> 0.084 | AU142: KEW | AV142: D_En | AW142: KEW | AX142: compound | AY142: 2
A143: Pseudolmedia_laevis_(Ruiz_&_Pav.)_J._F._Macbr. | B143: Pseudolmedia laevis | C143: PSELAE | D143: PSE | E143: MORA | F143: Psel | G143: Pse | H143: Pseudolmedia | I143: Castilleae | K143: Moraceae | L143: Moraceae | M143: Rosales | N143: 2 | O143: 4 | P143: 3 | Q143: 1 | R143: 2.5 | S143: 363.21165 | T143: 2549.24825 | U143: 890.22925 | V143: 478.92065 | W143: 0.3638073336 | X143: 9 | Y143: 12.50006401 | Z143: 8 | AA143: 6934.15 | AB143: 8 | AC143: 51.66072991 | AD143: 5 | AE143: 0.6674588712 | AF143: 9 | AG143: 0.212 | AH143: 5 | AI143: 15.81017017 | AK143: 423.943634 | AM143: 0.5795916549 | AO143: 32.5 | AP143: 0.64 | AQ143: Chave | AT143: =AVERAGE(1700)/1000 -> 1.7 | AU143: gen-Kew | AV143: D_En | AW143: KEW | AX143: simple | AY143: 1
A144: Pseudopiptadenia_psilostachya_(DC.)_Lewis_&_Lima | B144: Pseudopiptadenia psilostachya | C144: PSPPSI | D144: PSP | E144: FABA | F144: Pspp | G144: Psp | H144: Pseudopiptadenia | I144: Mimoseae | J144: Mimosoideae | K144: Fabaceae – Mimosoideae | L144: Leguminosae | M144: Fabales | N144: 1 | O144: 2 | P144: 0 | Q144: 1 | R144: 1 | S144: 160.52465 | T144: 1448.33285 | U144: 0 | V144: 2374.625 | W144: 0.3384755301 | X144: 3 | Y144: 20.21637614 | Z144: 3 | AA144: 25.33333333 | AB144: 3 | AC144: 42.45015882 | AD144: 3 | AE144: 0.8446146889 | AF144: 3 | AG144: 0.1586666667 | AH144: 3 | AI144: 25.72575569 | AK144: 477.2344208 | AM144: 0.633173144 | AO144: 37.5 | AP144: 0.5895366667 | AQ144: gen-Chave | AV144: D_En | AW144: gen-Kew | AX144: bipinate | AY144: 3
A145: Pseudopiptadenia_suaveolens_(Miq.)_Grimes | B145: Pseudopiptadenia suaveolens | C145: PSPSUA | D145: PSP | E145: FABA | F145: Psps | G145: Psp | H145: Pseudopiptadenia | I145: Mimoseae | J145: Mimosoideae | K145: Fabaceae – Mimosoideae | L145: Leguminosae | M145: Fabales | N145: 0 | O145: 1 | P145: 1 | Q145: 0 | R145: 0.5 | S145: 0 | T145: 3846.5 | U145: 1962.5 | V145: 0 | W145: 0.4935893039 | X145: 1 | Y145: 15.06488103 | Z145: 1 | AA145: 24.1 | AB145: 1 | AC145: 51.4551415 | AD145: 1 | AE145: 0.6966378461 | AF145: 1 | AG145: 0.164 | AH145: 1 | AI145: 25.82704782 | AK145: 481.1397552 | AM145: 0.4664751778 | AO145: 37.5 | AP145: 0.58 | AQ145: Chave | AV145: D_En | AW145: KEW | AX145: bipinate | AY145: 3
A146: Qualea_labouriauana_Paula | B146: Qualea labouriauana | C146: QUALAB | D146: QUA | E146: VOCH | F146: Qual | G146: Qua | H146: Qualea | K146: Vochysiaceae | L146: Vochysiaceae | M146: Myrtales | N146: 2 | O146: 6 | P146: 1 | Q146: 0 | R146: 2.25 | S146: 3244.562 | T146: 12360.3588 | U146: 81.6714 | V146: 0 | W146: 1.332885888 | X146: 3 | Y146: 8.099547572 | Z146: 3 | AA146: 4054.266667 | AB146: 3 | AC146: 45.8272457 | AD146: 3 | AE146: 0.5591376391 | AF146: 3 | AG146: 0.2906666667 | AH146: 3 | AI146: 13.02251816 | AK146: 443.307457 | AM146: 0.3235912067 | AO146: 37.5 | AP146: 0.646125 | AQ146: gen-Chave | AT146: =44/1000 -> 0.044 | AU146: gen-Kew | AV146: D_W | AW146: gen-Kew | AX146: simple | AY146: 1
A147: Qualea_paraensis_Ducke | B147: Qualea paraensis | C147: QUAPAR | D147: QUA | E147: VOCH | F147: Quap | G147: Qua | H147: Qualea | K147: Vochysiaceae | L147: Vochysiaceae | M147: Myrtales | N147: 0 | O147: 2 | P147: 1 | Q147: 1 | R147: 1 | S147: 0 | T147: 1343.6217 | U147: 3265.79625 | V147: 404.50265 | W147: 0.4260316025 | X147: 3 | Y147: 9.085591037 | Z147: 3 | AA147: 3078.466667 | AB147: 3 | AC147: 46.23480968 | AD147: 2 | AE147: 0.5018512532 | AF147: 3 | AG147: 0.254 | AH147: 2 | AI147: 11.32553101 | AK147: 425.3044128 | AM147: 0.3057307103 | AO147: 37.5 | AP147: 0.67 | AQ147: Chave | AR147: 300 | AS147: KF | AT147: =44/1000 -> 0.044 | AU147: gen-Kew | AV147: D_W | AW147: KF | AX147: simple | AY147: 1
A148: Rhodostemonodaphne_grandis_(Mez)_Rohwer | B148: Rhodostemonodaphne grandis | C148: RHOGRA | D148: RHO | E148: LAUR | F148: Rhog | G148: Rho | H148: Rhodostemonodaphne | K148: Lauraceae | L148: Lauraceae | M148: Laurales | N148: 1 | O148: 0 | P148: 2 | Q148: 0 | R148: 0.75 | S148: 720.70065 | T148: 0 | U148: 1053.1717 | V148: 0 | W148: 0.1507254981 | X148: 3 | Y148: 7.754782175 | Z148: 3 | AA148: 11553.13333 | AB148: 3 | AC148: 48.39938968 | AD148: 3 | AE148: 0.6466523337 | AF148: 3 | AG148: 0.242 | AH148: 3 | AI148: 21.7289114 | AK148: 491.4519501 | AM148: 0.5379171633 | AO148: 27.5 | AP148: 0.39 | AQ148: Chave | AR148: ovoid, 35x22mm | AS148: FN92 | AV148: D_En | AW148: KEW | AX148: simple | AY148: 1
A149: Rinorea_flavescens_(Aubl.)_Kuntze | B149: Rinorea flavescens | C149: RINFLA | D149: RIN | E149: VIOL | F149: Rinf | G149: Rin | H149: Rinorea | K149: Violaceae | L149: Violaceae | M149: Malpighiales | N149: 7 | O149: 0 | P149: 9 | Q149: 23 | R149: 9.75 | S149: 634.8138 | T149: 0 | U149: 1085.5608 | V149: 2455.78615 | W149: 0.3548473537 | X149: 10 | Y149: 18.11044523 | Z149: 7 | AA149: 7055.628571 | AB149: 7 | AC149: 39.07465279 | AD149: 4 | AE149: 0.4611754834 | AF149: 10 | AG149: 0.1705 | AH149: 4 | AI149: 23.44778776 | AK149: 455.0943375 | AM149: 0.5260101657 | AO149: 12.5 | AP149: 0.63 | AQ149: Chave | AV149: D_N | AW149: gen-Kew | AX149: simple | AY149: 1
A150: Rinorea_guianensis_Aubl. | B150: Rinorea guianensis | C150: RINGUI | D150: RIN | E150: VIOL | F150: Ring | G150: Rin | H150: Rinorea | K150: Violaceae | L150: Violaceae | M150: Malpighiales | N150: 0 | O150: 7 | P150: 2 | Q150: 1 | R150: 2.5 | S150: 0 | T150: 1873.74005 | U150: 729.265 | V150: 534.74985 | W150: 0.2666142636 | X150: 13 | Y150: 10.55132956 | Z150: 12 | AA150: 6645.5 | AB150: 12 | AC150: 44.54898266 | AD150: 7 | AE150: 0.726889719 | AF150: 13 | AG150: 0.2968571429 | AH150: 7 | AI150: 17.82550693 | AK150: 450.5399323 | AM150: 0.5141031681 | AO150: 17.5 | AP150: 0.78 | AQ150: Chave | AV150: D_N | AW150: gen-Kew | AX150: simple | AY150: 1
A151: Rinorea_sp._1 | B151: Rinorea sp. 1 | C151: RINSP1 | D151: RIN | E151: VIOL | F151: Rin1 | G151: Rin | H151: Rinorea | K151: Violaceae | L151: Violaceae | M151: Malpighiales | N151: 10 | O151: 18 | P151: 5 | Q151: 15 | R151: 12 | S151: 3680.70015 | T151: 3897.14035 | U151: 1011.1585 | V151: 4458.8471 | W151: 1.10867228 | X151: 10 | Y151: 18.8983405 | Z151: 4 | AA151: 4877.2 | AB151: 4 | AC151: 34.26592473 | AD151: 5 | AE151: 0.5227591988 | AF151: 10 | AG151: 0.1972 | AH151: 5 | AI151: 23.79260063 | AK151: 427.9972076 | AM151: 0.6510336404 | AO151: 27.5 | AP151: 0.6684327546 | AQ151: gen-Chave | AV151: D_N | AW151: gen-Kew | AX151: simple | AY151: 1
A152: Sacoglottis_mattogrossensis_Malme | B152: Sacoglottis mattogrossensis | C152: SACMAT | D152: SAC | E152: HUMI | F152: Sacm | G152: Sac | H152: Sacoglottis | K152: Humiriaceae | L152: Humiriaceae | M152: Malpighiales | N152: 0 | O152: 2 | P152: 1 | Q152: 0 | R152: 0.75 | S152: 0 | T152: 2796.83725 | U152: 1854.1386 | V152: 0 | W152: 0.3951922762 | X152: 4 | Y152: 7.944356412 | Z152: 4 | AA152: 3400.5 | AB152: 4 | AC152: 58.47813642 | AD152: 3 | AE152: 0.5327627389 | AF152: 4 | AG152: 0.2313333333 | AH152: 3 | AI152: 10.46409249 | AK152: 465.6838989 | AM152: 0.2819167152 | AO152: 32.5 | AP152: 0.77 | AQ152: Chave | AT152: =4994/1000 -> 4.994 | AU152: gen-Kew | AV152: D_En | AW152: gen-Kew | AX152: simple | AY152: 1
A153: Sclerolobium_melinonii_Harms | B153: Sclerolobium melinonii | C153: SCLMEL | D153: SCL | E153: FABA | F153: Sclm | G153: Scl | H153: Sclerolobium | J153: Caesalpinoideae | K153: Fabaceae – Caesalpinoideae | L153: Leguminosae | M153: Fabales | N153: 2 | O153: 2 | P153: 0 | Q153: 0 | R153: 1 | S153: 240.40625 | T153: 2366.34325 | U153: 0 | V153: 0 | W153: 0.2214948651 | X153: 1 | Y153: 14.22687529 | Z153: 1 | AA153: 1621.229167 | AB153: 1 | AC153: 53.54062977 | AD153: 1 | AE153: 0.3321182812 | AF153: 1 | AG153: 0.094 | AH153: 1 | AI153: 29.87728834 | AK153: 489.4250488 | AM153: 0.5498241609 | AO153: 27.5 | AP153: 0.55 | AQ153: Chave | AT153: =180/1000 -> 0.18 | AU153: gen-Kew | AV153: D_W | AW153: KEW | AX153: compound | AY153: 2
A154: Sclerolobium_sp._1 | B154: Sclerolobium sp. 1 | C154: SCLSP1 | D154: SCL | E154: FABA | F154: Scl1 | G154: Scl | H154: Sclerolobium | J154: Caesalpinoideae | K154: Fabaceae – Caesalpinoideae | L154: Leguminosae | M154: Fabales | N154: 1 | O154: 0 | P154: 1 | Q154: 0 | R154: 0.5 | S154: 1293.9626 | T154: 0 | U154: 624.2634 | V154: 0 | W154: 0.1629911923 | X154: 2 | Y154: 8.951438906 | Z154: 2 | AA154: 4596.779412 | AB154: 2 | AC154: 52.07762925 | AD154: 1 | AE154: 0.6374086834 | AF154: 2 | AG154: 0.178 | AH154: 1 | AI154: 25.2442193 | AK154: 500.1856995 | AM154: 0.633173144 | AO154: 32.5 | AP154: 0.5561508901 | AQ154: gen-Chave | AT154: =180/1000 -> 0.18 | AU154: gen-Kew | AV154: D_W | AW154: gen-Kew | AX154: compound | AY154: 2
A155: Sclerolobium_sp._5 | B155: Sclerolobium sp. 5 | C155: SCLSP5 | D155: SCL | E155: FABA | F155: Scl5 | G155: Scl | H155: Sclerolobium | J155: Caesalpinoideae | K155: Fabaceae – Caesalpinoideae | L155: Leguminosae | M155: Fabales | N155: 0 | O155: 1 | P155: 2 | Q155: 3 | R155: 1.5 | S155: 0 | T155: 555.4346 | U155: 1231.8848 | V155: 1358.96845 | W155: 0.2673393062 | X155: 3 | Y155: 8.874712425 | Z155: 3 | AA155: 12396.80409 | AB155: 3 | AC155: 44.22223432 | AD155: 3 | AE155: 0.6451992575 | AF155: 3 | AG155: 0.2213333333 | AH155: 3 | AI155: 15.70164919 | AK155: 481.2835693 | AM155: 0.4069401898 | AO155: 27.5 | AP155: 0.5561508901 | AQ155: gen-Chave | AT155: =180/1000 -> 0.18 | AU155: gen-Kew | AV155: D_W | AW155: gen-Kew | AX155: compound | AY155: 2
A156: Scleronema_micranthum_(Ducke)_Ducke | B156: Scleronema micranthum | C156: SCNMIC | D156: SCN | E156: MALV | F156: Scnm | G156: Scn | H156: Scleronema | J156: Bombacoideae | K156: Malvaceae | L156: Bombacaceae | M156: Malvales | N156: 4 | O156: 13 | P156: 5 | Q156: 7 | R156: 7.25 | S156: 10842.55345 | T156: 9521.5005 | U156: 1449.32195 | V156: 8977.83305 | W156: 2.616321465 | X156: 12 | Y156: 10.95447767 | Z156: 8 | AA156: 6736.044444 | AB156: 9 | AC156: 45.05232199 | AD156: 5 | AE156: 0.8538240394 | AF156: 12 | AG156: 0.225 | AH156: 6 | AI156: 17.78931975 | AK156: 467.0717621 | AM156: 0.6510336404 | AO156: 37.5 | AP156: 0.6 | AQ156: Chave | AR156: =56*54*44 -> 133056 | AS156: GP | AT156: 89 | AU156: GP | AV156: D_N | AW156: KF | AX156: simple | AY156: 1
A157: Sloanea_eichleri_K._Schum. | B157: Sloanea eichleri | C157: SLOEIC | D157: SLO | E157: ELAE | F157: Sloe | G157: Slo | H157: Sloanea | K157: Elaeocarpaceae | L157: Elaeocarpaceae | M157: Oxalidales | N157: 4 | O157: 0 | P157: 1 | Q157: 1 | R157: 1.5 | S157: 2134.76825 | T157: 0 | U157: 88.2026 | V157: 211.1336 | W157: 0.2068252576 | X157: 4 | Y157: 8.013559001 | Z157: 4 | AA157: 23126.1 | AB157: 4 | AC157: 51.36534175 | AD157: 4 | AE157: 0.8731511702 | AF157: 4 | AG157: 0.415 | AH157: 4 | AI157: 13.57988715 | AK157: 468.6029053 | AM157: 0.5438706621 | AO157: 27.5 | AP157: 0.75 | AQ157: Chave | AT157: =AVERAGE(88.8,3180,130,550) -> 987.2 | AU157: gen-Kew | AV157: D_En | AW157: gen-Kew | AX157: simple | AY157: 1
A158: Sloanea_floribunda_Spruce_ex_Benth. | B158: Sloanea floribunda | C158: SLOFLO | D158: SLO | E158: ELAE | F158: Slof | G158: Slo | H158: Sloanea | K158: Elaeocarpaceae | L158: Elaeocarpaceae | M158: Oxalidales | N158: 1 | O158: 4 | P158: 2 | Q158: 1 | R158: 2 | S158: 100.23665 | T158: 1291.27005 | U158: 204.32765 | V158: 116.8394 | W158: 0.1455254681 | X158: 6 | Y158: 5.759221126 | Z158: 5 | AA158: 12230.36667 | AB158: 6 | AC158: 53.61192578 | AD158: 5 | AE158: 1.011191933 | AF158: 6 | AG158: 0.2973333333 | AH158: 6 | AI158: 10.53637624 | AK158: 484.2942047 | AM158: 0.3533587007 | AO158: 27.5 | AP158: 0.8074949836 | AQ158: gen-Chave | AT158: =AVERAGE(88.8,3180,130,550) -> 987.2 | AU158: gen-Kew | AV158: D_En | AW158: gen-Kew | AX158: simple | AY158: 1
A159: Swartzia_polyphylla_DC. | B159: Swartzia polyphylla | C159: SWAPOL | D159: SWA | E159: FABA | F159: Swap | G159: Swa | H159: Swartzia | J159: Faboideae | K159: Fabaceae – Faboideae | L159: Leguminosae | M159: Fabales | N159: 0 | O159: 0 | P159: 2 | Q159: 0 | R159: 0.5 | S159: 0 | T159: 0 | U159: 7425.5348 | V159: 0 | W159: 0.630945869 | X159: 5 | Y159: 5.840296856 | Z159: 3 | AA159: 2224.766585 | AB159: 5 | AC159: 45.64326029 | AD159: 3 | AE159: 0.6546740337 | AF159: 5 | AG159: 0.178 | AH159: 5 | AI159: 25.79098463 | AK159: 486.6003036 | AM159: 0.5081496693 | AO159: 32.5 | AP159: 0.71 | AQ159: Chave | AR159: =44*95*34 -> 142120 | AS159: GP | AT159: 78 | AU159: GP | AV159: D_En | AW159: KEW | AX159: compound | AY159: 2
A160: Swartzia_recurva_Poepp. | B160: Swartzia recurva | C160: SWAREC | D160: SWA | E160: FABA | F160: Swar | G160: Swa | H160: Swartzia | J160: Faboideae | K160: Fabaceae – Faboideae | L160: Leguminosae | M160: Fabales | N160: 2 | O160: 3 | P160: 1 | Q160: 1 | R160: 1.75 | S160: 323.6869 | T160: 784.4819 | U160: 1051.5546 | V160: 813.9194 | W160: 0.2526696987 | X160: 8 | Y160: 11.15008528 | Z160: 5 | AA160: 7348.622294 | AB160: 7 | AC160: 50.4054014 | AD160: 4 | AE160: 0.9356964391 | AF160: 7 | AG160: 0.3403333333 | AH160: 6 | AI160: 23.30196857 | AK160: 483.0615616 | AM160: 0.5855451537 | AO160: 32.5 | AP160: 0.97 | AQ160: Chave | AR160: =35*23*11 -> 8855 | AS160: GP | AT160: 5.8 | AU160: GP | AV160: D_En | AW160: GP | AX160: compound | AY160: 2
A161: Swartzia_reticulata_Ducke | B161: Swartzia reticulata | C161: SWARET | D161: SWA | E161: FABA | F161: Swae | G161: Swa | H161: Swartzia | J161: Faboideae | K161: Fabaceae – Faboideae | L161: Leguminosae | M161: Fabales | N161: 10 | O161: 11 | P161: 9 | Q161: 6 | R161: 9 | S161: 2454.8206 | T161: 2409.7145 | U161: 2714.9539 | V161: 1879.1958 | W161: 0.8037021254 | X161: 15 | Y161: 9.258227366 | Z161: 13 | AA161: 14287.90779 | AB161: 14 | AC161: 46.1674276 | AD161: 5 | AE161: 0.7523857424 | AF161: 15 | AG161: 0.2934166667 | AH161: 6 | AI161: 21.35603666 | AK161: 482.2428894 | AM161: 0.5141031681 | AO161: 17.5 | AP161: 0.8659380952 | AQ161: gen-Chave | AR161: =67*45*33 -> 99495 | AS161: GP | AT161: 60.1 | AU161: GP | AV161: D_En | AW161: GP | AX161: compound | AY161: 2
A162: Swartzia_schomburgkii_Benth. | B162: Swartzia schomburgkii | C162: SWASCH | D162: SWA | E162: FABA | F162: Swas | G162: Swa | H162: Swartzia | J162: Faboideae | K162: Fabaceae – Faboideae | L162: Leguminosae | M162: Fabales | N162: 1 | O162: 0 | P162: 1 | Q162: 1 | R162: 0.75 | S162: 4924.0224 | T162: 0 | U162: 83.28065 | V162: 100.23665 | W162: 0.4339863944 | X162: 3 | Y162: 14.57344695 | Z162: 3 | AA162: 6053.834503 | AB162: 3 | AC162: 44.34610201 | AD162: 3 | AE162: 0.7957701514 | AF162: 3 | AG162: 0.2206666667 | AH162: 3 | AI162: 32.94992208 | AK162: 490.1647949 | AM162: 0.5795916549 | AO162: 22.5 | AP162: 0.8659380952 | AQ162: gen-Chave | AT162: =1130/1000 -> 1.13 | AU162: KEW | AV162: D_En | AW162: KEW | AX162: compound | AY162: 2
A163: Tachigali_plumbea_Ducke | B163: Tachigali plumbea | C163: TACPLU | D163: TAC | E163: FABA | F163: Tacp | G163: Tac | H163: Tachigali | I163: Caesalpinieae | J163: Caesalpinoideae | K163: Fabaceae – Caesalpinoideae | L163: Leguminosae | M163: Fabales | N163: 2 | O163: 2 | P163: 0 | Q163: 3 | R163: 1.75 | S163: 697.1428 | T163: 461.96465 | U163: 0 | V163: 604.74045 | W163: 0.149873723 | X163: 3 | Y163: 8.439984147 | Z163: 3 | AA163: 20180.10972 | AB163: 3 | AC163: 53.86178669 | AD163: 3 | AE163: 0.7813308548 | AF163: 3 | AG163: 0.2146666667 | AH163: 3 | AI163: 26.77305222 | AK163: 482.8603745 | AM163: 0.4843356742 | AO163: 27.5 | AP163: 0.5666958859 | AQ163: gen-Chave | AT163: =AVERAGE(550,910,538,1342)/1000 -> 0.835 | AU163: gen-Kew | AV163: D_W | AW163: gen-Kew | AX163: compound | AY163: 2
A164: Theobroma_sylvestris_Aubl._ex_Mart. | B164: Theobroma sylvestris | C164: THESYL | D164: THE | E164: MALV | F164: Thes | G164: The | H164: Theobroma | J164: Byttnerioideae | K164: Malvaceae | L164: Sterculiaceae | M164: Malvales | N164: 5 | O164: 4 | P164: 4 | Q164: 3 | R164: 4 | S164: 508.62505 | T164: 549.029 | U164: 371.73675 | V164: 319.09465 | W164: 0.1485683794 | X164: 11 | Y164: 10.5620155 | Z164: 6 | AA164: 24460.09286 | AB164: 7 | AC164: 46.11692345 | AD164: 6 | AE164: 0.6776428673 | AF164: 11 | AG164: 0.3277142857 | AH164: 7 | AI164: 19.5215106 | AK164: 451.1541367 | AM164: 0.5855451537 | AO164: 17.5 | AP164: 0.67 | AQ164: Chave | AT164: =AVERAGE(940,AVERAGE(2300,2381,1771))/1000 -> 1.545333333 | AU164: gen-Kew | AV164: D_En | AW164: gen-Kew | AX164: simple | AY164: 1
A165: Trymatococcus_amazonicus_Poepp._&_Endl. | B165: Trymatococcus amazonicus | C165: TRYAMA | D165: TRY | E165: MORA | F165: Trya | G165: Try | H165: Trymatococcus | K165: Moraceae | L165: Moraceae | M165: Rosales | N165: 4 | O165: 1 | P165: 1 | Q165: 0 | R165: 1.5 | S165: 1516.01555 | T165: 136.7784 | U165: 346.185 | V165: 0 | W165: 0.1698527506 | X165: 9 | Y165: 9.939167252 | Z165: 6 | AA165: 9721.4 | AB165: 6 | AC165: 49.83825738 | AD165: 3 | AE165: 0.513555523 | AF165: 9 | AG165: 0.3673333333 | AH165: 3 | AI165: 22.63247252 | AK165: 402.3525238 | AM165: 0.5319636645 | AO165: 17.5 | AP165: 0.66 | AQ165: Chave | AV165: D_En | AW165: KEW | AX165: simple | AY165: 1
A166: Unonopsis_duckei_R._E._Fries | B166: Unonopsis duckei | C166: UNODUC | D166: UNO | E166: ANNO | F166: Unod | G166: Uno | H166: Unonopsis | K166: Annonaceae | L166: Annonaceae | M166: Magnoliales | N166: 3 | O166: 5 | P166: 0 | Q166: 3 | R166: 2.75 | S166: 998.04115 | T166: 1332.0194 | U166: 0 | V166: 888.34525 | W166: 0.2734671507 | X166: 11 | Y166: 12.24658475 | Z166: 9 | AA166: 10050.64444 | AB166: 9 | AC166: 56.33275628 | AD166: 5 | AE166: 0.7373765494 | AF166: 11 | AG166: 0.1816666667 | AH166: 6 | AI166: 20.98563433 | AK166: 487.6886368 | AM166: 0.4426611826 | AO166: 27.5 | AP166: 0.5551113524 | AQ166: gen-Chave | AT166: =AVERAGE(530,30,220)/1000 -> 0.26 | AU166: gen-Kew | AV166: D_En | AW166: gen-Kew | AX166: simple | AY166: 1
A167: Vantanea_parviflora_Lam. | B167: Vantanea parviflora | C167: VANPAR | D167: VAN | E167: HUMI | F167: Vanp | G167: Van | H167: Vantanea | K167: Humiriaceae | L167: Humiriaceae | M167: Malpighiales | N167: 3 | O167: 0 | P167: 6 | Q167: 1 | R167: 2.5 | S167: 4390.60705 | T167: 0 | U167: 3687.48255 | V167: 1431.28265 | W167: 0.8080090256 | X167: 8 | Y167: 10.00474832 | Z167: 6 | AA167: 6388.6 | AB167: 6 | AC167: 50.09790419 | AD167: 6 | AE167: 0.7368501133 | AF167: 8 | AG167: 0.2356666667 | AH167: 6 | AI167: 11.07363224 | AK167: 447.4809265 | AM167: 0.3414517031 | AO167: 32.5 | AP167: 0.84 | AQ167: Chave | AV167: D_En | AW167: KEW | AX167: simple | AY167: 1
A168: Virola_calophylla_Warb. | B168: Virola calophylla | C168: VIRCAL | D168: VIR | E168: MYRI | F168: Virc | G168: Vir | H168: Virola | K168: Myristicaceae | L168: Myristicaceae | M168: Magnoliales | N168: 1 | O168: 3 | P168: 4 | Q168: 5 | R168: 3.25 | S168: 237.6666 | T168: 733.10365 | U168: 753.0034 | V168: 948.3585 | W168: 0.2270504128 | X168: 7 | Y168: 10.36519165 | Z168: 6 | AA168: 34445.8 | AB168: 6 | AC168: 44.42720666 | AD168: 5 | AE168: 0.9527316423 | AF168: 7 | AG168: 0.3248 | AH168: 5 | AI168: 17.51260161 | AK168: 490.5528259 | AM168: 0.490289173 | AO168: 17.5 | AP168: 0.49 | AQ168: Chave | AR168: 1200 | AS168: KF | AT168: =AVERAGE(1958,AVERAGE(230,1400,472),1880,1924)/1000 -> 1.615666667 | AU168: gen-Kew | AV168: D_En | AW168: KF/Kew | AX168: simple | AY168: 1
A169: Vochysia_obidensis_(Huber)_Ducke | B169: Vochysia obidensis | C169: VOCOBI | D169: VOC | E169: VOCH | F169: Voco | G169: Voc | H169: Vochysia | K169: Vochysiaceae | L169: Vochysiaceae | M169: Myrtales | N169: 4 | O169: 0 | P169: 1 | Q169: 3 | R169: 2 | S169: 5709.0067 | T169: 0 | U169: 198.45585 | V169: 1346.81665 | W169: 0.6163943227 | X169: 3 | Y169: 10.7612175 | Z169: 3 | AA169: 2787.066667 | AB169: 3 | AC169: 31.657371 | AD169: 3 | AE169: 0.548585989 | AF169: 3 | AG169: 0.1926666667 | AH169: 3 | AI169: 20.10311842 | AK169: 457.4839783 | AM169: 0.3831261947 | AO169: 37.5 | AP169: 0.5 | AQ169: Chave | AT169: =AVERAGE(52.7)/1000 -> 0.0527 | AU169: gen-Kew | AV169: D_W | AW169: gen-Kew | AX169: simple | AY169: 1
A170: Vochysia_rufescens_W._A._Rodr. | B170: Vochysia rufescens | C170: VOCRUF | D170: VOC | E170: VOCH | F170: Vocr | G170: Voc | H170: Vochysia | K170: Vochysiaceae | L170: Vochysiaceae | M170: Myrtales | N170: 0 | O170: 1 | P170: 0 | Q170: 0 | R170: 0.25 | S170: 0 | T170: 2263.69665 | U170: 0 | V170: 0 | W170: 0.1923457486 | X170: 0 | Z170: 0 | AB170: 0 | AD170: 0 | AF170: 0 | AH170: 0 | AO170: 27.5 | AP170: 0.4761685763 | AQ170: gen-Chave | AT170: =AVERAGE(52.7)/1000 -> 0.0527 | AU170: gen-Kew | AV170: D_W | AW170: gen-Kew | AX170: simple | AY170: 1
A171: Zygia_racemosa_(Ducke)_Barn._&_Grimes | B171: Zygia racemosa | C171: ZYGRAC | D171: ZYG | E171: FABA | F171: Zygr | G171: Zyg | H171: Zygia | J171: Mimosoideae | K171: Fabaceae – Mimosoideae | L171: Leguminosae | M171: Fabales | N171: 3 | O171: 8 | P171: 3 | Q171: 3 | R171: 4.25 | S171: 1878.04185 | T171: 5228.21775 | U171: 4003.69625 | V171: 762.77665 | W171: 1.008823166 | X171: 9 | Y171: 16.55146319 | Z171: 9 | AA171: 84.53333333 | AB171: 9 | AC171: 51.04101266 | AD171: 5 | AE171: 0.9202705392 | AF171: 7 | AG171: 0.194 | AH171: 5 | AI171: 31.95496321 | AK171: 476.6158295 | AM171: 0.6093591488 | AO171: 27.5 | AP171: 0.75 | AQ171: Chave | AV171: D_N | AW171: gen-Kew | AX171: bipinate | AY171: 3

Sheet extra.species
A1: SPECIES | B1: plot 1 (individuals in 1 ha) | C1: plot 3 (individuals in 1 ha) | D1: plot 7 (individuals in 1 ha) | E1: plot 9 (individuals in 1 ha) | F1: ABUNDANCE (mean individuals per hectare) | G1: plot 1 (basal area in cm2) | H1: plot 3 (basal area in cm2) | I1: plot 7 (basal area in cm2) | J1: plot 9 (basal area in cm2) | K1: BIOMASS (%) (basal area) | L1: N (individuals colected)
A2: Abarema_mataybifolia_(Sandw.)_Barn._&_Grimes | B2: 0 | C2: 1 | D2: 0 | E2: 1 | F2: 0.5 | G2: 0 | H2: 251.6494255 | I2: 0 | J2: 426.3848089 | K2: 0.05758863401 | L2: 0
A3: Abarema_microcalyx_(Benth.)_Barn._&_Grimes | B3: 0 | C3: 0 | D3: 0 | E3: 1 | F3: 0.25 | G3: 0 | H3: 0 | I3: 0 | J3: 314.1592654 | K3: 0.02668302283 | L3: 0
A4: Agonandra_sylvatica_Ducke | B4: 0 | C4: 1 | D4: 0 | E4: 2 | F4: 0.75 | G4: 0 | H4: 232.3521927 | I4: 0 | J4: 928.2856513 | K4: 0.0985784266 | L4: 0
A5: Aiouea_grandifolia_van_der_Werff | B5: 0 | C5: 0 | D5: 1 | E5: 0 | F5: 0.25 | G5: 0 | H5: 0 | I5: 456.1671073 | J5: 0 | K5: 0.03874441622 | L5: 0
A6: Aiouea_myristicoides_Mez | B6: 0 | C6: 1 | D6: 0 | E6: 0 | F6: 0.25 | G6: 0 | H6: 232.3521927 | I6: 0 | J6: 0 | K6: 0.01973476368 | L6: 0
A7: Amaioua_corymbosa_H._B._&_K. | B7: 0 | C7: 1 | D7: 0 | E7: 0 | F7: 0.25 | G7: 0 | H7: 268.8025214 | I7: 0 | J7: 0 | K7: 0.02283066141 | L7: 0
A8: Amaioua_guianensis_Aubl. | B8: 0 | C8: 1 | D8: 0 | E8: 0 | F8: 0.25 | G8: 0 | H8: 88.24733764 | I8: 0 | J8: 0 | K8: 0.007495261112 | L8: 0
A9: Ambelania_acida_Aubl. | B9: 0 | C9: 0 | D9: 1 | E9: 1 | F9: 0.5 | G9: 0 | H9: 0 | I9: 176.7145868 | J9: 483.0512864 | K9: 0.05603701624 | L9: 0
A10: Amphirrhox_longifolia_(A._St.-Hil.)_Spreng. | B10: 1 | C10: 1 | D10: 0 | E10: 1 | F10: 0.75 | G10: 130.6981084 | H10: 81.71282492 | I10: 0 | J10: 80.11846665 | K10: 0.0248458967 | L10: 0
A11: Amphirrhox_surinamensis_Eichl. | B11: 3 | C11: 1 | D11: 6 | E11: 0 | F11: 2.5 | G11: 370.6293933 | H11: 83.32289115 | I11: 565.8086909 | J11: 0 | K11: 0.08661309209 | L11: 0
A12: Anacardium_parvifolium_Ducke | B12: 0 | C12: 1 | D12: 0 | E12: 0 | F12: 0.25 | G12: 0 | H12: 1604.599864 | I12: 0 | J12: 0 | K12: 0.1362862074 | L12: 0
A13: Anacardium_sp._1 | B13: 0 | C13: 0 | D13: 1 | E13: 0 | F13: 0.25 | G13: 0 | H13: 0 | I13: 330.0635782 | J13: 0 | K13: 0.02803385086 | L13: 0
A14: Anacardium_spruceanum_Benth._ex_Engl. | B14: 0 | C14: 0 | D14: 0 | E14: 2 | F14: 0.5 | G14: 0 | H14: 0 | I14: 0 | J14: 923.1648552 | K14: 0.07840872965 | L14: 0
A15: Andira_micrantha_Ducke | B15: 0 | C15: 2 | D15: 2 | E15: 0 | F15: 1 | G15: 0 | H15: 821.3536913 | I15: 280.512808 | J15: 0 | K15: 0.09358670011 | L15: 0
A16: Andira_trifoliolata_Ducke | B16: 1 | C16: 1 | D16: 0 | E16: 1 | F16: 0.75 | G16: 111.2202339 | H16: 132.7322896 | I16: 0 | J16: 120.7628216 | K16: 0.03097698827 | L16: 0
A17: Andira_unifoliolata_Ducke | B17: 0 | C17: 0 | D17: 1 | E17: 3 | F17: 1 | G17: 0 | H17: 0 | I17: 149.5712262 | J17: 635.4892159 | K17: 0.06667887282 | L17: 0
A18: Aniba_riparia_(Nees)_Mez | B18: 0 | C18: 0 | D18: 1 | E18: 0 | F18: 0.25 | G18: 0 | H18: 0 | I18: 102.0703453 | J18: 0 | K18: 0.008669314116 | L18: 0
A19: Aniba_terminalis_Ducke | B19: 1 | C19: 0 | D19: 0 | E19: 0 | F19: 0.25 | G19: 105.6831769 | H19: 0 | I19: 0 | J19: 0 | K19: 0.008976168879 | L19: 0
A20: Apeiba_echinata_Gaertn. | B20: 0 | C20: 1 | D20: 0 | E20: 1 | F20: 0.5 | G20: 0 | H20: 162.8601632 | I20: 0 | J20: 394.0813825 | K20: 0.04730366287 | L20: 0
A21: Aspidosperma_album_(Vahl)_Benoist_ex_Pichon | B21: 0 | C21: 0 | D21: 1 | E21: 0 | F21: 0.25 | G21: 0 | H21: 0 | I21: 1194.590607 | J21: 0 | K21: 0.1014621943 | L21: 0
A22: Aspidosperma_sp._24 | B22: 0 | C22: 0 | D22: 0 | E22: 2 | F22: 0.5 | G22: 0 | H22: 0 | I22: 0 | J22: 707.0546966 | K22: 0.06005347825 | L22: 0
A23: Aspidosperma_spruceanum_Benth._ex_Müll._Arg. | B23: 1 | C23: 1 | D23: 0 | E23: 0 | F23: 0.5 | G23: 646.9246132 | H23: 314.1592654 | I23: 0 | J23: 0 | K23: 0.0816293705 | L23: 0
A24: Aspidosperma_williamsii_Duarte | B24: 0 | C24: 0 | D24: 3 | E24: 2 | F24: 1.25 | G24: 0 | H24: 0 | I24: 745.6334544 | J24: 387.5861397 | K24: 0.09624966579 | L24: 0
A25: Astronium_lecointei_Ducke | B25: 0 | C25: 2 | D25: 0 | E25: 0 | F25: 0.5 | G25: 0 | H25: 489.216662 | I25: 0 | J25: 0 | K25: 0.04155147022 | L25: 0
A26: Astronium_sp._2 | B26: 0 | C26: 0 | D26: 1 | E26: 0 | F26: 0.25 | G26: 0 | H26: 0 | I26: 132.7322896 | J26: 0 | K26: 0.01127357714 | L26: 0
A27: Balizia_elegans_(Ducke)_Barneby_&_J._W._Grimes | B27: 0 | C27: 0 | D27: 0 | E27: 1 | F27: 0.25 | G27: 0 | H27: 0 | I27: 0 | J27: 179.0786352 | K27: 0.01520999009 | L27: 0
A28: Batesia_floribunda_Benth. | B28: 0 | C28: 0 | D28: 1 | E28: 0 | F28: 0.25 | G28: 0 | H28: 0 | I28: 824.479576 | J28: 0 | K28: 0.0700269251 | L28: 0
A29: Bellucia_dichotoma_Cogn. | B29: 0 | C29: 1 | D29: 0 | E29: 0 | F29: 0.25 | G29: 0 | H29: 176.7145868 | I29: 0 | J29: 0 | K29: 0.01500920034 | L29: 0
A30: Blepharocalyx_eggersii_Landrum | B30: 0 | C30: 0 | D30: 1 | E30: 0 | F30: 0.25 | G30: 0 | H30: 0 | I30: 283.528737 | J30: 0 | K30: 0.0240814281 | L30: 0
A31: Brosimum_aff._utile_(H.B.K.)_Pittier | B31: 0 | C31: 0 | D31: 0 | E31: 1 | F31: 0.25 | G31: 0 | H31: 0 | I31: 0 | J31: 283.528737 | K31: 0.0240814281 | L31: 0
A32: Buchenavia_parvifolia_Ducke | B32: 2 | C32: 0 | D32: 0 | E32: 0 | F32: 0.5 | G32: 843.9338885 | H32: 0 | I32: 0 | J32: 0 | K32: 0.07167927129 | L32: 0
A33: Buchenavia_sericocarpa_Ducke | B33: 0 | C33: 0 | D33: 1 | E33: 0 | F33: 0.25 | G33: 0 | H33: 0 | I33: 229.658277 | J33: 0 | K33: 0.01950595676 | L33: 0
A34: Buchenavia_tomentosa_Eichler | B34: 0 | C34: 2 | D34: 1 | E34: 0 | F34: 0.75 | G34: 0 | H34: 536.1127863 | I34: 510.7051557 | J34: 0 | K34: 0.08891116743 | L34: 0
A35: Byrsonima_rodriguesii_W._R._Anderson | B35: 0 | C35: 0 | D35: 1 | E35: 0 | F35: 0.25 | G35: 0 | H35: 0 | I35: 254.4690049 | J35: 0 | K35: 0.02161324849 | L35: 0
A36: Byrsonima_sp._1 | B36: 0 | C36: 0 | D36: 1 | E36: 0 | F36: 0.25 | G36: 0 | H36: 0 | I36: 89.92023573 | J36: 0 | K36: 0.007637348208 | L36: 0
A37: Byrsonima_sp._3 | B37: 0 | C37: 1 | D37: 0 | E37: 0 | F37: 0.25 | G37: 0 | H37: 415.4756284 | I37: 0 | J37: 0 | K37: 0.03528829769 | L37: 0
A38: Byrsonima_stipulacea_Juss. | B38: 0 | C38: 0 | D38: 0 | E38: 1 | F38: 0.25 | G38: 0 | H38: 0 | I38: 0 | J38: 660.5198554 | K38: 0.05610105549 | L38: 0
A39: Calyptranthes_cuspidata_Mart._ex_DC. | B39: 0 | C39: 0 | D39: 2 | E39: 0 | F39: 0.5 | G39: 0 | H39: 0 | I39: 211.272106 | J39: 0 | K39: 0.01794433285 | L39: 0
A40: Calyptranthes_macrophylla_O._Berg | B40: 1 | C40: 1 | D40: 0 | E40: 0 | F40: 0.5 | G40: 113.0973355 | H40: 196.0667975 | I40: 0 | J40: 0 | K40: 0.02625876276 | L40: 0
A41: Calyptranthes_sp._1 | B41: 0 | C41: 2 | D41: 0 | E41: 0 | F41: 0.5 | G41: 0 | H41: 576.6707475 | I41: 0 | J41: 0 | K41: 0.0489793567 | L41: 0
A42: Caraipa_densifolia/heterocarpa | B42: 3 | C42: 0 | D42: 0 | E42: 0 | F42: 0.75 | G42: 574.0553716 | H42: 0 | I42: 0 | J42: 0 | K42: 0.04875722053 | L42: 0
A43: Caraipa_heterocarpa_Ducke,_vel_aff. | B43: 0 | C43: 0 | D43: 1 | E43: 1 | F43: 0.5 | G43: 0 | H43: 0 | I43: 124.6898124 | J43: 98.52034562 | K43: 0.01895828772 | L43: 0
A44: Cariniana_micrantha_Ducke | B44: 0 | C44: 1 | D44: 0 | E44: 0 | F44: 0.25 | G44: 0 | H44: 226.9800692 | I44: 0 | J44: 0 | K44: 0.01927848399 | L44: 0
A45: Casearia_arborea_(Rich.)_Urb. | B45: 0 | C45: 0 | D45: 1 | E45: 0 | F45: 0.25 | G45: 0 | H45: 0 | I45: 80.11846665 | J45: 0 | K45: 0.006804837896 | L45: 0
A46: Casearia_combaymensis_Tul. | B46: 0 | C46: 0 | D46: 1 | E46: 0 | F46: 0.25 | G46: 0 | H46: 0 | I46: 102.0703453 | J46: 0 | K46: 0.008669314116 | L46: 0
A47: Casearia_duckeana_Sleumer | B47: 0 | C47: 0 | D47: 1 | E47: 0 | F47: 0.25 | G47: 0 | H47: 0 | I47: 165.1299639 | J47: 0 | K47: 0.01402526387 | L47: 0
A48: Casearia_negrensis_Eichler | B48: 0 | C48: 0 | D48: 1 | E48: 0 | F48: 0.25 | G48: 0 | H48: 0 | I48: 81.71282492 | J48: 0 | K48: 0.006940254237 | L48: 0
A49: Casearia_pitumba_Sleumer | B49: 1 | C49: 0 | D49: 0 | E49: 1 | F49: 0.5 | G49: 95.03317777 | H49: 0 | I49: 0 | J49: 88.24733764 | K49: 0.01556687552 | L49: 0
A50: Casearia_sylvestris_Sw. | B50: 0 | C50: 1 | D50: 2 | E50: 0 | F50: 0.75 | G50: 0 | H50: 547.391104 | I50: 461.4449829 | J50: 0 | K50: 0.08568518997 | L50: 0
A51: Cassia_rubriflora_Ducke | B51: 0 | C51: 1 | D51: 0 | E51: 0 | F51: 0.25 | G51: 0 | H51: 122.718463 | I51: 0 | J51: 0 | K51: 0.01042305579 | L51: 0
A52: Cassipourea_peruviana_Alston | B52: 1 | C52: 0 | D52: 2 | E52: 0 | F52: 0.75 | G52: 201.0619298 | H52: 0 | I52: 710.6046963 | J52: 0 | K52: 0.07743213101 | L52: 0
A53: Catostemma_albuquerquei_Paula | B53: 0 | C53: 1 | D53: 1 | E53: 0 | F53: 0.5 | G53: 0 | H53: 89.92023573 | I53: 111.2202339 | J53: 0 | K53: 0.01708380536 | L53: 0
A54: Cecropia_purpurascens_C._C._Berg | B54: 0 | C54: 1 | D54: 0 | E54: 0 | F54: 0.25 | G54: 0 | H54: 295.5924528 | I54: 0 | J54: 0 | K54: 0.02510605618 | L54: 0
A55: Cecropia_sciadophylla_Mart. | B55: 0 | C55: 2 | D55: 0 | E55: 0 | F55: 0.5 | G55: 0 | H55: 1117.440945 | I55: 0 | J55: 0 | K55: 0.09490951097 | L55: 0
A56: Cecropia_ulei_Snethlage | B56: 0 | C56: 1 | D56: 0 | E56: 0 | F56: 0.25 | G56: 0 | H56: 113.0973355 | I56: 0 | J56: 0 | K56: 0.009605888217 | L56: 0
A57: Chimarrhis_sp._2 | B57: 0 | C57: 0 | D57: 1 | E57: 0 | F57: 0.25 | G57: 0 | H57: 0 | I57: 206.119894 | J57: 0 | K57: 0.01750673128 | L57: 0
A58: Chomelia_tenuiflora_Benth. | B58: 1 | C58: 0 | D58: 0 | E58: 0 | F58: 0.25 | G58: 96.76890771 | H58: 0 | I58: 0 | J58: 0 | K58: 0.008219038106 | L58: 0
A59: Chromolucuma_rubriflora_Ducke | B59: 0 | C59: 1 | D59: 0 | E59: 0 | F59: 0.25 | G59: 0 | H59: 196.0667975 | I59: 0 | J59: 0 | K59: 0.01665287455 | L59: 0
A60: Chrysophyllum_aff._prieurii_A._DC. | B60: 1 | C60: 0 | D60: 2 | E60: 0 | F60: 0.75 | G60: 498.7592497 | H60: 0 | I60: 356.3822706 | J60: 0 | K60: 0.07263118813 | L60: 0
A61: Chrysophyllum_cf._durifructum_(Rodrigues)_T._D._Penn. | B61: 0 | C61: 1 | D61: 0 | E61: 0 | F61: 0.25 | G61: 0 | H61: 235.0618163 | I61: 0 | J61: 0 | K61: 0.01996490475 | L61: 0
A62: Chrysophyllum_manaosense_(Aubrev.)_T._D._Penn. | B62: 1 | C62: 0 | D62: 0 | E62: 0 | F62: 0.25 | G62: 1633.125525 | H62: 0 | I62: 0 | J62: 0 | K62: 0.1387090259 | L62: 0
A63: Chrysophyllum_prieurii_A._DC. | B63: 1 | C63: 0 | D63: 0 | E63: 1 | F63: 0.5 | G63: 78.53981634 | H63: 0 | I63: 0 | J63: 102.0703453 | K63: 0.01534006982 | L63: 0
A64: Chrysophyllum_sanguinolentum_(Pierre)_Baehni | B64: 1 | C64: 0 | D64: 0 | E64: 0 | F64: 0.25 | G64: 1075.210086 | H64: 0 | I64: 0 | J64: 0 | K64: 0.09132264562 | L64: 0
A65: Connarus_erianthus_Benth. | B65: 0 | C65: 0 | D65: 1 | E65: 0 | F65: 0.25 | G65: 0 | H65: 0 | I65: 100.2874915 | J65: 0 | K65: 0.008517887962 | L65: 0
A66: Cordia_cf._ecalyculata_Vell. | B66: 0 | C66: 0 | D66: 0 | E66: 1 | F66: 0.25 | G66: 0 | H66: 0 | I66: 0 | J66: 216.4243179 | K66: 0.01838193442 | L66: 0
A67: Cordia_sagotii_I._M._Johnst. | B67: 1 | C67: 1 | D67: 1 | E67: 1 | F67: 1 | G67: 280.5520779 | H67: 84.94866535 | I67: 132.7322896 | J67: 186.2650284 | K67: 0.05813763721 | L67: 0
A68: Cordia_sellowiana_Cham._aff._Manaus | B68: 0 | C68: 1 | D68: 0 | E68: 0 | F68: 0.25 | G68: 0 | H68: 479.1635655 | I68: 0 | J68: 0 | K68: 0.04069761349 | L68: 0
A69: Cordia_sp._6 | B69: 0 | C69: 0 | D69: 1 | E69: 0 | F69: 0.25 | G69: 0 | H69: 0 | I69: 95.03317777 | J69: 0 | K69: 0.008071614405 | L69: 0
A70: Cordia_sp._9 | B70: 0 | C70: 0 | D70: 0 | E70: 1 | F70: 0.25 | G70: 0 | H70: 0 | I70: 0 | J70: 91.60884178 | K70: 0.007780769456 | L70: 0
A71: Couepia_canomensis_(Mart.)_Benth._ex_Hook._f. | B71: 1 | C71: 0 | D71: 0 | E71: 0 | F71: 0.25 | G71: 116.8986626 | H71: 0 | I71: 0 | J71: 0 | K71: 0.009928752794 | L71: 0
A72: Couepia_caryophylloides_Benoist | B72: 0 | C72: 2 | D72: 0 | E72: 2 | F72: 1 | G72: 0 | H72: 446.9386789 | I72: 0 | J72: 750.2515956 | K72: 0.1016829963 | L72: 0
A73: Couepia_guianensis_Aubl. | B73: 1 | C73: 0 | D73: 0 | E73: 0 | F73: 0.25 | G73: 136.847776 | H73: 0 | I73: 0 | J73: 0 | K73: 0.01162312474 | L73: 0
A74: Couepia_sp._2 | B74: 0 | C74: 0 | D74: 1 | E74: 0 | F74: 0.25 | G74: 0 | H74: 0 | I74: 1069.405993 | J74: 0 | K74: 0.09082967678 | L74: 0
A75: Couma_macrocarpa_Barb._Rodr. | B75: 0 | C75: 0 | D75: 0 | E75: 1 | F75: 0.25 | G75: 0 | H75: 0 | I75: 0 | J75: 1122.208312 | K75: 0.09531442584 | L75: 0
A76: Couratari_guianensis_Aubl. | B76: 2 | C76: 0 | D76: 0 | E76: 0 | F76: 0.5 | G76: 311.4103718 | H76: 0 | I76: 0 | J76: 0 | K76: 0.02644954638 | L76: 0
A77: Couratari_longipedicellata_W._A._Rodrigues | B77: 0 | C77: 1 | D77: 0 | E77: 0 | F77: 0.25 | G77: 0 | H77: 506.7074791 | I77: 0 | J77: 0 | K77: 0.04303704752 | L77: 0
A78: Couratari_multiflora_(Sm.)_Eyma | B78: 0 | C78: 0 | D78: 2 | E78: 0 | F78: 0.5 | G78: 0 | H78: 0 | I78: 713.4242757 | J78: 0 | K78: 0.06059447654 | L78: 0
A79: Coussarea_racemosa_A._Rich. | B79: 3 | C79: 3 | D79: 0 | E79: 0 | F79: 1.5 | G79: 356.7749697 | H79: 605.518422 | I79: 0 | J79: 0 | K79: 0.08173210014 | L79: 0
A80: Coussarea_sp._3 | B80: 0 | C80: 0 | D80: 1 | E80: 2 | F80: 0.75 | G80: 0 | H80: 0 | I80: 240.5281875 | J80: 294.3672316 | K80: 0.04543118174 | L80: 0
A81: Coussarea_sp._4 | B81: 0 | C81: 0 | D81: 0 | E81: 1 | F81: 0.25 | G81: 0 | H81: 0 | I81: 0 | J81: 103.8689071 | K81: 0.008822074422 | L81: 0
A82: Dacryodes_cf._hopkinsii_Daly | B82: 0 | C82: 1 | D82: 0 | E82: 0 | F82: 0.25 | G82: 0 | H82: 254.4690049 | I82: 0 | J82: 0 | K82: 0.02161324849 | L82: 0
A83: Dimorphandra_multiflora_Ducke | B83: 0 | C83: 0 | D83: 0 | E83: 1 | F83: 0.25 | G83: 0 | H83: 0 | I83: 0 | J83: 124.6898124 | K83: 0.01059049176 | L83: 0
A84: Dimorphandra_parviflora_Benth. | B84: 1 | C84: 0 | D84: 0 | E84: 0 | F84: 0.25 | G84: 855.2985999 | H84: 0 | I84: 0 | J84: 0 | K84: 0.07264452964 | L84: 0
A85: Diospyros_duckei_Sandw. | B85: 1 | C85: 0 | D85: 0 | E85: 1 | F85: 0.5 | G85: 271.7163486 | H85: 0 | I85: 0 | J85: 153.93804 | K85: 0.03615282763 | L85: 0
A86: Diospyros_melinonii_(Hiern)_A._C._Smith | B86: 1 | C86: 0 | D86: 0 | E86: 0 | F86: 0.25 | G86: 426.3848089 | H86: 0 | I86: 0 | J86: 0 | K86: 0.03621486566 | L86: 0
A87: Diospyros_pseudoxylopia_Mildbr. | B87: 1 | C87: 0 | D87: 0 | E87: 0 | F87: 0.25 | G87: 122.718463 | H87: 0 | I87: 0 | J87: 0 | K87: 0.01042305579 | L87: 0
A88: Diospyros_sp._2 | B88: 0 | C88: 0 | D88: 1 | E88: 0 | F88: 0.25 | G88: 0 | H88: 0 | I88: 103.8689071 | J88: 0 | K88: 0.008822074422 | L88: 0
A89: Diploon_cuspidatum_(Hoehne)_Cronquist | B89: 0 | C89: 0 | D89: 0 | E89: 2 | F89: 0.5 | G89: 0 | H89: 0 | I89: 0 | J89: 1083.574576 | K89: 0.0920330811 | L89: 0
A90: Diplotropis_triloba_Gleason | B90: 1 | C90: 0 | D90: 0 | E90: 0 | F90: 0.25 | G90: 188.6919088 | H90: 0 | I90: 0 | J90: 0 | K90: 0.01602649058 | L90: 0
A91: Dipteryx_punctata_(Blake)_Amsh. | B91: 1 | C91: 1 | D91: 0 | E91: 1 | F91: 0.75 | G91: 779.3113276 | H91: 459.9605804 | I91: 0 | J91: 107.5131546 | K91: 0.1143887847 | L91: 0
A92: Duckesia_verrucosa_(Ducke)_Cuatrec | B92: 0 | C92: 0 | D92: 1 | E92: 0 | F92: 0.25 | G92: 0 | H92: 0 | I92: 1262.928101 | J92: 0 | K92: 0.1072664188 | L92: 0
A93: Duguetia_chrysea_Maas | B93: 0 | C93: 2 | D93: 1 | E93: 0 | F93: 0.75 | G93: 0 | H93: 604.8979575 | I93: 467.5946506 | J93: 0 | K93: 0.09109183747 | L93: 0
A94: Duguetia_flagellaris_Huber | B94: 0 | C94: 0 | D94: 1 | E94: 0 | F94: 0.25 | G94: 0 | H94: 0 | I94: 102.0703453 | J94: 0 | K94: 0.008669314116 | L94: 0
A95: Duguetia_sp._nov._1 | B95: 0 | C95: 0 | D95: 1 | E95: 1 | F95: 0.5 | G95: 0 | H95: 0 | I95: 95.03317777 | J95: 143.1388153 | K95: 0.02022906668 | L95: 0
A96: Duguetia_stelechantha_(Diels)_R._E._Fries | B96: 1 | C96: 1 | D96: 0 | E96: 0 | F96: 0.5 | G96: 130.6981084 | H96: 88.24733764 | I96: 0 | J96: 0 | K96: 0.01859606568 | L96: 0
A97: Duguetia_surinamensis_R._E._Fries | B97: 0 | C97: 0 | D97: 1 | E97: 1 | F97: 0.5 | G97: 0 | H97: 0 | I97: 295.5924528 | J97: 78.53981634 | K97: 0.03177681188 | L97: 0
A98: Duroia_duckei_Huber | B98: 1 | C98: 0 | D98: 0 | E98: 1 | F98: 0.5 | G98: 86.59014751 | H98: 0 | I98: 0 | J98: 387.0756308 | K98: 0.04023066059 | L98: 0
A99: Duroia_macrophylla_Huber | B99: 0 | C99: 0 | D99: 1 | E99: 0 | F99: 0.25 | G99: 0 | H99: 0 | I99: 174.3662463 | J99: 0 | K99: 0.01480974474 | L99: 0
A100: Duroia_saccifera_(Mart._ex_Roem._&_Schult.)_Hook._f._ex_Schumann | B100: 1 | C100: 0 | D100: 0 | E100: 3 | F100: 1 | G100: 122.718463 | H100: 0 | I100: 0 | J100: 433.4848083 | K100: 0.04724095776 | L100: 0
A101: Ecclinusa_lanceolata_(Mart._&_Eichler)_Pierre | B101: 1 | C101: 0 | D101: 1 | E101: 0 | F101: 0.5 | G101: 459.9605804 | H101: 0 | I101: 83.32289115 | J101: 0 | K101: 0.04614361845 | L101: 0
A102: Elvasia_sp._1 | B102: 0 | C102: 0 | D102: 1 | E102: 0 | F102: 0.25 | G102: 0 | H102: 0 | I102: 292.5529619 | J102: 0 | K102: 0.02484789793 | L102: 0
A103: Elvasia_sp._2 | B103: 0 | C103: 0 | D103: 2 | E103: 0 | F103: 0.5 | G103: 0 | H103: 0 | I103: 1046.378119 | J103: 0 | K103: 0.0888738112 | L103: 0
A104: Ephedranthus_amazonicus_R._E._Fries | B104: 1 | C104: 0 | D104: 1 | E104: 4 | F104: 1.5 | G104: 132.7322896 | H104: 0 | I104: 84.94866535 | J104: 449.6011786 | K104: 0.05667540756 | L104: 0
A105: Eschweilera | B105: 0 | C105: 1 | D105: 1 | E105: 2 | F105: 1 | G105: 0 | H105: 149.5712262 | I105: 1618.831278 | J105: 1867.676833 | K105: 0.3088293062 | L105: 0
A106: Eschweilera_aff._rankiniae_Mori | B106: 0 | C106: 0 | D106: 2 | E106: 0 | F106: 0.5 | G106: 0 | H106: 0 | I106: 933.4378632 | J106: 0 | K106: 0.0792812645 | L106: 0
A107: Eschweilera_pedicellata_(Rich.)_Mori | B107: 0 | C107: 3 | D107: 0 | E107: 6 | F107: 2.25 | G107: 0 | H107: 307.0985359 | I107: 0 | J107: 1394.262382 | K107: 0.1445045784 | L107: 0
A108: Eschweilera_tessmannii_R._Knuth | B108: 0 | C108: 1 | D108: 0 | E108: 0 | F108: 0.25 | G108: 0 | H108: 366.4353671 | I108: 0 | J108: 0 | K108: 0.03112307782 | L108: 0
A109: Eugenia_aff._citrifolia_Poir. | B109: 0 | C109: 0 | D109: 1 | E109: 0 | F109: 0.25 | G109: 0 | H109: 0 | I109: 84.94866535 | J109: 0 | K109: 0.007215089372 | L109: 0
A110: Eugenia_cf._chartacea_Mc_Vaugh | B110: 0 | C110: 0 | D110: 1 | E110: 0 | F110: 0.25 | G110: 0 | H110: 0 | I110: 183.8538561 | J110: 0 | K110: 0.01561557203 | L110: 0
A111: Eugenia_citrifolia_Poir. | B111: 0 | C111: 0 | D111: 0 | E111: 2 | F111: 0.5 | G111: 0 | H111: 0 | I111: 0 | J111: 321.3535125 | K111: 0.02729406405 | L111: 0
A112: Eugenia_cuspidifolia_DC. | B112: 0 | C112: 1 | D112: 1 | E112: 1 | F112: 0.75 | G112: 0 | H112: 91.60884178 | I112: 203.5830579 | J112: 637.9396582 | K112: 0.07925524855 | L112: 0
A113: Eugenia_patrisii_Vahl | B113: 1 | C113: 0 | D113: 1 | E113: 0 | F113: 0.5 | G113: 510.7051557 | H113: 0 | I113: 352.9893506 | J113: 0 | K113: 0.07335763343 | L113: 0
A114: Eugenia_pseudopsidium_Jacq. | B114: 2 | C114: 0 | D114: 0 | E114: 0 | F114: 0.5 | G114: 196.1688993 | H114: 0 | I114: 0 | J114: 0 | K114: 0.01666154653 | L114: 0
A115: Eugenia_sp._1_(Guia_Ducke) | B115: 1 | C115: 0 | D115: 0 | E115: 0 | F115: 0.25 | G115: 98.52034562 | H115: 0 | I115: 0 | J115: 0 | K115: 0.008367795958 | L115: 0
A116: Eugenia_sp._10 | B116: 0 | C116: 0 | D116: 1 | E116: 0 | F116: 0.25 | G116: 0 | H116: 0 | I116: 107.5131546 | J116: 0 | K116: 0.009131597487 | L116: 0
A117: Eugenia_sp._13 | B117: 0 | C117: 2 | D117: 0 | E117: 0 | F117: 0.5 | G117: 0 | H117: 392.133595 | I117: 0 | J117: 0 | K117: 0.03330574909 | L117: 0
A118: Eugenia_sp._9_(sp._1_Guia_Ducke) | B118: 0 | C118: 1 | D118: 1 | E118: 0 | F118: 0.5 | G118: 0 | H118: 165.1299639 | I118: 141.0260942 | J118: 0 | K118: 0.02600327282 | L118: 0
A119: Euterpe_precatoria_Mart. | B119: 1 | C119: 3 | D119: 1 | E119: 2 | F119: 1.75 | G119: 132.7322896 | H119: 315.5651281 | I119: 100.2874915 | J119: 198.0460009 | K119: 0.06341487205 | L119: 0
A120: Ferdinandusa_sp._2 | B120: 0 | C120: 0 | D120: 1 | E120: 0 | F120: 0.25 | G120: 0 | H120: 0 | I120: 456.1671073 | J120: 0 | K120: 0.03874441622 | L120: 0
A121: Ferdinandusa_uaupensis_Spruce_ex_K._Schum. | B121: 1 | C121: 0 | D121: 0 | E121: 0 | F121: 0.25 | G121: 349.6671163 | H121: 0 | I121: 0 | J121: 0 | K121: 0.02969887148 | L121: 0
A122: Geissospermum_urceolatum_Gentry | B122: 1 | C122: 1 | D122: 0 | E122: 0 | F122: 0.5 | G122: 243.2849351 | H122: 254.4690049 | I122: 0 | J122: 0 | K122: 0.04227658137 | L122: 0
A123: Guarea_carinata_Ducke | B123: 0 | C123: 0 | D123: 1 | E123: 2 | F123: 0.75 | G123: 0 | H123: 0 | I123: 490.8738521 | J123: 499.7409974 | K123: 0.08413757465 | L123: 0
A124: Guarea_humaitensis_Penn. | B124: 0 | C124: 0 | D124: 2 | E124: 2 | F124: 1 | G124: 0 | H124: 0 | I124: 400.3095899 | J124: 310.9626948 | K124: 0.06041169783 | L124: 0
A125: Guarea_kunthiana_A._Juss. | B125: 0 | C125: 1 | D125: 0 | E125: 0 | F125: 0.25 | G125: 0 | H125: 91.60884178 | I125: 0 | J125: 0 | K125: 0.007780769456 | L125: 0
A126: Guarea_pubescens_(Rich.)_A._Juss. | B126: 1 | C126: 0 | D126: 0 | E126: 0 | F126: 0.25 | G126: 268.8025214 | H126: 0 | I126: 0 | J126: 0 | K126: 0.02283066141 | L126: 0
A127: Guarea_trunciflora_C._DC. | B127: 2 | C127: 1 | D127: 0 | E127: 2 | F127: 1.25 | G127: 327.6445518 | H127: 369.8361412 | I127: 0 | J127: 337.1321616 | K127: 0.087874532 | L127: 0
A128: Guatteria_cf._poeppigiana_Mart. | B128: 1 | C128: 0 | D128: 0 | E128: 0 | F128: 0.25 | G128: 203.5830579 | H128: 0 | I128: 0 | J128: 0 | K128: 0.01729126587 | L128: 0
A129: Guatteria_cf._procera_R._E._Fries | B129: 0 | C129: 1 | D129: 0 | E129: 0 | F129: 0.25 | G129: 0 | H129: 193.5927933 | I129: 0 | J129: 0 | K129: 0.01644274574 | L129: 0
A130: Guatteria_citriodora_Ducke | B130: 0 | C130: 0 | D130: 0 | E130: 1 | F130: 0.25 | G130: 0 | H130: 0 | I130: 0 | J130: 1534.385268 | K130: 0.1303225518 | L130: 0
A131: Guatteria_discolor_R._E._Fries | B131: 0 | C131: 0 | D131: 0 | E131: 1 | F131: 0.25 | G131: 0 | H131: 0 | I131: 0 | J131: 132.7322896 | K131: 0.01127357714 | L131: 0
A132: Guatteria_olivacea_R._E._Fries | B132: 0 | C132: 2 | D132: 0 | E132: 0 | F132: 0.5 | G132: 0 | H132: 524.28469 | I132: 0 | J132: 0 | K132: 0.04452996264 | L132: 0
A133: Gustavia_elliptica_S._A._Mori | B133: 0 | C133: 1 | D133: 0 | E133: 0 | F133: 0.25 | G133: 0 | H133: 336.535259 | I133: 0 | J133: 0 | K133: 0.02858352113 | L133: 0
A134: Helianthostylis_sprucei_Baill. | B134: 2 | C134: 2 | D134: 1 | E134: 2 | F134: 1.75 | G134: 171.7273084 | H134: 450.9442095 | I134: 136.847776 | J134: 324.7464326 | K134: 0.09209178375 | L134: 0
A135: Himatanthus_sp._1 | B135: 0 | C135: 0 | D135: 0 | E135: 1 | F135: 0.25 | G135: 0 | H135: 0 | I135: 0 | J135: 78.53981634 | K135: 0.006670755706 | L135: 0
A136: Hirtella_bicornis_Mart._&_Zucc. | B136: 1 | C136: 1 | D136: 1 | E136: 0 | F136: 0.75 | G136: 320.4738666 | H136: 153.93804 | I136: 706.8583471 | J136: 0 | K136: 0.1003308341 | L136: 0
A137: Hirtella_fasciculata_Prance | B137: 0 | C137: 0 | D137: 0 | E137: 1 | F137: 0.25 | G137: 0 | H137: 0 | I137: 0 | J137: 98.52034562 | K137: 0.008367795958 | L137: 0
A138: Hirtella_obidensis_Ducke | B138: 0 | C138: 0 | D138: 0 | E138: 1 | F138: 0.25 | G138: 0 | H138: 0 | I138: 0 | J138: 518.7476329 | K138: 0.04405967437 | L138: 0
A139: Hirtella_rodriguesii_Prance | B139: 1 | C139: 4 | D139: 0 | E139: 1 | F139: 1.5 | G139: 339.7946614 | H139: 480.7265079 | I139: 0 | J139: 100.2874915 | K139: 0.07820860698 | L139: 0
A140: Hirtella_sp._2 | B140: 0 | C140: 1 | D140: 0 | E140: 0 | F140: 0.25 | G140: 0 | H140: 89.92023573 | I140: 0 | J140: 0 | K140: 0.007637348208 | L140: 0
A141: Hymenaea_intermedia_Ducke | B141: 0 | C141: 1 | D141: 0 | E141: 0 | F141: 0.25 | G141: 0 | H141: 1320.254313 | I141: 0 | J141: 0 | K141: 0.1121354034 | L141: 0
A142: Hymenaea_parvifolia_Huber | B142: 1 | C142: 0 | D142: 0 | E142: 0 | F142: 0.25 | G142: 243.2849351 | H142: 0 | I142: 0 | J142: 0 | K142: 0.02066333288 | L142: 0
A143: Hymenolobium_sp._1 | B143: 1 | C143: 0 | D143: 0 | E143: 0 | F143: 0.25 | G143: 162.8601632 | H143: 0 | I143: 0 | J143: 0 | K143: 0.01383247903 | L143: 0
A144: Ilex_sp._2 | B144: 0 | C144: 0 | D144: 1 | E144: 0 | F144: 0.25 | G144: 0 | H144: 0 | I144: 615.7521601 | J144: 0 | K144: 0.05229872474 | L144: 0
A145: Inga_aff._sp._11 | B145: 2 | C145: 0 | D145: 0 | E145: 0 | F145: 0.5 | G145: 237.6614842 | H145: 0 | I145: 0 | J145: 0 | K145: 0.02018570677 | L145: 0
A146: Inga_gracilifolia_Ducke | B146: 1 | C146: 1 | D146: 0 | E146: 0 | F146: 0.5 | G146: 176.7145868 | H146: 366.4353671 | I146: 0 | J146: 0 | K146: 0.04613227816 | L146: 0
A147: Inga_obidensis_Ducke | B147: 0 | C147: 1 | D147: 0 | E147: 0 | F147: 0.25 | G147: 0 | H147: 559.9024967 | I147: 0 | J147: 0 | K147: 0.04755515036 | L147: 0
A148: Inga_sp._10 | B148: 0 | C148: 1 | D148: 3 | E148: 0 | F148: 1 | G148: 0 | H148: 394.0813825 | I148: 377.8864723 | J148: 0 | K148: 0.06556685784 | L148: 0
A149: Inga_sp._11 | B149: 1 | C149: 1 | D149: 0 | E149: 0 | F149: 0.5 | G149: 151.7467792 | H149: 136.847776 | I149: 0 | J149: 0 | K149: 0.02451169184 | L149: 0
A150: Inga_sp._15 | B150: 1 | C150: 0 | D150: 0 | E150: 1 | F150: 0.5 | G150: 254.4690049 | H150: 0 | I150: 0 | J150: 855.2985999 | K150: 0.09425777813 | L150: 0
A151: Inga_sp._25 | B151: 0 | C151: 0 | D151: 1 | E151: 0 | F151: 0.25 | G151: 0 | H151: 0 | I151: 118.8228881 | J151: 0 | K151: 0.01009218631 | L151: 0
A152: Inga_sp._3 | B152: 1 | C152: 0 | D152: 0 | E152: 0 | F152: 0.25 | G152: 86.59014751 | H152: 0 | I152: 0 | J152: 0 | K152: 0.007354508166 | L152: 0
A153: Inga_sp._31 | B153: 1 | C153: 0 | D153: 0 | E153: 0 | F153: 0.25 | G153: 510.7051557 | H153: 0 | I153: 0 | J153: 0 | K153: 0.04337658898 | L153: 0
A154: Inga_sp._8 | B154: 0 | C154: 1 | D154: 1 | E154: 0 | F154: 0.5 | G154: 0 | H154: 122.718463 | I154: 352.9893506 | J154: 0 | K154: 0.04040410024 | L154: 0
A155: Inga_splendens_Willd. | B155: 0 | C155: 1 | D155: 0 | E155: 0 | F155: 0.25 | G155: 0 | H155: 289.529179 | I155: 0 | J155: 0 | K155: 0.02459107384 | L155: 0
A156: Inga_umbellifera_(Vahl.)_Steud. | B156: 0 | C156: 0 | D156: 1 | E156: 0 | F156: 0.25 | G156: 0 | H156: 0 | I156: 153.93804 | J156: 0 | K156: 0.01307468118 | L156: 0
A157: Inga_umbratica_Poepp._&_Endl. | B157: 3 | C157: 0 | D157: 1 | E157: 3 | F157: 1.75 | G157: 493.8426572 | H157: 0 | I157: 198.5565097 | J157: 509.2286072 | K157: 0.102059894 | L157: 0
A158: Iryanthera_coriacea_Ducke | B158: 0 | C158: 0 | D158: 1 | E158: 0 | F158: 0.25 | G158: 0 | H158: 0 | I158: 581.0689772 | J158: 0 | K158: 0.04935291902 | L158: 0
A159: Iryanthera_dialyandra_Warb. | B159: 0 | C159: 1 | D159: 1 | E159: 1 | F159: 0.75 | G159: 0 | H159: 95.03317777 | I159: 93.31315579 | J159: 191.134497 | K159: 0.03223109035 | L159: 0
A160: Iryanthera_elliptica_Ducke | B160: 0 | C160: 0 | D160: 0 | E160: 1 | F160: 0.25 | G160: 0 | H160: 0 | I160: 0 | J160: 530.9291585 | K160: 0.04509430858 | L160: 0
A161: Iryanthera_juruensis_Warb. | B161: 0 | C161: 0 | D161: 1 | E161: 0 | F161: 0.25 | G161: 0 | H161: 0 | I161: 339.7946614 | J161: 0 | K161: 0.02886035749 | L161: 0
A162: Iryanthera_laevis_Markgraf | B162: 0 | C162: 0 | D162: 0 | E162: 1 | F162: 0.25 | G162: 0 | H162: 0 | I162: 0 | J162: 221.6707776 | K162: 0.01882754091 | L162: 0
A163: Iryanthera_ulei_Warb. | B163: 0 | C163: 0 | D163: 0 | E163: 1 | F163: 0.25 | G163: 0 | H163: 0 | I163: 0 | J163: 107.5131546 | K163: 0.009131597487 | L163: 0
A164: Jacaranda_aff._copaia_(Aubl.)_D._Don | B164: 2 | C164: 0 | D164: 0 | E164: 1 | F164: 0.75 | G164: 812.949931 | H164: 0 | I164: 0 | J164: 551.5458602 | K164: 0.1158930401 | L164: 0
A165: Jacaranda_copaia_(Aubl.)_D._Don | B165: 3 | C165: 0 | D165: 0 | E165: 0 | F165: 0.75 | G165: 845.6303485 | H165: 0 | I165: 0 | J165: 0 | K165: 0.07182335962 | L165: 0
A166: Lacistema_aggregatum_(P._J._Bergius)_Rusby | B166: 1 | C166: 1 | D166: 0 | E166: 0 | F166: 0.5 | G166: 201.0619298 | H166: 211.24069 | I166: 0 | J166: 0 | K166: 0.03501879916 | L166: 0
A167: Lacistema_grandifolium_W._Schniz. | B167: 2 | C167: 0 | D167: 0 | E167: 0 | F167: 0.5 | G167: 252.0264167 | H167: 0 | I167: 0 | J167: 0 | K167: 0.02140578799 | L167: 0
A168: Lacunaria_crenata_(Tul.)_A._C._Smith | B168: 0 | C168: 0 | D168: 1 | E168: 0 | F168: 0.25 | G168: 0 | H168: 0 | I168: 174.3662463 | J168: 0 | K168: 0.01480974474 | L168: 0
A169: Lacunaria_jenmanii_(Oliv.)_Ducke | B169: 1 | C169: 0 | D169: 0 | E169: 0 | F169: 0.25 | G169: 257.3042923 | H169: 0 | I169: 0 | J169: 0 | K169: 0.02185406277 | L169: 0
A170: Lacunaria_macrostachya_(Tul.)_A._C._Smith | B170: 0 | C170: 0 | D170: 0 | E170: 1 | F170: 0.25 | G170: 0 | H170: 0 | I170: 0 | J170: 471.4352476 | K170: 0.04004121113 | L170: 0
A171: Ladenbergia_sp._1 | B171: 0 | C171: 1 | D171: 0 | E171: 0 | F171: 0.25 | G171: 0 | H171: 86.59014751 | I171: 0 | J171: 0 | K171: 0.007354508166 | L171: 0
A172: Laetia_procera_(Poepp.)_Eichler | B172: 1 | C172: 0 | D172: 0 | E172: 0 | F172: 0.25 | G172: 1164.156428 | H172: 0 | I172: 0 | J172: 0 | K172: 0.09887727646 | L172: 0
A173: Lecythis_barnebyi_S._A._Mori | B173: 0 | C173: 0 | D173: 0 | E173: 1 | F173: 0.25 | G173: 0 | H173: 0 | I173: 0 | J173: 539.1287153 | K173: 0.04579073547 | L173: 0
A174: Lecythis_poiteaui_O._Berg | B174: 0 | C174: 2 | D174: 1 | E174: 1 | F174: 1 | G174: 0 | H174: 457.8635673 | I174: 219.0396938 | J174: 283.528737 | K174: 0.08157400323 | L174: 0
A175: Lecythis_sp._4 | B175: 0 | C175: 1 | D175: 0 | E175: 0 | F175: 0.25 | G175: 0 | H175: 188.6919088 | I175: 0 | J175: 0 | K175: 0.01602649058 | L175: 0
A176: Lecythis_zabucajo_Aubl. | B176: 0 | C176: 0 | D176: 1 | E176: 0 | F176: 0.25 | G176: 0 | H176: 0 | I176: 113.0973355 | J176: 0 | K176: 0.009605888217 | L176: 0
A177: Leonia_cymosa_Mart. | B177: 0 | C177: 0 | D177: 0 | E177: 1 | F177: 0.25 | G177: 0 | H177: 0 | I177: 0 | J177: 98.52034562 | K177: 0.008367795958 | L177: 0
A178: Leonia_glycycarpa_Ruiz_&_Pav. | B178: 0 | C178: 0 | D178: 2 | E178: 1 | F178: 0.75 | G178: 0 | H178: 0 | I178: 788.7439596 | J178: 235.0618163 | K178: 0.08695663601 | L178: 0
A179: Licania_apetala_(E._Mey.)_Fritsch | B179: 0 | C179: 0 | D179: 0 | E179: 1 | F179: 0.25 | G179: 0 | H179: 0 | I179: 0 | J179: 459.9605804 | K179: 0.03906661372 | L179: 0
A180: Licania_bracteata_Prance | B180: 1 | C180: 2 | D180: 0 | E180: 0 | F180: 0.75 | G180: 96.76890771 | H180: 1196.082863 | I180: 0 | J180: 0 | K180: 0.1098079768 | L180: 0
A181: Licania_canescens_Benoist | B181: 0 | C181: 0 | D181: 1 | E181: 0 | F181: 0.25 | G181: 0 | H181: 0 | I181: 169.7166891 | J181: 0 | K181: 0.01441483601 | L181: 0
A182: Licania_fanshawei_Prance | B182: 2 | C182: 0 | D182: 0 | E182: 0 | F182: 0.5 | G182: 1020.672037 | H182: 0 | I182: 0 | J182: 0 | K182: 0.08669047286 | L182: 0
A183: Licania_hirsuta_Prance | B183: 0 | C183: 1 | D183: 0 | E183: 0 | F183: 0.25 | G183: 0 | H183: 201.0619298 | I183: 0 | J183: 0 | K183: 0.01707713461 | L183: 0
A184: Licania_hypoleuca_Benth. | B184: 0 | C184: 1 | D184: 0 | E184: 0 | F184: 0.25 | G184: 0 | H184: 498.7592497 | I184: 0 | J184: 0 | K184: 0.04236196704 | L184: 0
A185: Licania_laxiflora_Fritsch | B185: 0 | C185: 2 | D185: 0 | E185: 0 | F185: 0.5 | G185: 0 | H185: 767.3340056 | I185: 0 | J185: 0 | K185: 0.06517328325 | L185: 0
A186: Licania_longistyla_(Hook.f.)_Fritsch | B186: 0 | C186: 1 | D186: 0 | E186: 0 | F186: 0.25 | G186: 0 | H186: 128.6796351 | I186: 0 | J186: 0 | K186: 0.01092936615 | L186: 0
A187: Licania_membranacea_Sagot_ex_Laness. | B187: 0 | C187: 0 | D187: 1 | E187: 0 | F187: 0.25 | G187: 0 | H187: 0 | I187: 186.2650284 | J187: 0 | K187: 0.01582036423 | L187: 0
A188: Licania_minutiflora_(Sagot)_Fritsch | B188: 0 | C188: 0 | D188: 0 | E188: 2 | F188: 0.5 | G188: 0 | H188: 0 | I188: 0 | J188: 1059.926237 | K188: 0.09002451656 | L188: 0
A189: Licania_oblongifolia_Standl. | B189: 0 | C189: 0 | D189: 0 | E189: 1 | F189: 0.25 | G189: 0 | H189: 0 | I189: 0 | J189: 240.5281875 | K189: 0.02042918935 | L189: 0
A190: Licania_occultans_Prance | B190: 1 | C190: 0 | D190: 0 | E190: 0 | F190: 0.25 | G190: 251.6494255 | H190: 0 | I190: 0 | J190: 0 | K190: 0.02137376836 | L190: 0
A191: Licania_pallida_Spruce_ex_Sagot | B191: 0 | C191: 2 | D191: 0 | E191: 0 | F191: 0.5 | G191: 0 | H191: 1679.526849 | I191: 0 | J191: 0 | K191: 0.1426501083 | L191: 0
A192: Licania_rufescens_Klotzsch_ex_Fritsch | B192: 1 | C192: 1 | D192: 0 | E192: 0 | F192: 0.5 | G192: 1146.084416 | H192: 366.4353671 | I192: 0 | J192: 0 | K192: 0.1284654134 | L192: 0
A193: Licania_sandwithii_Prance | B193: 1 | C193: 0 | D193: 2 | E193: 0 | F193: 0.75 | G193: 132.7322896 | H193: 0 | I193: 397.4821565 | J193: 0 | K193: 0.0450336047 | L193: 0
A194: Licania_sprucei_(Hook._f.)_Fritsch | B194: 0 | C194: 1 | D194: 0 | E194: 0 | F194: 0.25 | G194: 0 | H194: 86.59014751 | I194: 0 | J194: 0 | K194: 0.007354508166 | L194: 0
A195: Licaria_aureosericea_van_der_Werff | B195: 0 | C195: 0 | D195: 1 | E195: 0 | F195: 0.25 | G195: 0 | H195: 0 | I195: 86.59014751 | J195: 0 | K195: 0.007354508166 | L195: 0
A196: Licaria_guianensis_Aubl. | B196: 0 | C196: 1 | D196: 1 | E196: 1 | F196: 0.75 | G196: 0 | H196: 380.1327111 | I196: 437.4353611 | J196: 292.5529619 | K196: 0.09428779653 | L196: 0
A197: Licaria_martiniana_(Mez)_Kosterm. | B197: 0 | C197: 1 | D197: 0 | E197: 0 | F197: 0.25 | G197: 0 | H197: 107.5131546 | I197: 0 | J197: 0 | K197: 0.009131597487 | L197: 0
A198: Mabea_speciosa_Müll._Arg. | B198: 3 | C198: 0 | D198: 0 | E198: 1 | F198: 1 | G198: 532.4685389 | H198: 0 | I198: 0 | J198: 295.5924528 | K198: 0.07033111156 | L198: 0
A199: Maquira_calophylla_(Poepp._&_Endl.)_C._C._Berg | B199: 0 | C199: 1 | D199: 0 | E199: 2 | F199: 0.75 | G199: 0 | H199: 165.1299639 | I199: 0 | J199: 320.7566099 | K199: 0.04126863018 | L199: 0
A200: Maquira_guianensis_Aubl. | B200: 1 | C200: 1 | D200: 0 | E200: 0 | F200: 0.5 | G200: 551.5458602 | H200: 134.7821788 | I200: 0 | J200: 0 | K200: 0.05829306582 | L200: 0
... 187 more rows

Sheet Codes
A1: Family | B1: Code | D1: Genus | E1: Code | F1: Code2
A2: Anisophylleaceae | B2: ANIS | D2: Abarema | E2: ABA | F2: Ani
A3: Annonaceae | B3: ANNO | D3: Aniba | E3: ANI | F3: Ans
A4: Apocynaceae | B4: APOC | D4: Anisophyllea | E4: ANS | F4: Asp
A5: Arecaceae | B5: AREC | D5: Aspidosperma | E5: ASP | F5: Boc
A6: Burseraceae | B6: BURS | D6: Bocageopsis | E6: BOC | F6: Bco
A7: Caryocaraceae | B7: CARY | D7: Bocoa | E7: BOO | F7: Bro
A8: Chrysobalanaceae | B8: CHRY | D8: Brosimum | E8: BRO | F8: Buc
A9: Clusiaceae | B9: CLUS | D9: Buchenavia | E9: BUC | F9: Car
A10: Combretaceae | B10: COMB | D10: Cariniana | E10: CAN | F10: Cry
A11: Elaeocarpaceae | B11: ELAE | D11: Caryocar | E11: CAR | F11: Cas
A12: Euphorbiaceae | B12: EUPH | D12: Casearia | E12: CAS | F12: Cha
A13: Fabaceae | B13: FABA | D13: Chaunochiton | E13: CHA | F13: Chr
A14: Goupiaceae | B14: GOUP | D14: Chrysophyllum | E14: CHR | F14: Cla
A15: Humiriaceae | B15: HUMI | D15: Clarisia | E15: CLA | F15: Con
A16: Lauraceae | B16: LAUR | D16: Conceveiba | E16: CON | F16: Cor
A17: Lecythidaceae | B17: LECY | D17: Corythophora | E17: COR | F17: Cou
A18: Malvaceae | B18: MALV | D18: Couepia | E18: COU | F18: Cur
A19: Melastomataceae | B19: MELA | D19: Couratari | E19: CRT | F19: Cyn
A20: Meliaceae | B20: MELI | D20: Cynometra | E20: CYN | F20: Dic
A21: Moraceae | B21: MORA | D21: Dicorynia | E21: DIC | F21: Din
A22: Myristicaceae | B22: MYRI | D22: Dinizia | E22: DIN | F22: Dip
A23: Myrtaceae | B23: MYRT | D23: Dipteryx | E23: DIP | F23: Dry
A24: Nyctaginaceae | B24: NYCT | D24: Drypetes | E24: DRY | F24: Duc
A25: Olacaceae | B25: OLAC | D25: Duckeodendron | E25: DUC | F25: Dug
A26: Putranjivaceae | B26: PUTR | D26: Duguetia | E26: DUG | F26: Dus
A27: Salicaceae | B27: SALI | D27: Dussia | E27: DUS | F27: Ecc
A28: Sapotaceae | B28: SAPO | D28: Ecclinusa | E28: ECC | F28: Ela
A29: Solanaceae | B29: SOLA | D29: Elaeoluma | E29: ELA | F29: End
A30: Violaceae | B30: VIOL | D30: Endopleura | E30: END | F30: Epe
A31: Vochysiaceae | B31: VOCH | D31: Eperua | E31: EPE | F31: Eri
D32: Erisma | E32: ERI | F32: Esc
D33: Eschweilera | E33: ESC | F33: Fic
D34: Ficus | E34: FIC | F34: Fus
D35: Fusaea | E35: FUS | F35: Gei
D36: Geissospermum | E36: GEI | F36: Gly
D37: Glycydendron | E37: GLY | F37: Gou
D38: Goupia | E38: GOU | F38: Gua
D39: Guarea | E39: GUA | F39: Hei
D40: Heisteria | E40: HEI | F40: Hel
D41: Helicostylis | E41: HEL | F41: Hev
D42: Hevea | E42: HEV | F42: Ing
D43: Inga | E43: ING | F43: Lec
D44: Lecythis | E44: LEC | F44: Lic
D45: Licania | E45: LIC | F45: Lca
D46: Licaria | E46: LRA | F46: Lue
D47: Lueheopsis | E47: LUE | F47: Mac
D48: Macrolobium | E48: MAC | F48: Man
D49: Manilkara | E49: MAN | F49: Maq
D50: Maquira | E50: MAQ | F50: Mez
D51: Mezilaurus | E51: MEZ | F51: Mic
D52: Miconia | E52: MIC | F52: Mcr
D53: Micropholis | E53: MIH | F53: Min
D54: Minquartia | E54: MIN | F54: Mor
D55: Moronobea | E55: MOR | F55: Mou
D56: Mouriri | E56: MOU | F56: Myr
D57: Myrcia | E57: MYR | F57: Nau
D58: Naucleopsis | E58: NAU | F58: Nee
D59: Neea | E59: NEE | F59: Oco
D60: Ocotea | E60: OCO | F60: Oen
D61: Oenocarpus | E61: OEN | F61: Ony
D62: Onychopetalum | E62: ONY | F62: Orm
D63: Ormosia | E63: ORM | F63: Ost
D64: Osteophloeum | E64: OST | F64: Par
D65: Paramachaerium | E65: PAR | F65: Prk
D66: Parkia | E66: PAS | F66: Pau
D67: Pausandra | E67: PAU | F67: Pel
D68: Peltogyne | E68: PEL | F68: Pou
D69: Pouteria | E69: POU | F69: Pro
D70: Protium | E70: PRO | F70: Pse
D71: Pseudolmedia | E71: PSE | F71: Psp
D72: Pseudopiptadenia | E72: PSP | F72: Qua
D73: Qualea | E73: QUA | F73: Rho
D74: Rhodostemonodaphne | E74: RHO | F74: Rin
D75: Rinorea | E75: RIN | F75: Sac
D76: Sacoglottis | E76: SAC | F76: Scl
D77: Sclerolobium | E77: SCL | F77: Scn
D78: Scleronema | E78: SCN | F78: Slo
D79: Sloanea | E79: SLO | F79: Swa
D80: Swartzia | E80: SWA | F80: Tac
D81: Tachigali | E81: TAC | F81: The
D82: Theobroma | E82: THE | F82: Try
D83: Trymatococcus | E83: TRY | F83: Uno
D84: Unonopsis | E84: UNO | F84: Van
D85: Vantanea | E85: VAN | F85: Vir
D86: Virola | E86: VIR | F86: Voc
D87: Vochysia | E87: VOC | F87: Zyg
D88: Zygia | E88: ZYG

Sheet Corte_3-7
A1: SPECIES | B1: Species (bonito) | C1: Species code | D1: Genus code | E1: Family code | F1: code | G1: Genus code 2 | H1: GENUS | I1: TRIBE | J1: SUBFAMILY | K1: FAMILY | L1: FAMILY (old) | M1: ORDER | N1: plot 1 (individuals in 1 ha) | O1: plot 3 (individuals in 1 ha) | P1: plot 7 (individuals in 1 ha) | Q1: plot 9 (individuals in 1 ha) | R1: ABUNDANCE (mean individuals per hectare) | S1: plot 1 (basal area in cm2) | T1: plot 3 (basal area in cm2) | U1: plot 7 (basal area in cm2) | V1: plot 9 (basal area in cm2) | W1: BIOMASS (%) (basal area) | X1: N (individuals colected) | Y1: sla | Z1: n | AA1: validez | AB1: ls | AC1: n | AD1: validez | AE1: ldmc | AF1: n | AG1: validez | AH1: lts | AI1: n | AJ1: validez | AK1: lt | AL1: n | AM1: validez | AN1: nlc | AO1: clc | AP1: plc | AQ1: mh | AR1: wd | AS1: lbt | AT1: leaf traits | AU1: nlc | AV1: clc | AW1: plc | AX1: mh | AY1: wd | AZ1: score
A2: Abarema_cochleata_(Willd.)_Barneby_&_J._W._Grimes | B2: Abarema cochleata | C2: ABACOC | D2: ABA | E2: FABA | F2: Abac | G2: Aba | H2: Abarema | I2: Ingeae | J2: Mimosoideae | K2: Fabaceae – Mimosoideae | L2: Leguminosae | M2: Fabales | N2: 2 | O2: 1 | P2: 0 | Q2: 0 | R2: 0.75 | S2: 1831.60125 | T2: 939.7706 | U2: 0 | V2: 0 | W2: 0.2354827857 | X2: 1 | Y2: 15.62188624 | Z2: 1 | AB2: 2350.1 | AC2: 1 | AE2: 43.94941748 | AF2: 1 | AH2: 0.3045412444 | AI2: 1 | AK2: 0.194 | AL2: 1 | AN2: 29.21583414 | AO2: 471.5003967 | AP2: 0.5498241609 | AQ2: 27.5 | AS2: 2 | AT2: 0 | AU2: =IF(AN2=0,0,1) -> 1 | AV2: =IF(AO2=0,0,1) -> 1 | AW2: =IF(AP2=0,0,1) -> 1 | AX2: 1 | AY2: 0 | AZ2: 4
A3: Aniba_burchellii/panurensis_s.l. | B3: Aniba burchellii/panurensis | C3: ANIBUR | D3: ANI | E3: LAUR | F3: Anib | G3: Ani | H3: Aniba | K3: Lauraceae | L3: Lauraceae | M3: Laurales | N3: 0 | O3: 0 | P3: 1 | Q3: 2 | R3: 0.75 | S3: 0 | T3: 0 | U3: 1181.7704 | V3: 731.18825 | W3: 0.1625436269 | X3: 5 | Y3: 15.74300993 | Z3: 4 | AA3: 1 | AB3: 3032.16 | AC3: 5 | AD3: 1 | AE3: 48.68812469 | AF3: 3 | AG3: 1 | AH3: 0.6464295423 | AI3: 5 | AJ3: 1 | AK3: 0.221 | AL3: 4 | AM3: 1 | AN3: 18.56219053 | AO3: 488.2473755 | AP3: 0.5498241609 | AQ3: 37.5 | AR3: =(0.52+0.61)/2 -> 0.565 | AS3: 1 | AT3: 5 | AU3: =IF(AN3=0,0,1) -> 1 | AV3: =IF(AO3=0,0,1) -> 1 | AW3: =IF(AP3=0,0,1) -> 1 | AX3: =IF(AQ3=0,0,1) -> 1 | AY3: =IF(AR3=0,0,1) -> 1 | AZ3: 10
A4: Aniba_canelilla_(Kunth)_Mez | B4: Aniba canelilla | C4: ANICAN | D4: ANI | E4: LAUR | F4: Anic | G4: Ani | H4: Aniba | K4: Lauraceae | L4: Lauraceae | M4: Laurales | N4: 3 | O4: 0 | P4: 0 | Q4: 1 | R4: 1 | S4: 1840.20485 | T4: 0 | U4: 0 | V4: 1206.2624 | W4: 0.2588575743 | X4: 3 | Y4: 13.41600532 | Z4: 3 | AA4: 1 | AB4: 6984.066667 | AC4: 3 | AD4: 1 | AE4: 54.88169994 | AF4: 2 | AH4: 0.8534307962 | AI4: 3 | AJ4: 1 | AK4: 0.249 | AL4: 2 | AN4: 21.40315056 | AO4: 493.2355881 | AP4: 0.5379171633 | AQ4: 27.5 | AR4: 0.96 | AS4: 1 | AT4: 3 | AU4: 1 | AV4: 1 | AW4: 1 | AX4: 1 | AY4: 1 | AZ4: 8
A5: Anisophyllea_manausensis_Pires_&_W._A._Rodrigues | B5: Anisophyllea manausensis | C5: ANSMAN | D5: ANS | E5: ANIS | F5: Ansm | G5: Ans | H5: Anisophyllea | K5: Anisophylleaceae | L5: Anisophylleaceae | M5: Cucurbitales | N5: 0 | O5: 3 | P5: 0 | Q5: 1 | R5: 1 | S5: 0 | T5: 1271.11125 | U5: 0 | V5: 1281.2456 | W5: 0.216873135 | X5: 6 | Y5: 11.42767892 | Z5: 6 | AA5: 1 | AB5: 6436 | AC5: 6 | AD5: 1 | AE5: 43.50321616 | AF5: 6 | AG5: 1 | AH5: 0.6703458531 | AI5: 6 | AJ5: 1 | AK5: 0.2253333333 | AL5: 6 | AM5: 1 | AN5: 14.4581306 | AO5: 465.0102997 | AP5: 0.3414517031 | AQ5: 27.5 | AR5: 0.86 | AS5: 1 | AT5: 5 | AU5: 1 | AV5: 1 | AW5: 1 | AX5: 1 | AY5: 1 | AZ5: 10
A6: Aspidosperma_carapanauba_Pichon | B6: Aspidosperma carapanauba | C6: ASPCAR | D6: ASP | E6: APOC | F6: Aspc | G6: Asp | H6: Aspidosperma | K6: Apocynaceae | L6: Apocynaceae | M6: Gentianales | N6: 1 | O6: 0 | P6: 1 | Q6: 0 | R6: 0.5 | S6: 2230.09865 | T6: 0 | U6: 778.91625 | V6: 0 | W6: 0.2556752574 | X6: 1 | Y6: 8.930565722 | Z6: 1 | AB6: 17016.4 | AC6: 1 | AE6: 40.17223272 | AF6: 1 | AH6: 0.8726017243 | AI6: 1 | AK6: 0.308 | AL6: 1 | AN6: 14.75211501 | AO6: 499.0306091 | AP6: 0.3890796935 | AQ6: 32.5 | AS6: 1 | AT6: 0 | AU6: 1 | AV6: 1 | AW6: 1 | AX6: 1 | AY6: 0 | AZ6: 4
A7: Aspidosperma_marcgravianum_Woodson | B7: Aspidosperma marcgravianum | C7: ASPMAR | D7: ASP | E7: APOC | F7: Aspm | G7: Asp | H7: Aspidosperma | K7: Apocynaceae | L7: Apocynaceae | M7: Gentianales | N7: 0 | O7: 0 | P7: 1 | Q7: 1 | R7: 0.5 | S7: 0 | T7: 0 | U7: 490.625 | V7: 4229.2346 | W7: 0.4010453115 | X7: 1 | Z7: 0 | AC7: 0 | AE7: 43.03111185 | AF7: 1 | AH7: 0.9998774596 | AI7: 1 | AK7: 0.504 | AL7: 1 | AN7: 17.00516939 | AO7: 503.5370255 | AP7: 0.4843356742 | AQ7: 27.5 | AR7: 0.72 | AS7: 1 | AT7: 0 | AU7: 1 | AV7: 1 | AW7: 1 | AX7: 1 | AY7: 1 | AZ7: 5
A8: Aspidosperma_oblongum_A._DC. | B8: Aspidosperma oblongum | C8: ASPOBL | D8: ASP | E8: APOC | F8: Aspo | G8: Asp | H8: Aspidosperma | K8: Apocynaceae | L8: Apocynaceae | M8: Gentianales | N8: 2 | O8: 1 | P8: 1 | Q8: 1 | R8: 1.25 | S8: 3077.9065 | T8: 162.7776 | U8: 113.04 | V8: 4194.73385 | W8: 0.6413906189 | X8: 3 | Y8: 10.40985234 | Z8: 2 | AB8: 1867.9 | AC8: 2 | AE8: 39.87349571 | AF8: 3 | AG8: 1 | AH8: 0.5708988765 | AI8: 3 | AJ8: 1 | AK8: 0.186 | AL8: 3 | AM8: 1 | AN8: 24.72438812 | AO8: 510.7868576 | AP8: 0.5319636645 | AQ8: 27.5 | AR8: 0.87 | AS8: 1 | AT8: 3 | AU8: 1 | AV8: 1 | AW8: 1 | AX8: 1 | AY8: 1 | AZ8: 8
A9: Bocageopsis_multiflora_(Mart.)_R._E._Fries | B9: Bocageopsis multiflora | C9: BOCMUL | D9: BOC | E9: ANNO | F9: Bocm | G9: Boc | H9: Bocageopsis | K9: Annonaceae | L9: Annonaceae | M9: Magnoliales | N9: 6 | O9: 4 | P9: 0 | Q9: 3 | R9: 3.25 | S9: 1358.84285 | T9: 993.2134 | U9: 0 | V9: 1769.2173 | W9: 0.3501836018 | X9: 9 | Y9: 13.23289233 | Z9: 8 | AA9: 1 | AB9: 2062.6 | AC9: 9 | AD9: 1 | AE9: 54.11986915 | AF9: 4 | AG9: 1 | AH9: 0.3459367017 | AI9: 9 | AJ9: 1 | AK9: 0.1308 | AL9: 5 | AM9: 1 | AN9: 21.85081959 | AO9: 493.9262009 | AP9: 0.6391266428 | AQ9: 27.5 | AR9: 0.65 | AS9: 1 | AT9: 5 | AU9: 1 | AV9: 1 | AW9: 1 | AX9: 1 | AY9: 1 | AZ9: 10
A10: Bocoa_viridiflora_(Ducke)_Cowan | B10: Bocoa viridiflora | C10: BOOVIR | D10: BOO | E10: FABA | F10: Bcov | G10: Bco | H10: Bocoa | J10: Faboideae | K10: Fabaceae – Faboideae | L10: Leguminosae | M10: Fabales | N10: 2 | O10: 2 | P10: 3 | Q10: 0 | R10: 1.75 | S10: 524.537 | T10: 249.5044 | U10: 1633.27885 | V10: 0 | W10: 0.2045494107 | X10: 11 | Y10: 10.84275282 | Z10: 10 | AA10: 1 | AB10: 3887.687273 | AC10: 10 | AD10: 1 | AE10: 49.50611323 | AF10: 4 | AG10: 1 | AH10: 1.054169382 | AI10: 11 | AJ10: 1 | AK10: 0.1883333333 | AL10: 6 | AM10: 1 | AN10: 24.28169727 | AO10: 491.6383743 | AP10: 0.5676846573 | AQ10: 27.5 | AR10: 0.84 | AS10: 2 | AT10: 5 | AU10: 1 | AV10: 1 | AW10: 1 | AX10: 1 | AY10: 1 | AZ10: 10
A11: Brosimum_acutifolium_Huber | B11: Brosimum acutifolium | C11: BROACU | D11: BRO | E11: MORA | F11: Broa | G11: Bro | H11: Brosimum | I11: Dorstenieae | K11: Moraceae | L11: Moraceae | M11: Rosales | N11: 3 | O11: 0 | P11: 0 | Q11: 0 | R11: 0.75 | S11: 2270.22 | T11: 0 | U11: 0 | V11: 0 | W11: 0.1929000361 | X11: 0 | Z11: 0 | AC11: 0 | AF11: 0 | AI11: 0 | AL11: 0 | AQ11: 27.5 | AR11: 0.59 | AS11: 1 | AT11: 0 | AU11: 0 | AV11: 0 | AW11: 0 | AX11: 1 | AY11: 1 | AZ11: 2
A12: Brosimum_guianense_(Aubl.)_Huber | B12: Brosimum guianense | C12: BROGUI | D12: BRO | E12: MORA | F12: Brog | G12: Bro | H12: Brosimum | I12: Dorstenieae | K12: Moraceae | L12: Moraceae | M12: Rosales | N12: 0 | O12: 0 | P12: 1 | Q12: 3 | R12: 1 | S12: 0 | T12: 0 | U12: 176.625 | V12: 1848.7221 | W12: 0.1720932459 | X12: 6 | Y12: 16.78130195 | Z12: 5 | AA12: 1 | AB12: 3148.066667 | AC12: 6 | AD12: 1 | AE12: 46.684397 | AF12: 4 | AG12: 1 | AH12: 0.411555854 | AI12: 6 | AJ12: 1 | AK12: 0.2116 | AL12: 5 | AM12: 1 | AN12: 17.51728773 | AO12: 467.2307205 | AP12: 0.490289173 | AQ12: 27.5 | AR12: 0.91 | AS12: 1 | AT12: 5 | AU12: 1 | AV12: 1 | AW12: 1 | AX12: 1 | AY12: 1 | AZ12: 10
A13: Brosimum_parinarioides_Ducke | B13: Brosimum parinarioides | C13: BROPAR | D13: BRO | E13: MORA | F13: Brop | G13: Bro | H13: Brosimum | I13: Dorstenieae | K13: Moraceae | L13: Moraceae | M13: Rosales | N13: 0 | O13: 0 | P13: 3 | Q13: 0 | R13: 0.75 | S13: 0 | T13: 0 | U13: 3072.6156 | V13: 0 | W13: 0.2610793932 | X13: 3 | Y13: 10.32650491 | Z13: 3 | AA13: 1 | AB13: 40861 | AC13: 3 | AD13: 1 | AE13: 46.81131722 | AF13: 3 | AG13: 1 | AH13: 1.260128709 | AI13: 3 | AJ13: 1 | AK13: 0.4793333333 | AL13: 3 | AM13: 1 | AN13: 16.91589355 | AO13: 469.8038101 | AP13: 0.5736381561 | AQ13: 27.5 | AR13: 0.62 | AS13: 1 | AT13: 5 | AU13: 1 | AV13: 1 | AW13: 1 | AX13: 1 | AY13: 1 | AZ13: 10
A14: Brosimum_rubescens_Taub. | B14: Brosimum rubescens | C14: BRORUB | D14: BRO | E14: MORA | F14: Bror | G14: Bro | H14: Brosimum | I14: Dorstenieae | K14: Moraceae | L14: Moraceae | M14: Rosales | N14: 3 | O14: 0 | P14: 1 | Q14: 1 | R14: 1.25 | S14: 635.16705 | T14: 0 | U14: 1133.54 | V14: 1478.5946 | W14: 0.275922424 | X14: 12 | Y14: 25.05042545 | Z14: 10 | AA14: 1 | AB14: 3872.74 | AC14: 10 | AD14: 1 | AE14: 45.1557363 | AF14: 7 | AG14: 1 | AH14: 0.8110593303 | AI14: 12 | AJ14: 1 | AK14: 0.1917142857 | AL14: 7 | AM14: 1 | AN14: 15.66812992 | AO14: 457.408638 | AP14: 0.5617311585 | AQ14: 32.5 | AR14: 0.84 | AS14: 1 | AT14: 5 | AU14: 1 | AV14: 1 | AW14: 1 | AX14: 1 | AY14: 1 | AZ14: 10
A15: Buchenavia_grandis_Ducke | B15: Buchenavia grandis | C15: BUCGRA | D15: BUC | E15: COMB | F15: Bucg | G15: Buc | H15: Buchenavia | K15: Combretaceae | L15: Combretaceae | M15: Myrtales | N15: 0 | O15: 0 | P15: 0 | Q15: 1 | R15: 0.25 | S15: 0 | T15: 0 | U15: 0 | V15: 6358.5 | W15: 0.540280184 | X15: 3 | Y15: 13.42903403 | Z15: 3 | AA15: 1 | AB15: 5692.8 | AC15: 3 | AD15: 1 | AE15: 42.18311539 | AF15: 3 | AG15: 1 | AH15: 0.4075050699 | AI15: 3 | AJ15: 1 | AK15: 0.2586666667 | AL15: 3 | AM15: 1 | AN15: 22.9671073 | AO15: 472.612648 | AP15: 0.7462896211 | AQ15: 32.5 | AR15: 0.75 | AS15: 1 | AT15: 5 | AU15: 1 | AV15: 1 | AW15: 1 | AX15: 1 | AY15: 1 | AZ15: 10
A16: Cariniana_decandra_Ducke | B16: Cariniana decandra | C16: CANDEC | D16: CAN | E16: LECY | F16: Card | G16: Car | H16: Cariniana | K16: Lecythidaceae | L16: Lecythidaceae | M16: Ericales | N16: 1 | O16: 0 | P16: 0 | Q16: 1 | R16: 0.5 | S16: 1589.625 | T16: 0 | U16: 0 | V16: 1596.69785 | W16: 0.2707410703 | X16: 1 | Y16: 9.515957447 | Z16: 1 | AB16: 9230.8 | AC16: 1 | AE16: 52.88326301 | AF16: 1 | AH16: 0.469307251 | AI16: 1 | AK16: 0.166 | AL16: 1 | AN16: 15.34576774 | AO16: 483.5155869 | AP16: 0.6272196452 | AQ16: 32.5 | AR16: 0.58 | AS16: 1 | AT16: 0 | AU16: 1 | AV16: 1 | AW16: 1 | AX16: 1 | AY16: 1 | AZ16: 5
A17: Caryocar_pallidum_A._C._Smith | B17: Caryocar pallidum | C17: CARPAL | D17: CAR | E17: CARY | F17: Cryp | G17: Cry | H17: Caryocar | K17: Caryocaraceae | L17: Caryocaraceae | M17: Malpighiales | N17: 2 | O17: 0 | P17: 0 | Q17: 0 | R17: 0.5 | S17: 3382.94965 | T17: 0 | U17: 0 | V17: 0 | W17: 0.2874484013 | X17: 3 | Y17: 14.83986003 | Z17: 3 | AA17: 1 | AB17: 5138.688889 | AC17: 3 | AD17: 1 | AE17: 46.41592609 | AF17: 3 | AG17: 1 | AH17: 0.2790232439 | AI17: 3 | AJ17: 1 | AK17: 0.168 | AL17: 3 | AM17: 1 | AN17: 17.46578693 | AO17: 474.1386795 | AP17: 0.6391266428 | AQ17: 37.5 | AR17: 0.68 | AS17: 2 | AT17: 5 | AU17: 1 | AV17: 1 | AW17: 1 | AX17: 1 | AY17: 1 | AZ17: 10
A18: Caryocar_villosum_(Aubl.)_Pers. | B18: Caryocar villosum | C18: CARVIL | D18: CAR | E18: CARY | F18: Cryv | G18: Cry | H18: Caryocar | K18: Caryocaraceae | L18: Caryocaraceae | M18: Malpighiales | N18: 0 | O18: 1 | P18: 0 | Q18: 1 | R18: 0.5 | S18: 0 | T18: 188.59625 | U18: 0 | V18: 8087.26625 | W18: 0.703198005 | X18: 4 | Y18: 10.60495446 | Z18: 3 | AA18: 1 | AB18: 5014.2 | AC18: 3 | AD18: 1 | AE18: 43.04612376 | AF18: 3 | AG18: 1 | AH18: 0.2732193238 | AI18: 4 | AJ18: 1 | AK18: 0.2446666667 | AL18: 3 | AM18: 1 | AN18: 17.12945223 | AO18: 475.7179642 | AP18: 0.7760571151 | AQ18: 32.5 | AR18: 0.77 | AS18: 2 | AT18: 5 | AU18: 1 | AV18: 1 | AW18: 1 | AX18: 1 | AY18: 1 | AZ18: 10
A19: Casearia_javitensis_Kunth | B19: Casearia javitensis | C19: CASJAV | D19: CAS | E19: SALI | F19: Casj | G19: Cas | H19: Casearia | K19: Salicaceae | L19: Flacourtiaceae | M19: Malpighiales | N19: 0 | O19: 10 | P19: 0 | Q19: 3 | R19: 3.25 | S19: 0 | T19: 1688.4094 | U19: 0 | V19: 365.0721 | W19: 0.1744838189 | X19: 11 | Y19: 13.585981 | Z19: 6 | AA19: 1 | AB19: 14859.25714 | AC19: 7 | AD19: 1 | AE19: 49.49597917 | AF19: 5 | AG19: 1 | AH19: 0.6459313393 | AI19: 11 | AJ19: 1 | AK19: 0.209 | AL19: 6 | AM19: 1 | AN19: 15.30694246 | AO19: 484.9751663 | AP19: 0.3831261947 | AQ19: 17.5 | AR19: 0.76 | AS19: 1 | AT19: 5 | AU19: 1 | AV19: 1 | AW19: 1 | AX19: 1 | AY19: 1 | AZ19: 10
A20: Chaunochiton_kappleri_(Engl.)_Ducke | B20: Chaunochiton kappleri | C20: CHAKAP | D20: CHA | E20: OLAC | F20: Chak | G20: Cha | H20: Chaunochiton | K20: Olacaceae | L20: Olacaceae | M20: Santalales | N20: 0 | O20: 2 | P20: 1 | Q20: 1 | R20: 1 | S20: 0 | T20: 530.8641 | U20: 642.0986 | V20: 854.865 | W20: 0.1723040218 | X20: 1 | Y20: 12.28592483 | Z20: 1 | AB20: 3316.2 | AC20: 1 | AE20: 33.71428571 | AF20: 1 | AH20: 0.460698657 | AI20: 1 | AK20: 0.24 | AL20: 1 | AQ20: 22.5 | AR20: 0.52 | AS20: 1 | AT20: 0 | AU20: 0 | AV20: 0 | AW20: 0 | AX20: 1 | AY20: 1 | AZ20: 2
A21: Chrysophyllum_lucentifolium_Cronquist | B21: Chrysophyllum lucentifolium | C21: CHRLUC | D21: CHR | E21: SAPO | F21: Chrl | G21: Chr | H21: Chrysophyllum | J21: Chrysophylloideae | K21: Sapotaceae | L21: Sapotaceae | M21: Ericales | N21: 1 | O21: 0 | P21: 0 | Q21: 0 | R21: 0.25 | S21: 1763.7066 | T21: 0 | U21: 0 | V21: 0 | W21: 0.1498617168 | X21: 1 | Y21: 6.817740958 | Z21: 1 | AB21: 6684 | AC21: 1 | AE21: 51.19478639 | AF21: 1 | AH21: 1.244525863 | AI21: 1 | AK21: 0.322 | AL21: 1 | AN21: 12.43386865 | AO21: 484.1174316 | AP21: 0.60340565 | AQ21: 32.5 | AR21: 0.79 | AS21: 1 | AT21: 0 | AU21: 1 | AV21: 1 | AW21: 1 | AX21: 1 | AY21: 1 | AZ21: 5
A22: Chrysophyllum_pomiferum_(Eyma)_T._D._Penn. | B22: Chrysophyllum pomiferum | C22: CHRPOM | D22: CHR | E22: SAPO | F22: Chrp | G22: Chr | H22: Chrysophyllum | J22: Chrysophylloideae | K22: Sapotaceae | L22: Sapotaceae | M22: Ericales | N22: 0 | O22: 1 | P22: 1 | Q22: 0 | R22: 0.5 | S22: 0 | T22: 4368.6506 | U22: 167.3306 | V22: 0 | W22: 0.385421209 | X22: 3 | Y22: 9.819927774 | Z22: 3 | AA22: 1 | AB22: 9270.4 | AC22: 3 | AD22: 1 | AE22: 39.06411493 | AF22: 3 | AG22: 1 | AH22: 0.5820696971 | AI22: 3 | AJ22: 1 | AK22: 0.2506666667 | AL22: 3 | AM22: 1 | AN22: 25.56381941 | AO22: 482.8323364 | AP22: 0.460521679 | AQ22: 32.5 | AR22: 0.78 | AS22: 1 | AT22: 5 | AU22: 1 | AV22: 1 | AW22: 1 | AX22: 1 | AY22: 1 | AZ22: 10
A23: Chrysophyllum_wilsonii_Penn. | B23: Chrysophyllum wilsonii | C23: CHRWIL | D23: CHR | E23: SAPO | F23: Chrw | G23: Chr | H23: Chrysophyllum | J23: Chrysophylloideae | K23: Sapotaceae | L23: Sapotaceae | M23: Ericales | N23: 0 | O23: 0 | P23: 1 | Q23: 2 | R23: 0.75 | S23: 0 | T23: 0 | U23: 98.4704 | V23: 6049.21 | W23: 0.5223668944 | X23: 3 | Y23: 13.05484353 | Z23: 3 | AA23: 1 | AB23: 5841.2 | AC23: 3 | AD23: 1 | AE23: 38.48063768 | AF23: 3 | AG23: 1 | AH23: 0.51522632 | AI23: 3 | AJ23: 1 | AK23: 0.234 | AL23: 3 | AM23: 1 | AN23: 29.56891537 | AO23: 484.7941208 | AP23: 0.4545681802 | AQ23: 32.5 | AS23: 1 | AT23: 5 | AU23: 1 | AV23: 1 | AW23: 1 | AX23: 1 | AY23: 0 | AZ23: 9
A24: Clarisia_racemosa_Ruiz_&_Pav. | B24: Clarisia racemosa | C24: CLARAC | D24: CLA | E24: MORA | F24: Clar | G24: Cla | H24: Clarisia | K24: Moraceae | L24: Moraceae | M24: Rosales | N24: 0 | O24: 1 | P24: 0 | Q24: 1 | R24: 0.5 | S24: 0 | T24: 3769.95465 | U24: 0 | V24: 3597.88265 | W24: 0.6260433266 | X24: 1 | Y24: 16.01923077 | Z24: 1 | AB24: 3485 | AC24: 1 | AE24: 44.9382716 | AF24: 1 | AH24: 0.4085414777 | AI24: 1 | AK24: 0.176 | AL24: 1 | AQ24: 27.5 | AR24: 0.56 | AS24: 1 | AT24: 0 | AU24: 0 | AV24: 0 | AW24: 0 | AX24: 1 | AY24: 1 | AZ24: 2
A25: Conceveiba_hostmannii_Benth. | B25: Conceveiba hostmannii | C25: CONHOS | D25: CON | E25: EUPH | F25: Conh | G25: Con | H25: Conceveiba | I25: Alchorneae | J25: Acalyphoideae | K25: Euphorbiaceae | L25: Euphorbiaceae | M25: Malpighiales | N25: 2 | O25: 1 | P25: 1 | Q25: 3 | R25: 1.75 | S25: 863.7512 | T25: 669.3224 | U25: 478.92065 | V25: 2920.8123 | W25: 0.4191393616 | X25: 8 | Y25: 12.60913173 | Z25: 8 | AA25: 1 | AB25: 29187.35 | AC25: 8 | AD25: 1 | AE25: 46.21430833 | AF25: 6 | AG25: 1 | AH25: 0.6278609168 | AI25: 8 | AJ25: 1 | AK25: 0.298 | AL25: 6 | AM25: 1 | AN25: 21.52402878 | AO25: 470.4331589 | AP25: 0.7284291247 | AQ25: 22.5 | AS25: 1 | AT25: 5 | AU25: 1 | AV25: 1 | AW25: 1 | AX25: 1 | AY25: 0 | AZ25: 9
A26: Corythophora_alta_R._Knuth | B26: Corythophora alta | C26: CORALT | D26: COR | E26: LECY | F26: Cora | G26: Cor | H26: Corythophora | K26: Lecythidaceae | L26: Lecythidaceae | M26: Ericales | N26: 5 | O26: 3 | P26: 2 | Q26: 6 | R26: 4 | S26: 2031.10115 | T26: 4444.89765 | U26: 2928.4425 | V26: 4843.67765 | W26: 1.210659169 | X26: 15 | Y26: 14.68404281 | Z26: 15 | AA26: 1 | AB26: 7685.173333 | AC26: 15 | AD26: 1 | AE26: 49.63831499 | AF26: 8 | AG26: 1 | AH26: 0.5406121316 | AI26: 15 | AJ26: 1 | AK26: 0.20025 | AL26: 8 | AM26: 1 | AN26: 24.65377569 | AO26: 484.827652 | AP26: 0.633173144 | AQ26: 27.5 | AR26: 0.71 | AS26: 1 | AT26: 5 | AU26: 1 | AV26: 1 | AW26: 1 | AX26: 1 | AY26: 1 | AZ26: 10
A27: Corythophora_rimosa_W._A._Rodrigues | B27: Corythophora rimosa | C27: CORRIM | D27: COR | E27: LECY | F27: Corr | G27: Cor | H27: Corythophora | K27: Lecythidaceae | L27: Lecythidaceae | M27: Ericales | N27: 0 | O27: 5 | P27: 2 | Q27: 0 | R27: 1.75 | S27: 0 | T27: 4097.2604 | U27: 656.3385 | V27: 0 | W27: 0.4039121316 | X27: 4 | Y27: 10.46711662 | Z27: 4 | AA27: 1 | AB27: 7563.25 | AC27: 4 | AD27: 1 | AE27: 49.80738663 | AF27: 3 | AG27: 1 | AH27: 0.630274316 | AI27: 4 | AJ27: 1 | AK27: 0.2093333333 | AL27: 3 | AM27: 1 | AN27: 18.34620476 | AO27: 484.0341949 | AP27: 0.4426611826 | AQ27: 27.5 | AR27: 0.79 | AS27: 1 | AT27: 5 | AU27: 1 | AV27: 1 | AW27: 1 | AX27: 1 | AY27: 1 | AZ27: 10
A28: Couepia_excelsa_Ducke | B28: Couepia excelsa | C28: COUEXC | D28: COU | E28: CHRY | F28: Coue | G28: Cou | H28: Couepia | K28: Chrysobalanaceae | L28: Chrysobalanaceae | M28: Malpighiales | N28: 0 | O28: 1 | P28: 2 | Q28: 2 | R28: 1.25 | S28: 0 | T28: 158.2874 | U28: 676.08125 | V28: 1166.2274 | W28: 0.1699901552 | X28: 3 | Y28: 7.195955797 | Z28: 3 | AA28: 1 | AB28: 12439.06667 | AC28: 3 | AD28: 1 | AE28: 51.3156219 | AF28: 3 | AG28: 1 | AH28: 1.1046389 | AI28: 3 | AJ28: 1 | AK28: 0.248 | AL28: 3 | AM28: 1 | AN28: 12.27193117 | AO28: 475.4299927 | AP28: 0.3652656983 | AQ28: 27.5 | AS28: 1 | AT28: 5 | AU28: 1 | AV28: 1 | AW28: 1 | AX28: 1 | AY28: 0 | AZ28: 9
A29: Couepia_longipendula_Pilger | B29: Couepia longipendula | C29: COULON | D29: COU | E29: CHRY | F29: Coul | G29: Cou | H29: Couepia | K29: Chrysobalanaceae | L29: Chrysobalanaceae | M29: Malpighiales | N29: 0 | O29: 0 | P29: 0 | Q29: 3 | R29: 0.75 | S29: 0 | T29: 0 | U29: 0 | V29: 2664.8395 | W29: 0.2264307581 | X29: 7 | Y29: 18.24954312 | Z29: 4 | AA29: 1 | AB29: 5220.88 | AC29: 5 | AD29: 1 | AE29: 50.79321567 | AF29: 4 | AG29: 1 | AH29: 0.8212325335 | AI29: 7 | AJ29: 1 | AK29: 0.2704 | AL29: 5 | AM29: 1 | AN29: 10.83117008 | AO29: 421.3331223 | AP29: 0.3712191971 | AQ29: 22.5 | AR29: 0.94 | AS29: 1 | AT29: 5 | AU29: 1 | AV29: 1 | AW29: 1 | AX29: 1 | AY29: 1 | AZ29: 10
A30: Couratari_stellata_A._C._Smith | B30: Couratari stellata | C30: CRTSTE | D30: CRT | E30: LECY | F30: Curs | G30: Cur | H30: Couratari | K30: Lecythidaceae | L30: Lecythidaceae | M30: Ericales | N30: 2 | O30: 1 | P30: 2 | Q30: 2 | R30: 1.75 | S30: 904.98725 | T30: 934.34625 | U30: 213.27665 | V30: 1124.81865 | W30: 0.2699853451 | X30: 3 | Y30: 13.77259959 | Z30: 3 | AA30: 1 | AB30: 4883.266667 | AC30: 3 | AD30: 1 | AE30: 34.90489454 | AF30: 3 | AG30: 1 | AH30: 0.694373296 | AI30: 3 | AJ30: 1 | AK30: 0.2033333333 | AL30: 3 | AM30: 1 | AN30: 24.50314522 | AO30: 461.9179153 | AP30: 0.8236851054 | AQ30: 22.5 | AR30: 0.63 | AS30: 1 | AT30: 5 | AU30: 1 | AV30: 1 | AW30: 1 | AX30: 1 | AY30: 1 | AZ30: 10
A31: Cynometra_longicuspis_Ducke | B31: Cynometra longicuspis | C31: CYNLON | D31: CYN | E31: FABA | F31: Cynl | G31: Cyn | H31: Cynometra | I31: Detarieae | J31: Caesalpinoideae | K31: Fabaceae – Caesalpinoideae | L31: Leguminosae | M31: Fabales | N31: 4 | O31: 4 | P31: 5 | Q31: 5 | R31: 4.5 | S31: 1705.56165 | T31: 1053.627 | U31: 1457.8392 | V31: 1500.4019 | W31: 0.4858086023 | X31: 9 | Y31: 13.25563288 | Z31: 6 | AA31: 1 | AB31: 1183.266667 | AC31: 6 | AD31: 1 | AE31: 52.20262101 | AF31: 5 | AG31: 1 | AH31: 0.9538914146 | AI31: 9 | AJ31: 1 | AK31: 0.142 | AL31: 5 | AM31: 1 | AN31: 16.36998415 | AO31: 452.5985336 | AP31: 0.5498241609 | AQ31: 17.5 | AS31: 2 | AT31: 5 | AU31: 1 | AV31: 1 | AW31: 1 | AX31: 1 | AY31: 0 | AZ31: 9
A32: Dicorynia_guianensis_Amshoff | B32: Dicorynia guianensis | C32: DICGUI | D32: DIC | E32: FABA | F32: Dicg | G32: Dic | H32: Dicorynia | I32: Cassieae | J32: Caesalpinoideae | K32: Fabaceae – Caesalpinoideae | L32: Leguminosae | M32: Fabales | N32: 0 | O32: 1 | P32: 1 | Q32: 2 | R32: 1 | S32: 0 | T32: 153.86 | U32: 1808.64 | V32: 2456.2964 | W32: 0.3754640453 | X32: 3 | Y32: 22.84647592 | Z32: 3 | AA32: 1 | AB32: 5830.585635 | AC32: 3 | AD32: 1 | AE32: 99.11683117 | AF32: 3 | AG32: 1 | AH32: 0.4497512216 | AI32: 3 | AJ32: 1 | AK32: 0.1553333333 | AL32: 3 | AM32: 1 | AN32: 24.15436029 | AO32: 468.4383392 | AP32: 0.9487085801 | AQ32: 37.5 | AR32: 0.63 | AS32: 2 | AT32: 5 | AU32: 1 | AV32: 1 | AW32: 1 | AX32: 1 | AY32: 1 | AZ32: 10
A33: Dinizia_excelsa_Ducke | B33: Dinizia excelsa | C33: DINEXC | D33: DIN | E33: FABA | F33: Dine | G33: Din | H33: Dinizia | I33: Mimoseae | J33: Mimosoideae | K33: Fabaceae – Mimosoideae | L33: Leguminosae | M33: Fabales | N33: 2 | O33: 0 | P33: 0 | Q33: 0 | R33: 0.5 | S33: 17232.01385 | T33: 0 | U33: 0 | V33: 0 | W33: 1.464199986 | X33: 3 | Y33: 10.77284508 | Z33: 3 | AA33: 1 | AB33: 69.93333333 | AC33: 3 | AD33: 1 | AE33: 51.64869639 | AF33: 3 | AG33: 1 | AH33: 0.4426868482 | AI33: 3 | AJ33: 1 | AK33: 0.144 | AL33: 3 | AM33: 1 | AN33: 14.84669089 | AO33: 488.1468964 | AP33: 0.4664751778 | AQ33: 42.5 | AR33: 0.85 | AS33: 3 | AT33: 5 | AU33: 1 | AV33: 1 | AW33: 1 | AX33: 1 | AY33: 1 | AZ33: 10
A34: Dipteryx_magnifica_(Ducke)_Ducke | B34: Dipteryx magnifica | C34: DIPMAG | D34: DIP | E34: FABA | F34: Dipm | G34: Dip | H34: Dipteryx | I34: Dipterygeae | J34: Faboideae | K34: Fabaceae – Faboideae | L34: Leguminosae | M34: Fabales | N34: 1 | O34: 0 | P34: 0 | Q34: 1 | R34: 0.5 | S34: 1103.90625 | T34: 0 | U34: 0 | V34: 5407.865 | W34: 0.5533036045 | X34: 3 | Y34: 15.32505471 | Z34: 3 | AA34: 1 | AB34: 3247.409867 | AC34: 3 | AD34: 1 | AE34: 49.98052931 | AF34: 3 | AG34: 1 | AH34: 0.7396634148 | AI34: 3 | AJ34: 1 | AK34: 0.1793333333 | AL34: 3 | AM34: 1 | AN34: 21.88884974 | AO34: 486.0124588 | AP34: 0.60340565 | AQ34: 32.5 | AS34: 2 | AT34: 5 | AU34: 1 | AV34: 1 | AW34: 1 | AX34: 1 | AY34: 0 | AZ34: 9
A35: Dipteryx_odorata_(Aubl.)_Willd. | B35: Dipteryx odorata | C35: DIPODO | D35: DIP | E35: FABA | F35: Dipo | G35: Dip | H35: Dipteryx | I35: Dipterygeae | J35: Faboideae | K35: Fabaceae – Faboideae | L35: Leguminosae | M35: Fabales | N35: 0 | O35: 0 | P35: 2 | Q35: 2 | R35: 1 | S35: 0 | T35: 0 | U35: 2948.68765 | V35: 637.30225 | W35: 0.3047006815 | X35: 4 | Y35: 13.96640899 | Z35: 4 | AA35: 1 | AB35: 11889.64583 | AC35: 4 | AD35: 1 | AE35: 40.66197548 | AF35: 4 | AG35: 1 | AH35: 0.7270564057 | AI35: 4 | AJ35: 1 | AK35: 0.2175 | AL35: 4 | AM35: 1 | AN35: 21.89255238 | AO35: 484.315834 | AP35: 0.7581966187 | AQ35: 32.5 | AR35: 0.92 | AS35: 2 | AT35: 5 | AU35: 1 | AV35: 1 | AW35: 1 | AX35: 1 | AY35: 1 | AZ35: 10
A36: Drypetes_variabilis_Uittien | B36: Drypetes variabilis | C36: DRYVAR | D36: DRY | E36: PUTR | F36: Dryv | G36: Dry | H36: Drypetes | K36: Putranjivaceae | L36: Euphorbiaceae | M36: Malpighiales | N36: 2 | O36: 2 | P36: 2 | Q36: 2 | R36: 2 | S36: 331.6625 | T36: 715.4333 | U36: 746.73125 | V36: 480.89885 | W36: 0.1932829013 | X36: 7 | Y36: 8.556294117 | Z36: 5 | AA36: 1 | AB36: 5677.04 | AC36: 5 | AD36: 1 | AE36: 41.48196124 | AF36: 5 | AG36: 1 | AH36: 0.5534904746 | AI36: 7 | AJ36: 1 | AK36: 0.2546666667 | AL36: 6 | AM36: 1 | AN36: 16.29655123 | AO36: 428.1000137 | AP36: 0.5736381561 | AQ36: 22.5 | AR36: 0.73 | AS36: 1 | AT36: 5 | AU36: 1 | AV36: 1 | AW36: 1 | AX36: 1 | AY36: 1 | AZ36: 10
A37: Duckeodendron_cestroides_Kuhlm. | B37: Duckeodendron cestroides | C37: DUCCES | D37: DUC | E37: SOLA | F37: Ducc | G37: Duc | H37: Duckeodendron | K37: Solanaceae | L37: Duckeodendraceae | M37: Solanales | N37: 1 | O37: 1 | P37: 4 | Q37: 5 | R37: 2.75 | S37: 1384.74 | T37: 274.50665 | U37: 5508.41565 | V37: 5730.1075 | W37: 1.095920334 | X37: 5 | Y37: 14.54364021 | Z37: 5 | AA37: 1 | AB37: 5829.48 | AC37: 5 | AD37: 1 | AE37: 32.524745 | AF37: 4 | AG37: 1 | AH37: 0.4923390861 | AI37: 5 | AJ37: 1 | AK37: 0.2405 | AL37: 4 | AM37: 1 | AN37: 44.21652794 | AO37: 461.4517593 | AP37: 0.6808011344 | AQ37: 27.5 | AR37: 0.63 | AS37: 1 | AT37: 5 | AU37: 1 | AV37: 1 | AW37: 1 | AX37: 1 | AY37: 1 | AZ37: 10
A38: Duguetia_echinophora_R._E._Fries | B38: Duguetia echinophora | C38: DUGECH | D38: DUG | E38: ANNO | F38: Duge | G38: Dug | H38: Duguetia | K38: Annonaceae | L38: Annonaceae | M38: Magnoliales | N38: 2 | O38: 4 | P38: 2 | Q38: 0 | R38: 2 | S38: 277.36405 | T38: 904.3671 | U38: 698.65 | V38: 0 | W38: 0.1597755247 | X38: 6 | Y38: 13.07591088 | Z38: 6 | AA38: 1 | AB38: 4200.266667 | AC38: 6 | AD38: 1 | AE38: 52.01870065 | AF38: 6 | AG38: 1 | AH38: 0.5881816679 | AI38: 6 | AJ38: 1 | AK38: 0.1486666667 | AL38: 6 | AM38: 1 | AN38: 41.32891178 | AO38: 464.2063904 | AP38: 0.5676846573 | AQ38: 22.5 | AS38: 1 | AT38: 5 | AU38: 1 | AV38: 1 | AW38: 1 | AX38: 1 | AY38: 0 | AZ38: 9
A39: Duguetia_manausensis_Maas_&_Boon | B39: Duguetia manausensis | C39: DUGMAN | D39: DUG | E39: ANNO | F39: Dugm | G39: Dug | H39: Duguetia | K39: Annonaceae | L39: Annonaceae | M39: Magnoliales | N39: 5 | O39: 6 | P39: 3 | Q39: 4 | R39: 4.5 | S39: 834.90245 | T39: 1063.6279 | U39: 537.73285 | V39: 748.67805 | W39: 0.2706236761 | X39: 9 | Y39: 14.42908345 | Z39: 5 | AA39: 1 | AB39: 27356.4 | AC39: 5 | AD39: 1 | AE39: 45.75055488 | AF39: 3 | AG39: 1 | AH39: 0.7544836035 | AI39: 9 | AJ39: 1 | AK39: 0.2406666667 | AL39: 3 | AM39: 1 | AN39: 26.34362459 | AO39: 467.1989441 | AP39: 0.5557776597 | AQ39: 17.5 | AS39: 1 | AT39: 5 | AU39: 1 | AV39: 1 | AW39: 1 | AX39: 1 | AY39: 0 | AZ39: 9
A40: Dussia_discolor_(Benth.)_Amshoff | B40: Dussia discolor | C40: DUSDIS | D40: DUS | E40: FABA | F40: Dusd | G40: Dus | H40: Dussia | J40: Faboideae | K40: Fabaceae – Faboideae | L40: Leguminosae | M40: Fabales | N40: 0 | O40: 0 | P40: 0 | Q40: 2 | R40: 0.5 | S40: 0 | T40: 0 | U40: 0 | V40: 3067.06565 | W40: 0.2606078153 | X40: 1 | Y40: 14.66370886 | Z40: 1 | AB40: 9940 | AC40: 1 | AE40: 38.01029775 | AF40: 1 | AH40: 0.3210304299 | AI40: 1 | AK40: 0.198 | AL40: 1 | AN40: 19.45121408 | AO40: 455.5147552 | AP40: 0.6510336404 | AQ40: 32.5 | AR40: 0.55 | AS40: 2 | AT40: 0 | AU40: 1 | AV40: 1 | AW40: 1 | AX40: 1 | AY40: 1 | AZ40: 5
A41: Ecclinusa_guianensis_Eyma | B41: Ecclinusa guianensis | C41: ECCGUI | D41: ECC | E41: SAPO | F41: Eccg | G41: Ecc | H41: Ecclinusa | K41: Sapotaceae | L41: Sapotaceae | M41: Ericales | N41: 5 | O41: 6 | P41: 3 | Q41: 2 | R41: 4 | S41: 3862.9379 | T41: 5930.72995 | U41: 894.73515 | V41: 452.85865 | W41: 0.9466702673 | X41: 11 | Y41: 9.155879886 | Z41: 10 | AA41: 1 | AB41: 6079.327273 | AC41: 11 | AD41: 1 | AE41: 51.95330725 | AF41: 4 | AG41: 1 | AH41: 0.7492741059 | AI41: 11 | AJ41: 1 | AK41: 0.222 | AL41: 5 | AM41: 1 | AN41: 13.26282501 | AO41: 485.2630234 | AP41: 0.3354982043 | AQ41: 32.5 | AR41: 0.63 | AS41: 1 | AT41: 5 | AU41: 1 | AV41: 1 | AW41: 1 | AX41: 1 | AY41: 1 | AZ41: 10
A42: Elaeoluma_nuda_(Baehni)_Aubrev. | B42: Elaeoluma nuda | C42: ELANUD | D42: ELA | E42: SAPO | F42: Elan | G42: Ela | H42: Elaeoluma | K42: Sapotaceae | L42: Sapotaceae | M42: Ericales | N42: 0 | O42: 0 | P42: 1 | Q42: 0 | R42: 0.25 | S42: 0 | T42: 0 | U42: 1838.9096 | V42: 0 | W42: 0.1562516973 | X42: 0 | Z42: 0 | AC42: 0 | AF42: 0 | AI42: 0 | AL42: 0 | AQ42: 32.5 | AS42: 1 | AT42: 0 | AU42: 0 | AV42: 0 | AW42: 0 | AX42: 1 | AY42: 0 | AZ42: 1
A43: Endopleura_uchi_(Huber)_Cuatrec | B43: Endopleura uchi | C43: ENDUCH | D43: END | E43: HUMI | F43: Endu | G43: End | H43: Endopleura | K43: Humiriaceae | L43: Humiriaceae | M43: Malpighiales | N43: 0 | O43: 1 | P43: 0 | Q43: 1 | R43: 0.5 | S43: 0 | T43: 2374.625 | U43: 0 | V43: 1139.51385 | W43: 0.2985955154 | X43: 4 | Y43: 11.93924632 | Z43: 4 | AA43: 1 | AB43: 13782.55 | AC43: 4 | AD43: 1 | AE43: 62.52248902 | AF43: 4 | AG43: 1 | AH43: 0.8024724498 | AI43: 3 | AJ43: 1 | AK43: 0.2295 | AL43: 4 | AM43: 1 | AN43: 11.79319739 | AO43: 481.0667801 | AP43: 0.3771726959 | AQ43: 27.5 | AR43: 0.79 | AS43: 1 | AT43: 5 | AU43: 1 | AV43: 1 | AW43: 1 | AX43: 1 | AY43: 1 | AZ43: 10
A44: Eperua_glabriflora_(Ducke)_Cowan | B44: Eperua glabriflora | C44: EPEGLA | D44: EPE | E44: FABA | F44: Epeg | G44: Epe | H44: Eperua | I44: Detarieae | J44: Caesalpinoideae | K44: Fabaceae – Caesalpinoideae | L44: Leguminosae | M44: Fabales | N44: 2 | O44: 1 | P44: 3 | Q44: 3 | R44: 2.25 | S44: 1059.3889 | T44: 678.5226 | U44: 3658.2099 | V44: 3201.4341 | W44: 0.7305321802 | X44: 8 | Y44: 8.391613441 | Z44: 7 | AA44: 1 | AB44: 9367.069556 | AC44: 7 | AD44: 1 | AE44: 47.31858579 | AF44: 6 | AG44: 1 | AH44: 1.089010268 | AI44: 8 | AJ44: 1 | AK44: 0.281 | AL44: 6 | AM44: 1 | AN44: 14.03779387 | AO44: 480.4828644 | AP44: 0.5676846573 | AQ44: 27.5 | AR44: 0.76 | AS44: 2 | AT44: 5 | AU44: 1 | AV44: 1 | AW44: 1 | AX44: 1 | AY44: 1 | AZ44: 10
A45: Erisma_bicolor_Ducke | B45: Erisma bicolor | C45: ERIBIC | D45: ERI | E45: VOCH | F45: Erib | G45: Eri | H45: Erisma | K45: Vochysiaceae | L45: Vochysiaceae | M45: Myrtales | N45: 1 | O45: 0 | P45: 3 | Q45: 3 | R45: 1.75 | S45: 128.6144 | T45: 0 | U45: 2869.81085 | V45: 734.83065 | W45: 0.3172138373 | X45: 4 | Y45: 6.998473398 | Z45: 4 | AA45: 1 | AB45: 21552.6 | AC45: 4 | AD45: 1 | AE45: 48.61099477 | AF45: 4 | AG45: 1 | AH45: 0.8555435658 | AI45: 4 | AJ45: 1 | AK45: 0.2455 | AL45: 4 | AM45: 1 | AN45: 13.63241792 | AO45: 449.0854263 | AP45: 0.3950331922 | AQ45: 37.5 | AS45: 1 | AT45: 5 | AU45: 1 | AV45: 1 | AW45: 1 | AX45: 1 | AY45: 0 | AZ45: 9
A46: Erisma_bracteosum_Ducke | B46: Erisma bracteosum | C46: ERIBRA | D46: ERI | E46: VOCH | F46: Erii | G46: Eri | H46: Erisma | K46: Vochysiaceae | L46: Vochysiaceae | M46: Myrtales | N46: 1 | O46: 0 | P46: 0 | Q46: 0 | R46: 0.25 | S46: 2595.40625 | T46: 0 | U46: 0 | V46: 0 | W46: 0.2205310319 | X46: 0 | Z46: 0 | AC46: 0 | AF46: 0 | AI46: 0 | AL46: 0 | AQ46: 32.5 | AS46: 1 | AT46: 0 | AU46: 0 | AV46: 0 | AW46: 0 | AX46: 1 | AY46: 0 | AZ46: 1
A47: Eschweilera_amazoniciformis_S._A._Mori | B47: Eschweilera amazoniciformis | C47: ESCAMA | D47: ESC | E47: LECY | F47: Esca | G47: Esc | H47: Eschweilera | J47: Lecythidoideae | K47: Lecythidaceae | L47: Lecythidaceae | M47: Ericales | N47: 1 | O47: 2 | P47: 3 | Q47: 2 | R47: 2 | S47: 2622.5594 | T47: 185.29925 | U47: 2492.061 | V47: 931.01 | W47: 0.5294405627 | X47: 6 | Y47: 7.632059406 | Z47: 5 | AA47: 1 | AB47: 1686.966667 | AC47: 6 | AD47: 1 | AE47: 60.72426374 | AF47: 5 | AG47: 1 | AH47: 1.104431617 | AI47: 6 | AJ47: 1 | AK47: 0.227 | AL47: 6 | AM47: 1 | AN47: 17.45035291 | AO47: 498.5919189 | AP47: 0.3771726959 | AQ47: 32.5 | AR47: 0.82 | AS47: 1 | AT47: 5 | AU47: 1 | AV47: 1 | AW47: 1 | AX47: 1 | AY47: 1 | AZ47: 10
A48: Eschweilera_atropetiolata_S._A._Mori | B48: Eschweilera atropetiolata | C48: ESCATR | D48: ESC | E48: LECY | F48: Esco | G48: Esc | H48: Eschweilera | J48: Lecythidoideae | K48: Lecythidaceae | L48: Lecythidaceae | M48: Ericales | N48: 4 | O48: 5 | P48: 8 | Q48: 5 | R48: 5.5 | S48: 1446.3939 | T48: 2063.67865 | U48: 7857.4418 | V48: 1738.3511 | W48: 1.11360217 | X48: 14 | Y48: 7.480613132 | Z48: 12 | AA48: 1 | AB48: 12634.05714 | AC48: 14 | AD48: 1 | AE48: 49.99768 | AF48: 7 | AG48: 1 | AH48: 1.130586253 | AI48: 14 | AJ48: 1 | AK48: 0.2715555556 | AL48: 9 | AM48: 1 | AN48: 21.64853811 | AO48: 499.5997238 | AP48: 0.4367076838 | AQ48: 32.5 | AR48: 0.75 | AS48: 1 | AT48: 5 | AU48: 1 | AV48: 1 | AW48: 1 | AX48: 1 | AY48: 1 | AZ48: 10
A49: Eschweilera_collina_Eyma | B49: Eschweilera collina | C49: ESCCOL | D49: ESC | E49: LECY | F49: Escc | G49: Esc | H49: Eschweilera | J49: Lecythidoideae | K49: Lecythidaceae | L49: Lecythidaceae | M49: Ericales | N49: 1 | O49: 1 | P49: 6 | Q49: 2 | R49: 2.5 | S49: 81.6714 | T49: 140.9546 | U49: 2218.19805 | V49: 406.2218 | W49: 0.2419127869 | X49: 8 | Y49: 11.49551829 | Z49: 8 | AA49: 1 | AB49: 6473.7 | AC49: 8 | AD49: 1 | AE49: 49.36852053 | AF49: 6 | AG49: 1 | AH49: 0.8396042593 | AI49: 8 | AJ49: 1 | AK49: 0.2796666667 | AL49: 6 | AM49: 1 | AN49: 27.2625351 | AO49: 485.5068588 | AP49: 0.5141031681 | AQ49: 27.5 | AR49: 0.78 | AS49: 1 | AT49: 5 | AU49: 1 | AV49: 1 | AW49: 1 | AX49: 1 | AY49: 1 | AZ49: 10
A50: Eschweilera_coriacea_(DC.)_S._A._Mori | B50: Eschweilera coriacea | C50: ESCCOR | D50: ESC | E50: LECY | F50: Esce | G50: Esc | H50: Eschweilera | J50: Lecythidoideae | K50: Lecythidaceae | L50: Lecythidaceae | M50: Ericales | N50: 1 | O50: 4 | P50: 2 | Q50: 5 | R50: 3 | S50: 151.66985 | T50: 4123.5579 | U50: 473.512 | V50: 1724.48015 | W50: 0.5500279058 | X50: 13 | Y50: 9.645511221 | Z50: 12 | AA50: 1 | AB50: 10372.07692 | AC50: 13 | AD50: 1 | AE50: 48.35157128 | AF50: 6 | AG50: 1 | AH50: 0.8439989415 | AI50: 13 | AJ50: 1 | AK50: 0.2954285714 | AL50: 7 | AM50: 1 | AN50: 17.50974894 | AO50: 480.8745956 | AP50: 0.5200566669 | AQ50: 27.5 | AR50: 0.84 | AS50: 1 | AT50: 5 | AU50: 1 | AV50: 1 | AW50: 1 | AX50: 1 | AY50: 1 | AZ50: 10
A51: Eschweilera_cyathiformis_S._A._Mori | B51: Eschweilera cyathiformis | C51: ESCCYA | D51: ESC | E51: LECY | F51: Escy | G51: Esc | H51: Eschweilera | J51: Lecythidoideae | K51: Lecythidaceae | L51: Lecythidaceae | M51: Ericales | N51: 2 | O51: 9 | P51: 3 | Q51: 2 | R51: 4 | S51: 1270.5696 | T51: 5087.27885 | U51: 5865.0804 | V51: 1555.81505 | W51: 1.170776487 | X51: 12 | Y51: 8.78448638 | Z51: 10 | AA51: 1 | AB51: 4665.56 | AC51: 10 | AD51: 1 | AE51: 48.73861869 | AF51: 6 | AG51: 1 | AH51: 1.189563469 | AI51: 12 | AJ51: 1 | AK51: 0.2596666667 | AL51: 6 | AM51: 1 | AN51: 18.43860388 | AO51: 498.0350494 | AP51: 0.4128936886 | AQ51: 32.5 | AS51: 1 | AT51: 5 | AU51: 1 | AV51: 1 | AW51: 1 | AX51: 1 | AY51: 0 | AZ51: 9
A52: Eschweilera_grandiflora_(Aubl.)_Sandw. | B52: Eschweilera grandiflora | C52: ESCGRA | D52: ESC | E52: LECY | F52: Escg | G52: Esc | H52: Eschweilera | J52: Lecythidoideae | K52: Lecythidaceae | L52: Lecythidaceae | M52: Ericales | N52: 4 | O52: 3 | P52: 7 | Q52: 9 | R52: 5.75 | S52: 817.6246 | T52: 434.77225 | U52: 1011.38615 | V52: 2457.9449 | W52: 0.4012040605 | X52: 12 | Y52: 11.42138339 | Z52: 12 | AA52: 1 | AB52: 14673.48333 | AC52: 12 | AD52: 1 | AE52: 50.28859108 | AF52: 5 | AG52: 1 | AH52: 0.8619836146 | AI52: 12 | AJ52: 1 | AK52: 0.2232 | AL52: 5 | AM52: 1 | AN52: 21.21899605 | AO52: 492.0616531 | AP52: 0.5260101657 | AQ52: 27.5 | AR52: 0.88 | AS52: 1 | AT52: 5 | AU52: 1 | AV52: 1 | AW52: 1 | AX52: 1 | AY52: 1 | AZ52: 10
A53: Eschweilera_micrantha_(O._Berg)_Miers | B53: Eschweilera micrantha | C53: ESCMIC | D53: ESC | E53: LECY | F53: Escm | G53: Esc | H53: Eschweilera | J53: Lecythidoideae | K53: Lecythidaceae | L53: Lecythidaceae | M53: Ericales | N53: 5 | O53: 3 | P53: 7 | Q53: 5 | R53: 5 | S53: 3219.4106 | T53: 1491.60205 | U53: 2567.35035 | V53: 4262.1261 | W53: 0.9805925257 | X53: 9 | Y53: 12.00685633 | Z53: 8 | AA53: 1 | AB53: 4702.075 | AC53: 8 | AD53: 1 | AE53: 49.95561248 | AF53: 5 | AG53: 1 | AH53: 0.924850553 | AI53: 9 | AJ53: 1 | AK53: 0.1968 | AL53: 5 | AM53: 1 | AN53: 22.91297913 | AO53: 500.6867599 | AP53: 0.5141031681 | AQ53: 32.5 | AR53: 0.86 | AS53: 1 | AT53: 5 | AU53: 1 | AV53: 1 | AW53: 1 | AX53: 1 | AY53: 1 | AZ53: 10
A54: Eschweilera_pseudodecolorans_S._A._Mori | B54: Eschweilera pseudodecolorans | C54: ESCPSE | D54: ESC | E54: LECY | F54: Escp | G54: Esc | H54: Eschweilera | J54: Lecythidoideae | K54: Lecythidaceae | L54: Lecythidaceae | M54: Ericales | N54: 3 | O54: 1 | P54: 2 | Q54: 7 | R54: 3.25 | S54: 4391.07805 | T54: 191.0376 | U54: 253.3666 | V54: 7780.77085 | W54: 1.071999929 | X54: 11 | Y54: 12.96626815 | Z54: 10 | AA54: 1 | AB54: 5840.781818 | AC54: 11 | AD54: 1 | AE54: 50.10913625 | AF54: 5 | AG54: 1 | AH54: 0.8314051869 | AI54: 11 | AJ54: 1 | AK54: 0.2653333333 | AL54: 6 | AM54: 1 | AN54: 25.85528374 | AO54: 502.1637726 | AP54: 0.4962426718 | AQ54: 37.5 | AS54: 1 | AT54: 5 | AU54: 1 | AV54: 1 | AW54: 1 | AX54: 1 | AY54: 0 | AZ54: 9
A55: Eschweilera_rankiniae_S._A._Mori | B55: Eschweilera rankiniae | C55: ESCRAN | D55: ESC | E55: LECY | F55: Escr | G55: Esc | H55: Eschweilera | J55: Lecythidoideae | K55: Lecythidaceae | L55: Lecythidaceae | M55: Ericales | N55: 2 | O55: 1 | P55: 4 | Q55: 3 | R55: 2.5 | S55: 1154.2169 | T55: 298.49625 | U55: 1960.4747 | V55: 716.94835 | W55: 0.350936659 | X55: 6 | Y55: 9.790296785 | Z55: 6 | AA55: 1 | AB55: 2589.866667 | AC55: 6 | AD55: 1 | AE55: 45.98319966 | AF55: 6 | AG55: 1 | AH55: 0.8544339358 | AI55: 6 | AJ55: 1 | AK55: 0.2316666667 | AL55: 6 | AM55: 1 | AN55: 22.34982729 | AO55: 496.2492371 | AP55: 0.4724286766 | AQ55: 17.5 | AS55: 1 | AT55: 5 | AU55: 1 | AV55: 1 | AW55: 1 | AX55: 1 | AY55: 0 | AZ55: 9
A56: Eschweilera_romeu-cardosoi_S._A._Mori | B56: Eschweilera romeu-cardosoi | C56: ESCROM | D56: ESC | E56: LECY | F56: Escu | G56: Esc | H56: Eschweilera | J56: Lecythidoideae | K56: Lecythidaceae | L56: Lecythidaceae | M56: Ericales | N56: 10 | O56: 9 | P56: 6 | Q56: 8 | R56: 8.25 | S56: 3279.4788 | T56: 2240.20945 | U56: 1818.94705 | V56: 2253.9234 | W56: 0.8150773578 | X56: 17 | Y56: 9.292472464 | Z56: 16 | AA56: 1 | AB56: 5567.770833 | AC56: 16 | AD56: 1 | AE56: 50.76639087 | AF56: 8 | AG56: 1 | AH56: 0.9537211261 | AI56: 17 | AJ56: 1 | AK56: 0.27675 | AL56: 8 | AM56: 1 | AN56: 20.72900534 | AO56: 487.4958038 | AP56: 0.5914986525 | AQ56: 27.5 | AS56: 1 | AT56: 5 | AU56: 1 | AV56: 1 | AW56: 1 | AX56: 1 | AY56: 0 | AZ56: 9
A57: Eschweilera_truncata_A._C._Smith | B57: Eschweilera truncata | C57: ESCTRU | D57: ESC | E57: LECY | F57: Esct | G57: Esc | H57: Eschweilera | J57: Lecythidoideae | K57: Lecythidaceae | L57: Lecythidaceae | M57: Ericales | N57: 11 | O57: 12 | P57: 10 | Q57: 8 | R57: 10.25 | S57: 3659.22255 | T57: 2510.53205 | U57: 3345.17545 | V57: 3349.1554 | W57: 1.093058183 | X57: 15 | Y57: 9.212931087 | Z57: 11 | AA57: 1 | AB57: 7527.953846 | AC57: 13 | AD57: 1 | AE57: 52.54263531 | AF57: 8 | AG57: 1 | AH57: 1.0431173 | AI57: 14 | AJ57: 1 | AK57: 0.2724444444 | AL57: 9 | AM57: 1 | AN57: 17.60551691 | AO57: 492.2140884 | AP57: 0.4664751778 | AQ57: 32.5 | AS57: 1 | AT57: 5 | AU57: 1 | AV57: 1 | AW57: 1 | AX57: 1 | AY57: 0 | AZ57: 9
A58: Eschweilera_wachenheimii_(Benoist)_Sandw. | B58: Eschweilera wachenheimii | C58: ESCWAC | D58: ESC | E58: LECY | F58: Escw | G58: Esc | H58: Eschweilera | J58: Lecythidoideae | K58: Lecythidaceae | L58: Lecythidaceae | M58: Ericales | N58: 22 | O58: 20 | P58: 17 | Q58: 22 | R58: 20.25 | S58: 5337.94505 | T58: 7615.66965 | U58: 3648.5858 | V58: 6479.97875 | W58: 1.961287104 | X58: 26 | Y58: 11.84299004 | Z58: 15 | AA58: 1 | AB58: 4907.988235 | AC58: 17 | AD58: 1 | AE58: 51.0527999 | AF58: 15 | AG58: 1 | AH58: 0.7605898628 | AI58: 25 | AJ58: 1 | AK58: 0.1878823529 | AL58: 17 | AM58: 1 | AN58: 19.39711332 | AO58: 484.5352173 | AP58: 0.5379171633 | AQ58: 27.5 | AR58: 0.83 | AS58: 1 | AT58: 5 | AU58: 1 | AV58: 1 | AW58: 1 | AX58: 1 | AY58: 1 | AZ58: 10
A59: Ficus_guianensis_Desv. | B59: Ficus guianensis | C59: FICGUI | D59: FIC | E59: MORA | F59: Ficg | G59: Fic | H59: Ficus | I59: Ficeae | K59: Moraceae | L59: Moraceae | M59: Rosales | N59: 0 | O59: 0 | P59: 1 | Q59: 0 | R59: 0.25 | S59: 0 | T59: 0 | U59: 4415.625 | V59: 0 | W59: 0.3751945722 | X59: 0 | Z59: 0 | AC59: 0 | AF59: 0 | AI59: 0 | AL59: 0 | AQ59: 27.5 | AS59: 1 | AT59: 0 | AU59: 0 | AV59: 0 | AW59: 0 | AX59: 1 | AY59: 0 | AZ59: 1
A60: Fusaea_longifolia_(Aubl.)_Saff. | B60: Fusaea longifolia | C60: FUSLON | D60: FUS | E60: ANNO | F60: Fusl | G60: Fus | H60: Fusaea | K60: Annonaceae | L60: Annonaceae | M60: Magnoliales | N60: 1 | O60: 4 | P60: 5 | Q60: 6 | R60: 4 | S60: 226.865 | T60: 624.66375 | U60: 491.4257 | V60: 809.7432 | W60: 0.1829141908 | X60: 11 | Y60: 11.14729449 | Z60: 6 | AA60: 1 | AB60: 9442.166667 | AC60: 6 | AD60: 1 | AE60: 56.11269349 | AF60: 6 | AG60: 1 | AH60: 0.5891871549 | AI60: 11 | AJ60: 1 | AK60: 0.1913333333 | AL60: 6 | AM60: 1 | AN60: 19.6526432 | AO60: 476.6739655 | AP60: 0.4248006862 | AQ60: 17.5 | AR60: 0.74 | AS60: 1 | AT60: 5 | AU60: 1 | AV60: 1 | AW60: 1 | AX60: 1 | AY60: 1 | AZ60: 10
A61: Geissospermum_argenteum_Woodson | B61: Geissospermum argenteum | C61: GEIARG | D61: GEI | E61: APOC | F61: Geia | G61: Gei | H61: Geissospermum | K61: Apocynaceae | L61: Apocynaceae | M61: Gentianales | N61: 10 | O61: 4 | P61: 10 | Q61: 12 | R61: 9 | S61: 12788.66265 | T61: 5302.7535 | U61: 8729.85155 | V61: 23374.38765 | W61: 4.265112512 | X61: 11 | Y61: 13.00028375 | Z61: 9 | AA61: 1 | AB61: 4594.34 | AC61: 10 | AD61: 1 | AE61: 48.14897701 | AF61: 5 | AG61: 1 | AH61: 0.559001942 | AI61: 11 | AJ61: 1 | AK61: 0.1963333333 | AL61: 6 | AM61: 1 | AN61: 32.08409548 | AO61: 504.3089294 | AP61: 0.7403361223 | AQ61: 27.5 | AS61: 1 | AT61: 5 | AU61: 1 | AV61: 1 | AW61: 1 | AX61: 1 | AY61: 0 | AZ61: 9
A62: Glycydendron_amazonicum_Ducke | B62: Glycydendron amazonicum | C62: GLYAMA | D62: GLY | E62: EUPH | F62: Glya | G62: Gly | H62: Glycydendron | I62: Adenoclineae | J62: Crotonoideae | K62: Euphorbiaceae | L62: Euphorbiaceae | M62: Malpighiales | N62: 0 | O62: 2 | P62: 1 | Q62: 2 | R62: 1.25 | S62: 0 | T62: 1626.1589 | U62: 803.84 | V62: 2037.30265 | W62: 0.379585516 | X62: 3 | Y62: 13.19200477 | Z62: 3 | AA62: 1 | AB62: 14427.2 | AC62: 3 | AD62: 1 | AE62: 41.43230208 | AF62: 3 | AG62: 1 | AH62: 0.6329750606 | AI62: 3 | AJ62: 1 | AK62: 0.2226666667 | AL62: 3 | AM62: 1 | AN62: 23.18218946 | AO62: 473.4207153 | AP62: 0.7522431199 | AQ62: 27.5 | AR62: 0.68 | AS62: 1 | AT62: 5 | AU62: 1 | AV62: 1 | AW62: 1 | AX62: 1 | AY62: 1 | AZ62: 10
A63: Goupia_glabra_Aubl. | B63: Goupia glabra | C63: GOUGLA | D63: GOU | E63: GOUP | F63: Goug | G63: Gou | H63: Goupia | K63: Goupiaceae | L63: Celastraceae | M63: Malpighiales | N63: 2 | O63: 0 | P63: 1 | Q63: 2 | R63: 1.25 | S63: 3883.30865 | T63: 0 | U63: 1057.30865 | V63: 2209.1156 | W63: 0.6075110493 | X63: 4 | Y63: 19.30229378 | Z63: 3 | AA63: 1 | AB63: 6941 | AC63: 4 | AD63: 1 | AE63: 39.63335642 | AF63: 2 | AH63: 0.3526371686 | AI63: 4 | AJ63: 1 | AK63: 0.1533333333 | AL63: 3 | AM63: 1 | AN63: 16.42727733 | AO63: 478.0839539 | AP63: 0.4783821754 | AQ63: 22.5 | AR63: 0.72 | AS63: 1 | AT63: 4 | AU63: 1 | AV63: 1 | AW63: 1 | AX63: 1 | AY63: 1 | AZ63: 9
A64: Guarea_convergens_Penn. | B64: Guarea convergens | C64: GUACON | D64: GUA | E64: MELI | F64: Guac | G64: Gua | H64: Guarea | K64: Meliaceae | L64: Meliaceae | M64: Sapindales | N64: 1 | O64: 0 | P64: 3 | Q64: 1 | R64: 1.25 | S64: 1051.5546 | T64: 0 | U64: 583.56115 | V64: 113.04 | W64: 0.1485403649 | X64: 4 | Y64: 10.3056835 | Z64: 4 | AA64: 1 | AB64: 3332.314209 | AC64: 4 | AD64: 1 | AE64: 38.15754877 | AF64: 4 | AG64: 1 | AH64: 0.6500451113 | AI64: 4 | AJ64: 1 | AK64: 0.272 | AL64: 4 | AM64: 1 | AN64: 18.19613338 | AO64: 494.2407227 | AP64: 0.7701036163 | AQ64: 22.5 | AS64: 2 | AT64: 5 | AU64: 1 | AV64: 1 | AW64: 1 | AX64: 1 | AY64: 0 | AZ64: 9
A65: Guarea_sp._3 | B65: Guarea sp. 3 | C65: GUASP3 | D65: GUA | E65: MELI | F65: Gua3 | G65: Gua | H65: Guarea | K65: Meliaceae | L65: Meliaceae | M65: Sapindales | N65: 5 | O65: 0 | P65: 3 | Q65: 1 | R65: 2.25 | S65: 836.56665 | T65: 0 | U65: 919.0466 | V65: 93.26585 | W65: 0.1570988032 | X65: 1 | Y65: 6.668912 | Z65: 1 | AB65: 7935.333333 | AC65: 1 | AE65: 37.74588122 | AF65: 1 | AH65: 0.7291147579 | AI65: 1 | AK65: 0.36 | AL65: 1 | AN65: 25.79665184 | AO65: 502.3847198 | AP65: 0.9427550813 | AQ65: 22.5 | AS65: 2 | AT65: 0 | AU65: 1 | AV65: 1 | AW65: 1 | AX65: 1 | AY65: 0 | AZ65: 4
A66: Heisteria_laxiflora_Engl. | B66: Heisteria laxiflora | C66: HEILAX | D66: HEI | E66: OLAC | F66: Heil | G66: Hei | H66: Heisteria | K66: Olacaceae | L66: Olacaceae | M66: Santalales | N66: 1 | O66: 3 | P66: 0 | Q66: 1 | R66: 1.25 | S66: 248.7194 | T66: 929.9895 | U66: 0 | V66: 961.625 | W66: 0.181863646 | X66: 4 | Y66: 9.358857225 | Z66: 4 | AA66: 1 | AB66: 7271.55 | AC66: 4 | AD66: 1 | AE66: 50.75687522 | AF66: 4 | AG66: 1 | AH66: 1.423697576 | AI66: 4 | AJ66: 1 | AK66: 0.2335 | AL66: 4 | AM66: 1 | AN66: 17.69922495 | AO66: 492.2687531 | AP66: 0.4486146814 | AQ66: 22.5 | AS66: 1 | AT66: 5 | AU66: 1 | AV66: 1 | AW66: 1 | AX66: 1 | AY66: 0 | AZ66: 9
A67: Helicostylis_tomentosa_(Poepp._&_Endl.)_Rusby | B67: Helicostylis tomentosa | C67: HELTOM | D67: HEL | E67: MORA | F67: Helt | G67: Hel | H67: Helicostylis | I67: Castilleae | K67: Moraceae | L67: Moraceae | M67: Rosales | N67: 3 | O67: 1 | P67: 1 | Q67: 0 | R67: 1.25 | S67: 1676.28115 | T67: 379.94 | U67: 304.65065 | V67: 0 | W67: 0.2006026973 | X67: 6 | Y67: 14.42736145 | Z67: 6 | AA67: 1 | AB67: 14736.03333 | AC67: 6 | AD67: 1 | AE67: 42.80877351 | AF67: 3 | AG67: 1 | AH67: 0.4448455579 | AI67: 6 | AJ67: 1 | AK67: 0.2833333333 | AL67: 3 | AM67: 1 | AN67: 22.63772249 | AO67: 442.7236938 | AP67: 0.8117781078 | AQ67: 22.5 | AR67: 0.72 | AS67: 1 | AT67: 5 | AU67: =IF(AN67=0,0,1) -> 1 | AV67: =IF(AO67=0,0,1) -> 1 | AW67: =IF(AP67=0,0,1) -> 1 | AX67: =IF(AQ67=0,0,1) -> 1 | AY67: =IF(AR67=0,0,1) -> 1 | AZ67: 10
A68: Hevea_guianensis_Aubl. | B68: Hevea guianensis | C68: HEVGUI | D68: HEV | E68: EUPH | F68: Hevg | G68: Hev | H68: Hevea | I68: Micrandreae | J68: Crotonoideae | K68: Euphorbiaceae | L68: Euphorbiaceae | M68: Malpighiales | N68: 3 | O68: 5 | P68: 4 | Q68: 5 | R68: 4.25 | S68: 1624.5261 | T68: 2213.3389 | U68: 1497.309 | V68: 2164.77095 | W68: 0.6372684812 | X68: 11 | Y68: 11.52566356 | Z68: 8 | AA68: 1 | AB68: 5728.583333 | AC68: 8 | AD68: 1 | AE68: 42.44548611 | AF68: 6 | AG68: 1 | AH68: 0.6038581828 | AI68: 11 | AJ68: 1 | AK68: 0.2053333333 | AL68: 6 | AM68: 1 | AN68: 22.27012634 | AO68: 500.8394241 | AP68: 0.8117781078 | AQ68: 27.5 | AR68: 0.56 | AS68: 2 | AT68: 5 | AU68: 1 | AV68: 1 | AW68: 1 | AX68: 1 | AY68: 1 | AZ68: 10
A69: Inga_alba_(Sw.)_Willd. | B69: Inga alba | C69: INGALB | D69: ING | E69: FABA | F69: Inga | G69: Ing | H69: Inga | I69: Ingeae | J69: Mimosoideae | K69: Fabaceae – Mimosoideae | L69: Leguminosae | M69: Fabales | N69: 1 | O69: 0 | P69: 0 | Q69: 0 | R69: 0.25 | S69: 3461.0336 | T69: 0 | U69: 0 | V69: 0 | W69: 0.2940831753 | X69: 1 | Y69: 6.32098943 | Z69: 1 | AB69: 4308.15 | AC69: 1 | AE69: 47.80351987 | AF69: 1 | AH69: 0.5933528367 | AI69: 1 | AK69: 0.154 | AL69: 1 | AN69: 28.22519302 | AO69: 478.6466217 | AP69: 0.895127091 | AQ69: 32.5 | AR69: 0.59 | AS69: 2 | AT69: 0 | AU69: 1 | AV69: 1 | AW69: 1 | AX69: 1 | AY69: 1 | AZ69: 5
A70: Inga_capitata_Desv. | B70: Inga capitata | C70: INGCAP | D70: ING | E70: FABA | F70: Ingc | G70: Ing | H70: Inga | I70: Ingeae | J70: Mimosoideae | K70: Fabaceae – Mimosoideae | L70: Leguminosae | M70: Fabales | N70: 4 | O70: 1 | P70: 2 | Q70: 2 | R70: 2.25 | S70: 1398.21845 | T70: 490.625 | U70: 457.06625 | V70: 619.522 | W70: 0.2519720036 | X70: 6 | Y70: 20.86340156 | Z70: 6 | AA70: 1 | AB70: 3261.588943 | AC70: 6 | AD70: 1 | AE70: 41.94355596 | AF70: 6 | AG70: 1 | AH70: 0.670519136 | AI70: 6 | AJ70: 1 | AK70: 0.2303333333 | AL70: 6 | AM70: 1 | AN70: 35.11229038 | AO70: 467.3791504 | AP70: 0.8534525994 | AQ70: 32.5 | AR70: 0.6 | AS70: 2 | AT70: 5 | AU70: 1 | AV70: 1 | AW70: 1 | AX70: 1 | AY70: 1 | AZ70: 10
A71: Inga_paraensis_Ducke | B71: Inga paraensis | C71: INGPAR | D71: ING | E71: FABA | F71: Ingp | G71: Ing | H71: Inga | I71: Ingeae | J71: Mimosoideae | K71: Fabaceae – Mimosoideae | L71: Leguminosae | M71: Fabales | N71: 0 | O71: 5 | P71: 2 | Q71: 1 | R71: 2 | S71: 0 | T71: 1163.06385 | U71: 333.1697 | V71: 711.21785 | W71: 0.1875666035 | X71: 6 | Y71: 11.09369922 | Z71: 6 | AA71: 1 | AB71: 4119.963095 | AC71: 6 | AD71: 1 | AE71: 52.01757009 | AF71: 6 | AG71: 1 | AH71: 0.7581122689 | AI71: 6 | AJ71: 1 | AK71: 0.2356666667 | AL71: 6 | AM71: 1 | AN71: 26.59582853 | AO71: 497.0158386 | AP71: 0.5795916549 | AQ71: 22.5 | AR71: 0.82 | AS71: 2 | AT71: 5 | AU71: 1 | AV71: 1 | AW71: 1 | AX71: 1 | AY71: 1 | AZ71: 10
A72: Inga_rubiginosa_(L._C._Rich.)_DC. | B72: Inga rubiginosa | C72: INGRUB | D72: ING | E72: FABA | F72: Ingr | G72: Ing | H72: Inga | I72: Ingeae | J72: Mimosoideae | K72: Fabaceae – Mimosoideae | L72: Leguminosae | M72: Fabales | N72: 0 | O72: 0 | P72: 3 | Q72: 1 | R72: 1 | S72: 0 | T72: 0 | U72: 1462.77685 | V72: 397.40625 | W72: 0.1580593013 | X72: 3 | Y72: 12.24188639 | Z72: 3 | AA72: 1 | AB72: 11748.55098 | AC72: 3 | AD72: 1 | AE72: 39.63989027 | AF72: 2 | AH72: 0.66221961 | AI72: 3 | AJ72: 1 | AK72: 0.3021666667 | AL72: 3 | AM72: 1 | AN72: 28.00866365 | AO72: 504.7795105 | AP72: 0.8117781078 | AQ72: 27.5 | AR72: 0.66 | AS72: 2 | AT72: 4 | AU72: 1 | AV72: 1 | AW72: 1 | AX72: 1 | AY72: 1 | AZ72: 9
A73: Inga_sp._7 | B73: Inga sp. 7 | C73: INGSP7 | D73: ING | E73: FABA | F73: Ing7 | G73: Ing | H73: Inga | I73: Ingeae | J73: Mimosoideae | K73: Fabaceae – Mimosoideae | L73: Leguminosae | M73: Fabales | N73: 1 | O73: 0 | P73: 2 | Q73: 2 | R73: 1.25 | S73: 292.40465 | T73: 0 | U73: 632.87485 | V73: 832.3669 | W73: 0.1493467831 | X73: 3 | Y73: 12.94566571 | Z73: 3 | AA73: 1 | AB73: 11569.98519 | AC73: 3 | AD73: 1 | AE73: 42.94003504 | AF73: 3 | AG73: 1 | AH73: 0.704756208 | AI73: 3 | AJ73: 1 | AK73: 0.2006666667 | AL73: 3 | AM73: 1 | AN73: 25.54493666 | AO73: 447.4798965 | AP73: 0.6867546332 | AQ73: 22.5 | AS73: 2 | AT73: 5 | AU73: 1 | AV73: 1 | AW73: 1 | AX73: 1 | AY73: 0 | AZ73: 9
A74: Lecythis_chartacea_Berg | B74: Lecythis chartacea | C74: LECCHA | D74: LEC | E74: LECY | F74: Lecc | G74: Lec | H74: Lecythis | K74: Lecythidaceae | L74: Lecythidaceae | M74: Ericales | N74: 0 | O74: 2 | P74: 1 | Q74: 0 | R74: 0.75 | S74: 0 | T74: 2816.7841 | U74: 2417.99625 | V74: 0 | W74: 0.4447980012 | X74: 1 | Y74: 5.852545455 | Z74: 1 | AB74: 6391.6 | AC74: 1 | AF74: 0 | AH74: 0.6533101045 | AI74: 1 | AL74: 0 | AQ74: 27.5 | AR74: 0.82 | AS74: 1 | AT74: 0 | AU74: 0 | AV74: 0 | AW74: 0 | AX74: 1 | AY74: 1 | AZ74: 2
A75: Lecythis_prancei_S._A._Mori | B75: Lecythis prancei | C75: LECPRA | D75: LEC | E75: LECY | F75: Lecp | G75: Lec | H75: Lecythis | K75: Lecythidaceae | L75: Lecythidaceae | M75: Ericales | N75: 10 | O75: 9 | P75: 6 | Q75: 5 | R75: 7.5 | S75: 8817.83435 | T75: 5331.1077 | U75: 5055.0075 | V75: 2705.424 | W75: 1.861634092 | X75: 14 | Y75: 11.42400405 | Z75: 13 | AA75: 1 | AB75: 17339.91429 | AC75: 14 | AD75: 1 | AE75: 45.55264729 | AF75: 8 | AG75: 1 | AH75: 0.6944445307 | AI75: 14 | AJ75: 1 | AK75: 0.24475 | AL75: 8 | AM75: 1 | AN75: 28.83283615 | AO75: 582.3245239 | AP75: 0.4843356742 | AQ75: 27.5 | AR75: 0.88 | AS75: 1 | AT75: 5 | AU75: 1 | AV75: 1 | AW75: 1 | AX75: 1 | AY75: 1 | AZ75: 10
A76: Licania_caudata_Prance | B76: Licania caudata | C76: LICCAU | D76: LIC | E76: CHRY | F76: Licc | G76: Lic | H76: Licania | K76: Chrysobalanaceae | L76: Chrysobalanaceae | M76: Malpighiales | N76: 0 | O76: 3 | P76: 2 | Q76: 1 | R76: 1.5 | S76: 0 | T76: 3728.9384 | U76: 2434.73245 | V76: 224.20385 | W76: 0.5427761451 | X76: 3 | Y76: 11.4156696 | Z76: 3 | AA76: 1 | AB76: 4688.4 | AC76: 3 | AD76: 1 | AE76: 41.93815413 | AF76: 3 | AG76: 1 | AH76: 0.4896602362 | AI76: 3 | AJ76: 1 | AK76: 0.2326666667 | AL76: 3 | AM76: 1 | AN76: 13.27967882 | AO76: 347.6030731 | AP76: 0.3652656983 | AQ76: 37.5 | AS76: 1 | AT76: 5 | AU76: 1 | AV76: 1 | AW76: 1 | AX76: 1 | AY76: 0 | AZ76: 9
A77: Licania_heteromorpha_Benth. | B77: Licania heteromorpha | C77: LICHET | D77: LIC | E77: CHRY | F77: Lich | G77: Lic | H77: Licania | K77: Chrysobalanaceae | L77: Chrysobalanaceae | M77: Malpighiales | N77: 3 | O77: 4 | P77: 1 | Q77: 0 | R77: 2 | S77: 1867.7034 | T77: 4384.9786 | U77: 994.8776 | V77: 0 | W77: 0.61582336 | X77: 7 | Y77: 13.07970127 | Z77: 6 | AA77: 1 | AB77: 3503.485714 | AC77: 7 | AD77: 1 | AE77: 49.94633529 | AF77: 5 | AG77: 1 | AH77: 0.8510056215 | AI77: 7 | AJ77: 1 | AK77: 0.2116666667 | AL77: 6 | AM77: 1 | AN77: 13.34123015 | AO77: 357.5374603 | AP77: 0.4128936886 | AQ77: 37.5 | AR77: 0.82 | AS77: 1 | AT77: 5 | AU77: 1 | AV77: 1 | AW77: 1 | AX77: 1 | AY77: 1 | AZ77: 10
A78: Licania_impressa_Prance | B78: Licania impressa | C78: LICIMP | D78: LIC | E78: CHRY | F78: Lici | G78: Lic | H78: Licania | K78: Chrysobalanaceae | L78: Chrysobalanaceae | M78: Malpighiales | N78: 1 | O78: 1 | P78: 0 | Q78: 1 | R78: 0.75 | S78: 274.50665 | T78: 4275.4554 | U78: 0 | V78: 240.40625 | W78: 0.4070364184 | X78: 3 | Y78: 8.472317248 | Z78: 3 | AA78: 1 | AB78: 7773.066667 | AC78: 3 | AD78: 1 | AE78: 47.93877675 | AF78: 3 | AG78: 1 | AH78: 0.7737794151 | AI78: 3 | AJ78: 1 | AK78: 0.294 | AL78: 3 | AM78: 1 | AN78: 14.47943091 | AO78: 342.2295761 | AP78: 0.3771726959 | AQ78: 17.5 | AR78: 0.92 | AS78: 1 | AT78: 5 | AU78: 1 | AV78: 1 | AW78: 1 | AX78: 1 | AY78: 1 | AZ78: 10
A79: Licania_sp._9 | B79: Licania sp. 9 | C79: LICSP9 | D79: LIC | E79: CHRY | F79: Lic9 | G79: Lic | H79: Licania | K79: Chrysobalanaceae | L79: Chrysobalanaceae | M79: Malpighiales | N79: 0 | O79: 1 | P79: 1 | Q79: 1 | R79: 0.75 | S79: 0 | T79: 86.54625 | U79: 109.3034 | V79: 2017.83465 | W79: 0.1880962115 | X79: 1 | Y79: 10.23920145 | Z79: 1 | AB79: 5631.6 | AC79: 1 | AE79: 48.91690341 | AF79: 1 | AH79: 0.6118179028 | AI79: 1 | AK79: 0.2 | AL79: 1 | AN79: 14.1327548 | AO79: 337.7353668 | AP79: 0.3414517031 | AQ79: 32.5 | AS79: 1 | AT79: 0 | AU79: 1 | AV79: 1 | AW79: 1 | AX79: 1 | AY79: 0 | AZ79: 4
A80: Licaria_cannella_(Meissn.)_Kosterm. | B80: Licaria cannella | C80: LRACAN | D80: LRA | E80: LAUR | F80: Lcac | G80: Lca | H80: Licaria | K80: Lauraceae | L80: Lauraceae | M80: Laurales | N80: 3 | O80: 2 | P80: 3 | Q80: 1 | R80: 2.25 | S80: 618.33665 | T80: 1187.21045 | U80: 1890.2329 | V80: 880.96625 | W80: 0.3888850053 | X80: 5 | Y80: 9.257047207 | Z80: 5 | AA80: 1 | AB80: 5679.72 | AC80: 5 | AD80: 1 | AE80: 49.51822293 | AF80: 4 | AG80: 1 | AH80: 1.014125267 | AI80: 5 | AJ80: 1 | AK80: 0.3215 | AL80: 4 | AM80: 1 | AN80: 17.1026516 | AO80: 617.4977875 | AP80: 0.3771726959 | AR80: 0.97 | AS80: 1 | AT80: 5 | AU80: 1 | AV80: 1 | AW80: 1 | AX80: 0 | AY80: 1 | AZ80: 9
A81: Lueheopsis_rosea_(Ducke)_Burret | B81: Lueheopsis rosea | C81: LUEROS | D81: LUE | E81: MALV | F81: Luer | G81: Lue | H81: Lueheopsis | J81: Tilioideae | K81: Malvaceae | L81: Tiliaceae | M81: Malvales | N81: 2 | O81: 1 | P81: 1 | Q81: 0 | R81: 1 | S81: 1510.9209 | T81: 2826 | U81: 1589.625 | V81: 0 | W81: 0.5035771502 | X81: 4 | Y81: 13.1825122 | Z81: 3 | AA81: 1 | AB81: 9260 | AC81: 4 | AD81: 1 | AE81: 59.24485213 | AF81: 2 | AH81: 0.9744181779 | AI81: 4 | AJ81: 1 | AK81: 0.2713333333 | AL81: 3 | AM81: 1 | AN81: 20.00696659 | AO81: 480.5033112 | AP81: 0.490289173 | AQ81: 37.5 | AS81: 1 | AT81: 4 | AU81: 1 | AV81: 1 | AW81: 1 | AX81: 1 | AY81: 0 | AZ81: 8
A82: Macrolobium_angustifolium_(Benth.)_Cowan | B82: Macrolobium angustifolium | C82: MACANG | D82: MAC | E82: FABA | F82: Maca | G82: Mac | H82: Macrolobium | I82: Detarieae | J82: Caesalpinoideae | K82: Fabaceae – Caesalpinoideae | L82: Leguminosae | M82: Fabales | N82: 3 | O82: 2 | P82: 3 | Q82: 2 | R82: 2.5 | S82: 934.6524 | T82: 458.2045 | U82: 463.37765 | V82: 506.55265 | W82: 0.2007654483 | X82: 3 | Y82: 15.91221512 | Z82: 3 | AA82: 1 | AB82: 3389.733333 | AC82: 3 | AD82: 1 | AE82: 37.45958699 | AF82: 3 | AG82: 1 | AH82: 0.4920360922 | AI82: 3 | AJ82: 1 | AK82: 0.176 | AL82: 3 | AM82: 1 | AN82: 15.06250858 | AO82: 471.9290924 | AP82: 0.633173144 | AQ82: 27.5 | AR82: 0.68 | AS82: 2 | AT82: 5 | AU82: 1 | AV82: 1 | AW82: 1 | AX82: 1 | AY82: 1 | AZ82: 10
A83: Manilkara_bidentata_(A._DC.)_A._Chev. | B83: Manilkara bidentata | C83: MANBID | D83: MAN | E83: SAPO | F83: Manb | G83: Man | H83: Manilkara | J83: Sapotoideae | K83: Sapotaceae | L83: Sapotaceae | M83: Ericales | N83: 2 | O83: 4 | P83: 4 | Q83: 4 | R83: 3.5 | S83: 756.74 | T83: 5959.75925 | U83: 1471.34905 | V83: 576.0644 | W83: 0.7446675106 | X83: 9 | Y83: 10.37979494 | Z83: 6 | AA83: 1 | AB83: 3410.8 | AC83: 6 | AD83: 1 | AE83: 52.46639685 | AF83: 5 | AG83: 1 | AH83: 0.8994567957 | AI83: 9 | AJ83: 1 | AK83: 0.1656 | AL83: 5 | AM83: 1 | AN83: 16.05 | AO83: 477.2 | AP83: 0.4128936886 | AQ83: 27.5 | AR83: 0.88 | AS83: 1 | AT83: 5 | AU83: 1 | AV83: 1 | AW83: 1 | AX83: 1 | AY83: 1 | AZ83: 10
A84: Manilkara_huberi_(Ducke)_A._Chev. | B84: Manilkara huberi | C84: MANHUB | D84: MAN | E84: SAPO | F84: Manh | G84: Man | H84: Manilkara | J84: Sapotoideae | K84: Sapotaceae | L84: Sapotaceae | M84: Ericales | N84: 1 | O84: 4 | P84: 2 | Q84: 4 | R84: 2.75 | S84: 1319.585 | T84: 2139.0779 | U84: 1594.53125 | V84: 6454.82735 | W84: 0.9778337617 | X84: 7 | Y84: 6.156033296 | Z84: 7 | AA84: 1 | AB84: 15177.48571 | AC84: 7 | AD84: 1 | AE84: 48.8943186 | AF84: 6 | AG84: 1 | AH84: 1.007727279 | AI84: 7 | AJ84: 1 | AK84: 0.2736666667 | AL84: 6 | AM84: 1 | AN84: 12.97212005 | AO84: 502.4533081 | AP84: 0.3890796935 | AQ84: 32.5 | AR84: 0.93 | AS84: 1 | AT84: 5 | AU84: 1 | AV84: 1 | AW84: 1 | AX84: 1 | AY84: 1 | AZ84: 10
A85: Maquira_sclerophylla_(Ducke)_C._C._Berg | B85: Maquira sclerophylla | C85: MAQSCL | D85: MAQ | E85: MORA | F85: Maqs | G85: Maq | H85: Maquira | K85: Moraceae | L85: Moraceae | M85: Rosales | N85: 1 | O85: 1 | P85: 2 | Q85: 3 | R85: 1.75 | S85: 2106.3434 | T85: 1444.72185 | U85: 895.84985 | V85: 1110.28045 | W85: 0.4721935416 | X85: 6 | Y85: 8.356463207 | Z85: 6 | AA85: 1 | AB85: 31784 | AC85: 6 | AD85: 1 | AE85: 42.65947843 | AF85: 5 | AG85: 1 | AH85: 0.6728862514 | AI85: 6 | AJ85: 1 | AK85: 0.2236666667 | AL85: 6 | AM85: 1 | AN85: 21.79892778 | AO85: 427.8936005 | AP85: 0.6688941368 | AQ85: 37.5 | AR85: 0.53 | AS85: 1 | AT85: 5 | AU85: 1 | AV85: 1 | AW85: 1 | AX85: 1 | AY85: 1 | AZ85: 10
A86: Mezilaurus_duckei_van_der_Werff | B86: Mezilaurus duckei | C86: MEZDUC | D86: MEZ | E86: LAUR | F86: Mezd | G86: Mez | H86: Mezilaurus | K86: Lauraceae | L86: Lauraceae | M86: Laurales | N86: 1 | O86: 4 | P86: 1 | Q86: 2 | R86: 2 | S86: 730.24625 | T86: 1942.561 | U86: 286.37585 | V86: 1756.2962 | W86: 0.4006731185 | X86: 7 | Y86: 11.31444289 | Z86: 6 | AA86: 1 | AB86: 19583 | AC86: 6 | AD86: 1 | AE86: 55.21701061 | AF86: 6 | AG86: 1 | AH86: 0.9147136416 | AI86: 7 | AJ86: 1 | AK86: 0.3166666667 | AL86: 6 | AM86: 1 | AN86: 17.39314914 | AO86: 488.3625412 | AP86: 0.4664751778 | AQ86: 32.5 | AR86: 0.67 | AS86: 1 | AT86: 5 | AU86: 1 | AV86: 1 | AW86: 1 | AX86: 1 | AY86: 1 | AZ86: 10
A87: Mezilaurus_sp._nov._1 | B87: Mezilaurus sp. 1 | C87: MEZSP1 | D87: MEZ | E87: LAUR | F87: Mez1 | G87: Mez | H87: Mezilaurus | K87: Lauraceae | L87: Lauraceae | M87: Laurales | N87: 2 | O87: 2 | P87: 1 | Q87: 2 | R87: 1.75 | S87: 525.0865 | T87: 470.529 | U87: 854.865 | V87: 305.27865 | W87: 0.1831743257 | X87: 6 | Y87: 11.43962407 | Z87: 6 | AA87: 1 | AB87: 7060.9 | AC87: 6 | AD87: 1 | AE87: 49.55810943 | AF87: 6 | AG87: 1 | AH87: 0.5845419182 | AI87: 6 | AJ87: 1 | AK87: 0.19 | AL87: 6 | AM87: 1 | AN87: 17.44494796 | AO87: 481.169281 | AP87: 0.5914986525 | AQ87: 22.5 | AS87: 1 | AT87: 5 | AU87: 1 | AV87: 1 | AW87: 1 | AX87: 1 | AY87: 0 | AZ87: 9
A88: Miconia_burchellii_Triana | B88: Miconia burchellii | C88: MICBUR | D88: MIC | E88: MELA | F88: Micb | G88: Mic | H88: Miconia | K88: Melastomataceae | L88: Melastomataceae | M88: Myrtales | N88: 3 | O88: 9 | P88: 0 | Q88: 0 | R88: 3 | S88: 584.1656 | T88: 2171.467 | U88: 0 | V88: 0 | W88: 0.2341454255 | X88: 3 | Y88: 9.263473158 | Z88: 3 | AA88: 1 | AB88: 2724.333333 | AC88: 3 | AD88: 1 | AE88: 49.69594595 | AF88: 1 | AH88: 0.1852115962 | AI88: 3 | AJ88: 1 | AK88: 0.282 | AL88: 1 | AQ88: 22.5 | AS88: 1 | AT88: 3 | AU88: 0 | AV88: 0 | AW88: 0 | AX88: 1 | AY88: 0 | AZ88: 4
A89: Miconia_pyrifolia_Naudin | B89: Miconia pyrifolia | C89: MICPYR | D89: MIC | E89: MELA | F89: Micp | G89: Mic | H89: Miconia | K89: Melastomataceae | L89: Melastomataceae | M89: Myrtales | N89: 0 | O89: 0 | P89: 0 | Q89: 3 | R89: 0.75 | S89: 0 | T89: 0 | U89: 0 | V89: 1979.4874 | W89: 0.1681965584 | X89: 0 | Z89: 0 | AC89: 0 | AF89: 0 | AI89: 0 | AL89: 0 | AQ89: 32.5 | AS89: 1 | AT89: 0 | AU89: 0 | AV89: 0 | AW89: 0 | AX89: 1 | AY89: 0 | AZ89: 1
A90: Micropholis_casiquiarensis/mensalis | B90: Micropholis casiquiarensis/mensalis | C90: MIHCAS | D90: MIH | E90: SAPO | F90: Mcrc | G90: Mcr | H90: Micropholis | J90: Chrysophylloideae | K90: Sapotaceae | L90: Sapotaceae | M90: Ericales | N90: 1 | O90: 1 | P90: 0 | Q90: 2 | R90: 1 | S90: 3316.625 | T90: 440.92665 | U90: 0 | V90: 338.34285 | W90: 0.3480271501 | X90: 4 | Y90: 10.80585507 | Z90: 3 | AA90: 1 | AB90: 5243.8 | AC90: 3 | AD90: 1 | AE90: 44.37760269 | AF90: 4 | AG90: 1 | AH90: 0.7755612389 | AI90: 4 | AJ90: 1 | AK90: 0.2665 | AL90: 4 | AM90: 1 | AN90: 18.06583524 | AO90: 484.6045303 | AP90: 0.3831261947 | AQ90: 32.5 | AR90: 0.72 | AS90: 1 | AT90: 5 | AU90: 1 | AV90: 1 | AW90: 1 | AX90: 1 | AY90: 1 | AZ90: 10
A91: Micropholis_cylindrocarpa_(Poepp.)_Pierre | B91: Micropholis cylindrocarpa | C91: MIHCYL | D91: MIH | E91: SAPO | F91: Mcry | G91: Mcr | H91: Micropholis | J91: Chrysophylloideae | K91: Sapotaceae | L91: Sapotaceae | M91: Ericales | N91: 0 | O91: 2 | P91: 2 | Q91: 1 | R91: 1.25 | S91: 0 | T91: 711.72025 | U91: 402.548 | V91: 593.65625 | W91: 0.1451219255 | X91: 3 | Y91: 10.60319996 | Z91: 3 | AA91: 1 | AB91: 1214.933333 | AC91: 3 | AD91: 1 | AE91: 51.55107493 | AF91: 3 | AG91: 1 | AH91: 0.3261747839 | AI91: 3 | AJ91: 1 | AK91: 0.1813333333 | AL91: 3 | AM91: 1 | AN91: 17.89048195 | AO91: 470.0321579 | AP91: 0.3593121995 | AQ91: 17.5 | AS91: 1 | AT91: 5 | AU91: 1 | AV91: 1 | AW91: 1 | AX91: 1 | AY91: 0 | AZ91: 9
A92: Micropholis_guyanensis_(A._DC.)_Pierre | B92: Micropholis guyanensis | C92: MIHGUI | D92: MIH | E92: SAPO | F92: Mcrg | G92: Mcr | H92: Micropholis | J92: Chrysophylloideae | K92: Sapotaceae | L92: Sapotaceae | M92: Ericales | N92: 3 | O92: 0 | P92: 4 | Q92: 0 | R92: 1.75 | S92: 1246.6114 | T92: 0 | U92: 1840.5267 | V92: 0 | W92: 0.2623133665 | X92: 15 | Y92: 12.23720397 | Z92: 13 | AA92: 1 | AB92: 7192.042857 | AC92: 14 | AD92: 1 | AE92: 53.78460868 | AF92: 6 | AG92: 1 | AH92: 0.927873845 | AI92: 15 | AJ92: 1 | AK92: 0.2834285714 | AL92: 7 | AM92: 1 | AN92: 23.17841053 | AO92: 492.9153442 | AP92: 0.3652656983 | AQ92: 32.5 | AR92: 0.66 | AS92: 1 | AT92: 5 | AU92: 1 | AV92: 1 | AW92: 1 | AX92: 1 | AY92: 1 | AZ92: 10
A93: Micropholis_venulosa_(Mart._&_Eichler)_Pierre | B93: Micropholis venulosa | C93: MIHVEN | D93: MIH | E93: SAPO | F93: Mcrv | G93: Mcr | H93: Micropholis | J93: Chrysophylloideae | K93: Sapotaceae | L93: Sapotaceae | M93: Ericales | N93: 3 | O93: 0 | P93: 1 | Q93: 1 | R93: 1.25 | S93: 2118.7621 | T93: 0 | U93: 2331.64625 | V93: 834.2666 | W93: 0.4490799437 | X93: 4 | Y93: 10.15317693 | Z93: 4 | AA93: 1 | AB93: 1083.35 | AC93: 4 | AD93: 1 | AE93: 54.21525934 | AF93: 3 | AG93: 1 | AH93: 0.4399330348 | AI93: 4 | AJ93: 1 | AK93: 0.1493333333 | AL93: 3 | AM93: 1 | AQ93: 32.5 | AR93: 0.69 | AS93: 1 | AT93: 5 | AU93: 0 | AV93: 0 | AW93: 0 | AX93: 1 | AY93: 1 | AZ93: 7
A94: Minquartia_guianensis_Aubl. | B94: Minquartia guianensis | C94: MINGUI | D94: MIN | E94: OLAC | F94: Ming | G94: Min | H94: Minquartia | K94: Olacaceae | L94: Olacaceae | M94: Santalales | N94: 12 | O94: 13 | P94: 12 | Q94: 7 | R94: 11 | S94: 8805.6119 | T94: 4416.0018 | U94: 8459.8979 | V94: 2200.28435 | W94: 2.029230339 | X94: 17 | Y94: 13.43642796 | Z94: 9 | AA94: 1 | AB94: 12737.14545 | AC94: 11 | AD94: 1 | AE94: 53.48188871 | AF94: 6 | AG94: 1 | AH94: 0.8552055076 | AI94: 17 | AJ94: 1 | AK94: 0.2541666667 | AL94: 8 | AM94: 1 | AN94: 25.45790911 | AO94: 450.4872131 | AP94: 0.3295447055 | AQ94: 32.5 | AR94: 0.77 | AS94: 1 | AT94: 5 | AU94: 1 | AV94: 1 | AW94: 1 | AX94: 1 | AY94: 1 | AZ94: 10
A95: Moronobea_coccinea_Aubl. | B95: Moronobea coccinea | C95: MORCOC | D95: MOR | E95: CLUS | F95: Morc | G95: Mor | H95: Moronobea | I95: Moronobeeae | J95: Clusioideae | K95: Clusiaceae | L95: Clusiaceae | M95: Malpighiales | N95: 0 | O95: 1 | P95: 1 | Q95: 0 | R95: 0.5 | S95: 0 | T95: 91.5624 | U95: 4474.69625 | V95: 0 | W95: 0.3879938765 | X95: 0 | Z95: 0 | AC95: 0 | AF95: 0 | AI95: 0 | AL95: 0 | AQ95: 32.5 | AR95: 0.82 | AS95: 1 | AT95: 0 | AU95: 0 | AV95: 0 | AW95: 0 | AX95: 1 | AY95: 1 | AZ95: 2
A96: Mouriri_angulicosta/duckeana/duckeanoides | B96: Mouriri angulicosta/duckeana/duckeanoides | C96: MOUANG | D96: MOU | E96: MELA | F96: Moua | G96: Mou | H96: Mouriri | K96: Melastomataceae | L96: Memecylaceae | M96: Myrtales | N96: 3 | O96: 6 | P96: 4 | Q96: 2 | R96: 3.75 | S96: 1432.19325 | T96: 2726.70535 | U96: 990.23825 | V96: 580.3976 | W96: 0.4868371357 | X96: 9 | Y96: 25.14370652 | Z96: 7 | AA96: 1 | AB96: 1745.4 | AC96: 7 | AD96: 1 | AE96: 45.05178706 | AF96: 6 | AG96: 1 | AH96: 0.4049464143 | AI96: 9 | AJ96: 1 | AK96: 0.2103333333 | AL96: 6 | AM96: 1 | AN96: 17.24213004 | AO96: 476.9910049 | AP96: 0.6093591488 | AQ96: 27.5 | AR96: 0.9 | AS96: 1 | AT96: 5 | AU96: 1 | AV96: 1 | AW96: 1 | AX96: 1 | AY96: 1 | AZ96: 10
A97: Mouriri_nigra_(DC.)_Morley | B97: Mouriri nigra | C97: MOUNIG | D97: MOU | E97: MELA | F97: Moun | G97: Mou | H97: Mouriri | K97: Melastomataceae | L97: Memecylaceae | M97: Myrtales | N97: 0 | O97: 2 | P97: 0 | Q97: 1 | R97: 0.75 | S97: 0 | T97: 1501.11625 | U97: 0 | V97: 956.13785 | W97: 0.2087922776 | X97: 0 | Z97: 0 | AC97: 0 | AF97: 0 | AI97: 0 | AL97: 0 | AQ97: 27.5 | AR97: 0.9 | AS97: 1 | AT97: 0 | AU97: 0 | AV97: 0 | AW97: 0 | AX97: 1 | AY97: 1 | AZ97: 2
A98: Myrcia_grandis_McVaugh | B98: Myrcia grandis | C98: MYRGRA | D98: MYR | E98: MYRT | F98: Myrg | G98: Myr | H98: Myrcia | K98: Myrtaceae | L98: Myrtaceae | M98: Myrtales | N98: 1 | O98: 7 | P98: 4 | Q98: 0 | R98: 3 | S98: 165.04625 | T98: 3272.508 | U98: 1329.57805 | V98: 0 | W98: 0.4050620612 | X98: 12 | Y98: 9.849107676 | Z98: 8 | AA98: 1 | AB98: 1583.8 | AC98: 8 | AD98: 1 | AE98: 47.97535068 | AF98: 6 | AG98: 1 | AH98: 0.868982763 | AI98: 12 | AJ98: 1 | AK98: 0.234 | AL98: 6 | AM98: 1 | AN98: 8.946789503 | AO98: 417.5936508 | AP98: 0.2223817272 | AQ98: 37.5 | AS98: 1 | AT98: 5 | AU98: 1 | AV98: 1 | AW98: 1 | AX98: 1 | AY98: 0 | AZ98: 9
A99: Naucleopsis_caloneura_(Huber)_Ducke | B99: Naucleopsis caloneura | C99: NAUCAL | D99: NAU | E99: MORA | F99: Nauc | G99: Nau | H99: Naucleopsis | I99: Castilleae | K99: Moraceae | L99: Moraceae | M99: Rosales | N99: 8 | O99: 6 | P99: 4 | Q99: 3 | R99: 5.25 | S99: 1030.077 | T99: 931.75575 | U99: 521.64035 | V99: 322.9804 | W99: 0.2384636649 | X99: 10 | Y99: 14.40952895 | Z99: 9 | AA99: 1 | AB99: 28528.13333 | AC99: 9 | AD99: 1 | AE99: 49.41803545 | AF99: 4 | AG99: 1 | AH99: 0.9364627986 | AI99: 10 | AJ99: 1 | AK99: 0.316 | AL99: 4 | AM99: 1 | AN99: 19.14746761 | AO99: 426.3806534 | AP99: 0.5438706621 | AQ99: 22.5 | AS99: 1 | AT99: 5 | AU99: 1 | AV99: 1 | AW99: 1 | AX99: 1 | AY99: 0 | AZ99: 9
A100: Neea_aff._madeirana_Standl. | B100: Neea aff. madeirana | C100: NEEAFF | D100: NEE | E100: NYCT | F100: Neea | G100: Nee | H100: Neea | K100: Nyctaginaceae | L100: Nyctaginaceae | M100: Caryophyllales | N100: 1 | O100: 2 | P100: 2 | Q100: 3 | R100: 2 | S100: 211.1336 | T100: 1326.72065 | U100: 1727.19625 | V100: 421.17605 | W100: 0.313217765 | X100: 3 | Y100: 11.32072798 | Z100: 3 | AA100: 1 | AB100: 4899.8 | AC100: 3 | AD100: 1 | AE100: 32.30098938 | AF100: 3 | AG100: 1 | AH100: 0.6543614782 | AI100: 3 | AJ100: 1 | AK100: 0.286 | AL100: 3 | AM100: 1 | AN100: 50.39331913 | AO100: 453.8978195 | AP100: 0.7343826235 | AQ100: 27.5 | AS100: 1 | AT100: 5 | AU100: 1 | AV100: 1 | AW100: 1 | AX100: 1 | AY100: 0 | AZ100: 9
A101: Neea_sp._2 | B101: Neea sp. 2 | C101: NEESP2 | D101: NEE | E101: NYCT | F101: Nee2 | G101: Nee | H101: Neea | K101: Nyctaginaceae | L101: Nyctaginaceae | M101: Caryophyllales | N101: 0 | O101: 2 | P101: 0 | Q101: 4 | R101: 1.5 | S101: 0 | T101: 1129.0969 | U101: 0 | V101: 1428.45665 | W101: 0.2173146973 | X101: 6 | Y101: 10.72669852 | Z101: 6 | AA101: 1 | AB101: 12215.86667 | AC101: 6 | AD101: 1 | AE101: 23.69978963 | AF101: 6 | AG101: 1 | AH101: 0.9613634375 | AI101: 6 | AJ101: 1 | AK101: 0.413 | AL101: 6 | AM101: 1 | AN101: 39.93398428 | AO101: 464.2768097 | AP101: 0.4664751778 | AQ101: 27.5 | AS101: 1 | AT101: 5 | AU101: 1 | AV101: 1 | AW101: 1 | AX101: 1 | AY101: 0 | AZ101: 9
A102: Neea_sp._3 | B102: Neea sp. 3 | C102: NEESP3 | D102: NEE | E102: NYCT | F102: Nee3 | G102: Nee | H102: Neea | K102: Nyctaginaceae | L102: Nyctaginaceae | M102: Caryophyllales | N102: 3 | O102: 1 | P102: 2 | Q102: 1 | R102: 1.75 | S102: 827.8453 | T102: 651.1104 | U102: 907.15385 | V102: 176.625 | W102: 0.2177549256 | X102: 4 | Y102: 9.21530631 | Z102: 4 | AA102: 1 | AB102: 4986.95 | AC102: 4 | AD102: 1 | AE102: 39.05213296 | AF102: 4 | AG102: 1 | AH102: 0.7555476409 | AI102: 4 | AJ102: 1 | AK102: 0.2925 | AL102: 4 | AM102: 1 | AN102: 37.76444912 | AO102: 464.8894119 | AP102: 0.4486146814 | AQ102: 22.5 | AS102: 1 | AT102: 5 | AU102: 1 | AV102: 1 | AW102: 1 | AX102: 1 | AY102: 0 | AZ102: 9
A103: Ocotea_cinerea_van_der_Werff | B103: Ocotea cinerea | C103: OCOCIN | D103: OCO | E103: LAUR | F103: Ococ | G103: Oco | H103: Ocotea | K103: Lauraceae | L103: Lauraceae | M103: Laurales | N103: 2 | O103: 2 | P103: 1 | Q103: 1 | R103: 1.5 | S103: 3711.3544 | T103: 983.51865 | U103: 711.21785 | V103: 2106.3434 | W103: 0.6383296982 | X103: 3 | Y103: 10.43009739 | Z103: 3 | AA103: 1 | AB103: 2508 | AC103: 3 | AD103: 1 | AE103: 53.15899026 | AF103: 3 | AG103: 1 | AH103: 0.7167519358 | AI103: 3 | AJ103: 1 | AK103: 0.2826666667 | AL103: 3 | AM103: 1 | AN103: 20.94762802 | AO103: 497.3323822 | AP103: 0.5081496693 | AQ103: 32.5 | AS103: 1 | AT103: 5 | AU103: 1 | AV103: 1 | AW103: 1 | AX103: 1 | AY103: 0 | AZ103: 9
A104: Ocotea_ligulata_van_der_Werff | B104: Ocotea ligulata | C104: OCOLIG | D104: OCO | E104: LAUR | F104: Ocol | G104: Oco | H104: Ocotea | K104: Lauraceae | L104: Lauraceae | M104: Laurales | N104: 1 | O104: 0 | P104: 0 | Q104: 0 | R104: 0.25 | S104: 1962.5 | T104: 0 | U104: 0 | V104: 0 | W104: 0.1667531432 | X104: 0 | Z104: 0 | AC104: 0 | AF104: 0 | AI104: 0 | AL104: 0 | AQ104: 27.5 | AS104: 1 | AT104: 0 | AU104: 0 | AV104: 0 | AW104: 0 | AX104: 1 | AY104: 0 | AZ104: 1
A105: Ocotea_nigrescens_Vicentini | B105: Ocotea nigrescens | C105: OCONIG | D105: OCO | E105: LAUR | F105: Ocon | G105: Oco | H105: Ocotea | K105: Lauraceae | L105: Lauraceae | M105: Laurales | N105: 1 | O105: 0 | P105: 2 | Q105: 3 | R105: 1.5 | S105: 229.54185 | T105: 0 | U105: 600.525 | V105: 1337.8284 | W105: 0.1842055272 | X105: 3 | Y105: 9.77342736 | Z105: 3 | AA105: 1 | AB105: 3736.666667 | AC105: 3 | AD105: 1 | AE105: 51.09366631 | AF105: 3 | AG105: 1 | AH105: 0.565383074 | AI105: 3 | AJ105: 1 | AK105: 0.2026666667 | AL105: 3 | AM105: 1 | AN105: 23.30596924 | AO105: 471.493187 | AP105: 0.4783821754 | AQ105: 27.5 | AS105: 1 | AT105: 5 | AU105: 1 | AV105: 1 | AW105: 1 | AX105: 1 | AY105: 0 | AZ105: 9
A106: Ocotea_percurrens_Vicentini | B106: Ocotea percurrens | C106: OCOPER | D106: OCO | E106: LAUR | F106: Ocop | G106: Oco | H106: Ocotea | K106: Lauraceae | L106: Lauraceae | M106: Laurales | N106: 2 | O106: 0 | P106: 2 | Q106: 1 | R106: 1.25 | S106: 1401.9629 | T106: 0 | U106: 415.5633 | V106: 839.39265 | W106: 0.2257577424 | X106: 6 | Y106: 10.93970679 | Z106: 6 | AA106: 1 | AB106: 3921.466667 | AC106: 6 | AD106: 1 | AE106: 49.79066181 | AF106: 5 | AG106: 1 | AH106: 0.6616923386 | AI106: 6 | AJ106: 1 | AK106: 0.3184 | AL106: 5 | AM106: 1 | AN106: 21.93080425 | AO106: 491.2047958 | AP106: 0.4783821754 | AQ106: 27.5 | AR106: 0.52 | AS106: 1 | AT106: 5 | AU106: 1 | AV106: 1 | AW106: 1 | AX106: 1 | AY106: 1 | AZ106: 10
A107: Oenocarpus_bacaba_Mart. | B107: Oenocarpus bacaba | C107: OENBAC | D107: OEN | E107: AREC | F107: Oenb | G107: Oen | H107: Oenocarpus | I107: Areceae | J107: Arecoideae | K107: Arecaceae | L107: Arecaceae | M107: Arecales | N107: 8 | O107: 8 | P107: 1 | Q107: 2 | R107: 4.75 | S107: 1298.47635 | T107: 1648.7983 | U107: 221.5584 | V107: 318.90625 | W107: 0.2963523521 | X107: 4 | Z107: 3 | AA107: 1 | AB107: 31293.62127 | AC107: 3 | AD107: 1 | AE107: 51.09784308 | AF107: 3 | AG107: 1 | AH107: 5.439415013 | AI107: 4 | AJ107: 1 | AK107: 0.1494333333 | AL107: 4 | AM107: 1 | AN107: 16.11517072 | AO107: 482.7578354 | AP107: 0.5557776597 | AQ107: 22.5 | AS107: 4 | AT107: 5 | AU107: 1 | AV107: 1 | AW107: 1 | AX107: 1 | AY107: 0 | AZ107: 9
A108: Onychopetalum_amazonicum_R._E._Fries | B108: Onychopetalum amazonicum | C108: ONYAMA | D108: ONY | E108: ANNO | F108: Onya | G108: Ony | H108: Onychopetalum | K108: Annonaceae | L108: Annonaceae | M108: Magnoliales | N108: 2 | O108: 0 | P108: 2 | Q108: 0 | R108: 1 | S108: 864.2693 | T108: 0 | U108: 948.69605 | V108: 0 | W108: 0.1540472207 | X108: 3 | Y108: 7.726994287 | Z108: 3 | AA108: 1 | AB108: 14730.06667 | AC108: 3 | AD108: 1 | AE108: 54.60696758 | AF108: 3 | AG108: 1 | AH108: 0.7157344048 | AI108: 3 | AJ108: 1 | AK108: 0.2553333333 | AL108: 3 | AM108: 1 | AN108: 14.15023565 | AO108: 493.6236572 | AP108: 0.3831261947 | AQ108: 22.5 | AR108: 0.61 | AS108: 1 | AT108: 5 | AU108: 1 | AV108: 1 | AW108: 1 | AX108: 1 | AY108: 1 | AZ108: 10
A109: Ormosia_paraensis_Ducke | B109: Ormosia paraensis | C109: ORMPAR | D109: ORM | E109: FABA | F109: Ormp | G109: Orm | H109: Ormosia | I109: Sophoreae | J109: Faboideae | K109: Fabaceae – Faboideae | L109: Leguminosae | M109: Fabales | N109: 0 | O109: 1 | P109: 0 | Q109: 1 | R109: 0.5 | S109: 0 | T109: 1734.065 | U109: 0 | V109: 165.04625 | W109: 0.1613670167 | X109: 0 | Z109: 0 | AC109: 0 | AF109: 0 | AI109: 0 | AL109: 0 | AQ109: 27.5 | AR109: 0.67 | AS109: 2 | AT109: 0 | AU109: 0 | AV109: 0 | AW109: 0 | AX109: 1 | AY109: 1 | AZ109: 2
A110: Osteophloeum_platyspermum_(A._DC.)_Warb. | B110: Osteophloeum platyspermum | C110: OSTPLA | D110: OST | E110: MYRI | F110: Ostp | G110: Ost | H110: Osteophloeum | K110: Myristicaceae | L110: Myristicaceae | M110: Magnoliales | N110: 0 | O110: 1 | P110: 0 | Q110: 1 | R110: 0.5 | S110: 0 | T110: 4415.625 | U110: 0 | V110: 188.59625 | W110: 0.3912195493 | X110: 5 | Y110: 12.51787424 | Z110: 5 | AA110: 1 | AB110: 5681.96 | AC110: 5 | AD110: 1 | AE110: 33.50655966 | AF110: 4 | AG110: 1 | AH110: 0.4951687519 | AI110: 5 | AJ110: 1 | AK110: 0.2865 | AL110: 4 | AM110: 1 | AN110: 23.64995003 | AO110: 498.3703232 | AP110: 0.7939176115 | AQ110: 22.5 | AR110: 0.44 | AS110: 1 | AT110: 5 | AU110: 1 | AV110: 1 | AW110: 1 | AX110: 1 | AY110: 1 | AZ110: 10
A111: Paramachaerium_ormosioides_(Ducke)_Ducke | B111: Paramachaerium ormosioides | C111: PARORM | D111: PAR | E111: FABA | F111: Paro | G111: Par | H111: Paramachaerium | J111: Faboideae | K111: Fabaceae – Faboideae | L111: Leguminosae | M111: Fabales | N111: 7 | O111: 13 | P111: 7 | Q111: 7 | R111: 8.5 | S111: 2673.0192 | T111: 4938.5763 | U111: 2876.26355 | V111: 2167.97375 | W111: 1.075363006 | X111: 8 | Y111: 11.10151993 | Z111: 7 | AA111: 1 | AB111: 4047.295181 | AC111: 7 | AD111: 1 | AE111: 50.7436541 | AF111: 6 | AG111: 1 | AH111: 0.7430688817 | AI111: 8 | AJ111: 1 | AK111: 0.1546666667 | AL111: 6 | AM111: 1 | AN111: 24.24443245 | AO111: 500.4225159 | AP111: 0.5617311585 | AQ111: 32.5 | AS111: 2 | AT111: 5 | AU111: 1 | AV111: 1 | AW111: 1 | AX111: 1 | AY111: 0 | AZ111: 9
A112: Parkia_decussata_Ducke | B112: Parkia decussata | C112: PASDEC | D112: PAS | E112: FABA | F112: Prkd | G112: Prk | H112: Parkia | J112: Mimosoideae | K112: Fabaceae – Mimosoideae | L112: Leguminosae | M112: Fabales | N112: 2 | O112: 1 | P112: 3 | Q112: 0 | R112: 1.5 | S112: 1361.0644 | T112: 81.6714 | U112: 1562.2285 | V112: 0 | W112: 0.2553310789 | X112: 5 | Y112: 15.65579588 | Z112: 5 | AA112: 1 | AB112: 77.84545455 | AC112: 5 | AD112: 1 | AE112: 49.22145259 | AF112: 4 | AG112: 1 | AH112: 0.9978609187 | AI112: 5 | AJ112: 1 | AK112: 0.152 | AL112: 4 | AM112: 1 | AN112: 30.42772293 | AO112: 477.1800232 | AP112: 0.7105686283 | AQ112: 27.5 | AR112: 0.78 | AS112: 3 | AT112: 5 | AU112: 1 | AV112: 1 | AW112: 1 | AX112: 1 | AY112: 1 | AZ112: 10
A113: Parkia_panurensis_H._C._Hopkins | B113: Parkia panurensis | C113: PASPAN | D113: PAS | E113: FABA | F113: Prkp | G113: Prk | H113: Parkia | J113: Mimosoideae | K113: Fabaceae – Mimosoideae | L113: Leguminosae | M113: Fabales | N113: 0 | O113: 1 | P113: 0 | Q113: 0 | R113: 0.25 | S113: 0 | T113: 3791.74625 | U113: 0 | V113: 0 | W113: 0.322183748 | X113: 0 | Z113: 0 | AC113: 0 | AF113: 0 | AI113: 0 | AL113: 0 | AQ113: 32.5 | AS113: 3 | AT113: 0 | AU113: 0 | AV113: 0 | AW113: 0 | AX113: 1 | AY113: 0 | AZ113: 1
A114: Parkia_pendula_(Willd.)_Walp. | B114: Parkia pendula | C114: PASPEN | D114: PAS | E114: FABA | F114: Prke | G114: Prk | H114: Parkia | J114: Mimosoideae | K114: Fabaceae – Mimosoideae | L114: Leguminosae | M114: Fabales | N114: 0 | O114: 0 | P114: 1 | Q114: 1 | R114: 0.5 | S114: 0 | T114: 0 | U114: 94.985 | V114: 3846.5 | W114: 0.3349070128 | X114: 2 | Y114: 30.346027 | Z114: 2 | AB114: 2 | AC114: 2 | AE114: 43.46567411 | AF114: 1 | AH114: 0.6035145974 | AI114: 2 | AK114: 0.042 | AL114: 1 | AQ114: 32.5 | AR114: 0.53 | AS114: 3 | AT114: 0 | AU114: 0 | AV114: 0 | AW114: 0 | AX114: 1 | AY114: 1 | AZ114: 2
A115: Pausandra_macropetala_Ducke | B115: Pausandra macropetala | C115: PAUMAC | D115: PAU | E115: EUPH | F115: Paum | G115: Pau | H115: Pausandra | K115: Euphorbiaceae | L115: Euphorbiaceae | M115: Malpighiales | N115: 5 | O115: 9 | P115: 11 | Q115: 5 | R115: 7.5 | S115: 613.1164 | T115: 940.3672 | U115: 1358.98415 | V115: 646.31405 | W115: 0.3023888159 | X115: 11 | Y115: 12.96763211 | Z115: 7 | AA115: 1 | AB115: 45461.4 | AC115: 7 | AD115: 1 | AE115: 47.56070314 | AF115: 4 | AG115: 1 | AH115: 1.076751316 | AI115: 11 | AJ115: 1 | AK115: 0.231 | AL115: 4 | AM115: 1 | AN115: 15.15801787 | AO115: 444.5193863 | AP115: 0.4783821754 | AQ115: 17.5 | AS115: 1 | AT115: 5 | AU115: 1 | AV115: 1 | AW115: 1 | AX115: 1 | AY115: 0 | AZ115: 9
A116: Peltogyne_catingae_Ducke | B116: Peltogyne catingae | C116: PELCAT | D116: PEL | E116: FABA | F116: Pelc | G116: Pel | H116: Peltogyne | I116: Detarieae | J116: Caesalpinoideae | K116: Fabaceae – Caesalpinoideae | L116: Leguminosae | M116: Fabales | N116: 0 | O116: 2 | P116: 2 | Q116: 0 | R116: 1 | S116: 0 | T116: 3485.72185 | U116: 1040.0936 | V116: 0 | W116: 0.3845574277 | X116: 4 | Y116: 7.210071692 | Z116: 3 | AA116: 1 | AB116: 5448.725 | AC116: 4 | AD116: 1 | AE116: 56.8129055 | AF116: 2 | AH116: 0.7137421393 | AI116: 4 | AJ116: 1 | AK116: 0.2353333333 | AL116: 3 | AM116: 1 | AN116: 20.33896923 | AO116: 490.2810287 | AP116: 0.490289173 | AQ116: 32.5 | AR116: 0.69 | AS116: 2 | AT116: 4 | AU116: 1 | AV116: 1 | AW116: 1 | AX116: 1 | AY116: 1 | AZ116: 9
A117: Peltogyne_excelsa_Ducke | B117: Peltogyne excelsa | C117: PELEXC | D117: PEL | E117: FABA | F117: Pele | G117: Pel | H117: Peltogyne | I117: Detarieae | J117: Caesalpinoideae | K117: Fabaceae – Caesalpinoideae | L117: Leguminosae | M117: Fabales | N117: 3 | O117: 0 | P117: 3 | Q117: 0 | R117: 1.5 | S117: 5026.1666 | T117: 0 | U117: 1722.8866 | V117: 0 | W117: 0.5734653936 | X117: 3 | Y117: 11.05386219 | Z117: 3 | AA117: 1 | AB117: 1287.933333 | AC117: 3 | AD117: 1 | AE117: 46.5370567 | AF117: 3 | AG117: 1 | AH117: 0.6128968739 | AI117: 3 | AJ117: 1 | AK117: 0.1666666667 | AL117: 3 | AM117: 1 | AN117: 14.86420035 | AO117: 440.2181625 | AP117: 0.6272196452 | AQ117: 32.5 | AS117: 2 | AT117: 5 | AU117: 1 | AV117: 1 | AW117: 1 | AX117: 1 | AY117: 0 | AZ117: 9
A118: Pouteria_aff._engleri_Eyma | B118: Pouteria aff. engleri | C118: POUAFF | D118: POU | E118: SAPO | F118: Poua | G118: Pou | H118: Pouteria | J118: Chrysophylloideae | K118: Sapotaceae | L118: Sapotaceae | M118: Ericales | N118: 6 | O118: 2 | P118: 2 | Q118: 3 | R118: 3.25 | S118: 2937.14815 | T118: 839.98925 | U118: 339.63025 | V118: 473.66115 | W118: 0.3900476082 | X118: 6 | Y118: 9.792031342 | Z118: 6 | AA118: 1 | AB118: 4524.133333 | AC118: 6 | AD118: 1 | AE118: 46.46566244 | AF118: 6 | AG118: 1 | AH118: 0.712397761 | AI118: 6 | AJ118: 1 | AK118: 0.1996666667 | AL118: 6 | AM118: 1 | AN118: 21.52957439 | AO118: 481.1637497 | AP118: 0.4664751778 | AQ118: 27.5 | AS118: 1 | AT118: 5 | AU118: 1 | AV118: 1 | AW118: 1 | AX118: 1 | AY118: 0 | AZ118: 9
A119: Pouteria_anomala_(Pires)_T._D._Penn. | B119: Pouteria anomala | C119: POUANO | D119: POU | E119: SAPO | F119: Poun | G119: Pou | H119: Pouteria | J119: Chrysophylloideae | K119: Sapotaceae | L119: Sapotaceae | M119: Ericales | N119: 1 | O119: 1 | P119: 0 | Q119: 0 | R119: 0.5 | S119: 1962.5 | T119: 262.88865 | U119: 0 | V119: 0 | W119: 0.1890907273 | X119: 9 | Y119: 9.842693823 | Z119: 7 | AA119: 1 | AB119: 3748.85 | AC119: 8 | AD119: 1 | AE119: 53.34732116 | AF119: 4 | AG119: 1 | AH119: 0.7083757068 | AI119: 9 | AJ119: 1 | AK119: 0.132 | AL119: 5 | AM119: 1 | AN119: 23.13881874 | AO119: 489.1072845 | AP119: 0.3771726959 | AQ119: 32.5 | AR119: 0.78 | AS119: 1 | AT119: 5 | AU119: 1 | AV119: 1 | AW119: 1 | AX119: 1 | AY119: 1 | AZ119: 10
A120: Pouteria_cladantha_Sandw. | B120: Pouteria cladantha | C120: POUCLA | D120: POU | E120: SAPO | F120: Pouc | G120: Pou | H120: Pouteria | J120: Chrysophylloideae | K120: Sapotaceae | L120: Sapotaceae | M120: Ericales | N120: 2 | O120: 4 | P120: 3 | Q120: 2 | R120: 2.75 | S120: 1237.35625 | T120: 1488.58765 | U120: 1187.9405 | V120: 559.9876 | W120: 0.3801438055 | X120: 10 | Y120: 9.485139629 | Z120: 7 | AA120: 1 | AB120: 6025.2 | AC120: 8 | AD120: 1 | AE120: 54.35697284 | AF120: 5 | AG120: 1 | AH120: 0.6773371778 | AI120: 10 | AJ120: 1 | AK120: 0.2663333333 | AL120: 6 | AM120: 1 | AN120: 12.45659113 | AO120: 486.4924622 | AP120: 0.3295447055 | AQ120: 27.5 | AR120: 0.97 | AS120: 1 | AT120: 5 | AU120: 1 | AV120: 1 | AW120: 1 | AX120: 1 | AY120: 1 | AZ120: 10
A121: Pouteria_durlandii/peruviensis | B121: Pouteria durlandii/peruviensis | C121: POUDUR | D121: POU | E121: SAPO | F121: Poud | G121: Pou | H121: Pouteria | J121: Chrysophylloideae | K121: Sapotaceae | L121: Sapotaceae | M121: Ericales | N121: 0 | O121: 0 | P121: 1 | Q121: 2 | R121: 0.75 | S121: 0 | T121: 0 | U121: 1365.02865 | V121: 4973.95625 | W121: 0.5386219908 | X121: 8 | Y121: 9.720967644 | Z121: 7 | AA121: 1 | AB121: 7254.542857 | AC121: 7 | AD121: 1 | AE121: 40.37845206 | AF121: 4 | AG121: 1 | AH121: 0.6748910176 | AI121: 8 | AJ121: 1 | AK121: 0.2985 | AL121: 4 | AM121: 1 | AN121: 25.84327936 | AO121: 481.2106323 | AP121: 0.4545681802 | AQ121: 27.5 | AR121: 0.58 | AS121: 1 | AT121: 5 | AU121: 1 | AV121: 1 | AW121: 1 | AX121: 1 | AY121: 1 | AZ121: 10
A122: Pouteria_engleri_Eyma | B122: Pouteria engleri | C122: POUENG | D122: POU | E122: SAPO | F122: Poue | G122: Pou | H122: Pouteria | J122: Chrysophylloideae | K122: Sapotaceae | L122: Sapotaceae | M122: Ericales | N122: 1 | O122: 8 | P122: 2 | Q122: 10 | R122: 5.25 | S122: 186.1706 | T122: 2712.0337 | U122: 699.592 | V122: 2852.1562 | W122: 0.5480508805 | X122: 9 | Y122: 11.91201217 | Z122: 9 | AA122: 1 | AB122: 6055.822222 | AC122: 9 | AD122: 1 | AE122: 55.64280588 | AF122: 6 | AG122: 1 | AH122: 0.8315408913 | AI122: 9 | AJ122: 1 | AK122: 0.1716666667 | AL122: 6 | AM122: 1 | AN122: 22.14543343 | AO122: 489.3524933 | AP122: 0.4188471874 | AQ122: 32.5 | AR122: 0.77 | AS122: 1 | AT122: 5 | AU122: 1 | AV122: 1 | AW122: 1 | AX122: 1 | AY122: 1 | AZ122: 10
A123: Pouteria_filipes_Eyma | B123: Pouteria filipes | C123: POUFIL | D123: POU | E123: SAPO | F123: Pouf | G123: Pou | H123: Pouteria | J123: Chrysophylloideae | K123: Sapotaceae | L123: Sapotaceae | M123: Ericales | N123: 0 | O123: 1 | P123: 1 | Q123: 0 | R123: 0.5 | S123: 0 | T123: 369.64865 | U123: 2082.01625 | V123: 0 | W123: 0.2083173647 | X123: 6 | Y123: 7.584943924 | Z123: 5 | AA123: 1 | AB123: 5907.52 | AC123: 5 | AD123: 1 | AE123: 51.54038036 | AF123: 3 | AG123: 1 | AH123: 0.7460869718 | AI123: 6 | AJ123: 1 | AK123: 0.2906666667 | AL123: 3 | AM123: 1 | AN123: 25.04864454 | AO123: 519.1744995 | AP123: 0.5914986525 | AQ123: 32.5 | AR123: 0.97 | AS123: 1 | AT123: 5 | AU123: 1 | AV123: 1 | AW123: 1 | AX123: 1 | AY123: 1 | AZ123: 10
A124: Pouteria_fimbriata_Baehni | B124: Pouteria fimbriata | C124: POUFIM | D124: POU | E124: SAPO | F124: Poui | G124: Pou | H124: Pouteria | J124: Chrysophylloideae | K124: Sapotaceae | L124: Sapotaceae | M124: Ericales | N124: 2 | O124: 2 | P124: 0 | Q124: 0 | R124: 1 | S124: 422.90305 | T124: 1290.1789 | U124: 0 | V124: 0 | W124: 0.1455601527 | X124: 4 | Y124: 14.41230044 | Z124: 4 | AA124: 1 | AB124: 15951.55 | AC124: 4 | AD124: 1 | AE124: 45.91397203 | AF124: 2 | AH124: 0.6082977383 | AI124: 4 | AJ124: 1 | AK124: 0.142 | AL124: 2 | AN124: 29.77112293 | AO124: 484.3889999 | AP124: 0.7284291247 | AQ124: 32.5 | AS124: 1 | AT124: 3 | AU124: 1 | AV124: 1 | AW124: 1 | AX124: 1 | AY124: 0 | AZ124: 7
A125: Pouteria_flavilatex_Penn. | B125: Pouteria flavilatex | C125: POUFLA | D125: POU | E125: SAPO | F125: Poul | G125: Pou | H125: Pouteria | J125: Chrysophylloideae | K125: Sapotaceae | L125: Sapotaceae | M125: Ericales | N125: 0 | O125: 1 | P125: 0 | Q125: 0 | R125: 0.25 | S125: 0 | T125: 2155.4216 | U125: 0 | V125: 0 | W125: 0.1831456442 | X125: 1 | Y125: 6.865038115 | Z125: 1 | AB125: 7854.2 | AC125: 1 | AE125: 39.85637343 | AF125: 1 | AH125: 0.8061619464 | AI125: 1 | AK125: 0.286 | AL125: 1 | AN125: 14.51780081 | AO125: 470.0039673 | AP125: 0.7403361223 | AQ125: 27.5 | AS125: 1 | AT125: 0 | AU125: 1 | AV125: 1 | AW125: 1 | AX125: 1 | AY125: 0 | AZ125: 4
A126: Pouteria_guianensis_Aubl. | B126: Pouteria guianensis | C126: POUGUI | D126: POU | E126: SAPO | F126: Poug | G126: Pou | H126: Pouteria | J126: Chrysophylloideae | K126: Sapotaceae | L126: Sapotaceae | M126: Ericales | N126: 1 | O126: 1 | P126: 0 | Q126: 0 | R126: 0.5 | S126: 126.61265 | T126: 3255.6776 | U126: 0 | V126: 0 | W126: 0.2873923722 | X126: 10 | Y126: 10.25624103 | Z126: 10 | AA126: 1 | AB126: 9342.78 | AC126: 10 | AD126: 1 | AE126: 50.12724246 | AF126: 5 | AG126: 1 | AH126: 0.4945674157 | AI126: 10 | AJ126: 1 | AK126: 0.3032 | AL126: 5 | AM126: 1 | AN126: 14.42544699 | AO126: 484.4395065 | AP126: 0.4188471874 | AQ126: 32.5 | AR126: 0.94 | AS126: 1 | AT126: 5 | AU126: 1 | AV126: 1 | AW126: 1 | AX126: 1 | AY126: 1 | AZ126: 10
A127: Pouteria_hispida_Eyma | B127: Pouteria hispida | C127: POUHIS | D127: POU | E127: SAPO | F127: Pouh | G127: Pou | H127: Pouteria | J127: Chrysophylloideae | K127: Sapotaceae | L127: Sapotaceae | M127: Ericales | N127: 3 | O127: 0 | P127: 1 | Q127: 1 | R127: 1.25 | S127: 4777.2745 | T127: 0 | U127: 128.6144 | V127: 124.6266 | W127: 0.4274416671 | X127: 7 | Y127: 10.77503282 | Z127: 6 | AA127: 1 | AB127: 3360.633333 | AC127: 6 | AD127: 1 | AE127: 52.84860868 | AF127: 5 | AG127: 1 | AH127: 0.5394544852 | AI127: 7 | AJ127: 1 | AK127: 0.178 | AL127: 6 | AM127: 1 | AN127: 16.46610975 | AO127: 490.6364822 | AP127: 0.4783821754 | AQ127: 32.5 | AR127: 0.87 | AS127: 1 | AT127: 5 | AU127: 1 | AV127: 1 | AW127: 1 | AX127: 1 | AY127: 1 | AZ127: 10
A128: Pouteria_macrophylla_(Lam.)_Eyma | B128: Pouteria macrophylla | C128: POUMAC | D128: POU | E128: SAPO | F128: Poum | G128: Pou | H128: Pouteria | J128: Chrysophylloideae | K128: Sapotaceae | L128: Sapotaceae | M128: Ericales | N128: 2 | O128: 6 | P128: 3 | Q128: 2 | R128: 3.25 | S128: 166.577 | T128: 3540.7111 | U128: 774.20625 | V128: 629.0048 | W128: 0.4342378582 | X128: 6 | Y128: 10.78551835 | Z128: 5 | AA128: 1 | AB128: 15099.68 | AC128: 5 | AD128: 1 | AE128: 47.53166946 | AF128: 5 | AG128: 1 | AH128: 0.9033427686 | AI128: 6 | AJ128: 1 | AK128: 0.216 | AL128: 5 | AM128: 1 | AN128: 16.26222372 | AO128: 462.5577545 | AP128: 0.4843356742 | AQ128: 17.5 | AR128: 0.86 | AS128: 1 | AT128: 5 | AU128: 1 | AV128: 1 | AW128: 1 | AX128: 1 | AY128: 1 | AZ128: 10
A129: Pouteria_manaosensis_(Aubrev._&_Pellegr.)_T._D._Penn. | B129: Pouteria manaosensis | C129: POUMAN | D129: POU | E129: SAPO | F129: Pouu | G129: Pou | H129: Pouteria | J129: Chrysophylloideae | K129: Sapotaceae | L129: Sapotaceae | M129: Ericales | N129: 1 | O129: 1 | P129: 2 | Q129: 1 | R129: 1.25 | S129: 1262.28785 | T129: 304.65065 | U129: 3649.53565 | V129: 646.59665 | W129: 0.4981836865 | X129: 4 | Y129: 8.999911078 | Z129: 3 | AA129: 1 | AB129: 14060.15 | AC129: 4 | AD129: 1 | AE129: 52.88275844 | AF129: 2 | AH129: 0.5827562361 | AI129: 4 | AJ129: 1 | AK129: 0.3133333333 | AL129: 3 | AM129: 1 | AN129: 16.18567824 | AO129: 503.1932449 | AP129: 0.5498241609 | AQ129: 32.5 | AR129: 0.64 | AS129: 1 | AT129: 4 | AU129: 1 | AV129: 1 | AW129: 1 | AX129: 1 | AY129: 1 | AZ129: 9
A130: Pouteria_pentamera_Penn. | B130: Pouteria pentamera | C130: POUPEN | D130: POU | E130: SAPO | F130: Poup | G130: Pou | H130: Pouteria | J130: Chrysophylloideae | K130: Sapotaceae | L130: Sapotaceae | M130: Ericales | N130: 0 | O130: 2 | P130: 1 | Q130: 0 | R130: 0.75 | S130: 0 | T130: 2515.52465 | U130: 1505.9754 | V130: 0 | W130: 0.341705872 | X130: 3 | Y130: 9.121773352 | Z130: 3 | AA130: 1 | AB130: 10099 | AC130: 3 | AD130: 1 | AE130: 46.04530433 | AF130: 3 | AG130: 1 | AH130: 0.7611945415 | AI130: 3 | AJ130: 1 | AK130: 0.214 | AL130: 3 | AM130: 1 | AN130: 20.79858541 | AO130: 485.9330368 | AP130: 0.2759632164 | AQ130: 32.5 | AS130: 1 | AT130: 5 | AU130: 1 | AV130: 1 | AW130: 1 | AX130: 1 | AY130: 0 | AZ130: 9
A131: Pouteria_reticulata_(Engl.)_Eyma | B131: Pouteria reticulata | C131: POURET | D131: POU | E131: SAPO | F131: Pour | G131: Pou | H131: Pouteria | J131: Chrysophylloideae | K131: Sapotaceae | L131: Sapotaceae | M131: Ericales | N131: 3 | O131: 7 | P131: 4 | Q131: 2 | R131: 4 | S131: 414.8254 | T131: 3292.65895 | U131: 606.05925 | V131: 316.61405 | W131: 0.3934233588 | X131: 18 | Y131: 11.83656235 | Z131: 14 | AA131: 1 | AB131: 3723.955556 | AC131: 18 | AD131: 1 | AE131: 49.12890765 | AF131: 8 | AG131: 1 | AH131: 0.6691729062 | AI131: 18 | AJ131: 1 | AK131: 0.2146666667 | AL131: 12 | AM131: 1 | AN131: 16.98545814 | AO131: 500.0844574 | AP131: 0.430754185 | AQ131: 22.5 | AR131: 0.79 | AS131: 1 | AT131: 5 | AU131: =IF(AN131=0,0,1) -> 1 | AV131: =IF(AO131=0,0,1) -> 1 | AW131: =IF(AP131=0,0,1) -> 1 | AX131: =IF(AQ131=0,0,1) -> 1 | AY131: =IF(AR131=0,0,1) -> 1 | AZ131: 10
A132: Pouteria_retinervis_T._D._Penn. | B132: Pouteria retinervis | C132: POUREV | D132: POU | E132: SAPO | F132: Pout | G132: Pou | H132: Pouteria | J132: Chrysophylloideae | K132: Sapotaceae | L132: Sapotaceae | M132: Ericales | N132: 3 | O132: 2 | P132: 2 | Q132: 2 | R132: 2.25 | S132: 2025.4099 | T132: 548.18905 | U132: 2185.0946 | V132: 590.0845 | W132: 0.4544843578 | X132: 11 | Y132: 11.21455608 | Z132: 8 | AA132: 1 | AB132: 10915.025 | AC132: 8 | AD132: 1 | AE132: 46.13665391 | AF132: 6 | AG132: 1 | AH132: 0.7782931454 | AI132: 11 | AJ132: 1 | AK132: 0.181 | AL132: 6 | AM132: 1 | AN132: 30.12528658 | AO132: 479.5162201 | AP132: 0.6986616308 | AQ132: 32.5 | AS132: 1 | AT132: 5 | AU132: 1 | AV132: 1 | AW132: 1 | AX132: 1 | AY132: 0 | AZ132: 9
A133: Pouteria_rostrata_(Huber)_Baehni | B133: Pouteria rostrata | C133: POUROS | D133: POU | E133: SAPO | F133: Pouo | G133: Pou | H133: Pouteria | J133: Chrysophylloideae | K133: Sapotaceae | L133: Sapotaceae | M133: Ericales | N133: 0 | O133: 2 | P133: 1 | Q133: 0 | R133: 0.75 | S133: 0 | T133: 1482.865 | U133: 339.6224 | V133: 0 | W133: 0.154856307 | X133: 6 | Y133: 6.985652086 | Z133: 6 | AA133: 1 | AB133: 9523.766667 | AC133: 6 | AD133: 1 | AE133: 48.35027947 | AF133: 4 | AG133: 1 | AH133: 0.7943256012 | AI133: 6 | AJ133: 1 | AK133: 0.2805 | AL133: 4 | AM133: 1 | AN133: 22.90566921 | AO133: 497.7302933 | AP133: 0.5379171633 | AQ133: 17.5 | AS133: 1 | AT133: 5 | AU133: 1 | AV133: 1 | AW133: 1 | AX133: 1 | AY133: 0 | AZ133: 9
A134: Pouteria_sp._10 | B134: Pouteria sp. 10 | C134: POUS10 | D134: POU | E134: SAPO | F134: Pou1 | G134: Pou | H134: Pouteria | J134: Chrysophylloideae | K134: Sapotaceae | L134: Sapotaceae | M134: Ericales | N134: 1 | O134: 0 | P134: 1 | Q134: 0 | R134: 0.5 | S134: 854.865 | T134: 0 | U134: 2461.76 | V134: 0 | W134: 0.281812812 | X134: 0 | Z134: 0 | AC134: 0 | AF134: 0 | AI134: 0 | AL134: 0 | AQ134: 42.5 | AS134: 1 | AT134: 0 | AU134: 0 | AV134: 0 | AW134: 0 | AX134: 1 | AY134: 0 | AZ134: 1
A135: Pouteria_sp._9 | B135: Pouteria sp. 9 | C135: POUSP9 | D135: POU | E135: SAPO | F135: Pou9 | G135: Pou | H135: Pouteria | J135: Chrysophylloideae | K135: Sapotaceae | L135: Sapotaceae | M135: Ericales | N135: 1 | O135: 0 | P135: 0 | Q135: 0 | R135: 0.25 | S135: 1786.10265 | T135: 0 | U135: 0 | V135: 0 | W135: 0.1517647037 | X135: 3 | Y135: 13.51262913 | Z135: 3 | AA135: 1 | AB135: 6067.6 | AC135: 3 | AD135: 1 | AE135: 46.02184087 | AF135: 1 | AH135: 0.5306995699 | AI135: 3 | AJ135: 1 | AK135: 0.26 | AL135: 1 | AN135: 13.94147158 | AO135: 472.2608566 | AP135: 0.4783821754 | AQ135: 27.5 | AS135: 1 | AT135: 3 | AU135: 1 | AV135: 1 | AW135: 1 | AX135: 1 | AY135: 0 | AZ135: 7
A136: Protium_altsonii_Sandwith | B136: Protium altsonii | C136: PROALT | D136: PRO | E136: BURS | F136: Proa | G136: Pro | H136: Protium | I136: Protieae | K136: Burseraceae | L136: Burseraceae | M136: Sapindales | N136: 2 | O136: 2 | P136: 1 | Q136: 2 | R136: 1.75 | S136: 1859.7749 | T136: 2856.52865 | U136: 271.5786 | V136: 335.7602 | W136: 0.4523485836 | X136: 7 | Y136: 9.755041262 | Z136: 6 | AA136: 1 | AB136: 2713.184927 | AC136: 6 | AD136: 1 | AE136: 49.73924518 | AF136: 6 | AG136: 1 | AH136: 0.8724836612 | AI136: 7 | AJ136: 1 | AK136: 0.1556666667 | AL136: 6 | AM136: 1 | AN136: 14.17478204 | AO136: 454.7414017 | AP136: 0.5260101657 | AQ136: 27.5 | AR136: 0.68 | AS136: 2 | AT136: 5 | AU136: 1 | AV136: 1 | AW136: 1 | AX136: 1 | AY136: 1 | AZ136: 10
A137: Protium_apiculatum_Swart | B137: Protium apiculatum | C137: PROAPI | D137: PRO | E137: BURS | F137: Prop | G137: Pro | H137: Protium | I137: Protieae | K137: Burseraceae | L137: Burseraceae | M137: Sapindales | N137: 6 | O137: 4 | P137: 7 | Q137: 6 | R137: 5.75 | S137: 1323.7141 | T137: 1324.8916 | U137: 1453.07425 | V137: 1652.6919 | W137: 0.4889475634 | X137: 10 | Y137: 13.40862979 | Z137: 7 | AA137: 1 | AB137: 4648.525384 | AC137: 10 | AD137: 1 | AE137: 52.34094089 | AF137: 4 | AG137: 1 | AH137: 0.477724408 | AI137: 10 | AJ137: 1 | AK137: 0.1696666667 | AL137: 6 | AM137: 1 | AN137: 19.59246039 | AO137: 473.4221649 | AP137: 0.6212661464 | AQ137: 22.5 | AS137: 2 | AT137: 5 | AU137: 1 | AV137: 1 | AW137: 1 | AX137: 1 | AY137: 0 | AZ137: 9
A138: Protium_decandrum_(Aubl.)_Marchand | B138: Protium decandrum | C138: PRODEC | D138: PRO | E138: BURS | F138: Prod | G138: Pro | H138: Protium | I138: Protieae | K138: Burseraceae | L138: Burseraceae | M138: Sapindales | N138: 1 | O138: 3 | P138: 3 | Q138: 0 | R138: 1.75 | S138: 100.23665 | T138: 1035.3993 | U138: 578.3409 | V138: 0 | W138: 0.1456361922 | X138: 12 | Y138: 11.28067474 | Z138: 10 | AA138: 1 | AB138: 4270.935502 | AC138: 11 | AD138: 1 | AE138: 51.14216583 | AF138: 5 | AG138: 1 | AH138: 0.8751675844 | AI138: 12 | AJ138: 1 | AK138: 0.2236666667 | AL138: 6 | AM138: 1 | AN138: 14.57930923 | AO138: 461.949234 | AP138: 0.633173144 | AQ138: 22.5 | AR138: 0.52 | AS138: 2 | AT138: 5 | AU138: 1 | AV138: 1 | AW138: 1 | AX138: 1 | AY138: 1 | AZ138: 10
A139: Protium_guianense_(Aubl.)_Marchand | B139: Protium guianense | C139: PROGUI | D139: PRO | E139: BURS | F139: Prog | G139: Pro | H139: Protium | I139: Protieae | K139: Burseraceae | L139: Burseraceae | M139: Sapindales | N139: 0 | O139: 8 | P139: 5 | Q139: 0 | R139: 3.25 | S139: 0 | T139: 1314.5296 | U139: 1358.48175 | V139: 0 | W139: 0.2271251182 | X139: 6 | Y139: 11.89580026 | Z139: 6 | AA139: 1 | AB139: 2101.982237 | AC139: 6 | AD139: 1 | AE139: 53.75460223 | AF139: 6 | AG139: 1 | AH139: 0.5393426664 | AI139: 6 | AJ139: 1 | AK139: 0.1513333333 | AL139: 6 | AM139: 1 | AN139: 15.55751443 | AO139: 461.0277939 | AP139: 0.5200566669 | AR139: 0.71 | AS139: 2 | AT139: 5 | AU139: 1 | AV139: 1 | AW139: 1 | AX139: 0 | AY139: 1 | AZ139: 9
A140: Protium_hebetatum_Daly | B140: Protium hebetatum | C140: PROHEB | D140: PRO | E140: BURS | F140: Proh | G140: Pro | H140: Protium | I140: Protieae | K140: Burseraceae | L140: Burseraceae | M140: Sapindales | N140: 12 | O140: 7 | P140: 14 | Q140: 6 | R140: 9.75 | S140: 1983.51445 | T140: 1049.1211 | U140: 2102.4184 | V140: 1551.27775 | W140: 0.5681359631 | X140: 19 | Y140: 12.88323185 | Z140: 11 | AA140: 1 | AB140: 5475.232843 | AC140: 11 | AD140: 1 | AE140: 56.6714292 | AF140: 8 | AG140: 1 | AH140: 0.7683350913 | AI140: 19 | AJ140: 1 | AK140: 0.21775 | AL140: 8 | AM140: 1 | AN140: 14.17419434 | AO140: 479.6507263 | AP140: 0.4783821754 | AQ140: 22.5 | AS140: 2 | AT140: 5 | AU140: 1 | AV140: 1 | AW140: 1 | AX140: 1 | AY140: 0 | AZ140: 9
A141: Protium_sagotianum_Marchand | B141: Protium sagotianum | C141: PROSAG | D141: PRO | E141: BURS | F141: Pros | G141: Pro | H141: Protium | I141: Protieae | K141: Burseraceae | L141: Burseraceae | M141: Sapindales | N141: 1 | O141: 2 | P141: 2 | Q141: 1 | R141: 1.5 | S141: 107.45865 | T141: 849.7625 | U141: 1152.10525 | V141: 103.81625 | W141: 0.1880501877 | X141: 3 | Y141: 15.28421851 | Z141: 3 | AA141: 1 | AB141: 2873.859336 | AC141: 3 | AD141: 1 | AE141: 54.89323697 | AF141: 3 | AG141: 1 | AH141: 0.5298023985 | AI141: 3 | AJ141: 1 | AK141: 0.1073333333 | AL141: 3 | AM141: 1 | AN141: 14.96370196 | AO141: 426.7091751 | AP141: 0.5021961705 | AQ141: 27.5 | AR141: 0.56 | AS141: 2 | AT141: 5 | AU141: 1 | AV141: 1 | AW141: 1 | AX141: 1 | AY141: 1 | AZ141: 10
A142: Protium_tenuifolium_(Engl.)_Engl. | B142: Protium tenuifolium | C142: PROTEN | D142: PRO | E142: BURS | F142: Prot | G142: Pro | H142: Protium | I142: Protieae | K142: Burseraceae | L142: Burseraceae | M142: Sapindales | N142: 0 | O142: 1 | P142: 1 | Q142: 2 | R142: 1 | S142: 0 | T142: 107.45865 | U142: 754.385 | V142: 1150.50385 | W142: 0.1709886731 | X142: 3 | Y142: 16.52856653 | Z142: 3 | AA142: 1 | AB142: 10239.82979 | AC142: 3 | AD142: 1 | AE142: 48.01423431 | AF142: 3 | AG142: 1 | AH142: 0.6283394679 | AI142: 3 | AJ142: 1 | AK142: 0.1893333333 | AL142: 3 | AM142: 1 | AN142: 15.2048111 | AO142: 450.7896805 | AP142: 0.662940638 | AQ142: 12.5 | AR142: 0.57 | AS142: 2 | AT142: 5 | AU142: 1 | AV142: 1 | AW142: 1 | AX142: 1 | AY142: 1 | AZ142: 10
A143: Pseudolmedia_laevis_(Ruiz_&_Pav.)_J._F._Macbr. | B143: Pseudolmedia laevis | C143: PSELAE | D143: PSE | E143: MORA | F143: Psel | G143: Pse | H143: Pseudolmedia | I143: Castilleae | K143: Moraceae | L143: Moraceae | M143: Rosales | N143: 2 | O143: 4 | P143: 3 | Q143: 1 | R143: 2.5 | S143: 363.21165 | T143: 2549.24825 | U143: 890.22925 | V143: 478.92065 | W143: 0.3638073336 | X143: 9 | Y143: 12.50006401 | Z143: 8 | AA143: 1 | AB143: 6934.15 | AC143: 8 | AD143: 1 | AE143: 51.66072991 | AF143: 5 | AG143: 1 | AH143: 0.6674588712 | AI143: 9 | AJ143: 1 | AK143: 0.212 | AL143: 5 | AM143: 1 | AN143: 15.81017017 | AO143: 423.943634 | AP143: 0.5795916549 | AQ143: 32.5 | AR143: 0.64 | AS143: 1 | AT143: 5 | AU143: 1 | AV143: 1 | AW143: 1 | AX143: 1 | AY143: 1 | AZ143: 10
A144: Pseudopiptadenia_psilostachya_(DC.)_Lewis_&_Lima | B144: Pseudopiptadenia psilostachya | C144: PSPPSI | D144: PSP | E144: FABA | F144: Pspp | G144: Psp | H144: Pseudopiptadenia | I144: Mimoseae | J144: Mimosoideae | K144: Fabaceae – Mimosoideae | L144: Leguminosae | M144: Fabales | N144: 1 | O144: 2 | P144: 0 | Q144: 1 | R144: 1 | S144: 160.52465 | T144: 1448.33285 | U144: 0 | V144: 2374.625 | W144: 0.3384755301 | X144: 3 | Y144: 20.21637614 | Z144: 3 | AA144: 1 | AB144: 25.33333333 | AC144: 3 | AD144: 1 | AE144: 42.45015882 | AF144: 3 | AG144: 1 | AH144: 0.8446146889 | AI144: 3 | AJ144: 1 | AK144: 0.1586666667 | AL144: 3 | AM144: 1 | AN144: 25.72575569 | AO144: 477.2344208 | AP144: 0.633173144 | AQ144: 37.5 | AS144: 3 | AT144: 5 | AU144: 1 | AV144: 1 | AW144: 1 | AX144: 1 | AY144: 0 | AZ144: 9
A145: Pseudopiptadenia_suaveolens_(Miq.)_Grimes | B145: Pseudopiptadenia suaveolens | C145: PSPSUA | D145: PSP | E145: FABA | F145: Psps | G145: Psp | H145: Pseudopiptadenia | I145: Mimoseae | J145: Mimosoideae | K145: Fabaceae – Mimosoideae | L145: Leguminosae | M145: Fabales | N145: 0 | O145: 1 | P145: 1 | Q145: 0 | R145: 0.5 | S145: 0 | T145: 3846.5 | U145: 1962.5 | V145: 0 | W145: 0.4935893039 | X145: 1 | Y145: 15.06488103 | Z145: 1 | AB145: 24.1 | AC145: 1 | AE145: 51.4551415 | AF145: 1 | AH145: 0.6966378461 | AI145: 1 | AK145: 0.164 | AL145: 1 | AN145: 25.82704782 | AO145: 481.1397552 | AP145: 0.4664751778 | AQ145: 37.5 | AR145: 0.58 | AS145: 3 | AT145: 0 | AU145: 1 | AV145: 1 | AW145: 1 | AX145: 1 | AY145: 1 | AZ145: 5
A146: Qualea_labouriauana_Paula | B146: Qualea labouriauana | C146: QUALAB | D146: QUA | E146: VOCH | F146: Qual | G146: Qua | H146: Qualea | K146: Vochysiaceae | L146: Vochysiaceae | M146: Myrtales | N146: 2 | O146: 6 | P146: 1 | Q146: 0 | R146: 2.25 | S146: 3244.562 | T146: 12360.3588 | U146: 81.6714 | V146: 0 | W146: 1.332885888 | X146: 3 | Y146: 8.099547572 | Z146: 3 | AA146: 1 | AB146: 4054.266667 | AC146: 3 | AD146: 1 | AE146: 45.8272457 | AF146: 3 | AG146: 1 | AH146: 0.5591376391 | AI146: 3 | AJ146: 1 | AK146: 0.2906666667 | AL146: 3 | AM146: 1 | AN146: 13.02251816 | AO146: 443.307457 | AP146: 0.3235912067 | AQ146: 37.5 | AS146: 1 | AT146: 5 | AU146: 1 | AV146: 1 | AW146: 1 | AX146: 1 | AY146: 0 | AZ146: 9
A147: Qualea_paraensis_Ducke | B147: Qualea paraensis | C147: QUAPAR | D147: QUA | E147: VOCH | F147: Quap | G147: Qua | H147: Qualea | K147: Vochysiaceae | L147: Vochysiaceae | M147: Myrtales | N147: 0 | O147: 2 | P147: 1 | Q147: 1 | R147: 1 | S147: 0 | T147: 1343.6217 | U147: 3265.79625 | V147: 404.50265 | W147: 0.4260316025 | X147: 3 | Y147: 9.085591037 | Z147: 3 | AA147: 1 | AB147: 3078.466667 | AC147: 3 | AD147: 1 | AE147: 46.23480968 | AF147: 2 | AH147: 0.5018512532 | AI147: 3 | AJ147: 1 | AK147: 0.254 | AL147: 2 | AN147: 11.32553101 | AO147: 425.3044128 | AP147: 0.3057307103 | AQ147: 37.5 | AR147: 0.67 | AS147: 1 | AT147: 3 | AU147: 1 | AV147: 1 | AW147: 1 | AX147: 1 | AY147: 1 | AZ147: 8
A148: Rhodostemonodaphne_grandis_(Mez)_Rohwer | B148: Rhodostemonodaphne grandis | C148: RHOGRA | D148: RHO | E148: LAUR | F148: Rhog | G148: Rho | H148: Rhodostemonodaphne | K148: Lauraceae | L148: Lauraceae | M148: Laurales | N148: 1 | O148: 0 | P148: 2 | Q148: 0 | R148: 0.75 | S148: 720.70065 | T148: 0 | U148: 1053.1717 | V148: 0 | W148: 0.1507254981 | X148: 3 | Y148: 7.754782175 | Z148: 3 | AA148: 1 | AB148: 11553.13333 | AC148: 3 | AD148: 1 | AE148: 48.39938968 | AF148: 3 | AG148: 1 | AH148: 0.6466523337 | AI148: 3 | AJ148: 1 | AK148: 0.242 | AL148: 3 | AM148: 1 | AN148: 21.7289114 | AO148: 491.4519501 | AP148: 0.5379171633 | AQ148: 27.5 | AR148: 0.39 | AS148: 1 | AT148: 5 | AU148: 1 | AV148: 1 | AW148: 1 | AX148: 1 | AY148: 1 | AZ148: 10
A149: Rinorea_flavescens_(Aubl.)_Kuntze | B149: Rinorea flavescens | C149: RINFLA | D149: RIN | E149: VIOL | F149: Rinf | G149: Rin | H149: Rinorea | K149: Violaceae | L149: Violaceae | M149: Malpighiales | N149: 7 | O149: 0 | P149: 9 | Q149: 23 | R149: 9.75 | S149: 634.8138 | T149: 0 | U149: 1085.5608 | V149: 2455.78615 | W149: 0.3548473537 | X149: 10 | Y149: 18.11044523 | Z149: 7 | AA149: 1 | AB149: 7055.628571 | AC149: 7 | AD149: 1 | AE149: 39.07465279 | AF149: 4 | AG149: 1 | AH149: 0.4611754834 | AI149: 10 | AJ149: 1 | AK149: 0.1705 | AL149: 4 | AM149: 1 | AN149: 23.44778776 | AO149: 455.0943375 | AP149: 0.5260101657 | AQ149: 12.5 | AR149: 0.63 | AS149: 1 | AT149: 5 | AU149: 1 | AV149: 1 | AW149: 1 | AX149: 1 | AY149: 1 | AZ149: 10
A150: Rinorea_guianensis_Aubl. | B150: Rinorea guianensis | C150: RINGUI | D150: RIN | E150: VIOL | F150: Ring | G150: Rin | H150: Rinorea | K150: Violaceae | L150: Violaceae | M150: Malpighiales | N150: 0 | O150: 7 | P150: 2 | Q150: 1 | R150: 2.5 | S150: 0 | T150: 1873.74005 | U150: 729.265 | V150: 534.74985 | W150: 0.2666142636 | X150: 13 | Y150: 10.55132956 | Z150: 12 | AA150: 1 | AB150: 6645.5 | AC150: 12 | AD150: 1 | AE150: 44.54898266 | AF150: 7 | AG150: 1 | AH150: 0.726889719 | AI150: 13 | AJ150: 1 | AK150: 0.2968571429 | AL150: 7 | AM150: 1 | AN150: 17.82550693 | AO150: 450.5399323 | AP150: 0.5141031681 | AQ150: 17.5 | AR150: 0.78 | AS150: 1 | AT150: 5 | AU150: 1 | AV150: 1 | AW150: 1 | AX150: 1 | AY150: 1 | AZ150: 10
A151: Rinorea_sp._1 | B151: Rinorea sp. 1 | C151: RINSP1 | D151: RIN | E151: VIOL | F151: Rin1 | G151: Rin | H151: Rinorea | K151: Violaceae | L151: Violaceae | M151: Malpighiales | N151: 10 | O151: 18 | P151: 5 | Q151: 15 | R151: 12 | S151: 3680.70015 | T151: 3897.14035 | U151: 1011.1585 | V151: 4458.8471 | W151: 1.10867228 | X151: 10 | Y151: 18.8983405 | Z151: 4 | AA151: 1 | AB151: 4877.2 | AC151: 4 | AD151: 1 | AE151: 34.26592473 | AF151: 5 | AG151: 1 | AH151: 0.5227591988 | AI151: 10 | AJ151: 1 | AK151: 0.1972 | AL151: 5 | AM151: 1 | AN151: 23.79260063 | AO151: 427.9972076 | AP151: 0.6510336404 | AQ151: 27.5 | AS151: 1 | AT151: 5 | AU151: 1 | AV151: 1 | AW151: 1 | AX151: 1 | AY151: 0 | AZ151: 9
A152: Sacoglottis_mattogrossensis_Malme | B152: Sacoglottis mattogrossensis | C152: SACMAT | D152: SAC | E152: HUMI | F152: Sacm | G152: Sac | H152: Sacoglottis | K152: Humiriaceae | L152: Humiriaceae | M152: Malpighiales | N152: 0 | O152: 2 | P152: 1 | Q152: 0 | R152: 0.75 | S152: 0 | T152: 2796.83725 | U152: 1854.1386 | V152: 0 | W152: 0.3951922762 | X152: 4 | Y152: 7.944356412 | Z152: 4 | AA152: 1 | AB152: 3400.5 | AC152: 4 | AD152: 1 | AE152: 58.47813642 | AF152: 3 | AG152: 1 | AH152: 0.5327627389 | AI152: 4 | AJ152: 1 | AK152: 0.2313333333 | AL152: 3 | AM152: 1 | AN152: 10.46409249 | AO152: 465.6838989 | AP152: 0.2819167152 | AQ152: 32.5 | AR152: 0.77 | AS152: 1 | AT152: 5 | AU152: 1 | AV152: 1 | AW152: 1 | AX152: 1 | AY152: 1 | AZ152: 10
A153: Sclerolobium_melinonii_Harms | B153: Sclerolobium melinonii | C153: SCLMEL | D153: SCL | E153: FABA | F153: Sclm | G153: Scl | H153: Sclerolobium | J153: Caesalpinoideae | K153: Fabaceae – Caesalpinoideae | L153: Leguminosae | M153: Fabales | N153: 2 | O153: 2 | P153: 0 | Q153: 0 | R153: 1 | S153: 240.40625 | T153: 2366.34325 | U153: 0 | V153: 0 | W153: 0.2214948651 | X153: 1 | Y153: 14.22687529 | Z153: 1 | AB153: 1621.229167 | AC153: 1 | AE153: 53.54062977 | AF153: 1 | AH153: 0.3321182812 | AI153: 1 | AK153: 0.094 | AL153: 1 | AN153: 29.87728834 | AO153: 489.4250488 | AP153: 0.5498241609 | AQ153: 27.5 | AR153: 0.55 | AS153: 2 | AT153: 0 | AU153: 1 | AV153: 1 | AW153: 1 | AX153: 1 | AY153: 1 | AZ153: 5
A154: Sclerolobium_sp._1 | B154: Sclerolobium sp. 1 | C154: SCLSP1 | D154: SCL | E154: FABA | F154: Scl1 | G154: Scl | H154: Sclerolobium | J154: Caesalpinoideae | K154: Fabaceae – Caesalpinoideae | L154: Leguminosae | M154: Fabales | N154: 1 | O154: 0 | P154: 1 | Q154: 0 | R154: 0.5 | S154: 1293.9626 | T154: 0 | U154: 624.2634 | V154: 0 | W154: 0.1629911923 | X154: 2 | Y154: 8.951438906 | Z154: 2 | AB154: 4596.779412 | AC154: 2 | AE154: 52.07762925 | AF154: 1 | AH154: 0.6374086834 | AI154: 2 | AK154: 0.178 | AL154: 1 | AN154: 25.2442193 | AO154: 500.1856995 | AP154: 0.633173144 | AQ154: 32.5 | AS154: 2 | AT154: 0 | AU154: 1 | AV154: 1 | AW154: 1 | AX154: 1 | AY154: 0 | AZ154: 4
A155: Sclerolobium_sp._5 | B155: Sclerolobium sp. 5 | C155: SCLSP5 | D155: SCL | E155: FABA | F155: Scl5 | G155: Scl | H155: Sclerolobium | J155: Caesalpinoideae | K155: Fabaceae – Caesalpinoideae | L155: Leguminosae | M155: Fabales | N155: 0 | O155: 1 | P155: 2 | Q155: 3 | R155: 1.5 | S155: 0 | T155: 555.4346 | U155: 1231.8848 | V155: 1358.96845 | W155: 0.2673393062 | X155: 3 | Y155: 8.874712425 | Z155: 3 | AA155: 1 | AB155: 12396.80409 | AC155: 3 | AD155: 1 | AE155: 44.22223432 | AF155: 3 | AG155: 1 | AH155: 0.6451992575 | AI155: 3 | AJ155: 1 | AK155: 0.2213333333 | AL155: 3 | AM155: 1 | AN155: 15.70164919 | AO155: 481.2835693 | AP155: 0.4069401898 | AQ155: 27.5 | AS155: 2 | AT155: 5 | AU155: 1 | AV155: 1 | AW155: 1 | AX155: 1 | AY155: 0 | AZ155: 9
A156: Scleronema_micranthum_(Ducke)_Ducke | B156: Scleronema micranthum | C156: SCNMIC | D156: SCN | E156: MALV | F156: Scnm | G156: Scn | H156: Scleronema | J156: Bombacoideae | K156: Malvaceae | L156: Bombacaceae | M156: Malvales | N156: 4 | O156: 13 | P156: 5 | Q156: 7 | R156: 7.25 | S156: 10842.55345 | T156: 9521.5005 | U156: 1449.32195 | V156: 8977.83305 | W156: 2.616321465 | X156: 12 | Y156: 10.95447767 | Z156: 8 | AA156: 1 | AB156: 6736.044444 | AC156: 9 | AD156: 1 | AE156: 45.05232199 | AF156: 5 | AG156: 1 | AH156: 0.8538240394 | AI156: 12 | AJ156: 1 | AK156: 0.225 | AL156: 6 | AM156: 1 | AN156: 17.78931975 | AO156: 467.0717621 | AP156: 0.6510336404 | AQ156: 37.5 | AR156: 0.6 | AS156: 1 | AT156: 5 | AU156: 1 | AV156: 1 | AW156: 1 | AX156: 1 | AY156: 1 | AZ156: 10
A157: Sloanea_eichleri_K._Schum. | B157: Sloanea eichleri | C157: SLOEIC | D157: SLO | E157: ELAE | F157: Sloe | G157: Slo | H157: Sloanea | K157: Elaeocarpaceae | L157: Elaeocarpaceae | M157: Oxalidales | N157: 4 | O157: 0 | P157: 1 | Q157: 1 | R157: 1.5 | S157: 2134.76825 | T157: 0 | U157: 88.2026 | V157: 211.1336 | W157: 0.2068252576 | X157: 4 | Y157: 8.013559001 | Z157: 4 | AA157: 1 | AB157: 23126.1 | AC157: 4 | AD157: 1 | AE157: 51.36534175 | AF157: 4 | AG157: 1 | AH157: 0.8731511702 | AI157: 4 | AJ157: 1 | AK157: 0.415 | AL157: 4 | AM157: 1 | AN157: 13.57988715 | AO157: 468.6029053 | AP157: 0.5438706621 | AQ157: 27.5 | AR157: 0.75 | AS157: 1 | AT157: 5 | AU157: 1 | AV157: 1 | AW157: 1 | AX157: 1 | AY157: 1 | AZ157: 10
A158: Sloanea_floribunda_Spruce_ex_Benth. | B158: Sloanea floribunda | C158: SLOFLO | D158: SLO | E158: ELAE | F158: Slof | G158: Slo | H158: Sloanea | K158: Elaeocarpaceae | L158: Elaeocarpaceae | M158: Oxalidales | N158: 1 | O158: 4 | P158: 2 | Q158: 1 | R158: 2 | S158: 100.23665 | T158: 1291.27005 | U158: 204.32765 | V158: 116.8394 | W158: 0.1455254681 | X158: 6 | Y158: 5.759221126 | Z158: 5 | AA158: 1 | AB158: 12230.36667 | AC158: 6 | AD158: 1 | AE158: 53.61192578 | AF158: 5 | AG158: 1 | AH158: 1.011191933 | AI158: 6 | AJ158: 1 | AK158: 0.2973333333 | AL158: 6 | AM158: 1 | AN158: 10.53637624 | AO158: 484.2942047 | AP158: 0.3533587007 | AQ158: 27.5 | AS158: 1 | AT158: 5 | AU158: 1 | AV158: 1 | AW158: 1 | AX158: 1 | AY158: 0 | AZ158: 9
A159: Swartzia_polyphylla_DC. | B159: Swartzia polyphylla | C159: SWAPOL | D159: SWA | E159: FABA | F159: Swap | G159: Swa | H159: Swartzia | J159: Faboideae | K159: Fabaceae – Faboideae | L159: Leguminosae | M159: Fabales | N159: 0 | O159: 0 | P159: 2 | Q159: 0 | R159: 0.5 | S159: 0 | T159: 0 | U159: 7425.5348 | V159: 0 | W159: 0.630945869 | X159: 5 | Y159: 5.840296856 | Z159: 3 | AA159: 1 | AB159: 2224.766585 | AC159: 5 | AD159: 1 | AE159: 45.64326029 | AF159: 3 | AG159: 1 | AH159: 0.6546740337 | AI159: 5 | AJ159: 1 | AK159: 0.178 | AL159: 5 | AM159: 1 | AN159: 25.79098463 | AO159: 486.6003036 | AP159: 0.5081496693 | AQ159: 32.5 | AR159: 0.71 | AS159: 2 | AT159: 5 | AU159: 1 | AV159: 1 | AW159: 1 | AX159: 1 | AY159: 1 | AZ159: 10
A160: Swartzia_recurva_Poepp. | B160: Swartzia recurva | C160: SWAREC | D160: SWA | E160: FABA | F160: Swar | G160: Swa | H160: Swartzia | J160: Faboideae | K160: Fabaceae – Faboideae | L160: Leguminosae | M160: Fabales | N160: 2 | O160: 3 | P160: 1 | Q160: 1 | R160: 1.75 | S160: 323.6869 | T160: 784.4819 | U160: 1051.5546 | V160: 813.9194 | W160: 0.2526696987 | X160: 8 | Y160: 11.15008528 | Z160: 5 | AA160: 1 | AB160: 7348.622294 | AC160: 7 | AD160: 1 | AE160: 50.4054014 | AF160: 4 | AG160: 1 | AH160: 0.9356964391 | AI160: 7 | AJ160: 1 | AK160: 0.3403333333 | AL160: 6 | AM160: 1 | AN160: 23.30196857 | AO160: 483.0615616 | AP160: 0.5855451537 | AQ160: 32.5 | AR160: 0.97 | AS160: 2 | AT160: 5 | AU160: 1 | AV160: 1 | AW160: 1 | AX160: 1 | AY160: 1 | AZ160: 10
A161: Swartzia_reticulata_Ducke | B161: Swartzia reticulata | C161: SWARET | D161: SWA | E161: FABA | F161: Swae | G161: Swa | H161: Swartzia | J161: Faboideae | K161: Fabaceae – Faboideae | L161: Leguminosae | M161: Fabales | N161: 10 | O161: 11 | P161: 9 | Q161: 6 | R161: 9 | S161: 2454.8206 | T161: 2409.7145 | U161: 2714.9539 | V161: 1879.1958 | W161: 0.8037021254 | X161: 15 | Y161: 9.258227366 | Z161: 13 | AA161: 1 | AB161: 14287.90779 | AC161: 14 | AD161: 1 | AE161: 46.1674276 | AF161: 5 | AG161: 1 | AH161: 0.7523857424 | AI161: 15 | AJ161: 1 | AK161: 0.2934166667 | AL161: 6 | AM161: 1 | AN161: 21.35603666 | AO161: 482.2428894 | AP161: 0.5141031681 | AQ161: 17.5 | AS161: 2 | AT161: 5 | AU161: 1 | AV161: 1 | AW161: 1 | AX161: 1 | AY161: 0 | AZ161: 9
A162: Swartzia_schomburgkii_Benth. | B162: Swartzia schomburgkii | C162: SWASCH | D162: SWA | E162: FABA | F162: Swas | G162: Swa | H162: Swartzia | J162: Faboideae | K162: Fabaceae – Faboideae | L162: Leguminosae | M162: Fabales | N162: 1 | O162: 0 | P162: 1 | Q162: 1 | R162: 0.75 | S162: 4924.0224 | T162: 0 | U162: 83.28065 | V162: 100.23665 | W162: 0.4339863944 | X162: 3 | Y162: 14.57344695 | Z162: 3 | AA162: 1 | AB162: 6053.834503 | AC162: 3 | AD162: 1 | AE162: 44.34610201 | AF162: 3 | AG162: 1 | AH162: 0.7957701514 | AI162: 3 | AJ162: 1 | AK162: 0.2206666667 | AL162: 3 | AM162: 1 | AN162: 32.94992208 | AO162: 490.1647949 | AP162: 0.5795916549 | AQ162: 22.5 | AS162: 2 | AT162: 5 | AU162: 1 | AV162: 1 | AW162: 1 | AX162: 1 | AY162: 0 | AZ162: 9
A163: Tachigali_plumbea_Ducke | B163: Tachigali plumbea | C163: TACPLU | D163: TAC | E163: FABA | F163: Tacp | G163: Tac | H163: Tachigali | I163: Caesalpinieae | J163: Caesalpinoideae | K163: Fabaceae – Caesalpinoideae | L163: Leguminosae | M163: Fabales | N163: 2 | O163: 2 | P163: 0 | Q163: 3 | R163: 1.75 | S163: 697.1428 | T163: 461.96465 | U163: 0 | V163: 604.74045 | W163: 0.149873723 | X163: 3 | Y163: 8.439984147 | Z163: 3 | AA163: 1 | AB163: 20180.10972 | AC163: 3 | AD163: 1 | AE163: 53.86178669 | AF163: 3 | AG163: 1 | AH163: 0.7813308548 | AI163: 3 | AJ163: 1 | AK163: 0.2146666667 | AL163: 3 | AM163: 1 | AN163: 26.77305222 | AO163: 482.8603745 | AP163: 0.4843356742 | AQ163: 27.5 | AS163: 2 | AT163: 5 | AU163: 1 | AV163: 1 | AW163: 1 | AX163: 1 | AY163: 0 | AZ163: 9
A164: Theobroma_sylvestris_Aubl._ex_Mart. | B164: Theobroma sylvestris | C164: THESYL | D164: THE | E164: MALV | F164: Thes | G164: The | H164: Theobroma | J164: Byttnerioideae | K164: Malvaceae | L164: Sterculiaceae | M164: Malvales | N164: 5 | O164: 4 | P164: 4 | Q164: 3 | R164: 4 | S164: 508.62505 | T164: 549.029 | U164: 371.73675 | V164: 319.09465 | W164: 0.1485683794 | X164: 11 | Y164: 10.5620155 | Z164: 6 | AA164: 1 | AB164: 24460.09286 | AC164: 7 | AD164: 1 | AE164: 46.11692345 | AF164: 6 | AG164: 1 | AH164: 0.6776428673 | AI164: 11 | AJ164: 1 | AK164: 0.3277142857 | AL164: 7 | AM164: 1 | AN164: 19.5215106 | AO164: 451.1541367 | AP164: 0.5855451537 | AQ164: 17.5 | AR164: 0.67 | AS164: 1 | AT164: 5 | AU164: 1 | AV164: 1 | AW164: 1 | AX164: 1 | AY164: 1 | AZ164: 10
A165: Trymatococcus_amazonicus_Poepp._&_Endl. | B165: Trymatococcus amazonicus | C165: TRYAMA | D165: TRY | E165: MORA | F165: Trya | G165: Try | H165: Trymatococcus | K165: Moraceae | L165: Moraceae | M165: Rosales | N165: 4 | O165: 1 | P165: 1 | Q165: 0 | R165: 1.5 | S165: 1516.01555 | T165: 136.7784 | U165: 346.185 | V165: 0 | W165: 0.1698527506 | X165: 9 | Y165: 9.939167252 | Z165: 6 | AA165: 1 | AB165: 9721.4 | AC165: 6 | AD165: 1 | AE165: 49.83825738 | AF165: 3 | AG165: 1 | AH165: 0.513555523 | AI165: 9 | AJ165: 1 | AK165: 0.3673333333 | AL165: 3 | AM165: 1 | AN165: 22.63247252 | AO165: 402.3525238 | AP165: 0.5319636645 | AQ165: 17.5 | AR165: 0.66 | AS165: 1 | AT165: 5 | AU165: 1 | AV165: 1 | AW165: 1 | AX165: 1 | AY165: 1 | AZ165: 10
A166: Unonopsis_duckei_R._E._Fries | B166: Unonopsis duckei | C166: UNODUC | D166: UNO | E166: ANNO | F166: Unod | G166: Uno | H166: Unonopsis | K166: Annonaceae | L166: Annonaceae | M166: Magnoliales | N166: 3 | O166: 5 | P166: 0 | Q166: 3 | R166: 2.75 | S166: 998.04115 | T166: 1332.0194 | U166: 0 | V166: 888.34525 | W166: 0.2734671507 | X166: 11 | Y166: 12.24658475 | Z166: 9 | AA166: 1 | AB166: 10050.64444 | AC166: 9 | AD166: 1 | AE166: 56.33275628 | AF166: 5 | AG166: 1 | AH166: 0.7373765494 | AI166: 11 | AJ166: 1 | AK166: 0.1816666667 | AL166: 6 | AM166: 1 | AN166: 20.98563433 | AO166: 487.6886368 | AP166: 0.4426611826 | AQ166: 27.5 | AS166: 1 | AT166: 5 | AU166: 1 | AV166: 1 | AW166: 1 | AX166: 1 | AY166: 0 | AZ166: 9
A167: Vantanea_parviflora_Lam. | B167: Vantanea parviflora | C167: VANPAR | D167: VAN | E167: HUMI | F167: Vanp | G167: Van | H167: Vantanea | K167: Humiriaceae | L167: Humiriaceae | M167: Malpighiales | N167: 3 | O167: 0 | P167: 6 | Q167: 1 | R167: 2.5 | S167: 4390.60705 | T167: 0 | U167: 3687.48255 | V167: 1431.28265 | W167: 0.8080090256 | X167: 8 | Y167: 10.00474832 | Z167: 6 | AA167: 1 | AB167: 6388.6 | AC167: 6 | AD167: 1 | AE167: 50.09790419 | AF167: 6 | AG167: 1 | AH167: 0.7368501133 | AI167: 8 | AJ167: 1 | AK167: 0.2356666667 | AL167: 6 | AM167: 1 | AN167: 11.07363224 | AO167: 447.4809265 | AP167: 0.3414517031 | AQ167: 32.5 | AR167: 0.84 | AS167: 1 | AT167: 5 | AU167: 1 | AV167: 1 | AW167: 1 | AX167: 1 | AY167: 1 | AZ167: 10
A168: Virola_calophylla_Warb. | B168: Virola calophylla | C168: VIRCAL | D168: VIR | E168: MYRI | F168: Virc | G168: Vir | H168: Virola | K168: Myristicaceae | L168: Myristicaceae | M168: Magnoliales | N168: 1 | O168: 3 | P168: 4 | Q168: 5 | R168: 3.25 | S168: 237.6666 | T168: 733.10365 | U168: 753.0034 | V168: 948.3585 | W168: 0.2270504128 | X168: 7 | Y168: 10.36519165 | Z168: 6 | AA168: 1 | AB168: 34445.8 | AC168: 6 | AD168: 1 | AE168: 44.42720666 | AF168: 5 | AG168: 1 | AH168: 0.9527316423 | AI168: 7 | AJ168: 1 | AK168: 0.3248 | AL168: 5 | AM168: 1 | AN168: 17.51260161 | AO168: 490.5528259 | AP168: 0.490289173 | AQ168: 17.5 | AR168: 0.49 | AS168: 1 | AT168: 5 | AU168: 1 | AV168: 1 | AW168: 1 | AX168: 1 | AY168: 1 | AZ168: 10
A169: Vochysia_obidensis_(Huber)_Ducke | B169: Vochysia obidensis | C169: VOCOBI | D169: VOC | E169: VOCH | F169: Voco | G169: Voc | H169: Vochysia | K169: Vochysiaceae | L169: Vochysiaceae | M169: Myrtales | N169: 4 | O169: 0 | P169: 1 | Q169: 3 | R169: 2 | S169: 5709.0067 | T169: 0 | U169: 198.45585 | V169: 1346.81665 | W169: 0.6163943227 | X169: 3 | Y169: 10.7612175 | Z169: 3 | AA169: 1 | AB169: 2787.066667 | AC169: 3 | AD169: 1 | AE169: 31.657371 | AF169: 3 | AG169: 1 | AH169: 0.548585989 | AI169: 3 | AJ169: 1 | AK169: 0.1926666667 | AL169: 3 | AM169: 1 | AN169: 20.10311842 | AO169: 457.4839783 | AP169: 0.3831261947 | AQ169: 37.5 | AR169: 0.5 | AS169: 1 | AT169: 5 | AU169: 1 | AV169: 1 | AW169: 1 | AX169: 1 | AY169: 1 | AZ169: 10
A170: Vochysia_rufescens_W._A._Rodr. | B170: Vochysia rufescens | C170: VOCRUF | D170: VOC | E170: VOCH | F170: Vocr | G170: Voc | H170: Vochysia | K170: Vochysiaceae | L170: Vochysiaceae | M170: Myrtales | N170: 0 | O170: 1 | P170: 0 | Q170: 0 | R170: 0.25 | S170: 0 | T170: 2263.69665 | U170: 0 | V170: 0 | W170: 0.1923457486 | X170: 0 | Z170: 0 | AC170: 0 | AF170: 0 | AI170: 0 | AL170: 0 | AQ170: 27.5 | AS170: 1 | AT170: 0 | AU170: 0 | AV170: 0 | AW170: 0 | AX170: 1 | AY170: 0 | AZ170: 1
A171: Zygia_racemosa_(Ducke)_Barn._&_Grimes | B171: Zygia racemosa | C171: ZYGRAC | D171: ZYG | E171: FABA | F171: Zygr | G171: Zyg | H171: Zygia | J171: Mimosoideae | K171: Fabaceae – Mimosoideae | L171: Leguminosae | M171: Fabales | N171: 3 | O171: 8 | P171: 3 | Q171: 3 | R171: 4.25 | S171: 1878.04185 | T171: 5228.21775 | U171: 4003.69625 | V171: 762.77665 | W171: 1.008823166 | X171: 9 | Y171: 16.55146319 | Z171: 9 | AA171: 1 | AB171: 84.53333333 | AC171: 9 | AD171: 1 | AE171: 51.04101266 | AF171: 5 | AG171: 1 | AH171: 0.9202705392 | AI171: 7 | AJ171: 1 | AK171: 0.194 | AL171: 5 | AM171: 1 | AN171: 31.95496321 | AO171: 476.6158295 | AP171: 0.6093591488 | AQ171: 27.5 | AR171: 0.75 | AS171: 3 | AT171: 5 | AU171: 1 | AV171: 1 | AW171: 1 | AX171: 1 | AY171: 1 | AZ171: 10
